{"text_format":"1","workbook":"xlsx","n_sheets":8,"sheets":["Model 1A","Model 1B","Model 1C","rate","Model 1D","Model 2B","Model 2B (USD)","hidden"],"not_rendered":{"charts":0,"images":0,"macros":0,"external_links":1,"defined_names":32,"comments":3,"pivot_tables":0},"unopened":[],"bounds":{"document_bytes":16777216,"sheet_cells":100000,"rows_first":2000,"rows_last":500,"rows_between":2000,"halvings":0,"cell_chars":16384,"cell_head_chars":4096},"cells_cut":0,"cells_raw":0,"read":"whole","date_system":"1900"}

{"sheet":"Model 1A","index":0,"n_rows":24,"n_cols":11,"rows_kept":24,"cut":false,"hidden":false,"merged":[[10,1,10,4],[10,9,10,10],[7,5,7,10],[8,5,8,10],[7,1,7,4],[8,1,8,4],[15,1,15,3],[15,4,15,6],[9,1,9,4],[9,6,9,8],[9,9,9,10]]}
[]
[]
[]
[]
["Model 1A",null,"OWN INITIATIVES - TEAM"]
[null,null,"Overview of the income",null,null,null,null,null,null,null,"€"]
[]
[null,"FLEMISH UNIVERSITY:"]
[null,"PARTNER INSTITUTION :"]
[null,"PROJECT YEAR : ",null,null,null,null,"VLIR-UOS PROJECTCODE :"]
[null,"PERIOD :",null,null,null,"from :",null,"to :"]
[]
[]
[]
[]
[null,"DGD/VLIR-UOS allowance :"]
[]
[]
[null,null,"Duly certified,"]
[]
[]
[]
[]
[null,null,"Name and duty of the undersigned"]

{"sheet":"Model 1B","index":1,"n_rows":38,"n_cols":15,"rows_kept":38,"cut":false,"hidden":false,"merged":[[7,1,7,4],[7,10,7,11],[4,5,4,11],[5,5,5,11],[6,7,6,9],[6,10,6,11],[4,1,4,4],[5,1,5,4],[6,1,6,4]]}
[]
["Model 1B","OWN INITIATIVES - TEAM"]
[null,"Financial report in EURO",null,null,null,null,null,null,null,null,null,null,null,null,"€"]
[]
[null,"FLEMISH UNIVERSITY:",null,null,null,{"$f":"+'Model 1A'!F8","v":0}]
[null,"PARTNER INSTITUTION :",null,null,null,{"$f":"+'Model 1A'!F9","v":0}]
[null,"PROJECT YEAR : ",null,null,null,{"$f":"+apYear","v":0},null,"VLIR-UOS PROJECTCODE :",null,null,{"$f":"+'Model 1A'!J10","v":0}]
[null,"PERIOD :",null,null,null,"from :",null,{"$f":"'Model 1A'!G11","v":"00:00:00"},"to :",{"$f":"'Model 1A'!I11","v":"00:00:00"}]
[]
[]
[null,"BUDGETLINES",null,null,"APPROVED","Realigned",null,"Expenses in EURO",null,null,"Difference","References"]
[null,null,null,null,"Budget","Budget",null,"Belgian Acc.","Local Acc.","TOTAL 1C+1D+coord","(Budget) - "]
[null,null,null,null,null,null,null,null,null,null,"(Total 1C+1D+coord.)"]
[]
[null,null,null,null,null,null,null,"Model 1C","Model 1D","TOTAL 1C+1D"]
[null,"A. INVESTMENT COSTS",null,null,null,{"$f":"+E16","v":0},null,{"$f":"+'Model 1C'!J14","v":0},{"$f":"+'Model 1D'!L14","v":0},{"$f":"+SUM(H16:I16)","v":0},{"$f":"+F16-J16","v":0}]
[null,"B. OPERATIONAL COSTS",null,null,null,{"$f":"+E17","v":0},null,{"$f":"+'Model 1C'!J15","v":0},{"$f":"+'Model 1D'!L15","v":0},{"$f":"+SUM(H17:I17)","v":0},{"$f":"+F17-J17","v":0}]
[null,"C. PERSONNEL COSTS",null,null,null,{"$f":"+E18","v":0},null,{"$f":"+'Model 1C'!J16","v":0},{"$f":"+'Model 1D'!L16","v":0},{"$f":"+SUM(H18:I18)","v":0},{"$f":"+F18-J18","v":0}]
[null,"D. SCHOLARSHIPS COSTS",null,null,null,{"$f":"+E19","v":0},null,{"$f":"+'Model 1C'!J17","v":0},{"$f":"+'Model 1D'!L17","v":0},{"$f":"+SUM(H19:I19)","v":0},{"$f":"+F19-J19","v":0}]
[]
[null,"SUBTOTAL A to D",null,null,{"$f":"+SUM(E14:E20)","v":0},{"$f":"+SUM(F14:F20)","v":0},null,{"$f":"+SUM(H14:H20)","v":0},{"$f":"+SUM(I14:I20)","v":0},{"$f":"+SUM(J14:J20)","v":0},{"$f":"+SUM(K14:K20)","v":0}]
[]
[]
[null,"E. COORDINATION COSTS (max 10% from A to D)"]
[null,"E.1. Coord.costs for the Flemish univ. ","(5% from A to D - lump sum on approved budget)",null,{"$f":"+E21*0.05","v":0},{"$f":"+E25","v":0},null,{"$f":"+E25","v":0},null,{"$f":"+SUM(H25:I25)","v":0},{"$f":"+F25-J25","v":0}]
[null,"E.2. Coord. Costs for the local univ.","(5% from A to D - lump sum on approved budget)",null,{"$f":"+E21*0.05","v":0},{"$f":"+E26","v":0},null,null,{"$f":"+E26","v":0},{"$f":"+SUM(H26:I26)","v":0},{"$f":"+F26-J26","v":0}]
[]
[null,"TOTAL E",null,null,{"$f":"+SUM(E24:E27)","v":0},{"$f":"+SUM(F24:F27)","v":0},null,{"$f":"+SUM(H24:H27)","v":0},{"$f":"+SUM(I24:I27)","v":0},{"$f":"+SUM(J24:J27)","v":0},{"$f":"+SUM(K24:K27)","v":0}]
[]
[]
[]
[]
[]
[null,"GRAND TOTAL (A to E)",null,null,{"$f":"+E21+E28","v":0},{"$f":"+F21+F28","v":0},null,{"$f":"+H21+H28","v":0},{"$f":"+I21+I28","v":0},{"$f":"+J21+J28","v":0},{"$f":"+K21+K28","v":0}]
[]
[null,null,null,null,"Duly certified,"]
[]
[null,null,null,null,"Name and function of the undersigned"]

{"sheet":"Model 1C","index":2,"n_rows":775,"n_cols":12,"rows_kept":775,"cut":false,"hidden":false,"merged":[[7,8,7,9],[4,3,4,9],[5,3,5,9],[6,5,6,7],[6,8,6,9],[4,0,4,2],[5,0,5,2],[6,0,6,2],[7,0,7,2]]}
[]
["Model 1C",null,"OWN INITIATIVES - TEAM"]
[null,null,"Overview of the expenses from the Belgian account ",null,null,null,null,null,null,null,null,"€"]
[]
["FLEMISH UNIVERSITY:",null,null,{"$f":"+'Model 1A'!F8","v":0}]
["PARTNER INSTITUTION :",null,null,{"$f":"+'Model 1A'!F9","v":0}]
["PROJECT YEAR : ",null,null,{"$f":"+apYear","v":0},null,"VLIR-UOS PROJECTCODE :",null,null,{"$f":"+'Model 1A'!J10","v":0}]
["PERIOD :",null,null,"from :",null,{"$f":"+begindatum","v":"00:00:00"},"to :",{"$f":"+einddatum","v":"00:00:00"}]
[]
[]
[null,null,null,null,null,null,null,null,null,"TOTALS"]
[]
[]
[null,"A. INVESTMENT COSTS",null,null,null,null,null,null,null,{"$f":"SUMIF($B$24:$B$773,$B14,J$24:J$773)","v":0}]
[null,"B. OPERATIONAL COSTS",null,null,null,null,null,null,null,{"$f":"SUMIF($B$24:$B$773,$B15,J$24:J$773)","v":0}]
[null,"C. PERSONNEL COSTS",null,null,null,null,null,null,null,{"$f":"SUMIF($B$24:$B$773,$B16,J$24:J$773)","v":0}]
[null,"D. SCHOLARSHIPS COSTS",null,null,null,null,null,null,null,{"$f":"SUMIF($B$24:$B$773,$B17,J$24:J$773)","v":0}]
[]
[]
[null,"Errors :",null,null,null,null,null,null,null,{"$f":"ROUND(J774-SUM(J12:J19),2)","v":0},{"$f":"IF(J20=0,\"\",\"error : no category ?\")","v":""}]
[null,null,null,null,null,null,null,null,null,{"$f":"+SUM(J12:J20)","v":0}]
[{"$f":"+A2","v":"Model 1C"}]
["N°","Category","Inv. Date","classif n°","supplier","description","Amount local","Local Currency","exchange EUR/LocCur","Amount EUR"]
[1,null,null,null,null,null,null,"EUR",{"$f":"IF(H24=\"eur\",1,\"\")","v":1},{"$f":"+G24*I24","v":0}]
[2,null,null,null,null,null,null,"EUR",{"$f":"IF(H25=\"eur\",1,\"\")","v":1},0]
[3,null,null,null,null,null,null,"EUR",1,0]
[4,null,null,null,null,null,null,"EUR",1,0]
[5,null,null,null,null,null,null,"EUR",1,0]
[6,null,null,null,null,null,null,"EUR",1,0]
[7,null,null,null,null,null,null,"EUR",1,0]
[8,null,null,null,null,null,null,"EUR",1,0]
[9,null,null,null,null,null,null,"EUR",1,0]
[10,null,null,null,null,null,null,"EUR",1,0]
[11,null,null,null,null,null,null,"EUR",1,0]
[12,null,null,null,null,null,null,"EUR",1,0]
[13,null,null,null,null,null,null,"EUR",1,0]
[14,null,null,null,null,null,null,"EUR",1,0]
[15,null,null,null,null,null,null,"EUR",1,0]
[16,null,null,null,null,null,null,"EUR",1,0]
[17,null,null,null,null,null,null,"EUR",1,0]
[18,null,null,null,null,null,null,"EUR",1,0]
[19,null,null,null,null,null,null,"EUR",1,0]
[20,null,null,null,null,null,null,"EUR",1,0]
[21,null,null,null,null,null,null,"EUR",1,0]
[22,null,null,null,null,null,null,"EUR",1,0]
[23,null,null,null,null,null,null,"EUR",1,0]
[24,null,null,null,null,null,null,"EUR",1,0]
[25,null,null,null,null,null,null,"EUR",1,0]
[26,null,null,null,null,null,null,"EUR",1,0]
[27,null,null,null,null,null,null,"EUR",1,0]
[28,null,null,null,null,null,null,"EUR",1,0]
[29,null,null,null,null,null,null,"EUR",1,0]
[30,null,null,null,null,null,null,"EUR",1,0]
[31,null,null,null,null,null,null,"EUR",1,0]
[32,null,null,null,null,null,null,"EUR",1,0]
[33,null,null,null,null,null,null,"EUR",1,0]
[34,null,null,null,null,null,null,"EUR",1,0]
[35,null,null,null,null,null,null,"EUR",1,0]
[36,null,null,null,null,null,null,"EUR",1,0]
[37,null,null,null,null,null,null,"EUR",1,0]
[38,null,null,null,null,null,null,"EUR",1,0]
[39,null,null,null,null,null,null,"EUR",1,0]
[40,null,null,null,null,null,null,"EUR",1,0]
[41,null,null,null,null,null,null,"EUR",1,0]
[42,null,null,null,null,null,null,"EUR",1,0]
[43,null,null,null,null,null,null,"EUR",1,0]
[44,null,null,null,null,null,null,"EUR",1,0]
[45,null,null,null,null,null,null,"EUR",1,0]
[46,null,null,null,null,null,null,"EUR",1,0]
[47,null,null,null,null,null,null,"EUR",1,0]
[48,null,null,null,null,null,null,"EUR",1,0]
[49,null,null,null,null,null,null,"EUR",1,0]
[50,null,null,null,null,null,null,"EUR",1,0]
[51,null,null,null,null,null,null,"EUR",1,0]
[52,null,null,null,null,null,null,"EUR",1,0]
[53,null,null,null,null,null,null,"EUR",1,0]
[54,null,null,null,null,null,null,"EUR",1,0]
[55,null,null,null,null,null,null,"EUR",1,0]
[56,null,null,null,null,null,null,"EUR",1,0]
[57,null,null,null,null,null,null,"EUR",1,0]
[58,null,null,null,null,null,null,"EUR",1,0]
[59,null,null,null,null,null,null,"EUR",1,0]
[60,null,null,null,null,null,null,"EUR",1,0]
[61,null,null,null,null,null,null,"EUR",1,0]
[62,null,null,null,null,null,null,"EUR",1,0]
[63,null,null,null,null,null,null,"EUR",1,0]
[64,null,null,null,null,null,null,"EUR",1,0]
[65,null,null,null,null,null,null,"EUR",1,{"$f":"+G88*I88","v":0}]
[66,null,null,null,null,null,null,"EUR",{"$f":"IF(H89=\"eur\",1,\"\")","v":1},0]
[67,null,null,null,null,null,null,"EUR",1,0]
[68,null,null,null,null,null,null,"EUR",1,0]
[69,null,null,null,null,null,null,"EUR",1,0]
[70,null,null,null,null,null,null,"EUR",1,0]
[71,null,null,null,null,null,null,"EUR",1,0]
[72,null,null,null,null,null,null,"EUR",1,0]
[73,null,null,null,null,null,null,"EUR",1,0]
[74,null,null,null,null,null,null,"EUR",1,0]
[75,null,null,null,null,null,null,"EUR",1,0]
[76,null,null,null,null,null,null,"EUR",1,0]
[77,null,null,null,null,null,null,"EUR",1,0]
[78,null,null,null,null,null,null,"EUR",1,0]
[79,null,null,null,null,null,null,"EUR",1,0]
[80,null,null,null,null,null,null,"EUR",1,0]
[81,null,null,null,null,null,null,"EUR",1,0]
[82,null,null,null,null,null,null,"EUR",1,0]
[83,null,null,null,null,null,null,"EUR",1,0]
[84,null,null,null,null,null,null,"EUR",1,0]
[85,null,null,null,null,null,null,"EUR",1,0]
[86,null,null,null,null,null,null,"EUR",1,0]
[87,null,null,null,null,null,null,"EUR",1,0]
[88,null,null,null,null,null,null,"EUR",1,0]
[89,null,null,null,null,null,null,"EUR",1,0]
[90,null,null,null,null,null,null,"EUR",1,0]
[91,null,null,null,null,null,null,"EUR",1,0]
[92,null,null,null,null,null,null,"EUR",1,0]
[93,null,null,null,null,null,null,"EUR",1,0]
[94,null,null,null,null,null,null,"EUR",1,0]
[95,null,null,null,null,null,null,"EUR",1,0]
[96,null,null,null,null,null,null,"EUR",1,0]
[97,null,null,null,null,null,null,"EUR",1,0]
[98,null,null,null,null,null,null,"EUR",1,0]
[99,null,null,null,null,null,null,"EUR",1,0]
[100,null,null,null,null,null,null,"EUR",1,0]
[101,null,null,null,null,null,null,"EUR",1,0]
[102,null,null,null,null,null,null,"EUR",1,0]
[103,null,null,null,null,null,null,"EUR",1,0]
[104,null,null,null,null,null,null,"EUR",1,0]
[105,null,null,null,null,null,null,"EUR",1,0]
[106,null,null,null,null,null,null,"EUR",1,0]
[107,null,null,null,null,null,null,"EUR",1,0]
[108,null,null,null,null,null,null,"EUR",1,0]
[109,null,null,null,null,null,null,"EUR",1,0]
[110,null,null,null,null,null,null,"EUR",1,0]
[111,null,null,null,null,null,null,"EUR",1,0]
[112,null,null,null,null,null,null,"EUR",1,0]
[113,null,null,null,null,null,null,"EUR",1,0]
[114,null,null,null,null,null,null,"EUR",1,0]
[115,null,null,null,null,null,null,"EUR",1,0]
[116,null,null,null,null,null,null,"EUR",1,0]
[117,null,null,null,null,null,null,"EUR",1,0]
[118,null,null,null,null,null,null,"EUR",1,0]
[119,null,null,null,null,null,null,"EUR",1,0]
[120,null,null,null,null,null,null,"EUR",1,0]
[121,null,null,null,null,null,null,"EUR",1,0]
[122,null,null,null,null,null,null,"EUR",1,0]
[123,null,null,null,null,null,null,"EUR",1,0]
[124,null,null,null,null,null,null,"EUR",1,0]
[125,null,null,null,null,null,null,"EUR",1,0]
[126,null,null,null,null,null,null,"EUR",1,0]
[127,null,null,null,null,null,null,"EUR",1,0]
[128,null,null,null,null,null,null,"EUR",1,0]
[129,null,null,null,null,null,null,"EUR",1,{"$f":"+G152*I152","v":0}]
[130,null,null,null,null,null,null,"EUR",{"$f":"IF(H153=\"eur\",1,\"\")","v":1},0]
[131,null,null,null,null,null,null,"EUR",1,0]
[132,null,null,null,null,null,null,"EUR",1,0]
[133,null,null,null,null,null,null,"EUR",1,0]
[134,null,null,null,null,null,null,"EUR",1,0]
[135,null,null,null,null,null,null,"EUR",1,0]
[136,null,null,null,null,null,null,"EUR",1,0]
[137,null,null,null,null,null,null,"EUR",1,0]
[138,null,null,null,null,null,null,"EUR",1,0]
[139,null,null,null,null,null,null,"EUR",1,0]
[140,null,null,null,null,null,null,"EUR",1,0]
[141,null,null,null,null,null,null,"EUR",1,0]
[142,null,null,null,null,null,null,"EUR",1,0]
[143,null,null,null,null,null,null,"EUR",1,0]
[144,null,null,null,null,null,null,"EUR",1,0]
[145,null,null,null,null,null,null,"EUR",1,0]
[146,null,null,null,null,null,null,"EUR",1,0]
[147,null,null,null,null,null,null,"EUR",1,0]
[148,null,null,null,null,null,null,"EUR",1,0]
[149,null,null,null,null,null,null,"EUR",1,0]
[150,null,null,null,null,null,null,"EUR",1,0]
[151,null,null,null,null,null,null,"EUR",1,0]
[152,null,null,null,null,null,null,"EUR",1,0]
[153,null,null,null,null,null,null,"EUR",1,0]
[154,null,null,null,null,null,null,"EUR",1,0]
[155,null,null,null,null,null,null,"EUR",1,0]
[156,null,null,null,null,null,null,"EUR",1,0]
[157,null,null,null,null,null,null,"EUR",1,0]
[158,null,null,null,null,null,null,"EUR",1,0]
[159,null,null,null,null,null,null,"EUR",1,0]
[160,null,null,null,null,null,null,"EUR",1,0]
[161,null,null,null,null,null,null,"EUR",1,0]
[162,null,null,null,null,null,null,"EUR",1,0]
[163,null,null,null,null,null,null,"EUR",1,0]
[164,null,null,null,null,null,null,"EUR",1,0]
[165,null,null,null,null,null,null,"EUR",1,0]
[166,null,null,null,null,null,null,"EUR",1,0]
[167,null,null,null,null,null,null,"EUR",1,0]
[168,null,null,null,null,null,null,"EUR",1,0]
[169,null,null,null,null,null,null,"EUR",1,0]
[170,null,null,null,null,null,null,"EUR",1,0]
[171,null,null,null,null,null,null,"EUR",1,0]
[172,null,null,null,null,null,null,"EUR",1,0]
[173,null,null,null,null,null,null,"EUR",1,0]
[174,null,null,null,null,null,null,"EUR",1,0]
[175,null,null,null,null,null,null,"EUR",1,0]
[176,null,null,null,null,null,null,"EUR",1,0]
[177,null,null,null,null,null,null,"EUR",1,0]
[178,null,null,null,null,null,null,"EUR",1,0]
[179,null,null,null,null,null,null,"EUR",1,0]
[180,null,null,null,null,null,null,"EUR",1,0]
[181,null,null,null,null,null,null,"EUR",1,0]
[182,null,null,null,null,null,null,"EUR",1,0]
[183,null,null,null,null,null,null,"EUR",1,0]
[184,null,null,null,null,null,null,"EUR",1,0]
[185,null,null,null,null,null,null,"EUR",1,0]
[186,null,null,null,null,null,null,"EUR",1,0]
[187,null,null,null,null,null,null,"EUR",1,0]
[188,null,null,null,null,null,null,"EUR",1,0]
[189,null,null,null,null,null,null,"EUR",1,0]
[190,null,null,null,null,null,null,"EUR",1,0]
[191,null,null,null,null,null,null,"EUR",1,0]
[192,null,null,null,null,null,null,"EUR",1,0]
[193,null,null,null,null,null,null,"EUR",1,{"$f":"+G216*I216","v":0}]
[194,null,null,null,null,null,null,"EUR",{"$f":"IF(H217=\"eur\",1,\"\")","v":1},0]
[195,null,null,null,null,null,null,"EUR",1,0]
[196,null,null,null,null,null,null,"EUR",1,0]
[197,null,null,null,null,null,null,"EUR",1,0]
[198,null,null,null,null,null,null,"EUR",1,0]
[199,null,null,null,null,null,null,"EUR",1,0]
[200,null,null,null,null,null,null,"EUR",1,0]
[201,null,null,null,null,null,null,"EUR",1,0]
[202,null,null,null,null,null,null,"EUR",1,0]
[203,null,null,null,null,null,null,"EUR",1,0]
[204,null,null,null,null,null,null,"EUR",1,0]
[205,null,null,null,null,null,null,"EUR",1,0]
[206,null,null,null,null,null,null,"EUR",1,0]
[207,null,null,null,null,null,null,"EUR",1,0]
[208,null,null,null,null,null,null,"EUR",1,0]
[209,null,null,null,null,null,null,"EUR",1,0]
[210,null,null,null,null,null,null,"EUR",1,0]
[211,null,null,null,null,null,null,"EUR",1,0]
[212,null,null,null,null,null,null,"EUR",1,0]
[213,null,null,null,null,null,null,"EUR",1,0]
[214,null,null,null,null,null,null,"EUR",1,0]
[215,null,null,null,null,null,null,"EUR",1,0]
[216,null,null,null,null,null,null,"EUR",1,0]
[217,null,null,null,null,null,null,"EUR",1,0]
[218,null,null,null,null,null,null,"EUR",1,0]
[219,null,null,null,null,null,null,"EUR",1,0]
[220,null,null,null,null,null,null,"EUR",1,0]
[221,null,null,null,null,null,null,"EUR",1,0]
[222,null,null,null,null,null,null,"EUR",1,0]
[223,null,null,null,null,null,null,"EUR",1,0]
[224,null,null,null,null,null,null,"EUR",1,0]
[225,null,null,null,null,null,null,"EUR",1,0]
[226,null,null,null,null,null,null,"EUR",1,0]
[227,null,null,null,null,null,null,"EUR",1,0]
[228,null,null,null,null,null,null,"EUR",1,0]
[229,null,null,null,null,null,null,"EUR",1,0]
[230,null,null,null,null,null,null,"EUR",1,0]
[231,null,null,null,null,null,null,"EUR",1,0]
[232,null,null,null,null,null,null,"EUR",1,0]
[233,null,null,null,null,null,null,"EUR",1,0]
[234,null,null,null,null,null,null,"EUR",1,0]
[235,null,null,null,null,null,null,"EUR",1,0]
[236,null,null,null,null,null,null,"EUR",1,0]
[237,null,null,null,null,null,null,"EUR",1,0]
[238,null,null,null,null,null,null,"EUR",1,0]
[239,null,null,null,null,null,null,"EUR",1,0]
[240,null,null,null,null,null,null,"EUR",1,0]
[241,null,null,null,null,null,null,"EUR",1,0]
[242,null,null,null,null,null,null,"EUR",1,0]
[243,null,null,null,null,null,null,"EUR",1,0]
[244,null,null,null,null,null,null,"EUR",1,0]
[245,null,null,null,null,null,null,"EUR",1,0]
[246,null,null,null,null,null,null,"EUR",1,0]
[247,null,null,null,null,null,null,"EUR",1,0]
[248,null,null,null,null,null,null,"EUR",1,0]
[249,null,null,null,null,null,null,"EUR",1,0]
[250,null,null,null,null,null,null,"EUR",1,0]
[251,null,null,null,null,null,null,"EUR",1,0]
[252,null,null,null,null,null,null,"EUR",1,0]
[253,null,null,null,null,null,null,"EUR",1,0]
[254,null,null,null,null,null,null,"EUR",1,0]
[255,null,null,null,null,null,null,"EUR",1,0]
[256,null,null,null,null,null,null,"EUR",1,0]
[257,null,null,null,null,null,null,"EUR",1,{"$f":"+G280*I280","v":0}]
[258,null,null,null,null,null,null,"EUR",{"$f":"IF(H281=\"eur\",1,\"\")","v":1},0]
[259,null,null,null,null,null,null,"EUR",1,0]
[260,null,null,null,null,null,null,"EUR",1,0]
[261,null,null,null,null,null,null,"EUR",1,0]
[262,null,null,null,null,null,null,"EUR",1,0]
[263,null,null,null,null,null,null,"EUR",1,0]
[264,null,null,null,null,null,null,"EUR",1,0]
[265,null,null,null,null,null,null,"EUR",1,0]
[266,null,null,null,null,null,null,"EUR",1,0]
[267,null,null,null,null,null,null,"EUR",1,0]
[268,null,null,null,null,null,null,"EUR",1,0]
[269,null,null,null,null,null,null,"EUR",1,0]
[270,null,null,null,null,null,null,"EUR",1,0]
[271,null,null,null,null,null,null,"EUR",1,0]
[272,null,null,null,null,null,null,"EUR",1,0]
[273,null,null,null,null,null,null,"EUR",1,0]
[274,null,null,null,null,null,null,"EUR",1,0]
[275,null,null,null,null,null,null,"EUR",1,0]
[276,null,null,null,null,null,null,"EUR",1,0]
[277,null,null,null,null,null,null,"EUR",1,0]
[278,null,null,null,null,null,null,"EUR",1,0]
[279,null,null,null,null,null,null,"EUR",1,0]
[280,null,null,null,null,null,null,"EUR",1,0]
[281,null,null,null,null,null,null,"EUR",1,0]
[282,null,null,null,null,null,null,"EUR",1,0]
[283,null,null,null,null,null,null,"EUR",1,0]
[284,null,null,null,null,null,null,"EUR",1,0]
[285,null,null,null,null,null,null,"EUR",1,0]
[286,null,null,null,null,null,null,"EUR",1,0]
[287,null,null,null,null,null,null,"EUR",1,0]
[288,null,null,null,null,null,null,"EUR",1,0]
[289,null,null,null,null,null,null,"EUR",1,0]
[290,null,null,null,null,null,null,"EUR",1,0]
[291,null,null,null,null,null,null,"EUR",1,0]
[292,null,null,null,null,null,null,"EUR",1,0]
[293,null,null,null,null,null,null,"EUR",1,0]
[294,null,null,null,null,null,null,"EUR",1,0]
[295,null,null,null,null,null,null,"EUR",1,0]
[296,null,null,null,null,null,null,"EUR",1,0]
[297,null,null,null,null,null,null,"EUR",1,0]
[298,null,null,null,null,null,null,"EUR",1,0]
[299,null,null,null,null,null,null,"EUR",1,0]
[300,null,null,null,null,null,null,"EUR",1,0]
[301,null,null,null,null,null,null,"EUR",1,0]
[302,null,null,null,null,null,null,"EUR",1,0]
[303,null,null,null,null,null,null,"EUR",1,0]
[304,null,null,null,null,null,null,"EUR",1,0]
[305,null,null,null,null,null,null,"EUR",1,0]
[306,null,null,null,null,null,null,"EUR",1,0]
[307,null,null,null,null,null,null,"EUR",1,0]
[308,null,null,null,null,null,null,"EUR",1,0]
[309,null,null,null,null,null,null,"EUR",1,0]
[310,null,null,null,null,null,null,"EUR",1,0]
[311,null,null,null,null,null,null,"EUR",1,0]
[312,null,null,null,null,null,null,"EUR",1,0]
[313,null,null,null,null,null,null,"EUR",1,0]
[314,null,null,null,null,null,null,"EUR",1,0]
[315,null,null,null,null,null,null,"EUR",1,0]
[316,null,null,null,null,null,null,"EUR",1,0]
[317,null,null,null,null,null,null,"EUR",1,0]
[318,null,null,null,null,null,null,"EUR",1,0]
[319,null,null,null,null,null,null,"EUR",1,0]
[320,null,null,null,null,null,null,"EUR",1,0]
[321,null,null,null,null,null,null,"EUR",1,{"$f":"+G344*I344","v":0}]
[322,null,null,null,null,null,null,"EUR",{"$f":"IF(H345=\"eur\",1,\"\")","v":1},0]
[323,null,null,null,null,null,null,"EUR",1,0]
[324,null,null,null,null,null,null,"EUR",1,0]
[325,null,null,null,null,null,null,"EUR",1,0]
[326,null,null,null,null,null,null,"EUR",1,0]
[327,null,null,null,null,null,null,"EUR",1,0]
[328,null,null,null,null,null,null,"EUR",1,0]
[329,null,null,null,null,null,null,"EUR",1,0]
[330,null,null,null,null,null,null,"EUR",1,0]
[331,null,null,null,null,null,null,"EUR",1,0]
[332,null,null,null,null,null,null,"EUR",1,0]
[333,null,null,null,null,null,null,"EUR",1,0]
[334,null,null,null,null,null,null,"EUR",1,0]
[335,null,null,null,null,null,null,"EUR",1,0]
[336,null,null,null,null,null,null,"EUR",1,0]
[337,null,null,null,null,null,null,"EUR",1,0]
[338,null,null,null,null,null,null,"EUR",1,0]
[339,null,null,null,null,null,null,"EUR",1,0]
[340,null,null,null,null,null,null,"EUR",1,0]
[341,null,null,null,null,null,null,"EUR",1,0]
[342,null,null,null,null,null,null,"EUR",1,0]
[343,null,null,null,null,null,null,"EUR",1,0]
[344,null,null,null,null,null,null,"EUR",1,0]
[345,null,null,null,null,null,null,"EUR",1,0]
[346,null,null,null,null,null,null,"EUR",1,0]
[347,null,null,null,null,null,null,"EUR",1,0]
[348,null,null,null,null,null,null,"EUR",1,0]
[349,null,null,null,null,null,null,"EUR",1,0]
[350,null,null,null,null,null,null,"EUR",1,0]
[351,null,null,null,null,null,null,"EUR",1,0]
[352,null,null,null,null,null,null,"EUR",1,0]
[353,null,null,null,null,null,null,"EUR",1,0]
[354,null,null,null,null,null,null,"EUR",1,0]
[355,null,null,null,null,null,null,"EUR",1,0]
[356,null,null,null,null,null,null,"EUR",1,0]
[357,null,null,null,null,null,null,"EUR",1,0]
[358,null,null,null,null,null,null,"EUR",1,0]
[359,null,null,null,null,null,null,"EUR",1,0]
[360,null,null,null,null,null,null,"EUR",1,0]
[361,null,null,null,null,null,null,"EUR",1,0]
[362,null,null,null,null,null,null,"EUR",1,0]
[363,null,null,null,null,null,null,"EUR",1,0]
[364,null,null,null,null,null,null,"EUR",1,0]
[365,null,null,null,null,null,null,"EUR",1,0]
[366,null,null,null,null,null,null,"EUR",1,0]
[367,null,null,null,null,null,null,"EUR",1,0]
[368,null,null,null,null,null,null,"EUR",1,0]
[369,null,null,null,null,null,null,"EUR",1,0]
[370,null,null,null,null,null,null,"EUR",1,0]
[371,null,null,null,null,null,null,"EUR",1,0]
[372,null,null,null,null,null,null,"EUR",1,0]
[373,null,null,null,null,null,null,"EUR",1,0]
[374,null,null,null,null,null,null,"EUR",1,0]
[375,null,null,null,null,null,null,"EUR",1,0]
[376,null,null,null,null,null,null,"EUR",1,0]
[377,null,null,null,null,null,null,"EUR",1,0]
[378,null,null,null,null,null,null,"EUR",1,0]
[379,null,null,null,null,null,null,"EUR",1,0]
[380,null,null,null,null,null,null,"EUR",1,0]
[381,null,null,null,null,null,null,"EUR",1,0]
[382,null,null,null,null,null,null,"EUR",1,0]
[383,null,null,null,null,null,null,"EUR",1,0]
[384,null,null,null,null,null,null,"EUR",1,0]
[385,null,null,null,null,null,null,"EUR",1,{"$f":"+G408*I408","v":0}]
[386,null,null,null,null,null,null,"EUR",{"$f":"IF(H409=\"eur\",1,\"\")","v":1},0]
[387,null,null,null,null,null,null,"EUR",1,0]
[388,null,null,null,null,null,null,"EUR",1,0]
[389,null,null,null,null,null,null,"EUR",1,0]
[390,null,null,null,null,null,null,"EUR",1,0]
[391,null,null,null,null,null,null,"EUR",1,0]
[392,null,null,null,null,null,null,"EUR",1,0]
[393,null,null,null,null,null,null,"EUR",1,0]
[394,null,null,null,null,null,null,"EUR",1,0]
[395,null,null,null,null,null,null,"EUR",1,0]
[396,null,null,null,null,null,null,"EUR",1,0]
[397,null,null,null,null,null,null,"EUR",1,0]
[398,null,null,null,null,null,null,"EUR",1,0]
[399,null,null,null,null,null,null,"EUR",1,0]
[400,null,null,null,null,null,null,"EUR",1,0]
[401,null,null,null,null,null,null,"EUR",1,0]
[402,null,null,null,null,null,null,"EUR",1,0]
[403,null,null,null,null,null,null,"EUR",1,0]
[404,null,null,null,null,null,null,"EUR",1,0]
[405,null,null,null,null,null,null,"EUR",1,0]
[406,null,null,null,null,null,null,"EUR",1,0]
[407,null,null,null,null,null,null,"EUR",1,0]
[408,null,null,null,null,null,null,"EUR",1,0]
[409,null,null,null,null,null,null,"EUR",1,0]
[410,null,null,null,null,null,null,"EUR",1,0]
[411,null,null,null,null,null,null,"EUR",1,0]
[412,null,null,null,null,null,null,"EUR",1,0]
[413,null,null,null,null,null,null,"EUR",1,0]
[414,null,null,null,null,null,null,"EUR",1,0]
[415,null,null,null,null,null,null,"EUR",1,0]
[416,null,null,null,null,null,null,"EUR",1,0]
[417,null,null,null,null,null,null,"EUR",1,0]
[418,null,null,null,null,null,null,"EUR",1,0]
[419,null,null,null,null,null,null,"EUR",1,0]
[420,null,null,null,null,null,null,"EUR",1,0]
[421,null,null,null,null,null,null,"EUR",1,0]
[422,null,null,null,null,null,null,"EUR",1,0]
[423,null,null,null,null,null,null,"EUR",1,0]
[424,null,null,null,null,null,null,"EUR",1,0]
[425,null,null,null,null,null,null,"EUR",1,0]
[426,null,null,null,null,null,null,"EUR",1,0]
[427,null,null,null,null,null,null,"EUR",1,0]
[428,null,null,null,null,null,null,"EUR",1,0]
[429,null,null,null,null,null,null,"EUR",1,0]
[430,null,null,null,null,null,null,"EUR",1,0]
[431,null,null,null,null,null,null,"EUR",1,0]
[432,null,null,null,null,null,null,"EUR",1,0]
[433,null,null,null,null,null,null,"EUR",1,0]
[434,null,null,null,null,null,null,"EUR",1,0]
[435,null,null,null,null,null,null,"EUR",1,0]
[436,null,null,null,null,null,null,"EUR",1,0]
[437,null,null,null,null,null,null,"EUR",1,0]
[438,null,null,null,null,null,null,"EUR",1,0]
[439,null,null,null,null,null,null,"EUR",1,0]
[440,null,null,null,null,null,null,"EUR",1,0]
[441,null,null,null,null,null,null,"EUR",1,0]
[442,null,null,null,null,null,null,"EUR",1,0]
[443,null,null,null,null,null,null,"EUR",1,0]
[444,null,null,null,null,null,null,"EUR",1,0]
[445,null,null,null,null,null,null,"EUR",1,0]
[446,null,null,null,null,null,null,"EUR",1,0]
[447,null,null,null,null,null,null,"EUR",1,0]
[448,null,null,null,null,null,null,"EUR",1,0]
[449,null,null,null,null,null,null,"EUR",1,{"$f":"+G472*I472","v":0}]
[450,null,null,null,null,null,null,"EUR",{"$f":"IF(H473=\"eur\",1,\"\")","v":1},0]
[451,null,null,null,null,null,null,"EUR",1,0]
[452,null,null,null,null,null,null,"EUR",1,0]
[453,null,null,null,null,null,null,"EUR",1,0]
[454,null,null,null,null,null,null,"EUR",1,0]
[455,null,null,null,null,null,null,"EUR",1,0]
[456,null,null,null,null,null,null,"EUR",1,0]
[457,null,null,null,null,null,null,"EUR",1,0]
[458,null,null,null,null,null,null,"EUR",1,0]
[459,null,null,null,null,null,null,"EUR",1,0]
[460,null,null,null,null,null,null,"EUR",1,0]
[461,null,null,null,null,null,null,"EUR",1,0]
[462,null,null,null,null,null,null,"EUR",1,0]
[463,null,null,null,null,null,null,"EUR",1,0]
[464,null,null,null,null,null,null,"EUR",1,0]
[465,null,null,null,null,null,null,"EUR",1,0]
[466,null,null,null,null,null,null,"EUR",1,0]
[467,null,null,null,null,null,null,"EUR",1,0]
[468,null,null,null,null,null,null,"EUR",1,0]
[469,null,null,null,null,null,null,"EUR",1,0]
[470,null,null,null,null,null,null,"EUR",1,0]
[471,null,null,null,null,null,null,"EUR",1,0]
[472,null,null,null,null,null,null,"EUR",1,0]
[473,null,null,null,null,null,null,"EUR",1,0]
[474,null,null,null,null,null,null,"EUR",1,0]
[475,null,null,null,null,null,null,"EUR",1,0]
[476,null,null,null,null,null,null,"EUR",1,0]
[477,null,null,null,null,null,null,"EUR",1,0]
[478,null,null,null,null,null,null,"EUR",1,0]
[479,null,null,null,null,null,null,"EUR",1,0]
[480,null,null,null,null,null,null,"EUR",1,0]
[481,null,null,null,null,null,null,"EUR",1,0]
[482,null,null,null,null,null,null,"EUR",1,0]
[483,null,null,null,null,null,null,"EUR",1,0]
[484,null,null,null,null,null,null,"EUR",1,0]
[485,null,null,null,null,null,null,"EUR",1,0]
[486,null,null,null,null,null,null,"EUR",1,0]
[487,null,null,null,null,null,null,"EUR",1,0]
[488,null,null,null,null,null,null,"EUR",1,0]
[489,null,null,null,null,null,null,"EUR",1,0]
[490,null,null,null,null,null,null,"EUR",1,0]
[491,null,null,null,null,null,null,"EUR",1,0]
[492,null,null,null,null,null,null,"EUR",1,0]
[493,null,null,null,null,null,null,"EUR",1,0]
[494,null,null,null,null,null,null,"EUR",1,0]
[495,null,null,null,null,null,null,"EUR",1,0]
[496,null,null,null,null,null,null,"EUR",1,0]
[497,null,null,null,null,null,null,"EUR",1,0]
[498,null,null,null,null,null,null,"EUR",1,0]
[499,null,null,null,null,null,null,"EUR",1,0]
[500,null,null,null,null,null,null,"EUR",1,0]
[501,null,null,null,null,null,null,"EUR",1,0]
[502,null,null,null,null,null,null,"EUR",1,0]
[503,null,null,null,null,null,null,"EUR",1,0]
[504,null,null,null,null,null,null,"EUR",1,0]
[505,null,null,null,null,null,null,"EUR",1,0]
[506,null,null,null,null,null,null,"EUR",1,0]
[507,null,null,null,null,null,null,"EUR",1,0]
[508,null,null,null,null,null,null,"EUR",1,0]
[509,null,null,null,null,null,null,"EUR",1,0]
[510,null,null,null,null,null,null,"EUR",1,0]
[511,null,null,null,null,null,null,"EUR",1,0]
[512,null,null,null,null,null,null,"EUR",1,0]
[513,null,null,null,null,null,null,"EUR",1,{"$f":"+G536*I536","v":0}]
[514,null,null,null,null,null,null,"EUR",{"$f":"IF(H537=\"eur\",1,\"\")","v":1},0]
[515,null,null,null,null,null,null,"EUR",1,0]
[516,null,null,null,null,null,null,"EUR",1,0]
[517,null,null,null,null,null,null,"EUR",1,0]
[518,null,null,null,null,null,null,"EUR",1,0]
[519,null,null,null,null,null,null,"EUR",1,0]
[520,null,null,null,null,null,null,"EUR",1,0]
[521,null,null,null,null,null,null,"EUR",1,0]
[522,null,null,null,null,null,null,"EUR",1,0]
[523,null,null,null,null,null,null,"EUR",1,0]
[524,null,null,null,null,null,null,"EUR",1,0]
[525,null,null,null,null,null,null,"EUR",1,0]
[526,null,null,null,null,null,null,"EUR",1,0]
[527,null,null,null,null,null,null,"EUR",1,0]
[528,null,null,null,null,null,null,"EUR",1,0]
[529,null,null,null,null,null,null,"EUR",1,0]
[530,null,null,null,null,null,null,"EUR",1,0]
[531,null,null,null,null,null,null,"EUR",1,0]
[532,null,null,null,null,null,null,"EUR",1,0]
[533,null,null,null,null,null,null,"EUR",1,0]
[534,null,null,null,null,null,null,"EUR",1,0]
[535,null,null,null,null,null,null,"EUR",1,0]
[536,null,null,null,null,null,null,"EUR",1,0]
[537,null,null,null,null,null,null,"EUR",1,0]
[538,null,null,null,null,null,null,"EUR",1,0]
[539,null,null,null,null,null,null,"EUR",1,0]
[540,null,null,null,null,null,null,"EUR",1,0]
[541,null,null,null,null,null,null,"EUR",1,0]
[542,null,null,null,null,null,null,"EUR",1,0]
[543,null,null,null,null,null,null,"EUR",1,0]
[544,null,null,null,null,null,null,"EUR",1,0]
[545,null,null,null,null,null,null,"EUR",1,0]
[546,null,null,null,null,null,null,"EUR",1,0]
[547,null,null,null,null,null,null,"EUR",1,0]
[548,null,null,null,null,null,null,"EUR",1,0]
[549,null,null,null,null,null,null,"EUR",1,0]
[550,null,null,null,null,null,null,"EUR",1,0]
[551,null,null,null,null,null,null,"EUR",1,0]
[552,null,null,null,null,null,null,"EUR",1,0]
[553,null,null,null,null,null,null,"EUR",1,0]
[554,null,null,null,null,null,null,"EUR",1,0]
[555,null,null,null,null,null,null,"EUR",1,0]
[556,null,null,null,null,null,null,"EUR",1,0]
[557,null,null,null,null,null,null,"EUR",1,0]
[558,null,null,null,null,null,null,"EUR",1,0]
[559,null,null,null,null,null,null,"EUR",1,0]
[560,null,null,null,null,null,null,"EUR",1,0]
[561,null,null,null,null,null,null,"EUR",1,0]
[562,null,null,null,null,null,null,"EUR",1,0]
[563,null,null,null,null,null,null,"EUR",1,0]
[564,null,null,null,null,null,null,"EUR",1,0]
[565,null,null,null,null,null,null,"EUR",1,0]
[566,null,null,null,null,null,null,"EUR",1,0]
[567,null,null,null,null,null,null,"EUR",1,0]
[568,null,null,null,null,null,null,"EUR",1,0]
[569,null,null,null,null,null,null,"EUR",1,0]
[570,null,null,null,null,null,null,"EUR",1,0]
[571,null,null,null,null,null,null,"EUR",1,0]
[572,null,null,null,null,null,null,"EUR",1,0]
[573,null,null,null,null,null,null,"EUR",1,0]
[574,null,null,null,null,null,null,"EUR",1,0]
[575,null,null,null,null,null,null,"EUR",1,0]
[576,null,null,null,null,null,null,"EUR",1,0]
[577,null,null,null,null,null,null,"EUR",1,{"$f":"+G600*I600","v":0}]
[578,null,null,null,null,null,null,"EUR",{"$f":"IF(H601=\"eur\",1,\"\")","v":1},0]
[579,null,null,null,null,null,null,"EUR",1,0]
[580,null,null,null,null,null,null,"EUR",1,0]
[581,null,null,null,null,null,null,"EUR",1,0]
[582,null,null,null,null,null,null,"EUR",1,0]
[583,null,null,null,null,null,null,"EUR",1,0]
[584,null,null,null,null,null,null,"EUR",1,0]
[585,null,null,null,null,null,null,"EUR",1,0]
[586,null,null,null,null,null,null,"EUR",1,0]
[587,null,null,null,null,null,null,"EUR",1,0]
[588,null,null,null,null,null,null,"EUR",1,0]
[589,null,null,null,null,null,null,"EUR",1,0]
[590,null,null,null,null,null,null,"EUR",1,0]
[591,null,null,null,null,null,null,"EUR",1,0]
[592,null,null,null,null,null,null,"EUR",1,0]
[593,null,null,null,null,null,null,"EUR",1,0]
[594,null,null,null,null,null,null,"EUR",1,0]
[595,null,null,null,null,null,null,"EUR",1,0]
[596,null,null,null,null,null,null,"EUR",1,0]
[597,null,null,null,null,null,null,"EUR",1,0]
[598,null,null,null,null,null,null,"EUR",1,0]
[599,null,null,null,null,null,null,"EUR",1,0]
[600,null,null,null,null,null,null,"EUR",1,0]
[601,null,null,null,null,null,null,"EUR",1,0]
[602,null,null,null,null,null,null,"EUR",1,0]
[603,null,null,null,null,null,null,"EUR",1,0]
[604,null,null,null,null,null,null,"EUR",1,0]
[605,null,null,null,null,null,null,"EUR",1,0]
[606,null,null,null,null,null,null,"EUR",1,0]
[607,null,null,null,null,null,null,"EUR",1,0]
[608,null,null,null,null,null,null,"EUR",1,0]
[609,null,null,null,null,null,null,"EUR",1,0]
[610,null,null,null,null,null,null,"EUR",1,0]
[611,null,null,null,null,null,null,"EUR",1,0]
[612,null,null,null,null,null,null,"EUR",1,0]
[613,null,null,null,null,null,null,"EUR",1,0]
[614,null,null,null,null,null,null,"EUR",1,0]
[615,null,null,null,null,null,null,"EUR",1,0]
[616,null,null,null,null,null,null,"EUR",1,0]
[617,null,null,null,null,null,null,"EUR",1,0]
[618,null,null,null,null,null,null,"EUR",1,0]
[619,null,null,null,null,null,null,"EUR",1,0]
[620,null,null,null,null,null,null,"EUR",1,0]
[621,null,null,null,null,null,null,"EUR",1,0]
[622,null,null,null,null,null,null,"EUR",1,0]
[623,null,null,null,null,null,null,"EUR",1,0]
[624,null,null,null,null,null,null,"EUR",1,0]
[625,null,null,null,null,null,null,"EUR",1,0]
[626,null,null,null,null,null,null,"EUR",1,0]
[627,null,null,null,null,null,null,"EUR",1,0]
[628,null,null,null,null,null,null,"EUR",1,0]
[629,null,null,null,null,null,null,"EUR",1,0]
[630,null,null,null,null,null,null,"EUR",1,0]
[631,null,null,null,null,null,null,"EUR",1,0]
[632,null,null,null,null,null,null,"EUR",1,0]
[633,null,null,null,null,null,null,"EUR",1,0]
[634,null,null,null,null,null,null,"EUR",1,0]
[635,null,null,null,null,null,null,"EUR",1,0]
[636,null,null,null,null,null,null,"EUR",1,0]
[637,null,null,null,null,null,null,"EUR",1,0]
[638,null,null,null,null,null,null,"EUR",1,0]
[639,null,null,null,null,null,null,"EUR",1,0]
[640,null,null,null,null,null,null,"EUR",1,0]
[641,null,null,null,null,null,null,"EUR",1,{"$f":"+G664*I664","v":0}]
[642,null,null,null,null,null,null,"EUR",{"$f":"IF(H665=\"eur\",1,\"\")","v":1},0]
[643,null,null,null,null,null,null,"EUR",1,0]
[644,null,null,null,null,null,null,"EUR",1,0]
[645,null,null,null,null,null,null,"EUR",1,0]
[646,null,null,null,null,null,null,"EUR",1,0]
[647,null,null,null,null,null,null,"EUR",1,0]
[648,null,null,null,null,null,null,"EUR",1,0]
[649,null,null,null,null,null,null,"EUR",1,0]
[650,null,null,null,null,null,null,"EUR",1,0]
[651,null,null,null,null,null,null,"EUR",1,0]
[652,null,null,null,null,null,null,"EUR",1,0]
[653,null,null,null,null,null,null,"EUR",1,0]
[654,null,null,null,null,null,null,"EUR",1,0]
[655,null,null,null,null,null,null,"EUR",1,0]
[656,null,null,null,null,null,null,"EUR",1,0]
[657,null,null,null,null,null,null,"EUR",1,0]
[658,null,null,null,null,null,null,"EUR",1,0]
[659,null,null,null,null,null,null,"EUR",1,0]
[660,null,null,null,null,null,null,"EUR",1,0]
[661,null,null,null,null,null,null,"EUR",1,0]
[662,null,null,null,null,null,null,"EUR",1,0]
[663,null,null,null,null,null,null,"EUR",1,0]
[664,null,null,null,null,null,null,"EUR",1,0]
[665,null,null,null,null,null,null,"EUR",1,0]
[666,null,null,null,null,null,null,"EUR",1,0]
[667,null,null,null,null,null,null,"EUR",1,0]
[668,null,null,null,null,null,null,"EUR",1,0]
[669,null,null,null,null,null,null,"EUR",1,0]
[670,null,null,null,null,null,null,"EUR",1,0]
[671,null,null,null,null,null,null,"EUR",1,0]
[672,null,null,null,null,null,null,"EUR",1,0]
[673,null,null,null,null,null,null,"EUR",1,0]
[674,null,null,null,null,null,null,"EUR",1,0]
[675,null,null,null,null,null,null,"EUR",1,0]
[676,null,null,null,null,null,null,"EUR",1,0]
[677,null,null,null,null,null,null,"EUR",1,0]
[678,null,null,null,null,null,null,"EUR",1,0]
[679,null,null,null,null,null,null,"EUR",1,0]
[680,null,null,null,null,null,null,"EUR",1,0]
[681,null,null,null,null,null,null,"EUR",1,0]
[682,null,null,null,null,null,null,"EUR",1,0]
[683,null,null,null,null,null,null,"EUR",1,0]
[684,null,null,null,null,null,null,"EUR",1,0]
[685,null,null,null,null,null,null,"EUR",1,0]
[686,null,null,null,null,null,null,"EUR",1,0]
[687,null,null,null,null,null,null,"EUR",1,0]
[688,null,null,null,null,null,null,"EUR",1,0]
[689,null,null,null,null,null,null,"EUR",1,0]
[690,null,null,null,null,null,null,"EUR",1,0]
[691,null,null,null,null,null,null,"EUR",1,0]
[692,null,null,null,null,null,null,"EUR",1,0]
[693,null,null,null,null,null,null,"EUR",1,0]
[694,null,null,null,null,null,null,"EUR",1,0]
[695,null,null,null,null,null,null,"EUR",1,0]
[696,null,null,null,null,null,null,"EUR",1,0]
[697,null,null,null,null,null,null,"EUR",1,0]
[698,null,null,null,null,null,null,"EUR",1,0]
[699,null,null,null,null,null,null,"EUR",1,0]
[700,null,null,null,null,null,null,"EUR",1,0]
[701,null,null,null,null,null,null,"EUR",1,0]
[702,null,null,null,null,null,null,"EUR",1,0]
[703,null,null,null,null,null,null,"EUR",1,0]
[704,null,null,null,null,null,null,"EUR",1,0]
[705,null,null,null,null,null,null,"EUR",1,{"$f":"+G728*I728","v":0}]
[706,null,null,null,null,null,null,"EUR",{"$f":"IF(H729=\"eur\",1,\"\")","v":1},0]
[707,null,null,null,null,null,null,"EUR",1,0]
[708,null,null,null,null,null,null,"EUR",1,0]
[709,null,null,null,null,null,null,"EUR",1,0]
[710,null,null,null,null,null,null,"EUR",1,0]
[711,null,null,null,null,null,null,"EUR",1,0]
[712,null,null,null,null,null,null,"EUR",1,0]
[713,null,null,null,null,null,null,"EUR",1,0]
[714,null,null,null,null,null,null,"EUR",1,0]
[715,null,null,null,null,null,null,"EUR",1,0]
[716,null,null,null,null,null,null,"EUR",1,0]
[717,null,null,null,null,null,null,"EUR",1,0]
[718,null,null,null,null,null,null,"EUR",1,0]
[719,null,null,null,null,null,null,"EUR",1,0]
[720,null,null,null,null,null,null,"EUR",1,0]
[721,null,null,null,null,null,null,"EUR",1,0]
[722,null,null,null,null,null,null,"EUR",1,0]
[723,null,null,null,null,null,null,"EUR",1,0]
[724,null,null,null,null,null,null,"EUR",1,0]
[725,null,null,null,null,null,null,"EUR",1,0]
[726,null,null,null,null,null,null,"EUR",1,0]
[727,null,null,null,null,null,null,"EUR",1,0]
[728,null,null,null,null,null,null,"EUR",1,0]
[729,null,null,null,null,null,null,"EUR",1,0]
[730,null,null,null,null,null,null,"EUR",1,0]
[731,null,null,null,null,null,null,"EUR",1,0]
[732,null,null,null,null,null,null,"EUR",1,0]
[733,null,null,null,null,null,null,"EUR",1,0]
[734,null,null,null,null,null,null,"EUR",1,0]
[735,null,null,null,null,null,null,"EUR",1,0]
[736,null,null,null,null,null,null,"EUR",1,0]
[737,null,null,null,null,null,null,"EUR",1,0]
[738,null,null,null,null,null,null,"EUR",1,0]
[739,null,null,null,null,null,null,"EUR",1,0]
[740,null,null,null,null,null,null,"EUR",1,0]
[741,null,null,null,null,null,null,"EUR",1,0]
[742,null,null,null,null,null,null,"EUR",1,0]
[743,null,null,null,null,null,null,"EUR",1,0]
[744,null,null,null,null,null,null,"EUR",1,0]
[745,null,null,null,null,null,null,"EUR",1,0]
[746,null,null,null,null,null,null,"EUR",1,0]
[747,null,null,null,null,null,null,"EUR",1,0]
[748,null,null,null,null,null,null,"EUR",1,0]
[749,null,null,null,null,null,null,"EUR",1,0]
[750,null,null,null,null,null,null,"EUR",1,{"$f":"+G773*I773","v":0}]
[null,null,null,null,null,null,null,null,"TOTAL",{"$f":"SUM(J24:J773)","v":0}]
[null,null,null,null,null,"all local currencies",{"$f":"SUBTOTAL(9,G24:G773)","v":0},null,"SUBTOTAL",{"$f":"SUBTOTAL(9,J24:J773)","v":0}]

{"sheet":"rate","index":3,"n_rows":48,"n_cols":14,"rows_kept":48,"cut":false,"hidden":false,"merged":[[6,5,6,7],[6,8,6,10],[6,11,6,12],[6,1,6,4],[7,5,7,7],[4,5,4,12],[36,8,36,11],[36,0,36,3],[4,1,4,4],[5,1,5,4],[7,1,7,4],[9,1,9,12],[5,5,5,12]]}
[]
["rate",null,"OWN INITIATIVES - TEAM"]
[null,null,null,null,null,null,null,null,null,null,"€"]
[]
[null,"FLEMISH UNIVERSITY:",null,null,null,{"$f":"+'Model 1A'!F8","v":0}]
[null,"PARTNER INSTITUTION :",null,null,null,{"$f":"+'Model 1A'!F9","v":0}]
[null,"PROJECT YEAR : ",null,null,null,{"$f":"+apYear","v":0},null,null,"VLIR-UOS PROJECTCODE :",null,null,{"$f":"+'Model 1A'!J10","v":0}]
[null,"PERIOD :",null,null,null,"from :",null,null,{"$f":"'Model 1A'!G11","v":"00:00:00"},"to :",{"$f":"'Model 1A'!I11","v":"00:00:00"}]
[]
[null,"Calculation Exchange Rate (1)"]
[]
[]
["1.",null,null,null,null,null,null,null,"2."]
["exchange USD/Eur","transf. EUR to local USD-account",null,null,null,null,null,null,"exchange\nUSD/LocCur","transf. from USD-account to loc.curr.-account",null,null,null,"= name Local Currency"]
[]
["Proving documents: official statement of the bank or bank receipts",null,null,null,null,null,null,null,"Proving documents: official statement of the bank or bank receipts"]
["The average exchange rate EUR/ USD  =",null,null,{"$f":"C32/D32","v":{"$error":"#DIV/0!"}},null,null,null,null,"The average exchange rate USD/ Local Currency =",null,null,{"$f":"L32/K32","v":{"$error":"#DIV/0!"}}]
[]
[null,"Transact. Date","Amount in EUR transferred from the Belgian bank account (gross)","Amount in USD received on the local bank account (net)","exchange rate per transaction",null,null,null,null,"Transact. Date","Amount in USD transferred from the local USD bank account (gross)","Amount in Local Currency received on the local bank account (net)","exchange rate per transaction"]
["Transfer 1",null,null,null,{"$f":"IF(ISERROR(+C20/D20),\"\",+C20/D20)","v":""},null,null,null,"Transfer 1",null,null,null,{"$f":"IF(ISERROR(+L20/K20),\"\",+L20/K20)","v":""}]
["Transfer 2",null,null,null,{"$f":"IF(ISERROR(+C21/D21),\"\",+C21/D21)","v":""},null,null,null,"Transfer 2",null,null,null,{"$f":"IF(ISERROR(+L21/K21),\"\",+L21/K21)","v":""}]
["Transfer 3",null,null,null,{"$f":"IF(ISERROR(+C22/D22),\"\",+C22/D22)","v":""},null,null,null,"Transfer 3",null,null,null,""]
["Transfer 4",null,null,null,{"$f":"IF(ISERROR(+C23/D23),\"\",+C23/D23)","v":""},null,null,null,"Transfer 4",null,null,null,""]
[null,null,null,null,null,null,null,null,"Transfer 5",null,null,null,""]
[null,null,null,null,null,null,null,null,"Transfer 6",null,null,null,""]
[null,null,null,null,null,null,null,null,"Transfer 7",null,null,null,""]
[null,null,null,null,null,null,null,null,"Transfer 8",null,null,null,""]
[null,null,null,null,null,null,null,null,"Transfer 9",null,null,null,""]
[null,null,null,null,null,null,null,null,"Transfer 10",null,null,null,""]
[null,null,null,null,null,null,null,null,"Transfer 11",null,null,null,""]
[null,null,null,null,null,null,null,null,"Transfer 12",null,null,null,""]
["TOTAL:",null,{"$f":"SUM(C20:C23)","v":0},{"$f":"SUM(D20:D23)","v":0},null,null,null,null,"TOTAL:",null,{"$f":"SUM(K20:K31)","v":0},{"$f":"SUM(L20:L31)","v":0}]
[null,null,null,"Amount USD"]
[]
[]
[]
["These are the exchange rates that must be applied for all expenditures. These average exchange rates include all bank costs linked to the bank transfer and the exchange. So, these bank costs are not to be listed separately",null,null,null,null,null,null,null,"These are the exchange rates that must be applied for all expenditures. These average exchange rates include all bank costs linked to the bank transfer and the exchange. So, these bank costs are not to be listed separately"]
[]
["(1) If the transfers are made directly from EUR to local currency, these are the modifications to be done :"]
[null,"In current sheet “Rate” : undo the sheet-protection."]
[null,"In (Rate!I14) : “exchange USD/LocCur” has to be replaced by  “exchange EUR/LocCur”;"]
[null,"(Rate!D17) : overwrite content of the cell by  “1”."]
[null,"(Rate!A14) : delete content."]
[null,"(Rate!D33) : delete content."]
[null,"(Rate!C19) : copy content to (Rate!K19)"]
[null,"In (Rate!I17) : USD has to be replaced by EUR."]
[null,"In (Rate!J14) : USD has to be replaced by EUR."]
[null,"In current tabsheet “Rate” : restore sheet-protection."]

{"sheet":"Model 1D","index":4,"n_rows":775,"n_cols":13,"rows_kept":775,"cut":false,"hidden":false,"merged":[[4,0,4,2],[4,3,4,9],[5,0,5,2],[7,0,7,2],[7,8,7,9],[5,3,5,9],[6,0,6,2],[6,5,6,7],[6,8,6,9]]}
[]
["Model 1D",null,"OWN INITIATIVES - TEAM"]
[null,null,"Overview of the expenses from the local account and conversion in EURO",null,null,null,null,null,null,null,null,"€"]
[]
["FLEMISH UNIVERSITY:",null,null,{"$f":"+'Model 1A'!F8","v":0}]
["PARTNER INSTITUTION :",null,null,{"$f":"+'Model 1A'!F9","v":0}]
["PROJECT YEAR : ",null,null,{"$f":"+apYear","v":0},null,"VLIR-UOS PROJECTCODE :",null,null,{"$f":"+'Model 1A'!J10","v":0}]
["PERIOD :",null,null,"from :",null,{"$f":"+begindatum","v":"00:00:00"},"to :",{"$f":"+einddatum","v":"00:00:00"}]
[]
[]
[null,null,null,null,null,null,null,null,null,null,null,"TOTALS"]
[]
[]
[null,"A. INVESTMENT COSTS",null,null,null,null,null,null,null,null,null,{"$f":"SUMIF($B$24:$B$773,$B14,L$24:L$773)","v":0}]
[null,"B. OPERATIONAL COSTS",null,null,null,null,null,null,null,null,null,{"$f":"SUMIF($B$24:$B$773,$B15,L$24:L$773)","v":0}]
[null,"C. PERSONNEL COSTS",null,null,null,null,null,null,null,null,null,{"$f":"SUMIF($B$24:$B$773,$B16,L$24:L$773)","v":0}]
[null,"D. SCHOLARSHIPS COSTS",null,null,null,null,null,null,null,null,null,{"$f":"SUMIF($B$24:$B$773,$B17,L$24:L$773)","v":0}]
[]
[]
[null,"Errors :",null,null,null,null,null,null,null,null,null,{"$f":"ROUND(L774-SUM(L12:L19),2)","v":0},{"$f":"IF(L20=0,\"\",\"error : no category ?\")","v":""}]
[null,null,null,null,null,null,null,null,null,null,null,{"$f":"+SUM(L12:L20)","v":0}]
[{"$f":"+A2","v":"Model 1D"}]
["N°","Category","Inv. Date","classif n°","supplier","description","Amount local","Local Currency",{"$f":"+rate!I14","v":"exchange\nUSD/LocCur"},{"$f":"+rate!D33","v":"Amount USD"},{"$f":"+rate!A14","v":"exchange USD/Eur"},"Amount EUR"]
[1,null,null,null,null,null,null,{"$f":"IF(ISBLANK(G24),\"\",+CURRENCY)","v":""},{"$f":"IF(ISBLANK(G24),0,IF(H24=CURRENCY,(IF(ISERROR(rate!L$17),0,rate!L$17)),0))","v":0},{"$f":"IF(ISERROR(+G24/I24),0,+G24/I24)","v":0},{"$f":"IF(ISBLANK(G24),IF((J24=0),0,IF(ISERROR(rate!$D$17),0,rate!$D$17)),IF(ISERROR(rate!$D$17),0,rate!$D$17))","v":0},{"$f":"IF(ISERROR(+K24*J24),0,+K24*J24)","v":0}]
[2,null,null,null,null,null,null,"",{"$f":"IF(ISBLANK(G25),0,IF(H25=CURRENCY,(IF(ISERROR(rate!L$17),0,rate!L$17)),0))","v":0},0,{"$f":"IF(ISBLANK(G25),IF((J25=0),0,IF(ISERROR(rate!$D$17),0,rate!$D$17)),IF(ISERROR(rate!$D$17),0,rate!$D$17))","v":0},0]
[3,null,null,null,null,null,null,"",{"$f":"IF(ISBLANK(G26),0,IF(H26=CURRENCY,(IF(ISERROR(rate!L$17),0,rate!L$17)),0))","v":0},0,{"$f":"IF(ISBLANK(G26),IF((J26=0),0,IF(ISERROR(rate!$D$17),0,rate!$D$17)),IF(ISERROR(rate!$D$17),0,rate!$D$17))","v":0},0]
[4,null,null,null,null,null,null,"",{"$f":"IF(ISBLANK(G27),0,IF(H27=CURRENCY,(IF(ISERROR(rate!L$17),0,rate!L$17)),0))","v":0},0,{"$f":"IF(ISBLANK(G27),IF((J27=0),0,IF(ISERROR(rate!$D$17),0,rate!$D$17)),IF(ISERROR(rate!$D$17),0,rate!$D$17))","v":0},0]
[5,null,null,null,null,null,null,"",{"$f":"IF(ISBLANK(G28),0,IF(H28=CURRENCY,(IF(ISERROR(rate!L$17),0,rate!L$17)),0))","v":0},0,{"$f":"IF(ISBLANK(G28),IF((J28=0),0,IF(ISERROR(rate!$D$17),0,rate!$D$17)),IF(ISERROR(rate!$D$17),0,rate!$D$17))","v":0},0]
[6,null,null,null,null,null,null,"",{"$f":"IF(ISBLANK(G29),0,IF(H29=CURRENCY,(IF(ISERROR(rate!L$17),0,rate!L$17)),0))","v":0},0,{"$f":"IF(ISBLANK(G29),IF((J29=0),0,IF(ISERROR(rate!$D$17),0,rate!$D$17)),IF(ISERROR(rate!$D$17),0,rate!$D$17))","v":0},0]
[7,null,null,null,null,null,null,"",{"$f":"IF(ISBLANK(G30),0,IF(H30=CURRENCY,(IF(ISERROR(rate!L$17),0,rate!L$17)),0))","v":0},0,{"$f":"IF(ISBLANK(G30),IF((J30=0),0,IF(ISERROR(rate!$D$17),0,rate!$D$17)),IF(ISERROR(rate!$D$17),0,rate!$D$17))","v":0},0]
[8,null,null,null,null,null,null,"",{"$f":"IF(ISBLANK(G31),0,IF(H31=CURRENCY,(IF(ISERROR(rate!L$17),0,rate!L$17)),0))","v":0},0,{"$f":"IF(ISBLANK(G31),IF((J31=0),0,IF(ISERROR(rate!$D$17),0,rate!$D$17)),IF(ISERROR(rate!$D$17),0,rate!$D$17))","v":0},0]
[9,null,null,null,null,null,null,"",{"$f":"IF(ISBLANK(G32),0,IF(H32=CURRENCY,(IF(ISERROR(rate!L$17),0,rate!L$17)),0))","v":0},0,{"$f":"IF(ISBLANK(G32),IF((J32=0),0,IF(ISERROR(rate!$D$17),0,rate!$D$17)),IF(ISERROR(rate!$D$17),0,rate!$D$17))","v":0},0]
[10,null,null,null,null,null,null,"",{"$f":"IF(ISBLANK(G33),0,IF(H33=CURRENCY,(IF(ISERROR(rate!L$17),0,rate!L$17)),0))","v":0},0,{"$f":"IF(ISBLANK(G33),IF((J33=0),0,IF(ISERROR(rate!$D$17),0,rate!$D$17)),IF(ISERROR(rate!$D$17),0,rate!$D$17))","v":0},0]
[11,null,null,null,null,null,null,"",{"$f":"IF(ISBLANK(G34),0,IF(H34=CURRENCY,(IF(ISERROR(rate!L$17),0,rate!L$17)),0))","v":0},0,{"$f":"IF(ISBLANK(G34),IF((J34=0),0,IF(ISERROR(rate!$D$17),0,rate!$D$17)),IF(ISERROR(rate!$D$17),0,rate!$D$17))","v":0},0]
[12,null,null,null,null,null,null,"",{"$f":"IF(ISBLANK(G35),0,IF(H35=CURRENCY,(IF(ISERROR(rate!L$17),0,rate!L$17)),0))","v":0},0,{"$f":"IF(ISBLANK(G35),IF((J35=0),0,IF(ISERROR(rate!$D$17),0,rate!$D$17)),IF(ISERROR(rate!$D$17),0,rate!$D$17))","v":0},0]
[13,null,null,null,null,null,null,"",{"$f":"IF(ISBLANK(G36),0,IF(H36=CURRENCY,(IF(ISERROR(rate!L$17),0,rate!L$17)),0))","v":0},0,{"$f":"IF(ISBLANK(G36),IF((J36=0),0,IF(ISERROR(rate!$D$17),0,rate!$D$17)),IF(ISERROR(rate!$D$17),0,rate!$D$17))","v":0},0]
[14,null,null,null,null,null,null,"",{"$f":"IF(ISBLANK(G37),0,IF(H37=CURRENCY,(IF(ISERROR(rate!L$17),0,rate!L$17)),0))","v":0},0,{"$f":"IF(ISBLANK(G37),IF((J37=0),0,IF(ISERROR(rate!$D$17),0,rate!$D$17)),IF(ISERROR(rate!$D$17),0,rate!$D$17))","v":0},0]
[15,null,null,null,null,null,null,"",{"$f":"IF(ISBLANK(G38),0,IF(H38=CURRENCY,(IF(ISERROR(rate!L$17),0,rate!L$17)),0))","v":0},0,{"$f":"IF(ISBLANK(G38),IF((J38=0),0,IF(ISERROR(rate!$D$17),0,rate!$D$17)),IF(ISERROR(rate!$D$17),0,rate!$D$17))","v":0},0]
[16,null,null,null,null,null,null,"",{"$f":"IF(ISBLANK(G39),0,IF(H39=CURRENCY,(IF(ISERROR(rate!L$17),0,rate!L$17)),0))","v":0},0,{"$f":"IF(ISBLANK(G39),IF((J39=0),0,IF(ISERROR(rate!$D$17),0,rate!$D$17)),IF(ISERROR(rate!$D$17),0,rate!$D$17))","v":0},0]
[17,null,null,null,null,null,null,"",{"$f":"IF(ISBLANK(G40),0,IF(H40=CURRENCY,(IF(ISERROR(rate!L$17),0,rate!L$17)),0))","v":0},0,{"$f":"IF(ISBLANK(G40),IF((J40=0),0,IF(ISERROR(rate!$D$17),0,rate!$D$17)),IF(ISERROR(rate!$D$17),0,rate!$D$17))","v":0},0]
[18,null,null,null,null,null,null,"",{"$f":"IF(ISBLANK(G41),0,IF(H41=CURRENCY,(IF(ISERROR(rate!L$17),0,rate!L$17)),0))","v":0},0,{"$f":"IF(ISBLANK(G41),IF((J41=0),0,IF(ISERROR(rate!$D$17),0,rate!$D$17)),IF(ISERROR(rate!$D$17),0,rate!$D$17))","v":0},0]
[19,null,null,null,null,null,null,"",{"$f":"IF(ISBLANK(G42),0,IF(H42=CURRENCY,(IF(ISERROR(rate!L$17),0,rate!L$17)),0))","v":0},0,{"$f":"IF(ISBLANK(G42),IF((J42=0),0,IF(ISERROR(rate!$D$17),0,rate!$D$17)),IF(ISERROR(rate!$D$17),0,rate!$D$17))","v":0},0]
[20,null,null,null,null,null,null,"",{"$f":"IF(ISBLANK(G43),0,IF(H43=CURRENCY,(IF(ISERROR(rate!L$17),0,rate!L$17)),0))","v":0},0,{"$f":"IF(ISBLANK(G43),IF((J43=0),0,IF(ISERROR(rate!$D$17),0,rate!$D$17)),IF(ISERROR(rate!$D$17),0,rate!$D$17))","v":0},0]
[21,null,null,null,null,null,null,"",{"$f":"IF(ISBLANK(G44),0,IF(H44=CURRENCY,(IF(ISERROR(rate!L$17),0,rate!L$17)),0))","v":0},0,{"$f":"IF(ISBLANK(G44),IF((J44=0),0,IF(ISERROR(rate!$D$17),0,rate!$D$17)),IF(ISERROR(rate!$D$17),0,rate!$D$17))","v":0},0]
[22,null,null,null,null,null,null,"",{"$f":"IF(ISBLANK(G45),0,IF(H45=CURRENCY,(IF(ISERROR(rate!L$17),0,rate!L$17)),0))","v":0},0,{"$f":"IF(ISBLANK(G45),IF((J45=0),0,IF(ISERROR(rate!$D$17),0,rate!$D$17)),IF(ISERROR(rate!$D$17),0,rate!$D$17))","v":0},0]
[23,null,null,null,null,null,null,"",{"$f":"IF(ISBLANK(G46),0,IF(H46=CURRENCY,(IF(ISERROR(rate!L$17),0,rate!L$17)),0))","v":0},0,{"$f":"IF(ISBLANK(G46),IF((J46=0),0,IF(ISERROR(rate!$D$17),0,rate!$D$17)),IF(ISERROR(rate!$D$17),0,rate!$D$17))","v":0},0]
[24,null,null,null,null,null,null,"",{"$f":"IF(ISBLANK(G47),0,IF(H47=CURRENCY,(IF(ISERROR(rate!L$17),0,rate!L$17)),0))","v":0},0,{"$f":"IF(ISBLANK(G47),IF((J47=0),0,IF(ISERROR(rate!$D$17),0,rate!$D$17)),IF(ISERROR(rate!$D$17),0,rate!$D$17))","v":0},0]
[25,null,null,null,null,null,null,"",{"$f":"IF(ISBLANK(G48),0,IF(H48=CURRENCY,(IF(ISERROR(rate!L$17),0,rate!L$17)),0))","v":0},0,{"$f":"IF(ISBLANK(G48),IF((J48=0),0,IF(ISERROR(rate!$D$17),0,rate!$D$17)),IF(ISERROR(rate!$D$17),0,rate!$D$17))","v":0},0]
[26,null,null,null,null,null,null,"",{"$f":"IF(ISBLANK(G49),0,IF(H49=CURRENCY,(IF(ISERROR(rate!L$17),0,rate!L$17)),0))","v":0},0,{"$f":"IF(ISBLANK(G49),IF((J49=0),0,IF(ISERROR(rate!$D$17),0,rate!$D$17)),IF(ISERROR(rate!$D$17),0,rate!$D$17))","v":0},0]
[27,null,null,null,null,null,null,"",{"$f":"IF(ISBLANK(G50),0,IF(H50=CURRENCY,(IF(ISERROR(rate!L$17),0,rate!L$17)),0))","v":0},0,{"$f":"IF(ISBLANK(G50),IF((J50=0),0,IF(ISERROR(rate!$D$17),0,rate!$D$17)),IF(ISERROR(rate!$D$17),0,rate!$D$17))","v":0},0]
[28,null,null,null,null,null,null,"",{"$f":"IF(ISBLANK(G51),0,IF(H51=CURRENCY,(IF(ISERROR(rate!L$17),0,rate!L$17)),0))","v":0},0,{"$f":"IF(ISBLANK(G51),IF((J51=0),0,IF(ISERROR(rate!$D$17),0,rate!$D$17)),IF(ISERROR(rate!$D$17),0,rate!$D$17))","v":0},0]
[29,null,null,null,null,null,null,"",{"$f":"IF(ISBLANK(G52),0,IF(H52=CURRENCY,(IF(ISERROR(rate!L$17),0,rate!L$17)),0))","v":0},0,{"$f":"IF(ISBLANK(G52),IF((J52=0),0,IF(ISERROR(rate!$D$17),0,rate!$D$17)),IF(ISERROR(rate!$D$17),0,rate!$D$17))","v":0},0]
[30,null,null,null,null,null,null,"",{"$f":"IF(ISBLANK(G53),0,IF(H53=CURRENCY,(IF(ISERROR(rate!L$17),0,rate!L$17)),0))","v":0},0,{"$f":"IF(ISBLANK(G53),IF((J53=0),0,IF(ISERROR(rate!$D$17),0,rate!$D$17)),IF(ISERROR(rate!$D$17),0,rate!$D$17))","v":0},0]
[31,null,null,null,null,null,null,"",{"$f":"IF(ISBLANK(G54),0,IF(H54=CURRENCY,(IF(ISERROR(rate!L$17),0,rate!L$17)),0))","v":0},0,{"$f":"IF(ISBLANK(G54),IF((J54=0),0,IF(ISERROR(rate!$D$17),0,rate!$D$17)),IF(ISERROR(rate!$D$17),0,rate!$D$17))","v":0},0]
[32,null,null,null,null,null,null,"",{"$f":"IF(ISBLANK(G55),0,IF(H55=CURRENCY,(IF(ISERROR(rate!L$17),0,rate!L$17)),0))","v":0},0,{"$f":"IF(ISBLANK(G55),IF((J55=0),0,IF(ISERROR(rate!$D$17),0,rate!$D$17)),IF(ISERROR(rate!$D$17),0,rate!$D$17))","v":0},0]
[33,null,null,null,null,null,null,"",{"$f":"IF(ISBLANK(G56),0,IF(H56=CURRENCY,(IF(ISERROR(rate!L$17),0,rate!L$17)),0))","v":0},0,{"$f":"IF(ISBLANK(G56),IF((J56=0),0,IF(ISERROR(rate!$D$17),0,rate!$D$17)),IF(ISERROR(rate!$D$17),0,rate!$D$17))","v":0},0]
[34,null,null,null,null,null,null,"",{"$f":"IF(ISBLANK(G57),0,IF(H57=CURRENCY,(IF(ISERROR(rate!L$17),0,rate!L$17)),0))","v":0},0,{"$f":"IF(ISBLANK(G57),IF((J57=0),0,IF(ISERROR(rate!$D$17),0,rate!$D$17)),IF(ISERROR(rate!$D$17),0,rate!$D$17))","v":0},0]
[35,null,null,null,null,null,null,"",{"$f":"IF(ISBLANK(G58),0,IF(H58=CURRENCY,(IF(ISERROR(rate!L$17),0,rate!L$17)),0))","v":0},0,{"$f":"IF(ISBLANK(G58),IF((J58=0),0,IF(ISERROR(rate!$D$17),0,rate!$D$17)),IF(ISERROR(rate!$D$17),0,rate!$D$17))","v":0},0]
[36,null,null,null,null,null,null,"",{"$f":"IF(ISBLANK(G59),0,IF(H59=CURRENCY,(IF(ISERROR(rate!L$17),0,rate!L$17)),0))","v":0},0,{"$f":"IF(ISBLANK(G59),IF((J59=0),0,IF(ISERROR(rate!$D$17),0,rate!$D$17)),IF(ISERROR(rate!$D$17),0,rate!$D$17))","v":0},0]
[37,null,null,null,null,null,null,"",{"$f":"IF(ISBLANK(G60),0,IF(H60=CURRENCY,(IF(ISERROR(rate!L$17),0,rate!L$17)),0))","v":0},0,{"$f":"IF(ISBLANK(G60),IF((J60=0),0,IF(ISERROR(rate!$D$17),0,rate!$D$17)),IF(ISERROR(rate!$D$17),0,rate!$D$17))","v":0},0]
[38,null,null,null,null,null,null,"",{"$f":"IF(ISBLANK(G61),0,IF(H61=CURRENCY,(IF(ISERROR(rate!L$17),0,rate!L$17)),0))","v":0},0,{"$f":"IF(ISBLANK(G61),IF((J61=0),0,IF(ISERROR(rate!$D$17),0,rate!$D$17)),IF(ISERROR(rate!$D$17),0,rate!$D$17))","v":0},0]
[39,null,null,null,null,null,null,"",{"$f":"IF(ISBLANK(G62),0,IF(H62=CURRENCY,(IF(ISERROR(rate!L$17),0,rate!L$17)),0))","v":0},0,{"$f":"IF(ISBLANK(G62),IF((J62=0),0,IF(ISERROR(rate!$D$17),0,rate!$D$17)),IF(ISERROR(rate!$D$17),0,rate!$D$17))","v":0},0]
[40,null,null,null,null,null,null,"",{"$f":"IF(ISBLANK(G63),0,IF(H63=CURRENCY,(IF(ISERROR(rate!L$17),0,rate!L$17)),0))","v":0},0,{"$f":"IF(ISBLANK(G63),IF((J63=0),0,IF(ISERROR(rate!$D$17),0,rate!$D$17)),IF(ISERROR(rate!$D$17),0,rate!$D$17))","v":0},0]
[41,null,null,null,null,null,null,"",{"$f":"IF(ISBLANK(G64),0,IF(H64=CURRENCY,(IF(ISERROR(rate!L$17),0,rate!L$17)),0))","v":0},0,{"$f":"IF(ISBLANK(G64),IF((J64=0),0,IF(ISERROR(rate!$D$17),0,rate!$D$17)),IF(ISERROR(rate!$D$17),0,rate!$D$17))","v":0},0]
[42,null,null,null,null,null,null,"",{"$f":"IF(ISBLANK(G65),0,IF(H65=CURRENCY,(IF(ISERROR(rate!L$17),0,rate!L$17)),0))","v":0},0,{"$f":"IF(ISBLANK(G65),IF((J65=0),0,IF(ISERROR(rate!$D$17),0,rate!$D$17)),IF(ISERROR(rate!$D$17),0,rate!$D$17))","v":0},0]
[43,null,null,null,null,null,null,"",{"$f":"IF(ISBLANK(G66),0,IF(H66=CURRENCY,(IF(ISERROR(rate!L$17),0,rate!L$17)),0))","v":0},0,{"$f":"IF(ISBLANK(G66),IF((J66=0),0,IF(ISERROR(rate!$D$17),0,rate!$D$17)),IF(ISERROR(rate!$D$17),0,rate!$D$17))","v":0},0]
[44,null,null,null,null,null,null,"",{"$f":"IF(ISBLANK(G67),0,IF(H67=CURRENCY,(IF(ISERROR(rate!L$17),0,rate!L$17)),0))","v":0},0,{"$f":"IF(ISBLANK(G67),IF((J67=0),0,IF(ISERROR(rate!$D$17),0,rate!$D$17)),IF(ISERROR(rate!$D$17),0,rate!$D$17))","v":0},0]
[45,null,null,null,null,null,null,"",{"$f":"IF(ISBLANK(G68),0,IF(H68=CURRENCY,(IF(ISERROR(rate!L$17),0,rate!L$17)),0))","v":0},0,{"$f":"IF(ISBLANK(G68),IF((J68=0),0,IF(ISERROR(rate!$D$17),0,rate!$D$17)),IF(ISERROR(rate!$D$17),0,rate!$D$17))","v":0},0]
[46,null,null,null,null,null,null,"",{"$f":"IF(ISBLANK(G69),0,IF(H69=CURRENCY,(IF(ISERROR(rate!L$17),0,rate!L$17)),0))","v":0},0,{"$f":"IF(ISBLANK(G69),IF((J69=0),0,IF(ISERROR(rate!$D$17),0,rate!$D$17)),IF(ISERROR(rate!$D$17),0,rate!$D$17))","v":0},0]
[47,null,null,null,null,null,null,"",{"$f":"IF(ISBLANK(G70),0,IF(H70=CURRENCY,(IF(ISERROR(rate!L$17),0,rate!L$17)),0))","v":0},0,{"$f":"IF(ISBLANK(G70),IF((J70=0),0,IF(ISERROR(rate!$D$17),0,rate!$D$17)),IF(ISERROR(rate!$D$17),0,rate!$D$17))","v":0},0]
[48,null,null,null,null,null,null,"",{"$f":"IF(ISBLANK(G71),0,IF(H71=CURRENCY,(IF(ISERROR(rate!L$17),0,rate!L$17)),0))","v":0},0,{"$f":"IF(ISBLANK(G71),IF((J71=0),0,IF(ISERROR(rate!$D$17),0,rate!$D$17)),IF(ISERROR(rate!$D$17),0,rate!$D$17))","v":0},0]
[49,null,null,null,null,null,null,"",{"$f":"IF(ISBLANK(G72),0,IF(H72=CURRENCY,(IF(ISERROR(rate!L$17),0,rate!L$17)),0))","v":0},0,{"$f":"IF(ISBLANK(G72),IF((J72=0),0,IF(ISERROR(rate!$D$17),0,rate!$D$17)),IF(ISERROR(rate!$D$17),0,rate!$D$17))","v":0},0]
[50,null,null,null,null,null,null,"",{"$f":"IF(ISBLANK(G73),0,IF(H73=CURRENCY,(IF(ISERROR(rate!L$17),0,rate!L$17)),0))","v":0},0,{"$f":"IF(ISBLANK(G73),IF((J73=0),0,IF(ISERROR(rate!$D$17),0,rate!$D$17)),IF(ISERROR(rate!$D$17),0,rate!$D$17))","v":0},0]
[51,null,null,null,null,null,null,"",{"$f":"IF(ISBLANK(G74),0,IF(H74=CURRENCY,(IF(ISERROR(rate!L$17),0,rate!L$17)),0))","v":0},0,{"$f":"IF(ISBLANK(G74),IF((J74=0),0,IF(ISERROR(rate!$D$17),0,rate!$D$17)),IF(ISERROR(rate!$D$17),0,rate!$D$17))","v":0},0]
[52,null,null,null,null,null,null,"",{"$f":"IF(ISBLANK(G75),0,IF(H75=CURRENCY,(IF(ISERROR(rate!L$17),0,rate!L$17)),0))","v":0},0,{"$f":"IF(ISBLANK(G75),IF((J75=0),0,IF(ISERROR(rate!$D$17),0,rate!$D$17)),IF(ISERROR(rate!$D$17),0,rate!$D$17))","v":0},0]
[53,null,null,null,null,null,null,"",{"$f":"IF(ISBLANK(G76),0,IF(H76=CURRENCY,(IF(ISERROR(rate!L$17),0,rate!L$17)),0))","v":0},0,{"$f":"IF(ISBLANK(G76),IF((J76=0),0,IF(ISERROR(rate!$D$17),0,rate!$D$17)),IF(ISERROR(rate!$D$17),0,rate!$D$17))","v":0},0]
[54,null,null,null,null,null,null,"",{"$f":"IF(ISBLANK(G77),0,IF(H77=CURRENCY,(IF(ISERROR(rate!L$17),0,rate!L$17)),0))","v":0},0,{"$f":"IF(ISBLANK(G77),IF((J77=0),0,IF(ISERROR(rate!$D$17),0,rate!$D$17)),IF(ISERROR(rate!$D$17),0,rate!$D$17))","v":0},0]
[55,null,null,null,null,null,null,"",{"$f":"IF(ISBLANK(G78),0,IF(H78=CURRENCY,(IF(ISERROR(rate!L$17),0,rate!L$17)),0))","v":0},0,{"$f":"IF(ISBLANK(G78),IF((J78=0),0,IF(ISERROR(rate!$D$17),0,rate!$D$17)),IF(ISERROR(rate!$D$17),0,rate!$D$17))","v":0},0]
[56,null,null,null,null,null,null,"",{"$f":"IF(ISBLANK(G79),0,IF(H79=CURRENCY,(IF(ISERROR(rate!L$17),0,rate!L$17)),0))","v":0},0,{"$f":"IF(ISBLANK(G79),IF((J79=0),0,IF(ISERROR(rate!$D$17),0,rate!$D$17)),IF(ISERROR(rate!$D$17),0,rate!$D$17))","v":0},0]
[57,null,null,null,null,null,null,"",{"$f":"IF(ISBLANK(G80),0,IF(H80=CURRENCY,(IF(ISERROR(rate!L$17),0,rate!L$17)),0))","v":0},0,{"$f":"IF(ISBLANK(G80),IF((J80=0),0,IF(ISERROR(rate!$D$17),0,rate!$D$17)),IF(ISERROR(rate!$D$17),0,rate!$D$17))","v":0},0]
[58,null,null,null,null,null,null,"",{"$f":"IF(ISBLANK(G81),0,IF(H81=CURRENCY,(IF(ISERROR(rate!L$17),0,rate!L$17)),0))","v":0},0,{"$f":"IF(ISBLANK(G81),IF((J81=0),0,IF(ISERROR(rate!$D$17),0,rate!$D$17)),IF(ISERROR(rate!$D$17),0,rate!$D$17))","v":0},0]
[59,null,null,null,null,null,null,"",{"$f":"IF(ISBLANK(G82),0,IF(H82=CURRENCY,(IF(ISERROR(rate!L$17),0,rate!L$17)),0))","v":0},0,{"$f":"IF(ISBLANK(G82),IF((J82=0),0,IF(ISERROR(rate!$D$17),0,rate!$D$17)),IF(ISERROR(rate!$D$17),0,rate!$D$17))","v":0},0]
[60,null,null,null,null,null,null,"",{"$f":"IF(ISBLANK(G83),0,IF(H83=CURRENCY,(IF(ISERROR(rate!L$17),0,rate!L$17)),0))","v":0},0,{"$f":"IF(ISBLANK(G83),IF((J83=0),0,IF(ISERROR(rate!$D$17),0,rate!$D$17)),IF(ISERROR(rate!$D$17),0,rate!$D$17))","v":0},0]
[61,null,null,null,null,null,null,"",{"$f":"IF(ISBLANK(G84),0,IF(H84=CURRENCY,(IF(ISERROR(rate!L$17),0,rate!L$17)),0))","v":0},0,{"$f":"IF(ISBLANK(G84),IF((J84=0),0,IF(ISERROR(rate!$D$17),0,rate!$D$17)),IF(ISERROR(rate!$D$17),0,rate!$D$17))","v":0},0]
[62,null,null,null,null,null,null,"",{"$f":"IF(ISBLANK(G85),0,IF(H85=CURRENCY,(IF(ISERROR(rate!L$17),0,rate!L$17)),0))","v":0},0,{"$f":"IF(ISBLANK(G85),IF((J85=0),0,IF(ISERROR(rate!$D$17),0,rate!$D$17)),IF(ISERROR(rate!$D$17),0,rate!$D$17))","v":0},0]
[63,null,null,null,null,null,null,"",{"$f":"IF(ISBLANK(G86),0,IF(H86=CURRENCY,(IF(ISERROR(rate!L$17),0,rate!L$17)),0))","v":0},0,{"$f":"IF(ISBLANK(G86),IF((J86=0),0,IF(ISERROR(rate!$D$17),0,rate!$D$17)),IF(ISERROR(rate!$D$17),0,rate!$D$17))","v":0},0]
[64,null,null,null,null,null,null,"",{"$f":"IF(ISBLANK(G87),0,IF(H87=CURRENCY,(IF(ISERROR(rate!L$17),0,rate!L$17)),0))","v":0},0,{"$f":"IF(ISBLANK(G87),IF((J87=0),0,IF(ISERROR(rate!$D$17),0,rate!$D$17)),IF(ISERROR(rate!$D$17),0,rate!$D$17))","v":0},0]
[65,null,null,null,null,null,null,{"$f":"IF(ISBLANK(G88),\"\",+CURRENCY)","v":""},{"$f":"IF(ISBLANK(G88),0,IF(H88=CURRENCY,(IF(ISERROR(rate!L$17),0,rate!L$17)),0))","v":0},{"$f":"IF(ISERROR(+G88/I88),0,+G88/I88)","v":0},{"$f":"IF(ISBLANK(G88),IF((J88=0),0,IF(ISERROR(rate!$D$17),0,rate!$D$17)),IF(ISERROR(rate!$D$17),0,rate!$D$17))","v":0},{"$f":"IF(ISERROR(+K88*J88),0,+K88*J88)","v":0}]
[66,null,null,null,null,null,null,"",{"$f":"IF(ISBLANK(G89),0,IF(H89=CURRENCY,(IF(ISERROR(rate!L$17),0,rate!L$17)),0))","v":0},0,{"$f":"IF(ISBLANK(G89),IF((J89=0),0,IF(ISERROR(rate!$D$17),0,rate!$D$17)),IF(ISERROR(rate!$D$17),0,rate!$D$17))","v":0},0]
[67,null,null,null,null,null,null,"",{"$f":"IF(ISBLANK(G90),0,IF(H90=CURRENCY,(IF(ISERROR(rate!L$17),0,rate!L$17)),0))","v":0},0,{"$f":"IF(ISBLANK(G90),IF((J90=0),0,IF(ISERROR(rate!$D$17),0,rate!$D$17)),IF(ISERROR(rate!$D$17),0,rate!$D$17))","v":0},0]
[68,null,null,null,null,null,null,"",{"$f":"IF(ISBLANK(G91),0,IF(H91=CURRENCY,(IF(ISERROR(rate!L$17),0,rate!L$17)),0))","v":0},0,{"$f":"IF(ISBLANK(G91),IF((J91=0),0,IF(ISERROR(rate!$D$17),0,rate!$D$17)),IF(ISERROR(rate!$D$17),0,rate!$D$17))","v":0},0]
[69,null,null,null,null,null,null,"",{"$f":"IF(ISBLANK(G92),0,IF(H92=CURRENCY,(IF(ISERROR(rate!L$17),0,rate!L$17)),0))","v":0},0,{"$f":"IF(ISBLANK(G92),IF((J92=0),0,IF(ISERROR(rate!$D$17),0,rate!$D$17)),IF(ISERROR(rate!$D$17),0,rate!$D$17))","v":0},0]
[70,null,null,null,null,null,null,"",{"$f":"IF(ISBLANK(G93),0,IF(H93=CURRENCY,(IF(ISERROR(rate!L$17),0,rate!L$17)),0))","v":0},0,{"$f":"IF(ISBLANK(G93),IF((J93=0),0,IF(ISERROR(rate!$D$17),0,rate!$D$17)),IF(ISERROR(rate!$D$17),0,rate!$D$17))","v":0},0]
[71,null,null,null,null,null,null,"",{"$f":"IF(ISBLANK(G94),0,IF(H94=CURRENCY,(IF(ISERROR(rate!L$17),0,rate!L$17)),0))","v":0},0,{"$f":"IF(ISBLANK(G94),IF((J94=0),0,IF(ISERROR(rate!$D$17),0,rate!$D$17)),IF(ISERROR(rate!$D$17),0,rate!$D$17))","v":0},0]
[72,null,null,null,null,null,null,"",{"$f":"IF(ISBLANK(G95),0,IF(H95=CURRENCY,(IF(ISERROR(rate!L$17),0,rate!L$17)),0))","v":0},0,{"$f":"IF(ISBLANK(G95),IF((J95=0),0,IF(ISERROR(rate!$D$17),0,rate!$D$17)),IF(ISERROR(rate!$D$17),0,rate!$D$17))","v":0},0]
[73,null,null,null,null,null,null,"",{"$f":"IF(ISBLANK(G96),0,IF(H96=CURRENCY,(IF(ISERROR(rate!L$17),0,rate!L$17)),0))","v":0},0,{"$f":"IF(ISBLANK(G96),IF((J96=0),0,IF(ISERROR(rate!$D$17),0,rate!$D$17)),IF(ISERROR(rate!$D$17),0,rate!$D$17))","v":0},0]
[74,null,null,null,null,null,null,"",{"$f":"IF(ISBLANK(G97),0,IF(H97=CURRENCY,(IF(ISERROR(rate!L$17),0,rate!L$17)),0))","v":0},0,{"$f":"IF(ISBLANK(G97),IF((J97=0),0,IF(ISERROR(rate!$D$17),0,rate!$D$17)),IF(ISERROR(rate!$D$17),0,rate!$D$17))","v":0},0]
[75,null,null,null,null,null,null,"",{"$f":"IF(ISBLANK(G98),0,IF(H98=CURRENCY,(IF(ISERROR(rate!L$17),0,rate!L$17)),0))","v":0},0,{"$f":"IF(ISBLANK(G98),IF((J98=0),0,IF(ISERROR(rate!$D$17),0,rate!$D$17)),IF(ISERROR(rate!$D$17),0,rate!$D$17))","v":0},0]
[76,null,null,null,null,null,null,"",{"$f":"IF(ISBLANK(G99),0,IF(H99=CURRENCY,(IF(ISERROR(rate!L$17),0,rate!L$17)),0))","v":0},0,{"$f":"IF(ISBLANK(G99),IF((J99=0),0,IF(ISERROR(rate!$D$17),0,rate!$D$17)),IF(ISERROR(rate!$D$17),0,rate!$D$17))","v":0},0]
[77,null,null,null,null,null,null,"",{"$f":"IF(ISBLANK(G100),0,IF(H100=CURRENCY,(IF(ISERROR(rate!L$17),0,rate!L$17)),0))","v":0},0,{"$f":"IF(ISBLANK(G100),IF((J100=0),0,IF(ISERROR(rate!$D$17),0,rate!$D$17)),IF(ISERROR(rate!$D$17),0,rate!$D$17))","v":0},0]
[78,null,null,null,null,null,null,"",{"$f":"IF(ISBLANK(G101),0,IF(H101=CURRENCY,(IF(ISERROR(rate!L$17),0,rate!L$17)),0))","v":0},0,{"$f":"IF(ISBLANK(G101),IF((J101=0),0,IF(ISERROR(rate!$D$17),0,rate!$D$17)),IF(ISERROR(rate!$D$17),0,rate!$D$17))","v":0},0]
[79,null,null,null,null,null,null,"",{"$f":"IF(ISBLANK(G102),0,IF(H102=CURRENCY,(IF(ISERROR(rate!L$17),0,rate!L$17)),0))","v":0},0,{"$f":"IF(ISBLANK(G102),IF((J102=0),0,IF(ISERROR(rate!$D$17),0,rate!$D$17)),IF(ISERROR(rate!$D$17),0,rate!$D$17))","v":0},0]
[80,null,null,null,null,null,null,"",{"$f":"IF(ISBLANK(G103),0,IF(H103=CURRENCY,(IF(ISERROR(rate!L$17),0,rate!L$17)),0))","v":0},0,{"$f":"IF(ISBLANK(G103),IF((J103=0),0,IF(ISERROR(rate!$D$17),0,rate!$D$17)),IF(ISERROR(rate!$D$17),0,rate!$D$17))","v":0},0]
[81,null,null,null,null,null,null,"",{"$f":"IF(ISBLANK(G104),0,IF(H104=CURRENCY,(IF(ISERROR(rate!L$17),0,rate!L$17)),0))","v":0},0,{"$f":"IF(ISBLANK(G104),IF((J104=0),0,IF(ISERROR(rate!$D$17),0,rate!$D$17)),IF(ISERROR(rate!$D$17),0,rate!$D$17))","v":0},0]
[82,null,null,null,null,null,null,"",{"$f":"IF(ISBLANK(G105),0,IF(H105=CURRENCY,(IF(ISERROR(rate!L$17),0,rate!L$17)),0))","v":0},0,{"$f":"IF(ISBLANK(G105),IF((J105=0),0,IF(ISERROR(rate!$D$17),0,rate!$D$17)),IF(ISERROR(rate!$D$17),0,rate!$D$17))","v":0},0]
[83,null,null,null,null,null,null,"",{"$f":"IF(ISBLANK(G106),0,IF(H106=CURRENCY,(IF(ISERROR(rate!L$17),0,rate!L$17)),0))","v":0},0,{"$f":"IF(ISBLANK(G106),IF((J106=0),0,IF(ISERROR(rate!$D$17),0,rate!$D$17)),IF(ISERROR(rate!$D$17),0,rate!$D$17))","v":0},0]
[84,null,null,null,null,null,null,"",{"$f":"IF(ISBLANK(G107),0,IF(H107=CURRENCY,(IF(ISERROR(rate!L$17),0,rate!L$17)),0))","v":0},0,{"$f":"IF(ISBLANK(G107),IF((J107=0),0,IF(ISERROR(rate!$D$17),0,rate!$D$17)),IF(ISERROR(rate!$D$17),0,rate!$D$17))","v":0},0]
[85,null,null,null,null,null,null,"",{"$f":"IF(ISBLANK(G108),0,IF(H108=CURRENCY,(IF(ISERROR(rate!L$17),0,rate!L$17)),0))","v":0},0,{"$f":"IF(ISBLANK(G108),IF((J108=0),0,IF(ISERROR(rate!$D$17),0,rate!$D$17)),IF(ISERROR(rate!$D$17),0,rate!$D$17))","v":0},0]
[86,null,null,null,null,null,null,"",{"$f":"IF(ISBLANK(G109),0,IF(H109=CURRENCY,(IF(ISERROR(rate!L$17),0,rate!L$17)),0))","v":0},0,{"$f":"IF(ISBLANK(G109),IF((J109=0),0,IF(ISERROR(rate!$D$17),0,rate!$D$17)),IF(ISERROR(rate!$D$17),0,rate!$D$17))","v":0},0]
[87,null,null,null,null,null,null,"",{"$f":"IF(ISBLANK(G110),0,IF(H110=CURRENCY,(IF(ISERROR(rate!L$17),0,rate!L$17)),0))","v":0},0,{"$f":"IF(ISBLANK(G110),IF((J110=0),0,IF(ISERROR(rate!$D$17),0,rate!$D$17)),IF(ISERROR(rate!$D$17),0,rate!$D$17))","v":0},0]
[88,null,null,null,null,null,null,"",{"$f":"IF(ISBLANK(G111),0,IF(H111=CURRENCY,(IF(ISERROR(rate!L$17),0,rate!L$17)),0))","v":0},0,{"$f":"IF(ISBLANK(G111),IF((J111=0),0,IF(ISERROR(rate!$D$17),0,rate!$D$17)),IF(ISERROR(rate!$D$17),0,rate!$D$17))","v":0},0]
[89,null,null,null,null,null,null,"",{"$f":"IF(ISBLANK(G112),0,IF(H112=CURRENCY,(IF(ISERROR(rate!L$17),0,rate!L$17)),0))","v":0},0,{"$f":"IF(ISBLANK(G112),IF((J112=0),0,IF(ISERROR(rate!$D$17),0,rate!$D$17)),IF(ISERROR(rate!$D$17),0,rate!$D$17))","v":0},0]
[90,null,null,null,null,null,null,"",{"$f":"IF(ISBLANK(G113),0,IF(H113=CURRENCY,(IF(ISERROR(rate!L$17),0,rate!L$17)),0))","v":0},0,{"$f":"IF(ISBLANK(G113),IF((J113=0),0,IF(ISERROR(rate!$D$17),0,rate!$D$17)),IF(ISERROR(rate!$D$17),0,rate!$D$17))","v":0},0]
[91,null,null,null,null,null,null,"",{"$f":"IF(ISBLANK(G114),0,IF(H114=CURRENCY,(IF(ISERROR(rate!L$17),0,rate!L$17)),0))","v":0},0,{"$f":"IF(ISBLANK(G114),IF((J114=0),0,IF(ISERROR(rate!$D$17),0,rate!$D$17)),IF(ISERROR(rate!$D$17),0,rate!$D$17))","v":0},0]
[92,null,null,null,null,null,null,"",{"$f":"IF(ISBLANK(G115),0,IF(H115=CURRENCY,(IF(ISERROR(rate!L$17),0,rate!L$17)),0))","v":0},0,{"$f":"IF(ISBLANK(G115),IF((J115=0),0,IF(ISERROR(rate!$D$17),0,rate!$D$17)),IF(ISERROR(rate!$D$17),0,rate!$D$17))","v":0},0]
[93,null,null,null,null,null,null,"",{"$f":"IF(ISBLANK(G116),0,IF(H116=CURRENCY,(IF(ISERROR(rate!L$17),0,rate!L$17)),0))","v":0},0,{"$f":"IF(ISBLANK(G116),IF((J116=0),0,IF(ISERROR(rate!$D$17),0,rate!$D$17)),IF(ISERROR(rate!$D$17),0,rate!$D$17))","v":0},0]
[94,null,null,null,null,null,null,"",{"$f":"IF(ISBLANK(G117),0,IF(H117=CURRENCY,(IF(ISERROR(rate!L$17),0,rate!L$17)),0))","v":0},0,{"$f":"IF(ISBLANK(G117),IF((J117=0),0,IF(ISERROR(rate!$D$17),0,rate!$D$17)),IF(ISERROR(rate!$D$17),0,rate!$D$17))","v":0},0]
[95,null,null,null,null,null,null,"",{"$f":"IF(ISBLANK(G118),0,IF(H118=CURRENCY,(IF(ISERROR(rate!L$17),0,rate!L$17)),0))","v":0},0,{"$f":"IF(ISBLANK(G118),IF((J118=0),0,IF(ISERROR(rate!$D$17),0,rate!$D$17)),IF(ISERROR(rate!$D$17),0,rate!$D$17))","v":0},0]
[96,null,null,null,null,null,null,"",{"$f":"IF(ISBLANK(G119),0,IF(H119=CURRENCY,(IF(ISERROR(rate!L$17),0,rate!L$17)),0))","v":0},0,{"$f":"IF(ISBLANK(G119),IF((J119=0),0,IF(ISERROR(rate!$D$17),0,rate!$D$17)),IF(ISERROR(rate!$D$17),0,rate!$D$17))","v":0},0]
[97,null,null,null,null,null,null,"",{"$f":"IF(ISBLANK(G120),0,IF(H120=CURRENCY,(IF(ISERROR(rate!L$17),0,rate!L$17)),0))","v":0},0,{"$f":"IF(ISBLANK(G120),IF((J120=0),0,IF(ISERROR(rate!$D$17),0,rate!$D$17)),IF(ISERROR(rate!$D$17),0,rate!$D$17))","v":0},0]
[98,null,null,null,null,null,null,"",{"$f":"IF(ISBLANK(G121),0,IF(H121=CURRENCY,(IF(ISERROR(rate!L$17),0,rate!L$17)),0))","v":0},0,{"$f":"IF(ISBLANK(G121),IF((J121=0),0,IF(ISERROR(rate!$D$17),0,rate!$D$17)),IF(ISERROR(rate!$D$17),0,rate!$D$17))","v":0},0]
[99,null,null,null,null,null,null,"",{"$f":"IF(ISBLANK(G122),0,IF(H122=CURRENCY,(IF(ISERROR(rate!L$17),0,rate!L$17)),0))","v":0},0,{"$f":"IF(ISBLANK(G122),IF((J122=0),0,IF(ISERROR(rate!$D$17),0,rate!$D$17)),IF(ISERROR(rate!$D$17),0,rate!$D$17))","v":0},0]
[100,null,null,null,null,null,null,"",{"$f":"IF(ISBLANK(G123),0,IF(H123=CURRENCY,(IF(ISERROR(rate!L$17),0,rate!L$17)),0))","v":0},0,{"$f":"IF(ISBLANK(G123),IF((J123=0),0,IF(ISERROR(rate!$D$17),0,rate!$D$17)),IF(ISERROR(rate!$D$17),0,rate!$D$17))","v":0},0]
[101,null,null,null,null,null,null,"",{"$f":"IF(ISBLANK(G124),0,IF(H124=CURRENCY,(IF(ISERROR(rate!L$17),0,rate!L$17)),0))","v":0},0,{"$f":"IF(ISBLANK(G124),IF((J124=0),0,IF(ISERROR(rate!$D$17),0,rate!$D$17)),IF(ISERROR(rate!$D$17),0,rate!$D$17))","v":0},0]
[102,null,null,null,null,null,null,"",{"$f":"IF(ISBLANK(G125),0,IF(H125=CURRENCY,(IF(ISERROR(rate!L$17),0,rate!L$17)),0))","v":0},0,{"$f":"IF(ISBLANK(G125),IF((J125=0),0,IF(ISERROR(rate!$D$17),0,rate!$D$17)),IF(ISERROR(rate!$D$17),0,rate!$D$17))","v":0},0]
[103,null,null,null,null,null,null,"",{"$f":"IF(ISBLANK(G126),0,IF(H126=CURRENCY,(IF(ISERROR(rate!L$17),0,rate!L$17)),0))","v":0},0,{"$f":"IF(ISBLANK(G126),IF((J126=0),0,IF(ISERROR(rate!$D$17),0,rate!$D$17)),IF(ISERROR(rate!$D$17),0,rate!$D$17))","v":0},0]
[104,null,null,null,null,null,null,"",{"$f":"IF(ISBLANK(G127),0,IF(H127=CURRENCY,(IF(ISERROR(rate!L$17),0,rate!L$17)),0))","v":0},0,{"$f":"IF(ISBLANK(G127),IF((J127=0),0,IF(ISERROR(rate!$D$17),0,rate!$D$17)),IF(ISERROR(rate!$D$17),0,rate!$D$17))","v":0},0]
[105,null,null,null,null,null,null,"",{"$f":"IF(ISBLANK(G128),0,IF(H128=CURRENCY,(IF(ISERROR(rate!L$17),0,rate!L$17)),0))","v":0},0,{"$f":"IF(ISBLANK(G128),IF((J128=0),0,IF(ISERROR(rate!$D$17),0,rate!$D$17)),IF(ISERROR(rate!$D$17),0,rate!$D$17))","v":0},0]
[106,null,null,null,null,null,null,"",{"$f":"IF(ISBLANK(G129),0,IF(H129=CURRENCY,(IF(ISERROR(rate!L$17),0,rate!L$17)),0))","v":0},0,{"$f":"IF(ISBLANK(G129),IF((J129=0),0,IF(ISERROR(rate!$D$17),0,rate!$D$17)),IF(ISERROR(rate!$D$17),0,rate!$D$17))","v":0},0]
[107,null,null,null,null,null,null,"",{"$f":"IF(ISBLANK(G130),0,IF(H130=CURRENCY,(IF(ISERROR(rate!L$17),0,rate!L$17)),0))","v":0},0,{"$f":"IF(ISBLANK(G130),IF((J130=0),0,IF(ISERROR(rate!$D$17),0,rate!$D$17)),IF(ISERROR(rate!$D$17),0,rate!$D$17))","v":0},0]
[108,null,null,null,null,null,null,"",{"$f":"IF(ISBLANK(G131),0,IF(H131=CURRENCY,(IF(ISERROR(rate!L$17),0,rate!L$17)),0))","v":0},0,{"$f":"IF(ISBLANK(G131),IF((J131=0),0,IF(ISERROR(rate!$D$17),0,rate!$D$17)),IF(ISERROR(rate!$D$17),0,rate!$D$17))","v":0},0]
[109,null,null,null,null,null,null,"",{"$f":"IF(ISBLANK(G132),0,IF(H132=CURRENCY,(IF(ISERROR(rate!L$17),0,rate!L$17)),0))","v":0},0,{"$f":"IF(ISBLANK(G132),IF((J132=0),0,IF(ISERROR(rate!$D$17),0,rate!$D$17)),IF(ISERROR(rate!$D$17),0,rate!$D$17))","v":0},0]
[110,null,null,null,null,null,null,"",{"$f":"IF(ISBLANK(G133),0,IF(H133=CURRENCY,(IF(ISERROR(rate!L$17),0,rate!L$17)),0))","v":0},0,{"$f":"IF(ISBLANK(G133),IF((J133=0),0,IF(ISERROR(rate!$D$17),0,rate!$D$17)),IF(ISERROR(rate!$D$17),0,rate!$D$17))","v":0},0]
[111,null,null,null,null,null,null,"",{"$f":"IF(ISBLANK(G134),0,IF(H134=CURRENCY,(IF(ISERROR(rate!L$17),0,rate!L$17)),0))","v":0},0,{"$f":"IF(ISBLANK(G134),IF((J134=0),0,IF(ISERROR(rate!$D$17),0,rate!$D$17)),IF(ISERROR(rate!$D$17),0,rate!$D$17))","v":0},0]
[112,null,null,null,null,null,null,"",{"$f":"IF(ISBLANK(G135),0,IF(H135=CURRENCY,(IF(ISERROR(rate!L$17),0,rate!L$17)),0))","v":0},0,{"$f":"IF(ISBLANK(G135),IF((J135=0),0,IF(ISERROR(rate!$D$17),0,rate!$D$17)),IF(ISERROR(rate!$D$17),0,rate!$D$17))","v":0},0]
[113,null,null,null,null,null,null,"",{"$f":"IF(ISBLANK(G136),0,IF(H136=CURRENCY,(IF(ISERROR(rate!L$17),0,rate!L$17)),0))","v":0},0,{"$f":"IF(ISBLANK(G136),IF((J136=0),0,IF(ISERROR(rate!$D$17),0,rate!$D$17)),IF(ISERROR(rate!$D$17),0,rate!$D$17))","v":0},0]
[114,null,null,null,null,null,null,"",{"$f":"IF(ISBLANK(G137),0,IF(H137=CURRENCY,(IF(ISERROR(rate!L$17),0,rate!L$17)),0))","v":0},0,{"$f":"IF(ISBLANK(G137),IF((J137=0),0,IF(ISERROR(rate!$D$17),0,rate!$D$17)),IF(ISERROR(rate!$D$17),0,rate!$D$17))","v":0},0]
[115,null,null,null,null,null,null,"",{"$f":"IF(ISBLANK(G138),0,IF(H138=CURRENCY,(IF(ISERROR(rate!L$17),0,rate!L$17)),0))","v":0},0,{"$f":"IF(ISBLANK(G138),IF((J138=0),0,IF(ISERROR(rate!$D$17),0,rate!$D$17)),IF(ISERROR(rate!$D$17),0,rate!$D$17))","v":0},0]
[116,null,null,null,null,null,null,"",{"$f":"IF(ISBLANK(G139),0,IF(H139=CURRENCY,(IF(ISERROR(rate!L$17),0,rate!L$17)),0))","v":0},0,{"$f":"IF(ISBLANK(G139),IF((J139=0),0,IF(ISERROR(rate!$D$17),0,rate!$D$17)),IF(ISERROR(rate!$D$17),0,rate!$D$17))","v":0},0]
[117,null,null,null,null,null,null,"",{"$f":"IF(ISBLANK(G140),0,IF(H140=CURRENCY,(IF(ISERROR(rate!L$17),0,rate!L$17)),0))","v":0},0,{"$f":"IF(ISBLANK(G140),IF((J140=0),0,IF(ISERROR(rate!$D$17),0,rate!$D$17)),IF(ISERROR(rate!$D$17),0,rate!$D$17))","v":0},0]
[118,null,null,null,null,null,null,"",{"$f":"IF(ISBLANK(G141),0,IF(H141=CURRENCY,(IF(ISERROR(rate!L$17),0,rate!L$17)),0))","v":0},0,{"$f":"IF(ISBLANK(G141),IF((J141=0),0,IF(ISERROR(rate!$D$17),0,rate!$D$17)),IF(ISERROR(rate!$D$17),0,rate!$D$17))","v":0},0]
[119,null,null,null,null,null,null,"",{"$f":"IF(ISBLANK(G142),0,IF(H142=CURRENCY,(IF(ISERROR(rate!L$17),0,rate!L$17)),0))","v":0},0,{"$f":"IF(ISBLANK(G142),IF((J142=0),0,IF(ISERROR(rate!$D$17),0,rate!$D$17)),IF(ISERROR(rate!$D$17),0,rate!$D$17))","v":0},0]
[120,null,null,null,null,null,null,"",{"$f":"IF(ISBLANK(G143),0,IF(H143=CURRENCY,(IF(ISERROR(rate!L$17),0,rate!L$17)),0))","v":0},0,{"$f":"IF(ISBLANK(G143),IF((J143=0),0,IF(ISERROR(rate!$D$17),0,rate!$D$17)),IF(ISERROR(rate!$D$17),0,rate!$D$17))","v":0},0]
[121,null,null,null,null,null,null,"",{"$f":"IF(ISBLANK(G144),0,IF(H144=CURRENCY,(IF(ISERROR(rate!L$17),0,rate!L$17)),0))","v":0},0,{"$f":"IF(ISBLANK(G144),IF((J144=0),0,IF(ISERROR(rate!$D$17),0,rate!$D$17)),IF(ISERROR(rate!$D$17),0,rate!$D$17))","v":0},0]
[122,null,null,null,null,null,null,"",{"$f":"IF(ISBLANK(G145),0,IF(H145=CURRENCY,(IF(ISERROR(rate!L$17),0,rate!L$17)),0))","v":0},0,{"$f":"IF(ISBLANK(G145),IF((J145=0),0,IF(ISERROR(rate!$D$17),0,rate!$D$17)),IF(ISERROR(rate!$D$17),0,rate!$D$17))","v":0},0]
[123,null,null,null,null,null,null,"",{"$f":"IF(ISBLANK(G146),0,IF(H146=CURRENCY,(IF(ISERROR(rate!L$17),0,rate!L$17)),0))","v":0},0,{"$f":"IF(ISBLANK(G146),IF((J146=0),0,IF(ISERROR(rate!$D$17),0,rate!$D$17)),IF(ISERROR(rate!$D$17),0,rate!$D$17))","v":0},0]
[124,null,null,null,null,null,null,"",{"$f":"IF(ISBLANK(G147),0,IF(H147=CURRENCY,(IF(ISERROR(rate!L$17),0,rate!L$17)),0))","v":0},0,{"$f":"IF(ISBLANK(G147),IF((J147=0),0,IF(ISERROR(rate!$D$17),0,rate!$D$17)),IF(ISERROR(rate!$D$17),0,rate!$D$17))","v":0},0]
[125,null,null,null,null,null,null,"",{"$f":"IF(ISBLANK(G148),0,IF(H148=CURRENCY,(IF(ISERROR(rate!L$17),0,rate!L$17)),0))","v":0},0,{"$f":"IF(ISBLANK(G148),IF((J148=0),0,IF(ISERROR(rate!$D$17),0,rate!$D$17)),IF(ISERROR(rate!$D$17),0,rate!$D$17))","v":0},0]
[126,null,null,null,null,null,null,"",{"$f":"IF(ISBLANK(G149),0,IF(H149=CURRENCY,(IF(ISERROR(rate!L$17),0,rate!L$17)),0))","v":0},0,{"$f":"IF(ISBLANK(G149),IF((J149=0),0,IF(ISERROR(rate!$D$17),0,rate!$D$17)),IF(ISERROR(rate!$D$17),0,rate!$D$17))","v":0},0]
[127,null,null,null,null,null,null,"",{"$f":"IF(ISBLANK(G150),0,IF(H150=CURRENCY,(IF(ISERROR(rate!L$17),0,rate!L$17)),0))","v":0},0,{"$f":"IF(ISBLANK(G150),IF((J150=0),0,IF(ISERROR(rate!$D$17),0,rate!$D$17)),IF(ISERROR(rate!$D$17),0,rate!$D$17))","v":0},0]
[128,null,null,null,null,null,null,"",{"$f":"IF(ISBLANK(G151),0,IF(H151=CURRENCY,(IF(ISERROR(rate!L$17),0,rate!L$17)),0))","v":0},0,{"$f":"IF(ISBLANK(G151),IF((J151=0),0,IF(ISERROR(rate!$D$17),0,rate!$D$17)),IF(ISERROR(rate!$D$17),0,rate!$D$17))","v":0},0]
[129,null,null,null,null,null,null,{"$f":"IF(ISBLANK(G152),\"\",+CURRENCY)","v":""},{"$f":"IF(ISBLANK(G152),0,IF(H152=CURRENCY,(IF(ISERROR(rate!L$17),0,rate!L$17)),0))","v":0},{"$f":"IF(ISERROR(+G152/I152),0,+G152/I152)","v":0},{"$f":"IF(ISBLANK(G152),IF((J152=0),0,IF(ISERROR(rate!$D$17),0,rate!$D$17)),IF(ISERROR(rate!$D$17),0,rate!$D$17))","v":0},{"$f":"IF(ISERROR(+K152*J152),0,+K152*J152)","v":0}]
[130,null,null,null,null,null,null,"",{"$f":"IF(ISBLANK(G153),0,IF(H153=CURRENCY,(IF(ISERROR(rate!L$17),0,rate!L$17)),0))","v":0},0,{"$f":"IF(ISBLANK(G153),IF((J153=0),0,IF(ISERROR(rate!$D$17),0,rate!$D$17)),IF(ISERROR(rate!$D$17),0,rate!$D$17))","v":0},0]
[131,null,null,null,null,null,null,"",{"$f":"IF(ISBLANK(G154),0,IF(H154=CURRENCY,(IF(ISERROR(rate!L$17),0,rate!L$17)),0))","v":0},0,{"$f":"IF(ISBLANK(G154),IF((J154=0),0,IF(ISERROR(rate!$D$17),0,rate!$D$17)),IF(ISERROR(rate!$D$17),0,rate!$D$17))","v":0},0]
[132,null,null,null,null,null,null,"",{"$f":"IF(ISBLANK(G155),0,IF(H155=CURRENCY,(IF(ISERROR(rate!L$17),0,rate!L$17)),0))","v":0},0,{"$f":"IF(ISBLANK(G155),IF((J155=0),0,IF(ISERROR(rate!$D$17),0,rate!$D$17)),IF(ISERROR(rate!$D$17),0,rate!$D$17))","v":0},0]
[133,null,null,null,null,null,null,"",{"$f":"IF(ISBLANK(G156),0,IF(H156=CURRENCY,(IF(ISERROR(rate!L$17),0,rate!L$17)),0))","v":0},0,{"$f":"IF(ISBLANK(G156),IF((J156=0),0,IF(ISERROR(rate!$D$17),0,rate!$D$17)),IF(ISERROR(rate!$D$17),0,rate!$D$17))","v":0},0]
[134,null,null,null,null,null,null,"",{"$f":"IF(ISBLANK(G157),0,IF(H157=CURRENCY,(IF(ISERROR(rate!L$17),0,rate!L$17)),0))","v":0},0,{"$f":"IF(ISBLANK(G157),IF((J157=0),0,IF(ISERROR(rate!$D$17),0,rate!$D$17)),IF(ISERROR(rate!$D$17),0,rate!$D$17))","v":0},0]
[135,null,null,null,null,null,null,"",{"$f":"IF(ISBLANK(G158),0,IF(H158=CURRENCY,(IF(ISERROR(rate!L$17),0,rate!L$17)),0))","v":0},0,{"$f":"IF(ISBLANK(G158),IF((J158=0),0,IF(ISERROR(rate!$D$17),0,rate!$D$17)),IF(ISERROR(rate!$D$17),0,rate!$D$17))","v":0},0]
[136,null,null,null,null,null,null,"",{"$f":"IF(ISBLANK(G159),0,IF(H159=CURRENCY,(IF(ISERROR(rate!L$17),0,rate!L$17)),0))","v":0},0,{"$f":"IF(ISBLANK(G159),IF((J159=0),0,IF(ISERROR(rate!$D$17),0,rate!$D$17)),IF(ISERROR(rate!$D$17),0,rate!$D$17))","v":0},0]
[137,null,null,null,null,null,null,"",{"$f":"IF(ISBLANK(G160),0,IF(H160=CURRENCY,(IF(ISERROR(rate!L$17),0,rate!L$17)),0))","v":0},0,{"$f":"IF(ISBLANK(G160),IF((J160=0),0,IF(ISERROR(rate!$D$17),0,rate!$D$17)),IF(ISERROR(rate!$D$17),0,rate!$D$17))","v":0},0]
[138,null,null,null,null,null,null,"",{"$f":"IF(ISBLANK(G161),0,IF(H161=CURRENCY,(IF(ISERROR(rate!L$17),0,rate!L$17)),0))","v":0},0,{"$f":"IF(ISBLANK(G161),IF((J161=0),0,IF(ISERROR(rate!$D$17),0,rate!$D$17)),IF(ISERROR(rate!$D$17),0,rate!$D$17))","v":0},0]
[139,null,null,null,null,null,null,"",{"$f":"IF(ISBLANK(G162),0,IF(H162=CURRENCY,(IF(ISERROR(rate!L$17),0,rate!L$17)),0))","v":0},0,{"$f":"IF(ISBLANK(G162),IF((J162=0),0,IF(ISERROR(rate!$D$17),0,rate!$D$17)),IF(ISERROR(rate!$D$17),0,rate!$D$17))","v":0},0]
[140,null,null,null,null,null,null,"",{"$f":"IF(ISBLANK(G163),0,IF(H163=CURRENCY,(IF(ISERROR(rate!L$17),0,rate!L$17)),0))","v":0},0,{"$f":"IF(ISBLANK(G163),IF((J163=0),0,IF(ISERROR(rate!$D$17),0,rate!$D$17)),IF(ISERROR(rate!$D$17),0,rate!$D$17))","v":0},0]
[141,null,null,null,null,null,null,"",{"$f":"IF(ISBLANK(G164),0,IF(H164=CURRENCY,(IF(ISERROR(rate!L$17),0,rate!L$17)),0))","v":0},0,{"$f":"IF(ISBLANK(G164),IF((J164=0),0,IF(ISERROR(rate!$D$17),0,rate!$D$17)),IF(ISERROR(rate!$D$17),0,rate!$D$17))","v":0},0]
[142,null,null,null,null,null,null,"",{"$f":"IF(ISBLANK(G165),0,IF(H165=CURRENCY,(IF(ISERROR(rate!L$17),0,rate!L$17)),0))","v":0},0,{"$f":"IF(ISBLANK(G165),IF((J165=0),0,IF(ISERROR(rate!$D$17),0,rate!$D$17)),IF(ISERROR(rate!$D$17),0,rate!$D$17))","v":0},0]
[143,null,null,null,null,null,null,"",{"$f":"IF(ISBLANK(G166),0,IF(H166=CURRENCY,(IF(ISERROR(rate!L$17),0,rate!L$17)),0))","v":0},0,{"$f":"IF(ISBLANK(G166),IF((J166=0),0,IF(ISERROR(rate!$D$17),0,rate!$D$17)),IF(ISERROR(rate!$D$17),0,rate!$D$17))","v":0},0]
[144,null,null,null,null,null,null,"",{"$f":"IF(ISBLANK(G167),0,IF(H167=CURRENCY,(IF(ISERROR(rate!L$17),0,rate!L$17)),0))","v":0},0,{"$f":"IF(ISBLANK(G167),IF((J167=0),0,IF(ISERROR(rate!$D$17),0,rate!$D$17)),IF(ISERROR(rate!$D$17),0,rate!$D$17))","v":0},0]
[145,null,null,null,null,null,null,"",{"$f":"IF(ISBLANK(G168),0,IF(H168=CURRENCY,(IF(ISERROR(rate!L$17),0,rate!L$17)),0))","v":0},0,{"$f":"IF(ISBLANK(G168),IF((J168=0),0,IF(ISERROR(rate!$D$17),0,rate!$D$17)),IF(ISERROR(rate!$D$17),0,rate!$D$17))","v":0},0]
[146,null,null,null,null,null,null,"",{"$f":"IF(ISBLANK(G169),0,IF(H169=CURRENCY,(IF(ISERROR(rate!L$17),0,rate!L$17)),0))","v":0},0,{"$f":"IF(ISBLANK(G169),IF((J169=0),0,IF(ISERROR(rate!$D$17),0,rate!$D$17)),IF(ISERROR(rate!$D$17),0,rate!$D$17))","v":0},0]
[147,null,null,null,null,null,null,"",{"$f":"IF(ISBLANK(G170),0,IF(H170=CURRENCY,(IF(ISERROR(rate!L$17),0,rate!L$17)),0))","v":0},0,{"$f":"IF(ISBLANK(G170),IF((J170=0),0,IF(ISERROR(rate!$D$17),0,rate!$D$17)),IF(ISERROR(rate!$D$17),0,rate!$D$17))","v":0},0]
[148,null,null,null,null,null,null,"",{"$f":"IF(ISBLANK(G171),0,IF(H171=CURRENCY,(IF(ISERROR(rate!L$17),0,rate!L$17)),0))","v":0},0,{"$f":"IF(ISBLANK(G171),IF((J171=0),0,IF(ISERROR(rate!$D$17),0,rate!$D$17)),IF(ISERROR(rate!$D$17),0,rate!$D$17))","v":0},0]
[149,null,null,null,null,null,null,"",{"$f":"IF(ISBLANK(G172),0,IF(H172=CURRENCY,(IF(ISERROR(rate!L$17),0,rate!L$17)),0))","v":0},0,{"$f":"IF(ISBLANK(G172),IF((J172=0),0,IF(ISERROR(rate!$D$17),0,rate!$D$17)),IF(ISERROR(rate!$D$17),0,rate!$D$17))","v":0},0]
[150,null,null,null,null,null,null,"",{"$f":"IF(ISBLANK(G173),0,IF(H173=CURRENCY,(IF(ISERROR(rate!L$17),0,rate!L$17)),0))","v":0},0,{"$f":"IF(ISBLANK(G173),IF((J173=0),0,IF(ISERROR(rate!$D$17),0,rate!$D$17)),IF(ISERROR(rate!$D$17),0,rate!$D$17))","v":0},0]
[151,null,null,null,null,null,null,"",{"$f":"IF(ISBLANK(G174),0,IF(H174=CURRENCY,(IF(ISERROR(rate!L$17),0,rate!L$17)),0))","v":0},0,{"$f":"IF(ISBLANK(G174),IF((J174=0),0,IF(ISERROR(rate!$D$17),0,rate!$D$17)),IF(ISERROR(rate!$D$17),0,rate!$D$17))","v":0},0]
[152,null,null,null,null,null,null,"",{"$f":"IF(ISBLANK(G175),0,IF(H175=CURRENCY,(IF(ISERROR(rate!L$17),0,rate!L$17)),0))","v":0},0,{"$f":"IF(ISBLANK(G175),IF((J175=0),0,IF(ISERROR(rate!$D$17),0,rate!$D$17)),IF(ISERROR(rate!$D$17),0,rate!$D$17))","v":0},0]
[153,null,null,null,null,null,null,"",{"$f":"IF(ISBLANK(G176),0,IF(H176=CURRENCY,(IF(ISERROR(rate!L$17),0,rate!L$17)),0))","v":0},0,{"$f":"IF(ISBLANK(G176),IF((J176=0),0,IF(ISERROR(rate!$D$17),0,rate!$D$17)),IF(ISERROR(rate!$D$17),0,rate!$D$17))","v":0},0]
[154,null,null,null,null,null,null,"",{"$f":"IF(ISBLANK(G177),0,IF(H177=CURRENCY,(IF(ISERROR(rate!L$17),0,rate!L$17)),0))","v":0},0,{"$f":"IF(ISBLANK(G177),IF((J177=0),0,IF(ISERROR(rate!$D$17),0,rate!$D$17)),IF(ISERROR(rate!$D$17),0,rate!$D$17))","v":0},0]
[155,null,null,null,null,null,null,"",{"$f":"IF(ISBLANK(G178),0,IF(H178=CURRENCY,(IF(ISERROR(rate!L$17),0,rate!L$17)),0))","v":0},0,{"$f":"IF(ISBLANK(G178),IF((J178=0),0,IF(ISERROR(rate!$D$17),0,rate!$D$17)),IF(ISERROR(rate!$D$17),0,rate!$D$17))","v":0},0]
[156,null,null,null,null,null,null,"",{"$f":"IF(ISBLANK(G179),0,IF(H179=CURRENCY,(IF(ISERROR(rate!L$17),0,rate!L$17)),0))","v":0},0,{"$f":"IF(ISBLANK(G179),IF((J179=0),0,IF(ISERROR(rate!$D$17),0,rate!$D$17)),IF(ISERROR(rate!$D$17),0,rate!$D$17))","v":0},0]
[157,null,null,null,null,null,null,"",{"$f":"IF(ISBLANK(G180),0,IF(H180=CURRENCY,(IF(ISERROR(rate!L$17),0,rate!L$17)),0))","v":0},0,{"$f":"IF(ISBLANK(G180),IF((J180=0),0,IF(ISERROR(rate!$D$17),0,rate!$D$17)),IF(ISERROR(rate!$D$17),0,rate!$D$17))","v":0},0]
[158,null,null,null,null,null,null,"",{"$f":"IF(ISBLANK(G181),0,IF(H181=CURRENCY,(IF(ISERROR(rate!L$17),0,rate!L$17)),0))","v":0},0,{"$f":"IF(ISBLANK(G181),IF((J181=0),0,IF(ISERROR(rate!$D$17),0,rate!$D$17)),IF(ISERROR(rate!$D$17),0,rate!$D$17))","v":0},0]
[159,null,null,null,null,null,null,"",{"$f":"IF(ISBLANK(G182),0,IF(H182=CURRENCY,(IF(ISERROR(rate!L$17),0,rate!L$17)),0))","v":0},0,{"$f":"IF(ISBLANK(G182),IF((J182=0),0,IF(ISERROR(rate!$D$17),0,rate!$D$17)),IF(ISERROR(rate!$D$17),0,rate!$D$17))","v":0},0]
[160,null,null,null,null,null,null,"",{"$f":"IF(ISBLANK(G183),0,IF(H183=CURRENCY,(IF(ISERROR(rate!L$17),0,rate!L$17)),0))","v":0},0,{"$f":"IF(ISBLANK(G183),IF((J183=0),0,IF(ISERROR(rate!$D$17),0,rate!$D$17)),IF(ISERROR(rate!$D$17),0,rate!$D$17))","v":0},0]
[161,null,null,null,null,null,null,"",{"$f":"IF(ISBLANK(G184),0,IF(H184=CURRENCY,(IF(ISERROR(rate!L$17),0,rate!L$17)),0))","v":0},0,{"$f":"IF(ISBLANK(G184),IF((J184=0),0,IF(ISERROR(rate!$D$17),0,rate!$D$17)),IF(ISERROR(rate!$D$17),0,rate!$D$17))","v":0},0]
[162,null,null,null,null,null,null,"",{"$f":"IF(ISBLANK(G185),0,IF(H185=CURRENCY,(IF(ISERROR(rate!L$17),0,rate!L$17)),0))","v":0},0,{"$f":"IF(ISBLANK(G185),IF((J185=0),0,IF(ISERROR(rate!$D$17),0,rate!$D$17)),IF(ISERROR(rate!$D$17),0,rate!$D$17))","v":0},0]
[163,null,null,null,null,null,null,"",{"$f":"IF(ISBLANK(G186),0,IF(H186=CURRENCY,(IF(ISERROR(rate!L$17),0,rate!L$17)),0))","v":0},0,{"$f":"IF(ISBLANK(G186),IF((J186=0),0,IF(ISERROR(rate!$D$17),0,rate!$D$17)),IF(ISERROR(rate!$D$17),0,rate!$D$17))","v":0},0]
[164,null,null,null,null,null,null,"",{"$f":"IF(ISBLANK(G187),0,IF(H187=CURRENCY,(IF(ISERROR(rate!L$17),0,rate!L$17)),0))","v":0},0,{"$f":"IF(ISBLANK(G187),IF((J187=0),0,IF(ISERROR(rate!$D$17),0,rate!$D$17)),IF(ISERROR(rate!$D$17),0,rate!$D$17))","v":0},0]
[165,null,null,null,null,null,null,"",{"$f":"IF(ISBLANK(G188),0,IF(H188=CURRENCY,(IF(ISERROR(rate!L$17),0,rate!L$17)),0))","v":0},0,{"$f":"IF(ISBLANK(G188),IF((J188=0),0,IF(ISERROR(rate!$D$17),0,rate!$D$17)),IF(ISERROR(rate!$D$17),0,rate!$D$17))","v":0},0]
[166,null,null,null,null,null,null,"",{"$f":"IF(ISBLANK(G189),0,IF(H189=CURRENCY,(IF(ISERROR(rate!L$17),0,rate!L$17)),0))","v":0},0,{"$f":"IF(ISBLANK(G189),IF((J189=0),0,IF(ISERROR(rate!$D$17),0,rate!$D$17)),IF(ISERROR(rate!$D$17),0,rate!$D$17))","v":0},0]
[167,null,null,null,null,null,null,"",{"$f":"IF(ISBLANK(G190),0,IF(H190=CURRENCY,(IF(ISERROR(rate!L$17),0,rate!L$17)),0))","v":0},0,{"$f":"IF(ISBLANK(G190),IF((J190=0),0,IF(ISERROR(rate!$D$17),0,rate!$D$17)),IF(ISERROR(rate!$D$17),0,rate!$D$17))","v":0},0]
[168,null,null,null,null,null,null,"",{"$f":"IF(ISBLANK(G191),0,IF(H191=CURRENCY,(IF(ISERROR(rate!L$17),0,rate!L$17)),0))","v":0},0,{"$f":"IF(ISBLANK(G191),IF((J191=0),0,IF(ISERROR(rate!$D$17),0,rate!$D$17)),IF(ISERROR(rate!$D$17),0,rate!$D$17))","v":0},0]
[169,null,null,null,null,null,null,"",{"$f":"IF(ISBLANK(G192),0,IF(H192=CURRENCY,(IF(ISERROR(rate!L$17),0,rate!L$17)),0))","v":0},0,{"$f":"IF(ISBLANK(G192),IF((J192=0),0,IF(ISERROR(rate!$D$17),0,rate!$D$17)),IF(ISERROR(rate!$D$17),0,rate!$D$17))","v":0},0]
[170,null,null,null,null,null,null,"",{"$f":"IF(ISBLANK(G193),0,IF(H193=CURRENCY,(IF(ISERROR(rate!L$17),0,rate!L$17)),0))","v":0},0,{"$f":"IF(ISBLANK(G193),IF((J193=0),0,IF(ISERROR(rate!$D$17),0,rate!$D$17)),IF(ISERROR(rate!$D$17),0,rate!$D$17))","v":0},0]
[171,null,null,null,null,null,null,"",{"$f":"IF(ISBLANK(G194),0,IF(H194=CURRENCY,(IF(ISERROR(rate!L$17),0,rate!L$17)),0))","v":0},0,{"$f":"IF(ISBLANK(G194),IF((J194=0),0,IF(ISERROR(rate!$D$17),0,rate!$D$17)),IF(ISERROR(rate!$D$17),0,rate!$D$17))","v":0},0]
[172,null,null,null,null,null,null,"",{"$f":"IF(ISBLANK(G195),0,IF(H195=CURRENCY,(IF(ISERROR(rate!L$17),0,rate!L$17)),0))","v":0},0,{"$f":"IF(ISBLANK(G195),IF((J195=0),0,IF(ISERROR(rate!$D$17),0,rate!$D$17)),IF(ISERROR(rate!$D$17),0,rate!$D$17))","v":0},0]
[173,null,null,null,null,null,null,"",{"$f":"IF(ISBLANK(G196),0,IF(H196=CURRENCY,(IF(ISERROR(rate!L$17),0,rate!L$17)),0))","v":0},0,{"$f":"IF(ISBLANK(G196),IF((J196=0),0,IF(ISERROR(rate!$D$17),0,rate!$D$17)),IF(ISERROR(rate!$D$17),0,rate!$D$17))","v":0},0]
[174,null,null,null,null,null,null,"",{"$f":"IF(ISBLANK(G197),0,IF(H197=CURRENCY,(IF(ISERROR(rate!L$17),0,rate!L$17)),0))","v":0},0,{"$f":"IF(ISBLANK(G197),IF((J197=0),0,IF(ISERROR(rate!$D$17),0,rate!$D$17)),IF(ISERROR(rate!$D$17),0,rate!$D$17))","v":0},0]
[175,null,null,null,null,null,null,"",{"$f":"IF(ISBLANK(G198),0,IF(H198=CURRENCY,(IF(ISERROR(rate!L$17),0,rate!L$17)),0))","v":0},0,{"$f":"IF(ISBLANK(G198),IF((J198=0),0,IF(ISERROR(rate!$D$17),0,rate!$D$17)),IF(ISERROR(rate!$D$17),0,rate!$D$17))","v":0},0]
[176,null,null,null,null,null,null,"",{"$f":"IF(ISBLANK(G199),0,IF(H199=CURRENCY,(IF(ISERROR(rate!L$17),0,rate!L$17)),0))","v":0},0,{"$f":"IF(ISBLANK(G199),IF((J199=0),0,IF(ISERROR(rate!$D$17),0,rate!$D$17)),IF(ISERROR(rate!$D$17),0,rate!$D$17))","v":0},0]
[177,null,null,null,null,null,null,"",{"$f":"IF(ISBLANK(G200),0,IF(H200=CURRENCY,(IF(ISERROR(rate!L$17),0,rate!L$17)),0))","v":0},0,{"$f":"IF(ISBLANK(G200),IF((J200=0),0,IF(ISERROR(rate!$D$17),0,rate!$D$17)),IF(ISERROR(rate!$D$17),0,rate!$D$17))","v":0},0]
[178,null,null,null,null,null,null,"",{"$f":"IF(ISBLANK(G201),0,IF(H201=CURRENCY,(IF(ISERROR(rate!L$17),0,rate!L$17)),0))","v":0},0,{"$f":"IF(ISBLANK(G201),IF((J201=0),0,IF(ISERROR(rate!$D$17),0,rate!$D$17)),IF(ISERROR(rate!$D$17),0,rate!$D$17))","v":0},0]
[179,null,null,null,null,null,null,"",{"$f":"IF(ISBLANK(G202),0,IF(H202=CURRENCY,(IF(ISERROR(rate!L$17),0,rate!L$17)),0))","v":0},0,{"$f":"IF(ISBLANK(G202),IF((J202=0),0,IF(ISERROR(rate!$D$17),0,rate!$D$17)),IF(ISERROR(rate!$D$17),0,rate!$D$17))","v":0},0]
[180,null,null,null,null,null,null,"",{"$f":"IF(ISBLANK(G203),0,IF(H203=CURRENCY,(IF(ISERROR(rate!L$17),0,rate!L$17)),0))","v":0},0,{"$f":"IF(ISBLANK(G203),IF((J203=0),0,IF(ISERROR(rate!$D$17),0,rate!$D$17)),IF(ISERROR(rate!$D$17),0,rate!$D$17))","v":0},0]
[181,null,null,null,null,null,null,"",{"$f":"IF(ISBLANK(G204),0,IF(H204=CURRENCY,(IF(ISERROR(rate!L$17),0,rate!L$17)),0))","v":0},0,{"$f":"IF(ISBLANK(G204),IF((J204=0),0,IF(ISERROR(rate!$D$17),0,rate!$D$17)),IF(ISERROR(rate!$D$17),0,rate!$D$17))","v":0},0]
[182,null,null,null,null,null,null,"",{"$f":"IF(ISBLANK(G205),0,IF(H205=CURRENCY,(IF(ISERROR(rate!L$17),0,rate!L$17)),0))","v":0},0,{"$f":"IF(ISBLANK(G205),IF((J205=0),0,IF(ISERROR(rate!$D$17),0,rate!$D$17)),IF(ISERROR(rate!$D$17),0,rate!$D$17))","v":0},0]
[183,null,null,null,null,null,null,"",{"$f":"IF(ISBLANK(G206),0,IF(H206=CURRENCY,(IF(ISERROR(rate!L$17),0,rate!L$17)),0))","v":0},0,{"$f":"IF(ISBLANK(G206),IF((J206=0),0,IF(ISERROR(rate!$D$17),0,rate!$D$17)),IF(ISERROR(rate!$D$17),0,rate!$D$17))","v":0},0]
[184,null,null,null,null,null,null,"",{"$f":"IF(ISBLANK(G207),0,IF(H207=CURRENCY,(IF(ISERROR(rate!L$17),0,rate!L$17)),0))","v":0},0,{"$f":"IF(ISBLANK(G207),IF((J207=0),0,IF(ISERROR(rate!$D$17),0,rate!$D$17)),IF(ISERROR(rate!$D$17),0,rate!$D$17))","v":0},0]
[185,null,null,null,null,null,null,"",{"$f":"IF(ISBLANK(G208),0,IF(H208=CURRENCY,(IF(ISERROR(rate!L$17),0,rate!L$17)),0))","v":0},0,{"$f":"IF(ISBLANK(G208),IF((J208=0),0,IF(ISERROR(rate!$D$17),0,rate!$D$17)),IF(ISERROR(rate!$D$17),0,rate!$D$17))","v":0},0]
[186,null,null,null,null,null,null,"",{"$f":"IF(ISBLANK(G209),0,IF(H209=CURRENCY,(IF(ISERROR(rate!L$17),0,rate!L$17)),0))","v":0},0,{"$f":"IF(ISBLANK(G209),IF((J209=0),0,IF(ISERROR(rate!$D$17),0,rate!$D$17)),IF(ISERROR(rate!$D$17),0,rate!$D$17))","v":0},0]
[187,null,null,null,null,null,null,"",{"$f":"IF(ISBLANK(G210),0,IF(H210=CURRENCY,(IF(ISERROR(rate!L$17),0,rate!L$17)),0))","v":0},0,{"$f":"IF(ISBLANK(G210),IF((J210=0),0,IF(ISERROR(rate!$D$17),0,rate!$D$17)),IF(ISERROR(rate!$D$17),0,rate!$D$17))","v":0},0]
[188,null,null,null,null,null,null,"",{"$f":"IF(ISBLANK(G211),0,IF(H211=CURRENCY,(IF(ISERROR(rate!L$17),0,rate!L$17)),0))","v":0},0,{"$f":"IF(ISBLANK(G211),IF((J211=0),0,IF(ISERROR(rate!$D$17),0,rate!$D$17)),IF(ISERROR(rate!$D$17),0,rate!$D$17))","v":0},0]
[189,null,null,null,null,null,null,"",{"$f":"IF(ISBLANK(G212),0,IF(H212=CURRENCY,(IF(ISERROR(rate!L$17),0,rate!L$17)),0))","v":0},0,{"$f":"IF(ISBLANK(G212),IF((J212=0),0,IF(ISERROR(rate!$D$17),0,rate!$D$17)),IF(ISERROR(rate!$D$17),0,rate!$D$17))","v":0},0]
[190,null,null,null,null,null,null,"",{"$f":"IF(ISBLANK(G213),0,IF(H213=CURRENCY,(IF(ISERROR(rate!L$17),0,rate!L$17)),0))","v":0},0,{"$f":"IF(ISBLANK(G213),IF((J213=0),0,IF(ISERROR(rate!$D$17),0,rate!$D$17)),IF(ISERROR(rate!$D$17),0,rate!$D$17))","v":0},0]
[191,null,null,null,null,null,null,"",{"$f":"IF(ISBLANK(G214),0,IF(H214=CURRENCY,(IF(ISERROR(rate!L$17),0,rate!L$17)),0))","v":0},0,{"$f":"IF(ISBLANK(G214),IF((J214=0),0,IF(ISERROR(rate!$D$17),0,rate!$D$17)),IF(ISERROR(rate!$D$17),0,rate!$D$17))","v":0},0]
[192,null,null,null,null,null,null,"",{"$f":"IF(ISBLANK(G215),0,IF(H215=CURRENCY,(IF(ISERROR(rate!L$17),0,rate!L$17)),0))","v":0},0,{"$f":"IF(ISBLANK(G215),IF((J215=0),0,IF(ISERROR(rate!$D$17),0,rate!$D$17)),IF(ISERROR(rate!$D$17),0,rate!$D$17))","v":0},0]
[193,null,null,null,null,null,null,{"$f":"IF(ISBLANK(G216),\"\",+CURRENCY)","v":""},{"$f":"IF(ISBLANK(G216),0,IF(H216=CURRENCY,(IF(ISERROR(rate!L$17),0,rate!L$17)),0))","v":0},{"$f":"IF(ISERROR(+G216/I216),0,+G216/I216)","v":0},{"$f":"IF(ISBLANK(G216),IF((J216=0),0,IF(ISERROR(rate!$D$17),0,rate!$D$17)),IF(ISERROR(rate!$D$17),0,rate!$D$17))","v":0},{"$f":"IF(ISERROR(+K216*J216),0,+K216*J216)","v":0}]
[194,null,null,null,null,null,null,"",{"$f":"IF(ISBLANK(G217),0,IF(H217=CURRENCY,(IF(ISERROR(rate!L$17),0,rate!L$17)),0))","v":0},0,{"$f":"IF(ISBLANK(G217),IF((J217=0),0,IF(ISERROR(rate!$D$17),0,rate!$D$17)),IF(ISERROR(rate!$D$17),0,rate!$D$17))","v":0},0]
[195,null,null,null,null,null,null,"",{"$f":"IF(ISBLANK(G218),0,IF(H218=CURRENCY,(IF(ISERROR(rate!L$17),0,rate!L$17)),0))","v":0},0,{"$f":"IF(ISBLANK(G218),IF((J218=0),0,IF(ISERROR(rate!$D$17),0,rate!$D$17)),IF(ISERROR(rate!$D$17),0,rate!$D$17))","v":0},0]
[196,null,null,null,null,null,null,"",{"$f":"IF(ISBLANK(G219),0,IF(H219=CURRENCY,(IF(ISERROR(rate!L$17),0,rate!L$17)),0))","v":0},0,{"$f":"IF(ISBLANK(G219),IF((J219=0),0,IF(ISERROR(rate!$D$17),0,rate!$D$17)),IF(ISERROR(rate!$D$17),0,rate!$D$17))","v":0},0]
[197,null,null,null,null,null,null,"",{"$f":"IF(ISBLANK(G220),0,IF(H220=CURRENCY,(IF(ISERROR(rate!L$17),0,rate!L$17)),0))","v":0},0,{"$f":"IF(ISBLANK(G220),IF((J220=0),0,IF(ISERROR(rate!$D$17),0,rate!$D$17)),IF(ISERROR(rate!$D$17),0,rate!$D$17))","v":0},0]
[198,null,null,null,null,null,null,"",{"$f":"IF(ISBLANK(G221),0,IF(H221=CURRENCY,(IF(ISERROR(rate!L$17),0,rate!L$17)),0))","v":0},0,{"$f":"IF(ISBLANK(G221),IF((J221=0),0,IF(ISERROR(rate!$D$17),0,rate!$D$17)),IF(ISERROR(rate!$D$17),0,rate!$D$17))","v":0},0]
[199,null,null,null,null,null,null,"",{"$f":"IF(ISBLANK(G222),0,IF(H222=CURRENCY,(IF(ISERROR(rate!L$17),0,rate!L$17)),0))","v":0},0,{"$f":"IF(ISBLANK(G222),IF((J222=0),0,IF(ISERROR(rate!$D$17),0,rate!$D$17)),IF(ISERROR(rate!$D$17),0,rate!$D$17))","v":0},0]
[200,null,null,null,null,null,null,"",{"$f":"IF(ISBLANK(G223),0,IF(H223=CURRENCY,(IF(ISERROR(rate!L$17),0,rate!L$17)),0))","v":0},0,{"$f":"IF(ISBLANK(G223),IF((J223=0),0,IF(ISERROR(rate!$D$17),0,rate!$D$17)),IF(ISERROR(rate!$D$17),0,rate!$D$17))","v":0},0]
[201,null,null,null,null,null,null,"",{"$f":"IF(ISBLANK(G224),0,IF(H224=CURRENCY,(IF(ISERROR(rate!L$17),0,rate!L$17)),0))","v":0},0,{"$f":"IF(ISBLANK(G224),IF((J224=0),0,IF(ISERROR(rate!$D$17),0,rate!$D$17)),IF(ISERROR(rate!$D$17),0,rate!$D$17))","v":0},0]
[202,null,null,null,null,null,null,"",{"$f":"IF(ISBLANK(G225),0,IF(H225=CURRENCY,(IF(ISERROR(rate!L$17),0,rate!L$17)),0))","v":0},0,{"$f":"IF(ISBLANK(G225),IF((J225=0),0,IF(ISERROR(rate!$D$17),0,rate!$D$17)),IF(ISERROR(rate!$D$17),0,rate!$D$17))","v":0},0]
[203,null,null,null,null,null,null,"",{"$f":"IF(ISBLANK(G226),0,IF(H226=CURRENCY,(IF(ISERROR(rate!L$17),0,rate!L$17)),0))","v":0},0,{"$f":"IF(ISBLANK(G226),IF((J226=0),0,IF(ISERROR(rate!$D$17),0,rate!$D$17)),IF(ISERROR(rate!$D$17),0,rate!$D$17))","v":0},0]
[204,null,null,null,null,null,null,"",{"$f":"IF(ISBLANK(G227),0,IF(H227=CURRENCY,(IF(ISERROR(rate!L$17),0,rate!L$17)),0))","v":0},0,{"$f":"IF(ISBLANK(G227),IF((J227=0),0,IF(ISERROR(rate!$D$17),0,rate!$D$17)),IF(ISERROR(rate!$D$17),0,rate!$D$17))","v":0},0]
[205,null,null,null,null,null,null,"",{"$f":"IF(ISBLANK(G228),0,IF(H228=CURRENCY,(IF(ISERROR(rate!L$17),0,rate!L$17)),0))","v":0},0,{"$f":"IF(ISBLANK(G228),IF((J228=0),0,IF(ISERROR(rate!$D$17),0,rate!$D$17)),IF(ISERROR(rate!$D$17),0,rate!$D$17))","v":0},0]
[206,null,null,null,null,null,null,"",{"$f":"IF(ISBLANK(G229),0,IF(H229=CURRENCY,(IF(ISERROR(rate!L$17),0,rate!L$17)),0))","v":0},0,{"$f":"IF(ISBLANK(G229),IF((J229=0),0,IF(ISERROR(rate!$D$17),0,rate!$D$17)),IF(ISERROR(rate!$D$17),0,rate!$D$17))","v":0},0]
[207,null,null,null,null,null,null,"",{"$f":"IF(ISBLANK(G230),0,IF(H230=CURRENCY,(IF(ISERROR(rate!L$17),0,rate!L$17)),0))","v":0},0,{"$f":"IF(ISBLANK(G230),IF((J230=0),0,IF(ISERROR(rate!$D$17),0,rate!$D$17)),IF(ISERROR(rate!$D$17),0,rate!$D$17))","v":0},0]
[208,null,null,null,null,null,null,"",{"$f":"IF(ISBLANK(G231),0,IF(H231=CURRENCY,(IF(ISERROR(rate!L$17),0,rate!L$17)),0))","v":0},0,{"$f":"IF(ISBLANK(G231),IF((J231=0),0,IF(ISERROR(rate!$D$17),0,rate!$D$17)),IF(ISERROR(rate!$D$17),0,rate!$D$17))","v":0},0]
[209,null,null,null,null,null,null,"",{"$f":"IF(ISBLANK(G232),0,IF(H232=CURRENCY,(IF(ISERROR(rate!L$17),0,rate!L$17)),0))","v":0},0,{"$f":"IF(ISBLANK(G232),IF((J232=0),0,IF(ISERROR(rate!$D$17),0,rate!$D$17)),IF(ISERROR(rate!$D$17),0,rate!$D$17))","v":0},0]
[210,null,null,null,null,null,null,"",{"$f":"IF(ISBLANK(G233),0,IF(H233=CURRENCY,(IF(ISERROR(rate!L$17),0,rate!L$17)),0))","v":0},0,{"$f":"IF(ISBLANK(G233),IF((J233=0),0,IF(ISERROR(rate!$D$17),0,rate!$D$17)),IF(ISERROR(rate!$D$17),0,rate!$D$17))","v":0},0]
[211,null,null,null,null,null,null,"",{"$f":"IF(ISBLANK(G234),0,IF(H234=CURRENCY,(IF(ISERROR(rate!L$17),0,rate!L$17)),0))","v":0},0,{"$f":"IF(ISBLANK(G234),IF((J234=0),0,IF(ISERROR(rate!$D$17),0,rate!$D$17)),IF(ISERROR(rate!$D$17),0,rate!$D$17))","v":0},0]
[212,null,null,null,null,null,null,"",{"$f":"IF(ISBLANK(G235),0,IF(H235=CURRENCY,(IF(ISERROR(rate!L$17),0,rate!L$17)),0))","v":0},0,{"$f":"IF(ISBLANK(G235),IF((J235=0),0,IF(ISERROR(rate!$D$17),0,rate!$D$17)),IF(ISERROR(rate!$D$17),0,rate!$D$17))","v":0},0]
[213,null,null,null,null,null,null,"",{"$f":"IF(ISBLANK(G236),0,IF(H236=CURRENCY,(IF(ISERROR(rate!L$17),0,rate!L$17)),0))","v":0},0,{"$f":"IF(ISBLANK(G236),IF((J236=0),0,IF(ISERROR(rate!$D$17),0,rate!$D$17)),IF(ISERROR(rate!$D$17),0,rate!$D$17))","v":0},0]
[214,null,null,null,null,null,null,"",{"$f":"IF(ISBLANK(G237),0,IF(H237=CURRENCY,(IF(ISERROR(rate!L$17),0,rate!L$17)),0))","v":0},0,{"$f":"IF(ISBLANK(G237),IF((J237=0),0,IF(ISERROR(rate!$D$17),0,rate!$D$17)),IF(ISERROR(rate!$D$17),0,rate!$D$17))","v":0},0]
[215,null,null,null,null,null,null,"",{"$f":"IF(ISBLANK(G238),0,IF(H238=CURRENCY,(IF(ISERROR(rate!L$17),0,rate!L$17)),0))","v":0},0,{"$f":"IF(ISBLANK(G238),IF((J238=0),0,IF(ISERROR(rate!$D$17),0,rate!$D$17)),IF(ISERROR(rate!$D$17),0,rate!$D$17))","v":0},0]
[216,null,null,null,null,null,null,"",{"$f":"IF(ISBLANK(G239),0,IF(H239=CURRENCY,(IF(ISERROR(rate!L$17),0,rate!L$17)),0))","v":0},0,{"$f":"IF(ISBLANK(G239),IF((J239=0),0,IF(ISERROR(rate!$D$17),0,rate!$D$17)),IF(ISERROR(rate!$D$17),0,rate!$D$17))","v":0},0]
[217,null,null,null,null,null,null,"",{"$f":"IF(ISBLANK(G240),0,IF(H240=CURRENCY,(IF(ISERROR(rate!L$17),0,rate!L$17)),0))","v":0},0,{"$f":"IF(ISBLANK(G240),IF((J240=0),0,IF(ISERROR(rate!$D$17),0,rate!$D$17)),IF(ISERROR(rate!$D$17),0,rate!$D$17))","v":0},0]
[218,null,null,null,null,null,null,"",{"$f":"IF(ISBLANK(G241),0,IF(H241=CURRENCY,(IF(ISERROR(rate!L$17),0,rate!L$17)),0))","v":0},0,{"$f":"IF(ISBLANK(G241),IF((J241=0),0,IF(ISERROR(rate!$D$17),0,rate!$D$17)),IF(ISERROR(rate!$D$17),0,rate!$D$17))","v":0},0]
[219,null,null,null,null,null,null,"",{"$f":"IF(ISBLANK(G242),0,IF(H242=CURRENCY,(IF(ISERROR(rate!L$17),0,rate!L$17)),0))","v":0},0,{"$f":"IF(ISBLANK(G242),IF((J242=0),0,IF(ISERROR(rate!$D$17),0,rate!$D$17)),IF(ISERROR(rate!$D$17),0,rate!$D$17))","v":0},0]
[220,null,null,null,null,null,null,"",{"$f":"IF(ISBLANK(G243),0,IF(H243=CURRENCY,(IF(ISERROR(rate!L$17),0,rate!L$17)),0))","v":0},0,{"$f":"IF(ISBLANK(G243),IF((J243=0),0,IF(ISERROR(rate!$D$17),0,rate!$D$17)),IF(ISERROR(rate!$D$17),0,rate!$D$17))","v":0},0]
[221,null,null,null,null,null,null,"",{"$f":"IF(ISBLANK(G244),0,IF(H244=CURRENCY,(IF(ISERROR(rate!L$17),0,rate!L$17)),0))","v":0},0,{"$f":"IF(ISBLANK(G244),IF((J244=0),0,IF(ISERROR(rate!$D$17),0,rate!$D$17)),IF(ISERROR(rate!$D$17),0,rate!$D$17))","v":0},0]
[222,null,null,null,null,null,null,"",{"$f":"IF(ISBLANK(G245),0,IF(H245=CURRENCY,(IF(ISERROR(rate!L$17),0,rate!L$17)),0))","v":0},0,{"$f":"IF(ISBLANK(G245),IF((J245=0),0,IF(ISERROR(rate!$D$17),0,rate!$D$17)),IF(ISERROR(rate!$D$17),0,rate!$D$17))","v":0},0]
[223,null,null,null,null,null,null,"",{"$f":"IF(ISBLANK(G246),0,IF(H246=CURRENCY,(IF(ISERROR(rate!L$17),0,rate!L$17)),0))","v":0},0,{"$f":"IF(ISBLANK(G246),IF((J246=0),0,IF(ISERROR(rate!$D$17),0,rate!$D$17)),IF(ISERROR(rate!$D$17),0,rate!$D$17))","v":0},0]
[224,null,null,null,null,null,null,"",{"$f":"IF(ISBLANK(G247),0,IF(H247=CURRENCY,(IF(ISERROR(rate!L$17),0,rate!L$17)),0))","v":0},0,{"$f":"IF(ISBLANK(G247),IF((J247=0),0,IF(ISERROR(rate!$D$17),0,rate!$D$17)),IF(ISERROR(rate!$D$17),0,rate!$D$17))","v":0},0]
[225,null,null,null,null,null,null,"",{"$f":"IF(ISBLANK(G248),0,IF(H248=CURRENCY,(IF(ISERROR(rate!L$17),0,rate!L$17)),0))","v":0},0,{"$f":"IF(ISBLANK(G248),IF((J248=0),0,IF(ISERROR(rate!$D$17),0,rate!$D$17)),IF(ISERROR(rate!$D$17),0,rate!$D$17))","v":0},0]
[226,null,null,null,null,null,null,"",{"$f":"IF(ISBLANK(G249),0,IF(H249=CURRENCY,(IF(ISERROR(rate!L$17),0,rate!L$17)),0))","v":0},0,{"$f":"IF(ISBLANK(G249),IF((J249=0),0,IF(ISERROR(rate!$D$17),0,rate!$D$17)),IF(ISERROR(rate!$D$17),0,rate!$D$17))","v":0},0]
[227,null,null,null,null,null,null,"",{"$f":"IF(ISBLANK(G250),0,IF(H250=CURRENCY,(IF(ISERROR(rate!L$17),0,rate!L$17)),0))","v":0},0,{"$f":"IF(ISBLANK(G250),IF((J250=0),0,IF(ISERROR(rate!$D$17),0,rate!$D$17)),IF(ISERROR(rate!$D$17),0,rate!$D$17))","v":0},0]
[228,null,null,null,null,null,null,"",{"$f":"IF(ISBLANK(G251),0,IF(H251=CURRENCY,(IF(ISERROR(rate!L$17),0,rate!L$17)),0))","v":0},0,{"$f":"IF(ISBLANK(G251),IF((J251=0),0,IF(ISERROR(rate!$D$17),0,rate!$D$17)),IF(ISERROR(rate!$D$17),0,rate!$D$17))","v":0},0]
[229,null,null,null,null,null,null,"",{"$f":"IF(ISBLANK(G252),0,IF(H252=CURRENCY,(IF(ISERROR(rate!L$17),0,rate!L$17)),0))","v":0},0,{"$f":"IF(ISBLANK(G252),IF((J252=0),0,IF(ISERROR(rate!$D$17),0,rate!$D$17)),IF(ISERROR(rate!$D$17),0,rate!$D$17))","v":0},0]
[230,null,null,null,null,null,null,"",{"$f":"IF(ISBLANK(G253),0,IF(H253=CURRENCY,(IF(ISERROR(rate!L$17),0,rate!L$17)),0))","v":0},0,{"$f":"IF(ISBLANK(G253),IF((J253=0),0,IF(ISERROR(rate!$D$17),0,rate!$D$17)),IF(ISERROR(rate!$D$17),0,rate!$D$17))","v":0},0]
[231,null,null,null,null,null,null,"",{"$f":"IF(ISBLANK(G254),0,IF(H254=CURRENCY,(IF(ISERROR(rate!L$17),0,rate!L$17)),0))","v":0},0,{"$f":"IF(ISBLANK(G254),IF((J254=0),0,IF(ISERROR(rate!$D$17),0,rate!$D$17)),IF(ISERROR(rate!$D$17),0,rate!$D$17))","v":0},0]
[232,null,null,null,null,null,null,"",{"$f":"IF(ISBLANK(G255),0,IF(H255=CURRENCY,(IF(ISERROR(rate!L$17),0,rate!L$17)),0))","v":0},0,{"$f":"IF(ISBLANK(G255),IF((J255=0),0,IF(ISERROR(rate!$D$17),0,rate!$D$17)),IF(ISERROR(rate!$D$17),0,rate!$D$17))","v":0},0]
[233,null,null,null,null,null,null,"",{"$f":"IF(ISBLANK(G256),0,IF(H256=CURRENCY,(IF(ISERROR(rate!L$17),0,rate!L$17)),0))","v":0},0,{"$f":"IF(ISBLANK(G256),IF((J256=0),0,IF(ISERROR(rate!$D$17),0,rate!$D$17)),IF(ISERROR(rate!$D$17),0,rate!$D$17))","v":0},0]
[234,null,null,null,null,null,null,"",{"$f":"IF(ISBLANK(G257),0,IF(H257=CURRENCY,(IF(ISERROR(rate!L$17),0,rate!L$17)),0))","v":0},0,{"$f":"IF(ISBLANK(G257),IF((J257=0),0,IF(ISERROR(rate!$D$17),0,rate!$D$17)),IF(ISERROR(rate!$D$17),0,rate!$D$17))","v":0},0]
[235,null,null,null,null,null,null,"",{"$f":"IF(ISBLANK(G258),0,IF(H258=CURRENCY,(IF(ISERROR(rate!L$17),0,rate!L$17)),0))","v":0},0,{"$f":"IF(ISBLANK(G258),IF((J258=0),0,IF(ISERROR(rate!$D$17),0,rate!$D$17)),IF(ISERROR(rate!$D$17),0,rate!$D$17))","v":0},0]
[236,null,null,null,null,null,null,"",{"$f":"IF(ISBLANK(G259),0,IF(H259=CURRENCY,(IF(ISERROR(rate!L$17),0,rate!L$17)),0))","v":0},0,{"$f":"IF(ISBLANK(G259),IF((J259=0),0,IF(ISERROR(rate!$D$17),0,rate!$D$17)),IF(ISERROR(rate!$D$17),0,rate!$D$17))","v":0},0]
[237,null,null,null,null,null,null,"",{"$f":"IF(ISBLANK(G260),0,IF(H260=CURRENCY,(IF(ISERROR(rate!L$17),0,rate!L$17)),0))","v":0},0,{"$f":"IF(ISBLANK(G260),IF((J260=0),0,IF(ISERROR(rate!$D$17),0,rate!$D$17)),IF(ISERROR(rate!$D$17),0,rate!$D$17))","v":0},0]
[238,null,null,null,null,null,null,"",{"$f":"IF(ISBLANK(G261),0,IF(H261=CURRENCY,(IF(ISERROR(rate!L$17),0,rate!L$17)),0))","v":0},0,{"$f":"IF(ISBLANK(G261),IF((J261=0),0,IF(ISERROR(rate!$D$17),0,rate!$D$17)),IF(ISERROR(rate!$D$17),0,rate!$D$17))","v":0},0]
[239,null,null,null,null,null,null,"",{"$f":"IF(ISBLANK(G262),0,IF(H262=CURRENCY,(IF(ISERROR(rate!L$17),0,rate!L$17)),0))","v":0},0,{"$f":"IF(ISBLANK(G262),IF((J262=0),0,IF(ISERROR(rate!$D$17),0,rate!$D$17)),IF(ISERROR(rate!$D$17),0,rate!$D$17))","v":0},0]
[240,null,null,null,null,null,null,"",{"$f":"IF(ISBLANK(G263),0,IF(H263=CURRENCY,(IF(ISERROR(rate!L$17),0,rate!L$17)),0))","v":0},0,{"$f":"IF(ISBLANK(G263),IF((J263=0),0,IF(ISERROR(rate!$D$17),0,rate!$D$17)),IF(ISERROR(rate!$D$17),0,rate!$D$17))","v":0},0]
[241,null,null,null,null,null,null,"",{"$f":"IF(ISBLANK(G264),0,IF(H264=CURRENCY,(IF(ISERROR(rate!L$17),0,rate!L$17)),0))","v":0},0,{"$f":"IF(ISBLANK(G264),IF((J264=0),0,IF(ISERROR(rate!$D$17),0,rate!$D$17)),IF(ISERROR(rate!$D$17),0,rate!$D$17))","v":0},0]
[242,null,null,null,null,null,null,"",{"$f":"IF(ISBLANK(G265),0,IF(H265=CURRENCY,(IF(ISERROR(rate!L$17),0,rate!L$17)),0))","v":0},0,{"$f":"IF(ISBLANK(G265),IF((J265=0),0,IF(ISERROR(rate!$D$17),0,rate!$D$17)),IF(ISERROR(rate!$D$17),0,rate!$D$17))","v":0},0]
[243,null,null,null,null,null,null,"",{"$f":"IF(ISBLANK(G266),0,IF(H266=CURRENCY,(IF(ISERROR(rate!L$17),0,rate!L$17)),0))","v":0},0,{"$f":"IF(ISBLANK(G266),IF((J266=0),0,IF(ISERROR(rate!$D$17),0,rate!$D$17)),IF(ISERROR(rate!$D$17),0,rate!$D$17))","v":0},0]
[244,null,null,null,null,null,null,"",{"$f":"IF(ISBLANK(G267),0,IF(H267=CURRENCY,(IF(ISERROR(rate!L$17),0,rate!L$17)),0))","v":0},0,{"$f":"IF(ISBLANK(G267),IF((J267=0),0,IF(ISERROR(rate!$D$17),0,rate!$D$17)),IF(ISERROR(rate!$D$17),0,rate!$D$17))","v":0},0]
[245,null,null,null,null,null,null,"",{"$f":"IF(ISBLANK(G268),0,IF(H268=CURRENCY,(IF(ISERROR(rate!L$17),0,rate!L$17)),0))","v":0},0,{"$f":"IF(ISBLANK(G268),IF((J268=0),0,IF(ISERROR(rate!$D$17),0,rate!$D$17)),IF(ISERROR(rate!$D$17),0,rate!$D$17))","v":0},0]
[246,null,null,null,null,null,null,"",{"$f":"IF(ISBLANK(G269),0,IF(H269=CURRENCY,(IF(ISERROR(rate!L$17),0,rate!L$17)),0))","v":0},0,{"$f":"IF(ISBLANK(G269),IF((J269=0),0,IF(ISERROR(rate!$D$17),0,rate!$D$17)),IF(ISERROR(rate!$D$17),0,rate!$D$17))","v":0},0]
[247,null,null,null,null,null,null,"",{"$f":"IF(ISBLANK(G270),0,IF(H270=CURRENCY,(IF(ISERROR(rate!L$17),0,rate!L$17)),0))","v":0},0,{"$f":"IF(ISBLANK(G270),IF((J270=0),0,IF(ISERROR(rate!$D$17),0,rate!$D$17)),IF(ISERROR(rate!$D$17),0,rate!$D$17))","v":0},0]
[248,null,null,null,null,null,null,"",{"$f":"IF(ISBLANK(G271),0,IF(H271=CURRENCY,(IF(ISERROR(rate!L$17),0,rate!L$17)),0))","v":0},0,{"$f":"IF(ISBLANK(G271),IF((J271=0),0,IF(ISERROR(rate!$D$17),0,rate!$D$17)),IF(ISERROR(rate!$D$17),0,rate!$D$17))","v":0},0]
[249,null,null,null,null,null,null,"",{"$f":"IF(ISBLANK(G272),0,IF(H272=CURRENCY,(IF(ISERROR(rate!L$17),0,rate!L$17)),0))","v":0},0,{"$f":"IF(ISBLANK(G272),IF((J272=0),0,IF(ISERROR(rate!$D$17),0,rate!$D$17)),IF(ISERROR(rate!$D$17),0,rate!$D$17))","v":0},0]
[250,null,null,null,null,null,null,"",{"$f":"IF(ISBLANK(G273),0,IF(H273=CURRENCY,(IF(ISERROR(rate!L$17),0,rate!L$17)),0))","v":0},0,{"$f":"IF(ISBLANK(G273),IF((J273=0),0,IF(ISERROR(rate!$D$17),0,rate!$D$17)),IF(ISERROR(rate!$D$17),0,rate!$D$17))","v":0},0]
[251,null,null,null,null,null,null,"",{"$f":"IF(ISBLANK(G274),0,IF(H274=CURRENCY,(IF(ISERROR(rate!L$17),0,rate!L$17)),0))","v":0},0,{"$f":"IF(ISBLANK(G274),IF((J274=0),0,IF(ISERROR(rate!$D$17),0,rate!$D$17)),IF(ISERROR(rate!$D$17),0,rate!$D$17))","v":0},0]
[252,null,null,null,null,null,null,"",{"$f":"IF(ISBLANK(G275),0,IF(H275=CURRENCY,(IF(ISERROR(rate!L$17),0,rate!L$17)),0))","v":0},0,{"$f":"IF(ISBLANK(G275),IF((J275=0),0,IF(ISERROR(rate!$D$17),0,rate!$D$17)),IF(ISERROR(rate!$D$17),0,rate!$D$17))","v":0},0]
[253,null,null,null,null,null,null,"",{"$f":"IF(ISBLANK(G276),0,IF(H276=CURRENCY,(IF(ISERROR(rate!L$17),0,rate!L$17)),0))","v":0},0,{"$f":"IF(ISBLANK(G276),IF((J276=0),0,IF(ISERROR(rate!$D$17),0,rate!$D$17)),IF(ISERROR(rate!$D$17),0,rate!$D$17))","v":0},0]
[254,null,null,null,null,null,null,"",{"$f":"IF(ISBLANK(G277),0,IF(H277=CURRENCY,(IF(ISERROR(rate!L$17),0,rate!L$17)),0))","v":0},0,{"$f":"IF(ISBLANK(G277),IF((J277=0),0,IF(ISERROR(rate!$D$17),0,rate!$D$17)),IF(ISERROR(rate!$D$17),0,rate!$D$17))","v":0},0]
[255,null,null,null,null,null,null,"",{"$f":"IF(ISBLANK(G278),0,IF(H278=CURRENCY,(IF(ISERROR(rate!L$17),0,rate!L$17)),0))","v":0},0,{"$f":"IF(ISBLANK(G278),IF((J278=0),0,IF(ISERROR(rate!$D$17),0,rate!$D$17)),IF(ISERROR(rate!$D$17),0,rate!$D$17))","v":0},0]
[256,null,null,null,null,null,null,"",{"$f":"IF(ISBLANK(G279),0,IF(H279=CURRENCY,(IF(ISERROR(rate!L$17),0,rate!L$17)),0))","v":0},0,{"$f":"IF(ISBLANK(G279),IF((J279=0),0,IF(ISERROR(rate!$D$17),0,rate!$D$17)),IF(ISERROR(rate!$D$17),0,rate!$D$17))","v":0},0]
[257,null,null,null,null,null,null,{"$f":"IF(ISBLANK(G280),\"\",+CURRENCY)","v":""},{"$f":"IF(ISBLANK(G280),0,IF(H280=CURRENCY,(IF(ISERROR(rate!L$17),0,rate!L$17)),0))","v":0},{"$f":"IF(ISERROR(+G280/I280),0,+G280/I280)","v":0},{"$f":"IF(ISBLANK(G280),IF((J280=0),0,IF(ISERROR(rate!$D$17),0,rate!$D$17)),IF(ISERROR(rate!$D$17),0,rate!$D$17))","v":0},{"$f":"IF(ISERROR(+K280*J280),0,+K280*J280)","v":0}]
[258,null,null,null,null,null,null,"",{"$f":"IF(ISBLANK(G281),0,IF(H281=CURRENCY,(IF(ISERROR(rate!L$17),0,rate!L$17)),0))","v":0},0,{"$f":"IF(ISBLANK(G281),IF((J281=0),0,IF(ISERROR(rate!$D$17),0,rate!$D$17)),IF(ISERROR(rate!$D$17),0,rate!$D$17))","v":0},0]
[259,null,null,null,null,null,null,"",{"$f":"IF(ISBLANK(G282),0,IF(H282=CURRENCY,(IF(ISERROR(rate!L$17),0,rate!L$17)),0))","v":0},0,{"$f":"IF(ISBLANK(G282),IF((J282=0),0,IF(ISERROR(rate!$D$17),0,rate!$D$17)),IF(ISERROR(rate!$D$17),0,rate!$D$17))","v":0},0]
[260,null,null,null,null,null,null,"",{"$f":"IF(ISBLANK(G283),0,IF(H283=CURRENCY,(IF(ISERROR(rate!L$17),0,rate!L$17)),0))","v":0},0,{"$f":"IF(ISBLANK(G283),IF((J283=0),0,IF(ISERROR(rate!$D$17),0,rate!$D$17)),IF(ISERROR(rate!$D$17),0,rate!$D$17))","v":0},0]
[261,null,null,null,null,null,null,"",{"$f":"IF(ISBLANK(G284),0,IF(H284=CURRENCY,(IF(ISERROR(rate!L$17),0,rate!L$17)),0))","v":0},0,{"$f":"IF(ISBLANK(G284),IF((J284=0),0,IF(ISERROR(rate!$D$17),0,rate!$D$17)),IF(ISERROR(rate!$D$17),0,rate!$D$17))","v":0},0]
[262,null,null,null,null,null,null,"",{"$f":"IF(ISBLANK(G285),0,IF(H285=CURRENCY,(IF(ISERROR(rate!L$17),0,rate!L$17)),0))","v":0},0,{"$f":"IF(ISBLANK(G285),IF((J285=0),0,IF(ISERROR(rate!$D$17),0,rate!$D$17)),IF(ISERROR(rate!$D$17),0,rate!$D$17))","v":0},0]
[263,null,null,null,null,null,null,"",{"$f":"IF(ISBLANK(G286),0,IF(H286=CURRENCY,(IF(ISERROR(rate!L$17),0,rate!L$17)),0))","v":0},0,{"$f":"IF(ISBLANK(G286),IF((J286=0),0,IF(ISERROR(rate!$D$17),0,rate!$D$17)),IF(ISERROR(rate!$D$17),0,rate!$D$17))","v":0},0]
[264,null,null,null,null,null,null,"",{"$f":"IF(ISBLANK(G287),0,IF(H287=CURRENCY,(IF(ISERROR(rate!L$17),0,rate!L$17)),0))","v":0},0,{"$f":"IF(ISBLANK(G287),IF((J287=0),0,IF(ISERROR(rate!$D$17),0,rate!$D$17)),IF(ISERROR(rate!$D$17),0,rate!$D$17))","v":0},0]
[265,null,null,null,null,null,null,"",{"$f":"IF(ISBLANK(G288),0,IF(H288=CURRENCY,(IF(ISERROR(rate!L$17),0,rate!L$17)),0))","v":0},0,{"$f":"IF(ISBLANK(G288),IF((J288=0),0,IF(ISERROR(rate!$D$17),0,rate!$D$17)),IF(ISERROR(rate!$D$17),0,rate!$D$17))","v":0},0]
[266,null,null,null,null,null,null,"",{"$f":"IF(ISBLANK(G289),0,IF(H289=CURRENCY,(IF(ISERROR(rate!L$17),0,rate!L$17)),0))","v":0},0,{"$f":"IF(ISBLANK(G289),IF((J289=0),0,IF(ISERROR(rate!$D$17),0,rate!$D$17)),IF(ISERROR(rate!$D$17),0,rate!$D$17))","v":0},0]
[267,null,null,null,null,null,null,"",{"$f":"IF(ISBLANK(G290),0,IF(H290=CURRENCY,(IF(ISERROR(rate!L$17),0,rate!L$17)),0))","v":0},0,{"$f":"IF(ISBLANK(G290),IF((J290=0),0,IF(ISERROR(rate!$D$17),0,rate!$D$17)),IF(ISERROR(rate!$D$17),0,rate!$D$17))","v":0},0]
[268,null,null,null,null,null,null,"",{"$f":"IF(ISBLANK(G291),0,IF(H291=CURRENCY,(IF(ISERROR(rate!L$17),0,rate!L$17)),0))","v":0},0,{"$f":"IF(ISBLANK(G291),IF((J291=0),0,IF(ISERROR(rate!$D$17),0,rate!$D$17)),IF(ISERROR(rate!$D$17),0,rate!$D$17))","v":0},0]
[269,null,null,null,null,null,null,"",{"$f":"IF(ISBLANK(G292),0,IF(H292=CURRENCY,(IF(ISERROR(rate!L$17),0,rate!L$17)),0))","v":0},0,{"$f":"IF(ISBLANK(G292),IF((J292=0),0,IF(ISERROR(rate!$D$17),0,rate!$D$17)),IF(ISERROR(rate!$D$17),0,rate!$D$17))","v":0},0]
[270,null,null,null,null,null,null,"",{"$f":"IF(ISBLANK(G293),0,IF(H293=CURRENCY,(IF(ISERROR(rate!L$17),0,rate!L$17)),0))","v":0},0,{"$f":"IF(ISBLANK(G293),IF((J293=0),0,IF(ISERROR(rate!$D$17),0,rate!$D$17)),IF(ISERROR(rate!$D$17),0,rate!$D$17))","v":0},0]
[271,null,null,null,null,null,null,"",{"$f":"IF(ISBLANK(G294),0,IF(H294=CURRENCY,(IF(ISERROR(rate!L$17),0,rate!L$17)),0))","v":0},0,{"$f":"IF(ISBLANK(G294),IF((J294=0),0,IF(ISERROR(rate!$D$17),0,rate!$D$17)),IF(ISERROR(rate!$D$17),0,rate!$D$17))","v":0},0]
[272,null,null,null,null,null,null,"",{"$f":"IF(ISBLANK(G295),0,IF(H295=CURRENCY,(IF(ISERROR(rate!L$17),0,rate!L$17)),0))","v":0},0,{"$f":"IF(ISBLANK(G295),IF((J295=0),0,IF(ISERROR(rate!$D$17),0,rate!$D$17)),IF(ISERROR(rate!$D$17),0,rate!$D$17))","v":0},0]
[273,null,null,null,null,null,null,"",{"$f":"IF(ISBLANK(G296),0,IF(H296=CURRENCY,(IF(ISERROR(rate!L$17),0,rate!L$17)),0))","v":0},0,{"$f":"IF(ISBLANK(G296),IF((J296=0),0,IF(ISERROR(rate!$D$17),0,rate!$D$17)),IF(ISERROR(rate!$D$17),0,rate!$D$17))","v":0},0]
[274,null,null,null,null,null,null,"",{"$f":"IF(ISBLANK(G297),0,IF(H297=CURRENCY,(IF(ISERROR(rate!L$17),0,rate!L$17)),0))","v":0},0,{"$f":"IF(ISBLANK(G297),IF((J297=0),0,IF(ISERROR(rate!$D$17),0,rate!$D$17)),IF(ISERROR(rate!$D$17),0,rate!$D$17))","v":0},0]
[275,null,null,null,null,null,null,"",{"$f":"IF(ISBLANK(G298),0,IF(H298=CURRENCY,(IF(ISERROR(rate!L$17),0,rate!L$17)),0))","v":0},0,{"$f":"IF(ISBLANK(G298),IF((J298=0),0,IF(ISERROR(rate!$D$17),0,rate!$D$17)),IF(ISERROR(rate!$D$17),0,rate!$D$17))","v":0},0]
[276,null,null,null,null,null,null,"",{"$f":"IF(ISBLANK(G299),0,IF(H299=CURRENCY,(IF(ISERROR(rate!L$17),0,rate!L$17)),0))","v":0},0,{"$f":"IF(ISBLANK(G299),IF((J299=0),0,IF(ISERROR(rate!$D$17),0,rate!$D$17)),IF(ISERROR(rate!$D$17),0,rate!$D$17))","v":0},0]
[277,null,null,null,null,null,null,"",{"$f":"IF(ISBLANK(G300),0,IF(H300=CURRENCY,(IF(ISERROR(rate!L$17),0,rate!L$17)),0))","v":0},0,{"$f":"IF(ISBLANK(G300),IF((J300=0),0,IF(ISERROR(rate!$D$17),0,rate!$D$17)),IF(ISERROR(rate!$D$17),0,rate!$D$17))","v":0},0]
[278,null,null,null,null,null,null,"",{"$f":"IF(ISBLANK(G301),0,IF(H301=CURRENCY,(IF(ISERROR(rate!L$17),0,rate!L$17)),0))","v":0},0,{"$f":"IF(ISBLANK(G301),IF((J301=0),0,IF(ISERROR(rate!$D$17),0,rate!$D$17)),IF(ISERROR(rate!$D$17),0,rate!$D$17))","v":0},0]
[279,null,null,null,null,null,null,"",{"$f":"IF(ISBLANK(G302),0,IF(H302=CURRENCY,(IF(ISERROR(rate!L$17),0,rate!L$17)),0))","v":0},0,{"$f":"IF(ISBLANK(G302),IF((J302=0),0,IF(ISERROR(rate!$D$17),0,rate!$D$17)),IF(ISERROR(rate!$D$17),0,rate!$D$17))","v":0},0]
[280,null,null,null,null,null,null,"",{"$f":"IF(ISBLANK(G303),0,IF(H303=CURRENCY,(IF(ISERROR(rate!L$17),0,rate!L$17)),0))","v":0},0,{"$f":"IF(ISBLANK(G303),IF((J303=0),0,IF(ISERROR(rate!$D$17),0,rate!$D$17)),IF(ISERROR(rate!$D$17),0,rate!$D$17))","v":0},0]
[281,null,null,null,null,null,null,"",{"$f":"IF(ISBLANK(G304),0,IF(H304=CURRENCY,(IF(ISERROR(rate!L$17),0,rate!L$17)),0))","v":0},0,{"$f":"IF(ISBLANK(G304),IF((J304=0),0,IF(ISERROR(rate!$D$17),0,rate!$D$17)),IF(ISERROR(rate!$D$17),0,rate!$D$17))","v":0},0]
[282,null,null,null,null,null,null,"",{"$f":"IF(ISBLANK(G305),0,IF(H305=CURRENCY,(IF(ISERROR(rate!L$17),0,rate!L$17)),0))","v":0},0,{"$f":"IF(ISBLANK(G305),IF((J305=0),0,IF(ISERROR(rate!$D$17),0,rate!$D$17)),IF(ISERROR(rate!$D$17),0,rate!$D$17))","v":0},0]
[283,null,null,null,null,null,null,"",{"$f":"IF(ISBLANK(G306),0,IF(H306=CURRENCY,(IF(ISERROR(rate!L$17),0,rate!L$17)),0))","v":0},0,{"$f":"IF(ISBLANK(G306),IF((J306=0),0,IF(ISERROR(rate!$D$17),0,rate!$D$17)),IF(ISERROR(rate!$D$17),0,rate!$D$17))","v":0},0]
[284,null,null,null,null,null,null,"",{"$f":"IF(ISBLANK(G307),0,IF(H307=CURRENCY,(IF(ISERROR(rate!L$17),0,rate!L$17)),0))","v":0},0,{"$f":"IF(ISBLANK(G307),IF((J307=0),0,IF(ISERROR(rate!$D$17),0,rate!$D$17)),IF(ISERROR(rate!$D$17),0,rate!$D$17))","v":0},0]
[285,null,null,null,null,null,null,"",{"$f":"IF(ISBLANK(G308),0,IF(H308=CURRENCY,(IF(ISERROR(rate!L$17),0,rate!L$17)),0))","v":0},0,{"$f":"IF(ISBLANK(G308),IF((J308=0),0,IF(ISERROR(rate!$D$17),0,rate!$D$17)),IF(ISERROR(rate!$D$17),0,rate!$D$17))","v":0},0]
[286,null,null,null,null,null,null,"",{"$f":"IF(ISBLANK(G309),0,IF(H309=CURRENCY,(IF(ISERROR(rate!L$17),0,rate!L$17)),0))","v":0},0,{"$f":"IF(ISBLANK(G309),IF((J309=0),0,IF(ISERROR(rate!$D$17),0,rate!$D$17)),IF(ISERROR(rate!$D$17),0,rate!$D$17))","v":0},0]
[287,null,null,null,null,null,null,"",{"$f":"IF(ISBLANK(G310),0,IF(H310=CURRENCY,(IF(ISERROR(rate!L$17),0,rate!L$17)),0))","v":0},0,{"$f":"IF(ISBLANK(G310),IF((J310=0),0,IF(ISERROR(rate!$D$17),0,rate!$D$17)),IF(ISERROR(rate!$D$17),0,rate!$D$17))","v":0},0]
[288,null,null,null,null,null,null,"",{"$f":"IF(ISBLANK(G311),0,IF(H311=CURRENCY,(IF(ISERROR(rate!L$17),0,rate!L$17)),0))","v":0},0,{"$f":"IF(ISBLANK(G311),IF((J311=0),0,IF(ISERROR(rate!$D$17),0,rate!$D$17)),IF(ISERROR(rate!$D$17),0,rate!$D$17))","v":0},0]
[289,null,null,null,null,null,null,"",{"$f":"IF(ISBLANK(G312),0,IF(H312=CURRENCY,(IF(ISERROR(rate!L$17),0,rate!L$17)),0))","v":0},0,{"$f":"IF(ISBLANK(G312),IF((J312=0),0,IF(ISERROR(rate!$D$17),0,rate!$D$17)),IF(ISERROR(rate!$D$17),0,rate!$D$17))","v":0},0]
[290,null,null,null,null,null,null,"",{"$f":"IF(ISBLANK(G313),0,IF(H313=CURRENCY,(IF(ISERROR(rate!L$17),0,rate!L$17)),0))","v":0},0,{"$f":"IF(ISBLANK(G313),IF((J313=0),0,IF(ISERROR(rate!$D$17),0,rate!$D$17)),IF(ISERROR(rate!$D$17),0,rate!$D$17))","v":0},0]
[291,null,null,null,null,null,null,"",{"$f":"IF(ISBLANK(G314),0,IF(H314=CURRENCY,(IF(ISERROR(rate!L$17),0,rate!L$17)),0))","v":0},0,{"$f":"IF(ISBLANK(G314),IF((J314=0),0,IF(ISERROR(rate!$D$17),0,rate!$D$17)),IF(ISERROR(rate!$D$17),0,rate!$D$17))","v":0},0]
[292,null,null,null,null,null,null,"",{"$f":"IF(ISBLANK(G315),0,IF(H315=CURRENCY,(IF(ISERROR(rate!L$17),0,rate!L$17)),0))","v":0},0,{"$f":"IF(ISBLANK(G315),IF((J315=0),0,IF(ISERROR(rate!$D$17),0,rate!$D$17)),IF(ISERROR(rate!$D$17),0,rate!$D$17))","v":0},0]
[293,null,null,null,null,null,null,"",{"$f":"IF(ISBLANK(G316),0,IF(H316=CURRENCY,(IF(ISERROR(rate!L$17),0,rate!L$17)),0))","v":0},0,{"$f":"IF(ISBLANK(G316),IF((J316=0),0,IF(ISERROR(rate!$D$17),0,rate!$D$17)),IF(ISERROR(rate!$D$17),0,rate!$D$17))","v":0},0]
[294,null,null,null,null,null,null,"",{"$f":"IF(ISBLANK(G317),0,IF(H317=CURRENCY,(IF(ISERROR(rate!L$17),0,rate!L$17)),0))","v":0},0,{"$f":"IF(ISBLANK(G317),IF((J317=0),0,IF(ISERROR(rate!$D$17),0,rate!$D$17)),IF(ISERROR(rate!$D$17),0,rate!$D$17))","v":0},0]
[295,null,null,null,null,null,null,"",{"$f":"IF(ISBLANK(G318),0,IF(H318=CURRENCY,(IF(ISERROR(rate!L$17),0,rate!L$17)),0))","v":0},0,{"$f":"IF(ISBLANK(G318),IF((J318=0),0,IF(ISERROR(rate!$D$17),0,rate!$D$17)),IF(ISERROR(rate!$D$17),0,rate!$D$17))","v":0},0]
[296,null,null,null,null,null,null,"",{"$f":"IF(ISBLANK(G319),0,IF(H319=CURRENCY,(IF(ISERROR(rate!L$17),0,rate!L$17)),0))","v":0},0,{"$f":"IF(ISBLANK(G319),IF((J319=0),0,IF(ISERROR(rate!$D$17),0,rate!$D$17)),IF(ISERROR(rate!$D$17),0,rate!$D$17))","v":0},0]
[297,null,null,null,null,null,null,"",{"$f":"IF(ISBLANK(G320),0,IF(H320=CURRENCY,(IF(ISERROR(rate!L$17),0,rate!L$17)),0))","v":0},0,{"$f":"IF(ISBLANK(G320),IF((J320=0),0,IF(ISERROR(rate!$D$17),0,rate!$D$17)),IF(ISERROR(rate!$D$17),0,rate!$D$17))","v":0},0]
[298,null,null,null,null,null,null,"",{"$f":"IF(ISBLANK(G321),0,IF(H321=CURRENCY,(IF(ISERROR(rate!L$17),0,rate!L$17)),0))","v":0},0,{"$f":"IF(ISBLANK(G321),IF((J321=0),0,IF(ISERROR(rate!$D$17),0,rate!$D$17)),IF(ISERROR(rate!$D$17),0,rate!$D$17))","v":0},0]
[299,null,null,null,null,null,null,"",{"$f":"IF(ISBLANK(G322),0,IF(H322=CURRENCY,(IF(ISERROR(rate!L$17),0,rate!L$17)),0))","v":0},0,{"$f":"IF(ISBLANK(G322),IF((J322=0),0,IF(ISERROR(rate!$D$17),0,rate!$D$17)),IF(ISERROR(rate!$D$17),0,rate!$D$17))","v":0},0]
[300,null,null,null,null,null,null,"",{"$f":"IF(ISBLANK(G323),0,IF(H323=CURRENCY,(IF(ISERROR(rate!L$17),0,rate!L$17)),0))","v":0},0,{"$f":"IF(ISBLANK(G323),IF((J323=0),0,IF(ISERROR(rate!$D$17),0,rate!$D$17)),IF(ISERROR(rate!$D$17),0,rate!$D$17))","v":0},0]
[301,null,null,null,null,null,null,"",{"$f":"IF(ISBLANK(G324),0,IF(H324=CURRENCY,(IF(ISERROR(rate!L$17),0,rate!L$17)),0))","v":0},0,{"$f":"IF(ISBLANK(G324),IF((J324=0),0,IF(ISERROR(rate!$D$17),0,rate!$D$17)),IF(ISERROR(rate!$D$17),0,rate!$D$17))","v":0},0]
[302,null,null,null,null,null,null,"",{"$f":"IF(ISBLANK(G325),0,IF(H325=CURRENCY,(IF(ISERROR(rate!L$17),0,rate!L$17)),0))","v":0},0,{"$f":"IF(ISBLANK(G325),IF((J325=0),0,IF(ISERROR(rate!$D$17),0,rate!$D$17)),IF(ISERROR(rate!$D$17),0,rate!$D$17))","v":0},0]
[303,null,null,null,null,null,null,"",{"$f":"IF(ISBLANK(G326),0,IF(H326=CURRENCY,(IF(ISERROR(rate!L$17),0,rate!L$17)),0))","v":0},0,{"$f":"IF(ISBLANK(G326),IF((J326=0),0,IF(ISERROR(rate!$D$17),0,rate!$D$17)),IF(ISERROR(rate!$D$17),0,rate!$D$17))","v":0},0]
[304,null,null,null,null,null,null,"",{"$f":"IF(ISBLANK(G327),0,IF(H327=CURRENCY,(IF(ISERROR(rate!L$17),0,rate!L$17)),0))","v":0},0,{"$f":"IF(ISBLANK(G327),IF((J327=0),0,IF(ISERROR(rate!$D$17),0,rate!$D$17)),IF(ISERROR(rate!$D$17),0,rate!$D$17))","v":0},0]
[305,null,null,null,null,null,null,"",{"$f":"IF(ISBLANK(G328),0,IF(H328=CURRENCY,(IF(ISERROR(rate!L$17),0,rate!L$17)),0))","v":0},0,{"$f":"IF(ISBLANK(G328),IF((J328=0),0,IF(ISERROR(rate!$D$17),0,rate!$D$17)),IF(ISERROR(rate!$D$17),0,rate!$D$17))","v":0},0]
[306,null,null,null,null,null,null,"",{"$f":"IF(ISBLANK(G329),0,IF(H329=CURRENCY,(IF(ISERROR(rate!L$17),0,rate!L$17)),0))","v":0},0,{"$f":"IF(ISBLANK(G329),IF((J329=0),0,IF(ISERROR(rate!$D$17),0,rate!$D$17)),IF(ISERROR(rate!$D$17),0,rate!$D$17))","v":0},0]
[307,null,null,null,null,null,null,"",{"$f":"IF(ISBLANK(G330),0,IF(H330=CURRENCY,(IF(ISERROR(rate!L$17),0,rate!L$17)),0))","v":0},0,{"$f":"IF(ISBLANK(G330),IF((J330=0),0,IF(ISERROR(rate!$D$17),0,rate!$D$17)),IF(ISERROR(rate!$D$17),0,rate!$D$17))","v":0},0]
[308,null,null,null,null,null,null,"",{"$f":"IF(ISBLANK(G331),0,IF(H331=CURRENCY,(IF(ISERROR(rate!L$17),0,rate!L$17)),0))","v":0},0,{"$f":"IF(ISBLANK(G331),IF((J331=0),0,IF(ISERROR(rate!$D$17),0,rate!$D$17)),IF(ISERROR(rate!$D$17),0,rate!$D$17))","v":0},0]
[309,null,null,null,null,null,null,"",{"$f":"IF(ISBLANK(G332),0,IF(H332=CURRENCY,(IF(ISERROR(rate!L$17),0,rate!L$17)),0))","v":0},0,{"$f":"IF(ISBLANK(G332),IF((J332=0),0,IF(ISERROR(rate!$D$17),0,rate!$D$17)),IF(ISERROR(rate!$D$17),0,rate!$D$17))","v":0},0]
[310,null,null,null,null,null,null,"",{"$f":"IF(ISBLANK(G333),0,IF(H333=CURRENCY,(IF(ISERROR(rate!L$17),0,rate!L$17)),0))","v":0},0,{"$f":"IF(ISBLANK(G333),IF((J333=0),0,IF(ISERROR(rate!$D$17),0,rate!$D$17)),IF(ISERROR(rate!$D$17),0,rate!$D$17))","v":0},0]
[311,null,null,null,null,null,null,"",{"$f":"IF(ISBLANK(G334),0,IF(H334=CURRENCY,(IF(ISERROR(rate!L$17),0,rate!L$17)),0))","v":0},0,{"$f":"IF(ISBLANK(G334),IF((J334=0),0,IF(ISERROR(rate!$D$17),0,rate!$D$17)),IF(ISERROR(rate!$D$17),0,rate!$D$17))","v":0},0]
[312,null,null,null,null,null,null,"",{"$f":"IF(ISBLANK(G335),0,IF(H335=CURRENCY,(IF(ISERROR(rate!L$17),0,rate!L$17)),0))","v":0},0,{"$f":"IF(ISBLANK(G335),IF((J335=0),0,IF(ISERROR(rate!$D$17),0,rate!$D$17)),IF(ISERROR(rate!$D$17),0,rate!$D$17))","v":0},0]
[313,null,null,null,null,null,null,"",{"$f":"IF(ISBLANK(G336),0,IF(H336=CURRENCY,(IF(ISERROR(rate!L$17),0,rate!L$17)),0))","v":0},0,{"$f":"IF(ISBLANK(G336),IF((J336=0),0,IF(ISERROR(rate!$D$17),0,rate!$D$17)),IF(ISERROR(rate!$D$17),0,rate!$D$17))","v":0},0]
[314,null,null,null,null,null,null,"",{"$f":"IF(ISBLANK(G337),0,IF(H337=CURRENCY,(IF(ISERROR(rate!L$17),0,rate!L$17)),0))","v":0},0,{"$f":"IF(ISBLANK(G337),IF((J337=0),0,IF(ISERROR(rate!$D$17),0,rate!$D$17)),IF(ISERROR(rate!$D$17),0,rate!$D$17))","v":0},0]
[315,null,null,null,null,null,null,"",{"$f":"IF(ISBLANK(G338),0,IF(H338=CURRENCY,(IF(ISERROR(rate!L$17),0,rate!L$17)),0))","v":0},0,{"$f":"IF(ISBLANK(G338),IF((J338=0),0,IF(ISERROR(rate!$D$17),0,rate!$D$17)),IF(ISERROR(rate!$D$17),0,rate!$D$17))","v":0},0]
[316,null,null,null,null,null,null,"",{"$f":"IF(ISBLANK(G339),0,IF(H339=CURRENCY,(IF(ISERROR(rate!L$17),0,rate!L$17)),0))","v":0},0,{"$f":"IF(ISBLANK(G339),IF((J339=0),0,IF(ISERROR(rate!$D$17),0,rate!$D$17)),IF(ISERROR(rate!$D$17),0,rate!$D$17))","v":0},0]
[317,null,null,null,null,null,null,"",{"$f":"IF(ISBLANK(G340),0,IF(H340=CURRENCY,(IF(ISERROR(rate!L$17),0,rate!L$17)),0))","v":0},0,{"$f":"IF(ISBLANK(G340),IF((J340=0),0,IF(ISERROR(rate!$D$17),0,rate!$D$17)),IF(ISERROR(rate!$D$17),0,rate!$D$17))","v":0},0]
[318,null,null,null,null,null,null,"",{"$f":"IF(ISBLANK(G341),0,IF(H341=CURRENCY,(IF(ISERROR(rate!L$17),0,rate!L$17)),0))","v":0},0,{"$f":"IF(ISBLANK(G341),IF((J341=0),0,IF(ISERROR(rate!$D$17),0,rate!$D$17)),IF(ISERROR(rate!$D$17),0,rate!$D$17))","v":0},0]
[319,null,null,null,null,null,null,"",{"$f":"IF(ISBLANK(G342),0,IF(H342=CURRENCY,(IF(ISERROR(rate!L$17),0,rate!L$17)),0))","v":0},0,{"$f":"IF(ISBLANK(G342),IF((J342=0),0,IF(ISERROR(rate!$D$17),0,rate!$D$17)),IF(ISERROR(rate!$D$17),0,rate!$D$17))","v":0},0]
[320,null,null,null,null,null,null,"",{"$f":"IF(ISBLANK(G343),0,IF(H343=CURRENCY,(IF(ISERROR(rate!L$17),0,rate!L$17)),0))","v":0},0,{"$f":"IF(ISBLANK(G343),IF((J343=0),0,IF(ISERROR(rate!$D$17),0,rate!$D$17)),IF(ISERROR(rate!$D$17),0,rate!$D$17))","v":0},0]
[321,null,null,null,null,null,null,{"$f":"IF(ISBLANK(G344),\"\",+CURRENCY)","v":""},{"$f":"IF(ISBLANK(G344),0,IF(H344=CURRENCY,(IF(ISERROR(rate!L$17),0,rate!L$17)),0))","v":0},{"$f":"IF(ISERROR(+G344/I344),0,+G344/I344)","v":0},{"$f":"IF(ISBLANK(G344),IF((J344=0),0,IF(ISERROR(rate!$D$17),0,rate!$D$17)),IF(ISERROR(rate!$D$17),0,rate!$D$17))","v":0},{"$f":"IF(ISERROR(+K344*J344),0,+K344*J344)","v":0}]
[322,null,null,null,null,null,null,"",{"$f":"IF(ISBLANK(G345),0,IF(H345=CURRENCY,(IF(ISERROR(rate!L$17),0,rate!L$17)),0))","v":0},0,{"$f":"IF(ISBLANK(G345),IF((J345=0),0,IF(ISERROR(rate!$D$17),0,rate!$D$17)),IF(ISERROR(rate!$D$17),0,rate!$D$17))","v":0},0]
[323,null,null,null,null,null,null,"",{"$f":"IF(ISBLANK(G346),0,IF(H346=CURRENCY,(IF(ISERROR(rate!L$17),0,rate!L$17)),0))","v":0},0,{"$f":"IF(ISBLANK(G346),IF((J346=0),0,IF(ISERROR(rate!$D$17),0,rate!$D$17)),IF(ISERROR(rate!$D$17),0,rate!$D$17))","v":0},0]
[324,null,null,null,null,null,null,"",{"$f":"IF(ISBLANK(G347),0,IF(H347=CURRENCY,(IF(ISERROR(rate!L$17),0,rate!L$17)),0))","v":0},0,{"$f":"IF(ISBLANK(G347),IF((J347=0),0,IF(ISERROR(rate!$D$17),0,rate!$D$17)),IF(ISERROR(rate!$D$17),0,rate!$D$17))","v":0},0]
[325,null,null,null,null,null,null,"",{"$f":"IF(ISBLANK(G348),0,IF(H348=CURRENCY,(IF(ISERROR(rate!L$17),0,rate!L$17)),0))","v":0},0,{"$f":"IF(ISBLANK(G348),IF((J348=0),0,IF(ISERROR(rate!$D$17),0,rate!$D$17)),IF(ISERROR(rate!$D$17),0,rate!$D$17))","v":0},0]
[326,null,null,null,null,null,null,"",{"$f":"IF(ISBLANK(G349),0,IF(H349=CURRENCY,(IF(ISERROR(rate!L$17),0,rate!L$17)),0))","v":0},0,{"$f":"IF(ISBLANK(G349),IF((J349=0),0,IF(ISERROR(rate!$D$17),0,rate!$D$17)),IF(ISERROR(rate!$D$17),0,rate!$D$17))","v":0},0]
[327,null,null,null,null,null,null,"",{"$f":"IF(ISBLANK(G350),0,IF(H350=CURRENCY,(IF(ISERROR(rate!L$17),0,rate!L$17)),0))","v":0},0,{"$f":"IF(ISBLANK(G350),IF((J350=0),0,IF(ISERROR(rate!$D$17),0,rate!$D$17)),IF(ISERROR(rate!$D$17),0,rate!$D$17))","v":0},0]
[328,null,null,null,null,null,null,"",{"$f":"IF(ISBLANK(G351),0,IF(H351=CURRENCY,(IF(ISERROR(rate!L$17),0,rate!L$17)),0))","v":0},0,{"$f":"IF(ISBLANK(G351),IF((J351=0),0,IF(ISERROR(rate!$D$17),0,rate!$D$17)),IF(ISERROR(rate!$D$17),0,rate!$D$17))","v":0},0]
[329,null,null,null,null,null,null,"",{"$f":"IF(ISBLANK(G352),0,IF(H352=CURRENCY,(IF(ISERROR(rate!L$17),0,rate!L$17)),0))","v":0},0,{"$f":"IF(ISBLANK(G352),IF((J352=0),0,IF(ISERROR(rate!$D$17),0,rate!$D$17)),IF(ISERROR(rate!$D$17),0,rate!$D$17))","v":0},0]
[330,null,null,null,null,null,null,"",{"$f":"IF(ISBLANK(G353),0,IF(H353=CURRENCY,(IF(ISERROR(rate!L$17),0,rate!L$17)),0))","v":0},0,{"$f":"IF(ISBLANK(G353),IF((J353=0),0,IF(ISERROR(rate!$D$17),0,rate!$D$17)),IF(ISERROR(rate!$D$17),0,rate!$D$17))","v":0},0]
[331,null,null,null,null,null,null,"",{"$f":"IF(ISBLANK(G354),0,IF(H354=CURRENCY,(IF(ISERROR(rate!L$17),0,rate!L$17)),0))","v":0},0,{"$f":"IF(ISBLANK(G354),IF((J354=0),0,IF(ISERROR(rate!$D$17),0,rate!$D$17)),IF(ISERROR(rate!$D$17),0,rate!$D$17))","v":0},0]
[332,null,null,null,null,null,null,"",{"$f":"IF(ISBLANK(G355),0,IF(H355=CURRENCY,(IF(ISERROR(rate!L$17),0,rate!L$17)),0))","v":0},0,{"$f":"IF(ISBLANK(G355),IF((J355=0),0,IF(ISERROR(rate!$D$17),0,rate!$D$17)),IF(ISERROR(rate!$D$17),0,rate!$D$17))","v":0},0]
[333,null,null,null,null,null,null,"",{"$f":"IF(ISBLANK(G356),0,IF(H356=CURRENCY,(IF(ISERROR(rate!L$17),0,rate!L$17)),0))","v":0},0,{"$f":"IF(ISBLANK(G356),IF((J356=0),0,IF(ISERROR(rate!$D$17),0,rate!$D$17)),IF(ISERROR(rate!$D$17),0,rate!$D$17))","v":0},0]
[334,null,null,null,null,null,null,"",{"$f":"IF(ISBLANK(G357),0,IF(H357=CURRENCY,(IF(ISERROR(rate!L$17),0,rate!L$17)),0))","v":0},0,{"$f":"IF(ISBLANK(G357),IF((J357=0),0,IF(ISERROR(rate!$D$17),0,rate!$D$17)),IF(ISERROR(rate!$D$17),0,rate!$D$17))","v":0},0]
[335,null,null,null,null,null,null,"",{"$f":"IF(ISBLANK(G358),0,IF(H358=CURRENCY,(IF(ISERROR(rate!L$17),0,rate!L$17)),0))","v":0},0,{"$f":"IF(ISBLANK(G358),IF((J358=0),0,IF(ISERROR(rate!$D$17),0,rate!$D$17)),IF(ISERROR(rate!$D$17),0,rate!$D$17))","v":0},0]
[336,null,null,null,null,null,null,"",{"$f":"IF(ISBLANK(G359),0,IF(H359=CURRENCY,(IF(ISERROR(rate!L$17),0,rate!L$17)),0))","v":0},0,{"$f":"IF(ISBLANK(G359),IF((J359=0),0,IF(ISERROR(rate!$D$17),0,rate!$D$17)),IF(ISERROR(rate!$D$17),0,rate!$D$17))","v":0},0]
[337,null,null,null,null,null,null,"",{"$f":"IF(ISBLANK(G360),0,IF(H360=CURRENCY,(IF(ISERROR(rate!L$17),0,rate!L$17)),0))","v":0},0,{"$f":"IF(ISBLANK(G360),IF((J360=0),0,IF(ISERROR(rate!$D$17),0,rate!$D$17)),IF(ISERROR(rate!$D$17),0,rate!$D$17))","v":0},0]
[338,null,null,null,null,null,null,"",{"$f":"IF(ISBLANK(G361),0,IF(H361=CURRENCY,(IF(ISERROR(rate!L$17),0,rate!L$17)),0))","v":0},0,{"$f":"IF(ISBLANK(G361),IF((J361=0),0,IF(ISERROR(rate!$D$17),0,rate!$D$17)),IF(ISERROR(rate!$D$17),0,rate!$D$17))","v":0},0]
[339,null,null,null,null,null,null,"",{"$f":"IF(ISBLANK(G362),0,IF(H362=CURRENCY,(IF(ISERROR(rate!L$17),0,rate!L$17)),0))","v":0},0,{"$f":"IF(ISBLANK(G362),IF((J362=0),0,IF(ISERROR(rate!$D$17),0,rate!$D$17)),IF(ISERROR(rate!$D$17),0,rate!$D$17))","v":0},0]
[340,null,null,null,null,null,null,"",{"$f":"IF(ISBLANK(G363),0,IF(H363=CURRENCY,(IF(ISERROR(rate!L$17),0,rate!L$17)),0))","v":0},0,{"$f":"IF(ISBLANK(G363),IF((J363=0),0,IF(ISERROR(rate!$D$17),0,rate!$D$17)),IF(ISERROR(rate!$D$17),0,rate!$D$17))","v":0},0]
[341,null,null,null,null,null,null,"",{"$f":"IF(ISBLANK(G364),0,IF(H364=CURRENCY,(IF(ISERROR(rate!L$17),0,rate!L$17)),0))","v":0},0,{"$f":"IF(ISBLANK(G364),IF((J364=0),0,IF(ISERROR(rate!$D$17),0,rate!$D$17)),IF(ISERROR(rate!$D$17),0,rate!$D$17))","v":0},0]
[342,null,null,null,null,null,null,"",{"$f":"IF(ISBLANK(G365),0,IF(H365=CURRENCY,(IF(ISERROR(rate!L$17),0,rate!L$17)),0))","v":0},0,{"$f":"IF(ISBLANK(G365),IF((J365=0),0,IF(ISERROR(rate!$D$17),0,rate!$D$17)),IF(ISERROR(rate!$D$17),0,rate!$D$17))","v":0},0]
[343,null,null,null,null,null,null,"",{"$f":"IF(ISBLANK(G366),0,IF(H366=CURRENCY,(IF(ISERROR(rate!L$17),0,rate!L$17)),0))","v":0},0,{"$f":"IF(ISBLANK(G366),IF((J366=0),0,IF(ISERROR(rate!$D$17),0,rate!$D$17)),IF(ISERROR(rate!$D$17),0,rate!$D$17))","v":0},0]
[344,null,null,null,null,null,null,"",{"$f":"IF(ISBLANK(G367),0,IF(H367=CURRENCY,(IF(ISERROR(rate!L$17),0,rate!L$17)),0))","v":0},0,{"$f":"IF(ISBLANK(G367),IF((J367=0),0,IF(ISERROR(rate!$D$17),0,rate!$D$17)),IF(ISERROR(rate!$D$17),0,rate!$D$17))","v":0},0]
[345,null,null,null,null,null,null,"",{"$f":"IF(ISBLANK(G368),0,IF(H368=CURRENCY,(IF(ISERROR(rate!L$17),0,rate!L$17)),0))","v":0},0,{"$f":"IF(ISBLANK(G368),IF((J368=0),0,IF(ISERROR(rate!$D$17),0,rate!$D$17)),IF(ISERROR(rate!$D$17),0,rate!$D$17))","v":0},0]
[346,null,null,null,null,null,null,"",{"$f":"IF(ISBLANK(G369),0,IF(H369=CURRENCY,(IF(ISERROR(rate!L$17),0,rate!L$17)),0))","v":0},0,{"$f":"IF(ISBLANK(G369),IF((J369=0),0,IF(ISERROR(rate!$D$17),0,rate!$D$17)),IF(ISERROR(rate!$D$17),0,rate!$D$17))","v":0},0]
[347,null,null,null,null,null,null,"",{"$f":"IF(ISBLANK(G370),0,IF(H370=CURRENCY,(IF(ISERROR(rate!L$17),0,rate!L$17)),0))","v":0},0,{"$f":"IF(ISBLANK(G370),IF((J370=0),0,IF(ISERROR(rate!$D$17),0,rate!$D$17)),IF(ISERROR(rate!$D$17),0,rate!$D$17))","v":0},0]
[348,null,null,null,null,null,null,"",{"$f":"IF(ISBLANK(G371),0,IF(H371=CURRENCY,(IF(ISERROR(rate!L$17),0,rate!L$17)),0))","v":0},0,{"$f":"IF(ISBLANK(G371),IF((J371=0),0,IF(ISERROR(rate!$D$17),0,rate!$D$17)),IF(ISERROR(rate!$D$17),0,rate!$D$17))","v":0},0]
[349,null,null,null,null,null,null,"",{"$f":"IF(ISBLANK(G372),0,IF(H372=CURRENCY,(IF(ISERROR(rate!L$17),0,rate!L$17)),0))","v":0},0,{"$f":"IF(ISBLANK(G372),IF((J372=0),0,IF(ISERROR(rate!$D$17),0,rate!$D$17)),IF(ISERROR(rate!$D$17),0,rate!$D$17))","v":0},0]
[350,null,null,null,null,null,null,"",{"$f":"IF(ISBLANK(G373),0,IF(H373=CURRENCY,(IF(ISERROR(rate!L$17),0,rate!L$17)),0))","v":0},0,{"$f":"IF(ISBLANK(G373),IF((J373=0),0,IF(ISERROR(rate!$D$17),0,rate!$D$17)),IF(ISERROR(rate!$D$17),0,rate!$D$17))","v":0},0]
[351,null,null,null,null,null,null,"",{"$f":"IF(ISBLANK(G374),0,IF(H374=CURRENCY,(IF(ISERROR(rate!L$17),0,rate!L$17)),0))","v":0},0,{"$f":"IF(ISBLANK(G374),IF((J374=0),0,IF(ISERROR(rate!$D$17),0,rate!$D$17)),IF(ISERROR(rate!$D$17),0,rate!$D$17))","v":0},0]
[352,null,null,null,null,null,null,"",{"$f":"IF(ISBLANK(G375),0,IF(H375=CURRENCY,(IF(ISERROR(rate!L$17),0,rate!L$17)),0))","v":0},0,{"$f":"IF(ISBLANK(G375),IF((J375=0),0,IF(ISERROR(rate!$D$17),0,rate!$D$17)),IF(ISERROR(rate!$D$17),0,rate!$D$17))","v":0},0]
[353,null,null,null,null,null,null,"",{"$f":"IF(ISBLANK(G376),0,IF(H376=CURRENCY,(IF(ISERROR(rate!L$17),0,rate!L$17)),0))","v":0},0,{"$f":"IF(ISBLANK(G376),IF((J376=0),0,IF(ISERROR(rate!$D$17),0,rate!$D$17)),IF(ISERROR(rate!$D$17),0,rate!$D$17))","v":0},0]
[354,null,null,null,null,null,null,"",{"$f":"IF(ISBLANK(G377),0,IF(H377=CURRENCY,(IF(ISERROR(rate!L$17),0,rate!L$17)),0))","v":0},0,{"$f":"IF(ISBLANK(G377),IF((J377=0),0,IF(ISERROR(rate!$D$17),0,rate!$D$17)),IF(ISERROR(rate!$D$17),0,rate!$D$17))","v":0},0]
[355,null,null,null,null,null,null,"",{"$f":"IF(ISBLANK(G378),0,IF(H378=CURRENCY,(IF(ISERROR(rate!L$17),0,rate!L$17)),0))","v":0},0,{"$f":"IF(ISBLANK(G378),IF((J378=0),0,IF(ISERROR(rate!$D$17),0,rate!$D$17)),IF(ISERROR(rate!$D$17),0,rate!$D$17))","v":0},0]
[356,null,null,null,null,null,null,"",{"$f":"IF(ISBLANK(G379),0,IF(H379=CURRENCY,(IF(ISERROR(rate!L$17),0,rate!L$17)),0))","v":0},0,{"$f":"IF(ISBLANK(G379),IF((J379=0),0,IF(ISERROR(rate!$D$17),0,rate!$D$17)),IF(ISERROR(rate!$D$17),0,rate!$D$17))","v":0},0]
[357,null,null,null,null,null,null,"",{"$f":"IF(ISBLANK(G380),0,IF(H380=CURRENCY,(IF(ISERROR(rate!L$17),0,rate!L$17)),0))","v":0},0,{"$f":"IF(ISBLANK(G380),IF((J380=0),0,IF(ISERROR(rate!$D$17),0,rate!$D$17)),IF(ISERROR(rate!$D$17),0,rate!$D$17))","v":0},0]
[358,null,null,null,null,null,null,"",{"$f":"IF(ISBLANK(G381),0,IF(H381=CURRENCY,(IF(ISERROR(rate!L$17),0,rate!L$17)),0))","v":0},0,{"$f":"IF(ISBLANK(G381),IF((J381=0),0,IF(ISERROR(rate!$D$17),0,rate!$D$17)),IF(ISERROR(rate!$D$17),0,rate!$D$17))","v":0},0]
[359,null,null,null,null,null,null,"",{"$f":"IF(ISBLANK(G382),0,IF(H382=CURRENCY,(IF(ISERROR(rate!L$17),0,rate!L$17)),0))","v":0},0,{"$f":"IF(ISBLANK(G382),IF((J382=0),0,IF(ISERROR(rate!$D$17),0,rate!$D$17)),IF(ISERROR(rate!$D$17),0,rate!$D$17))","v":0},0]
[360,null,null,null,null,null,null,"",{"$f":"IF(ISBLANK(G383),0,IF(H383=CURRENCY,(IF(ISERROR(rate!L$17),0,rate!L$17)),0))","v":0},0,{"$f":"IF(ISBLANK(G383),IF((J383=0),0,IF(ISERROR(rate!$D$17),0,rate!$D$17)),IF(ISERROR(rate!$D$17),0,rate!$D$17))","v":0},0]
[361,null,null,null,null,null,null,"",{"$f":"IF(ISBLANK(G384),0,IF(H384=CURRENCY,(IF(ISERROR(rate!L$17),0,rate!L$17)),0))","v":0},0,{"$f":"IF(ISBLANK(G384),IF((J384=0),0,IF(ISERROR(rate!$D$17),0,rate!$D$17)),IF(ISERROR(rate!$D$17),0,rate!$D$17))","v":0},0]
[362,null,null,null,null,null,null,"",{"$f":"IF(ISBLANK(G385),0,IF(H385=CURRENCY,(IF(ISERROR(rate!L$17),0,rate!L$17)),0))","v":0},0,{"$f":"IF(ISBLANK(G385),IF((J385=0),0,IF(ISERROR(rate!$D$17),0,rate!$D$17)),IF(ISERROR(rate!$D$17),0,rate!$D$17))","v":0},0]
[363,null,null,null,null,null,null,"",{"$f":"IF(ISBLANK(G386),0,IF(H386=CURRENCY,(IF(ISERROR(rate!L$17),0,rate!L$17)),0))","v":0},0,{"$f":"IF(ISBLANK(G386),IF((J386=0),0,IF(ISERROR(rate!$D$17),0,rate!$D$17)),IF(ISERROR(rate!$D$17),0,rate!$D$17))","v":0},0]
[364,null,null,null,null,null,null,"",{"$f":"IF(ISBLANK(G387),0,IF(H387=CURRENCY,(IF(ISERROR(rate!L$17),0,rate!L$17)),0))","v":0},0,{"$f":"IF(ISBLANK(G387),IF((J387=0),0,IF(ISERROR(rate!$D$17),0,rate!$D$17)),IF(ISERROR(rate!$D$17),0,rate!$D$17))","v":0},0]
[365,null,null,null,null,null,null,"",{"$f":"IF(ISBLANK(G388),0,IF(H388=CURRENCY,(IF(ISERROR(rate!L$17),0,rate!L$17)),0))","v":0},0,{"$f":"IF(ISBLANK(G388),IF((J388=0),0,IF(ISERROR(rate!$D$17),0,rate!$D$17)),IF(ISERROR(rate!$D$17),0,rate!$D$17))","v":0},0]
[366,null,null,null,null,null,null,"",{"$f":"IF(ISBLANK(G389),0,IF(H389=CURRENCY,(IF(ISERROR(rate!L$17),0,rate!L$17)),0))","v":0},0,{"$f":"IF(ISBLANK(G389),IF((J389=0),0,IF(ISERROR(rate!$D$17),0,rate!$D$17)),IF(ISERROR(rate!$D$17),0,rate!$D$17))","v":0},0]
[367,null,null,null,null,null,null,"",{"$f":"IF(ISBLANK(G390),0,IF(H390=CURRENCY,(IF(ISERROR(rate!L$17),0,rate!L$17)),0))","v":0},0,{"$f":"IF(ISBLANK(G390),IF((J390=0),0,IF(ISERROR(rate!$D$17),0,rate!$D$17)),IF(ISERROR(rate!$D$17),0,rate!$D$17))","v":0},0]
[368,null,null,null,null,null,null,"",{"$f":"IF(ISBLANK(G391),0,IF(H391=CURRENCY,(IF(ISERROR(rate!L$17),0,rate!L$17)),0))","v":0},0,{"$f":"IF(ISBLANK(G391),IF((J391=0),0,IF(ISERROR(rate!$D$17),0,rate!$D$17)),IF(ISERROR(rate!$D$17),0,rate!$D$17))","v":0},0]
[369,null,null,null,null,null,null,"",{"$f":"IF(ISBLANK(G392),0,IF(H392=CURRENCY,(IF(ISERROR(rate!L$17),0,rate!L$17)),0))","v":0},0,{"$f":"IF(ISBLANK(G392),IF((J392=0),0,IF(ISERROR(rate!$D$17),0,rate!$D$17)),IF(ISERROR(rate!$D$17),0,rate!$D$17))","v":0},0]
[370,null,null,null,null,null,null,"",{"$f":"IF(ISBLANK(G393),0,IF(H393=CURRENCY,(IF(ISERROR(rate!L$17),0,rate!L$17)),0))","v":0},0,{"$f":"IF(ISBLANK(G393),IF((J393=0),0,IF(ISERROR(rate!$D$17),0,rate!$D$17)),IF(ISERROR(rate!$D$17),0,rate!$D$17))","v":0},0]
[371,null,null,null,null,null,null,"",{"$f":"IF(ISBLANK(G394),0,IF(H394=CURRENCY,(IF(ISERROR(rate!L$17),0,rate!L$17)),0))","v":0},0,{"$f":"IF(ISBLANK(G394),IF((J394=0),0,IF(ISERROR(rate!$D$17),0,rate!$D$17)),IF(ISERROR(rate!$D$17),0,rate!$D$17))","v":0},0]
[372,null,null,null,null,null,null,"",{"$f":"IF(ISBLANK(G395),0,IF(H395=CURRENCY,(IF(ISERROR(rate!L$17),0,rate!L$17)),0))","v":0},0,{"$f":"IF(ISBLANK(G395),IF((J395=0),0,IF(ISERROR(rate!$D$17),0,rate!$D$17)),IF(ISERROR(rate!$D$17),0,rate!$D$17))","v":0},0]
[373,null,null,null,null,null,null,"",{"$f":"IF(ISBLANK(G396),0,IF(H396=CURRENCY,(IF(ISERROR(rate!L$17),0,rate!L$17)),0))","v":0},0,{"$f":"IF(ISBLANK(G396),IF((J396=0),0,IF(ISERROR(rate!$D$17),0,rate!$D$17)),IF(ISERROR(rate!$D$17),0,rate!$D$17))","v":0},0]
[374,null,null,null,null,null,null,"",{"$f":"IF(ISBLANK(G397),0,IF(H397=CURRENCY,(IF(ISERROR(rate!L$17),0,rate!L$17)),0))","v":0},0,{"$f":"IF(ISBLANK(G397),IF((J397=0),0,IF(ISERROR(rate!$D$17),0,rate!$D$17)),IF(ISERROR(rate!$D$17),0,rate!$D$17))","v":0},0]
[375,null,null,null,null,null,null,"",{"$f":"IF(ISBLANK(G398),0,IF(H398=CURRENCY,(IF(ISERROR(rate!L$17),0,rate!L$17)),0))","v":0},0,{"$f":"IF(ISBLANK(G398),IF((J398=0),0,IF(ISERROR(rate!$D$17),0,rate!$D$17)),IF(ISERROR(rate!$D$17),0,rate!$D$17))","v":0},0]
[376,null,null,null,null,null,null,"",{"$f":"IF(ISBLANK(G399),0,IF(H399=CURRENCY,(IF(ISERROR(rate!L$17),0,rate!L$17)),0))","v":0},0,{"$f":"IF(ISBLANK(G399),IF((J399=0),0,IF(ISERROR(rate!$D$17),0,rate!$D$17)),IF(ISERROR(rate!$D$17),0,rate!$D$17))","v":0},0]
[377,null,null,null,null,null,null,"",{"$f":"IF(ISBLANK(G400),0,IF(H400=CURRENCY,(IF(ISERROR(rate!L$17),0,rate!L$17)),0))","v":0},0,{"$f":"IF(ISBLANK(G400),IF((J400=0),0,IF(ISERROR(rate!$D$17),0,rate!$D$17)),IF(ISERROR(rate!$D$17),0,rate!$D$17))","v":0},0]
[378,null,null,null,null,null,null,"",{"$f":"IF(ISBLANK(G401),0,IF(H401=CURRENCY,(IF(ISERROR(rate!L$17),0,rate!L$17)),0))","v":0},0,{"$f":"IF(ISBLANK(G401),IF((J401=0),0,IF(ISERROR(rate!$D$17),0,rate!$D$17)),IF(ISERROR(rate!$D$17),0,rate!$D$17))","v":0},0]
[379,null,null,null,null,null,null,"",{"$f":"IF(ISBLANK(G402),0,IF(H402=CURRENCY,(IF(ISERROR(rate!L$17),0,rate!L$17)),0))","v":0},0,{"$f":"IF(ISBLANK(G402),IF((J402=0),0,IF(ISERROR(rate!$D$17),0,rate!$D$17)),IF(ISERROR(rate!$D$17),0,rate!$D$17))","v":0},0]
[380,null,null,null,null,null,null,"",{"$f":"IF(ISBLANK(G403),0,IF(H403=CURRENCY,(IF(ISERROR(rate!L$17),0,rate!L$17)),0))","v":0},0,{"$f":"IF(ISBLANK(G403),IF((J403=0),0,IF(ISERROR(rate!$D$17),0,rate!$D$17)),IF(ISERROR(rate!$D$17),0,rate!$D$17))","v":0},0]
[381,null,null,null,null,null,null,"",{"$f":"IF(ISBLANK(G404),0,IF(H404=CURRENCY,(IF(ISERROR(rate!L$17),0,rate!L$17)),0))","v":0},0,{"$f":"IF(ISBLANK(G404),IF((J404=0),0,IF(ISERROR(rate!$D$17),0,rate!$D$17)),IF(ISERROR(rate!$D$17),0,rate!$D$17))","v":0},0]
[382,null,null,null,null,null,null,"",{"$f":"IF(ISBLANK(G405),0,IF(H405=CURRENCY,(IF(ISERROR(rate!L$17),0,rate!L$17)),0))","v":0},0,{"$f":"IF(ISBLANK(G405),IF((J405=0),0,IF(ISERROR(rate!$D$17),0,rate!$D$17)),IF(ISERROR(rate!$D$17),0,rate!$D$17))","v":0},0]
[383,null,null,null,null,null,null,"",{"$f":"IF(ISBLANK(G406),0,IF(H406=CURRENCY,(IF(ISERROR(rate!L$17),0,rate!L$17)),0))","v":0},0,{"$f":"IF(ISBLANK(G406),IF((J406=0),0,IF(ISERROR(rate!$D$17),0,rate!$D$17)),IF(ISERROR(rate!$D$17),0,rate!$D$17))","v":0},0]
[384,null,null,null,null,null,null,"",{"$f":"IF(ISBLANK(G407),0,IF(H407=CURRENCY,(IF(ISERROR(rate!L$17),0,rate!L$17)),0))","v":0},0,{"$f":"IF(ISBLANK(G407),IF((J407=0),0,IF(ISERROR(rate!$D$17),0,rate!$D$17)),IF(ISERROR(rate!$D$17),0,rate!$D$17))","v":0},0]
[385,null,null,null,null,null,null,{"$f":"IF(ISBLANK(G408),\"\",+CURRENCY)","v":""},{"$f":"IF(ISBLANK(G408),0,IF(H408=CURRENCY,(IF(ISERROR(rate!L$17),0,rate!L$17)),0))","v":0},{"$f":"IF(ISERROR(+G408/I408),0,+G408/I408)","v":0},{"$f":"IF(ISBLANK(G408),IF((J408=0),0,IF(ISERROR(rate!$D$17),0,rate!$D$17)),IF(ISERROR(rate!$D$17),0,rate!$D$17))","v":0},{"$f":"IF(ISERROR(+K408*J408),0,+K408*J408)","v":0}]
[386,null,null,null,null,null,null,"",{"$f":"IF(ISBLANK(G409),0,IF(H409=CURRENCY,(IF(ISERROR(rate!L$17),0,rate!L$17)),0))","v":0},0,{"$f":"IF(ISBLANK(G409),IF((J409=0),0,IF(ISERROR(rate!$D$17),0,rate!$D$17)),IF(ISERROR(rate!$D$17),0,rate!$D$17))","v":0},0]
[387,null,null,null,null,null,null,"",{"$f":"IF(ISBLANK(G410),0,IF(H410=CURRENCY,(IF(ISERROR(rate!L$17),0,rate!L$17)),0))","v":0},0,{"$f":"IF(ISBLANK(G410),IF((J410=0),0,IF(ISERROR(rate!$D$17),0,rate!$D$17)),IF(ISERROR(rate!$D$17),0,rate!$D$17))","v":0},0]
[388,null,null,null,null,null,null,"",{"$f":"IF(ISBLANK(G411),0,IF(H411=CURRENCY,(IF(ISERROR(rate!L$17),0,rate!L$17)),0))","v":0},0,{"$f":"IF(ISBLANK(G411),IF((J411=0),0,IF(ISERROR(rate!$D$17),0,rate!$D$17)),IF(ISERROR(rate!$D$17),0,rate!$D$17))","v":0},0]
[389,null,null,null,null,null,null,"",{"$f":"IF(ISBLANK(G412),0,IF(H412=CURRENCY,(IF(ISERROR(rate!L$17),0,rate!L$17)),0))","v":0},0,{"$f":"IF(ISBLANK(G412),IF((J412=0),0,IF(ISERROR(rate!$D$17),0,rate!$D$17)),IF(ISERROR(rate!$D$17),0,rate!$D$17))","v":0},0]
[390,null,null,null,null,null,null,"",{"$f":"IF(ISBLANK(G413),0,IF(H413=CURRENCY,(IF(ISERROR(rate!L$17),0,rate!L$17)),0))","v":0},0,{"$f":"IF(ISBLANK(G413),IF((J413=0),0,IF(ISERROR(rate!$D$17),0,rate!$D$17)),IF(ISERROR(rate!$D$17),0,rate!$D$17))","v":0},0]
[391,null,null,null,null,null,null,"",{"$f":"IF(ISBLANK(G414),0,IF(H414=CURRENCY,(IF(ISERROR(rate!L$17),0,rate!L$17)),0))","v":0},0,{"$f":"IF(ISBLANK(G414),IF((J414=0),0,IF(ISERROR(rate!$D$17),0,rate!$D$17)),IF(ISERROR(rate!$D$17),0,rate!$D$17))","v":0},0]
[392,null,null,null,null,null,null,"",{"$f":"IF(ISBLANK(G415),0,IF(H415=CURRENCY,(IF(ISERROR(rate!L$17),0,rate!L$17)),0))","v":0},0,{"$f":"IF(ISBLANK(G415),IF((J415=0),0,IF(ISERROR(rate!$D$17),0,rate!$D$17)),IF(ISERROR(rate!$D$17),0,rate!$D$17))","v":0},0]
[393,null,null,null,null,null,null,"",{"$f":"IF(ISBLANK(G416),0,IF(H416=CURRENCY,(IF(ISERROR(rate!L$17),0,rate!L$17)),0))","v":0},0,{"$f":"IF(ISBLANK(G416),IF((J416=0),0,IF(ISERROR(rate!$D$17),0,rate!$D$17)),IF(ISERROR(rate!$D$17),0,rate!$D$17))","v":0},0]
[394,null,null,null,null,null,null,"",{"$f":"IF(ISBLANK(G417),0,IF(H417=CURRENCY,(IF(ISERROR(rate!L$17),0,rate!L$17)),0))","v":0},0,{"$f":"IF(ISBLANK(G417),IF((J417=0),0,IF(ISERROR(rate!$D$17),0,rate!$D$17)),IF(ISERROR(rate!$D$17),0,rate!$D$17))","v":0},0]
[395,null,null,null,null,null,null,"",{"$f":"IF(ISBLANK(G418),0,IF(H418=CURRENCY,(IF(ISERROR(rate!L$17),0,rate!L$17)),0))","v":0},0,{"$f":"IF(ISBLANK(G418),IF((J418=0),0,IF(ISERROR(rate!$D$17),0,rate!$D$17)),IF(ISERROR(rate!$D$17),0,rate!$D$17))","v":0},0]
[396,null,null,null,null,null,null,"",{"$f":"IF(ISBLANK(G419),0,IF(H419=CURRENCY,(IF(ISERROR(rate!L$17),0,rate!L$17)),0))","v":0},0,{"$f":"IF(ISBLANK(G419),IF((J419=0),0,IF(ISERROR(rate!$D$17),0,rate!$D$17)),IF(ISERROR(rate!$D$17),0,rate!$D$17))","v":0},0]
[397,null,null,null,null,null,null,"",{"$f":"IF(ISBLANK(G420),0,IF(H420=CURRENCY,(IF(ISERROR(rate!L$17),0,rate!L$17)),0))","v":0},0,{"$f":"IF(ISBLANK(G420),IF((J420=0),0,IF(ISERROR(rate!$D$17),0,rate!$D$17)),IF(ISERROR(rate!$D$17),0,rate!$D$17))","v":0},0]
[398,null,null,null,null,null,null,"",{"$f":"IF(ISBLANK(G421),0,IF(H421=CURRENCY,(IF(ISERROR(rate!L$17),0,rate!L$17)),0))","v":0},0,{"$f":"IF(ISBLANK(G421),IF((J421=0),0,IF(ISERROR(rate!$D$17),0,rate!$D$17)),IF(ISERROR(rate!$D$17),0,rate!$D$17))","v":0},0]
[399,null,null,null,null,null,null,"",{"$f":"IF(ISBLANK(G422),0,IF(H422=CURRENCY,(IF(ISERROR(rate!L$17),0,rate!L$17)),0))","v":0},0,{"$f":"IF(ISBLANK(G422),IF((J422=0),0,IF(ISERROR(rate!$D$17),0,rate!$D$17)),IF(ISERROR(rate!$D$17),0,rate!$D$17))","v":0},0]
[400,null,null,null,null,null,null,"",{"$f":"IF(ISBLANK(G423),0,IF(H423=CURRENCY,(IF(ISERROR(rate!L$17),0,rate!L$17)),0))","v":0},0,{"$f":"IF(ISBLANK(G423),IF((J423=0),0,IF(ISERROR(rate!$D$17),0,rate!$D$17)),IF(ISERROR(rate!$D$17),0,rate!$D$17))","v":0},0]
[401,null,null,null,null,null,null,"",{"$f":"IF(ISBLANK(G424),0,IF(H424=CURRENCY,(IF(ISERROR(rate!L$17),0,rate!L$17)),0))","v":0},0,{"$f":"IF(ISBLANK(G424),IF((J424=0),0,IF(ISERROR(rate!$D$17),0,rate!$D$17)),IF(ISERROR(rate!$D$17),0,rate!$D$17))","v":0},0]
[402,null,null,null,null,null,null,"",{"$f":"IF(ISBLANK(G425),0,IF(H425=CURRENCY,(IF(ISERROR(rate!L$17),0,rate!L$17)),0))","v":0},0,{"$f":"IF(ISBLANK(G425),IF((J425=0),0,IF(ISERROR(rate!$D$17),0,rate!$D$17)),IF(ISERROR(rate!$D$17),0,rate!$D$17))","v":0},0]
[403,null,null,null,null,null,null,"",{"$f":"IF(ISBLANK(G426),0,IF(H426=CURRENCY,(IF(ISERROR(rate!L$17),0,rate!L$17)),0))","v":0},0,{"$f":"IF(ISBLANK(G426),IF((J426=0),0,IF(ISERROR(rate!$D$17),0,rate!$D$17)),IF(ISERROR(rate!$D$17),0,rate!$D$17))","v":0},0]
[404,null,null,null,null,null,null,"",{"$f":"IF(ISBLANK(G427),0,IF(H427=CURRENCY,(IF(ISERROR(rate!L$17),0,rate!L$17)),0))","v":0},0,{"$f":"IF(ISBLANK(G427),IF((J427=0),0,IF(ISERROR(rate!$D$17),0,rate!$D$17)),IF(ISERROR(rate!$D$17),0,rate!$D$17))","v":0},0]
[405,null,null,null,null,null,null,"",{"$f":"IF(ISBLANK(G428),0,IF(H428=CURRENCY,(IF(ISERROR(rate!L$17),0,rate!L$17)),0))","v":0},0,{"$f":"IF(ISBLANK(G428),IF((J428=0),0,IF(ISERROR(rate!$D$17),0,rate!$D$17)),IF(ISERROR(rate!$D$17),0,rate!$D$17))","v":0},0]
[406,null,null,null,null,null,null,"",{"$f":"IF(ISBLANK(G429),0,IF(H429=CURRENCY,(IF(ISERROR(rate!L$17),0,rate!L$17)),0))","v":0},0,{"$f":"IF(ISBLANK(G429),IF((J429=0),0,IF(ISERROR(rate!$D$17),0,rate!$D$17)),IF(ISERROR(rate!$D$17),0,rate!$D$17))","v":0},0]
[407,null,null,null,null,null,null,"",{"$f":"IF(ISBLANK(G430),0,IF(H430=CURRENCY,(IF(ISERROR(rate!L$17),0,rate!L$17)),0))","v":0},0,{"$f":"IF(ISBLANK(G430),IF((J430=0),0,IF(ISERROR(rate!$D$17),0,rate!$D$17)),IF(ISERROR(rate!$D$17),0,rate!$D$17))","v":0},0]
[408,null,null,null,null,null,null,"",{"$f":"IF(ISBLANK(G431),0,IF(H431=CURRENCY,(IF(ISERROR(rate!L$17),0,rate!L$17)),0))","v":0},0,{"$f":"IF(ISBLANK(G431),IF((J431=0),0,IF(ISERROR(rate!$D$17),0,rate!$D$17)),IF(ISERROR(rate!$D$17),0,rate!$D$17))","v":0},0]
[409,null,null,null,null,null,null,"",{"$f":"IF(ISBLANK(G432),0,IF(H432=CURRENCY,(IF(ISERROR(rate!L$17),0,rate!L$17)),0))","v":0},0,{"$f":"IF(ISBLANK(G432),IF((J432=0),0,IF(ISERROR(rate!$D$17),0,rate!$D$17)),IF(ISERROR(rate!$D$17),0,rate!$D$17))","v":0},0]
[410,null,null,null,null,null,null,"",{"$f":"IF(ISBLANK(G433),0,IF(H433=CURRENCY,(IF(ISERROR(rate!L$17),0,rate!L$17)),0))","v":0},0,{"$f":"IF(ISBLANK(G433),IF((J433=0),0,IF(ISERROR(rate!$D$17),0,rate!$D$17)),IF(ISERROR(rate!$D$17),0,rate!$D$17))","v":0},0]
[411,null,null,null,null,null,null,"",{"$f":"IF(ISBLANK(G434),0,IF(H434=CURRENCY,(IF(ISERROR(rate!L$17),0,rate!L$17)),0))","v":0},0,{"$f":"IF(ISBLANK(G434),IF((J434=0),0,IF(ISERROR(rate!$D$17),0,rate!$D$17)),IF(ISERROR(rate!$D$17),0,rate!$D$17))","v":0},0]
[412,null,null,null,null,null,null,"",{"$f":"IF(ISBLANK(G435),0,IF(H435=CURRENCY,(IF(ISERROR(rate!L$17),0,rate!L$17)),0))","v":0},0,{"$f":"IF(ISBLANK(G435),IF((J435=0),0,IF(ISERROR(rate!$D$17),0,rate!$D$17)),IF(ISERROR(rate!$D$17),0,rate!$D$17))","v":0},0]
[413,null,null,null,null,null,null,"",{"$f":"IF(ISBLANK(G436),0,IF(H436=CURRENCY,(IF(ISERROR(rate!L$17),0,rate!L$17)),0))","v":0},0,{"$f":"IF(ISBLANK(G436),IF((J436=0),0,IF(ISERROR(rate!$D$17),0,rate!$D$17)),IF(ISERROR(rate!$D$17),0,rate!$D$17))","v":0},0]
[414,null,null,null,null,null,null,"",{"$f":"IF(ISBLANK(G437),0,IF(H437=CURRENCY,(IF(ISERROR(rate!L$17),0,rate!L$17)),0))","v":0},0,{"$f":"IF(ISBLANK(G437),IF((J437=0),0,IF(ISERROR(rate!$D$17),0,rate!$D$17)),IF(ISERROR(rate!$D$17),0,rate!$D$17))","v":0},0]
[415,null,null,null,null,null,null,"",{"$f":"IF(ISBLANK(G438),0,IF(H438=CURRENCY,(IF(ISERROR(rate!L$17),0,rate!L$17)),0))","v":0},0,{"$f":"IF(ISBLANK(G438),IF((J438=0),0,IF(ISERROR(rate!$D$17),0,rate!$D$17)),IF(ISERROR(rate!$D$17),0,rate!$D$17))","v":0},0]
[416,null,null,null,null,null,null,"",{"$f":"IF(ISBLANK(G439),0,IF(H439=CURRENCY,(IF(ISERROR(rate!L$17),0,rate!L$17)),0))","v":0},0,{"$f":"IF(ISBLANK(G439),IF((J439=0),0,IF(ISERROR(rate!$D$17),0,rate!$D$17)),IF(ISERROR(rate!$D$17),0,rate!$D$17))","v":0},0]
[417,null,null,null,null,null,null,"",{"$f":"IF(ISBLANK(G440),0,IF(H440=CURRENCY,(IF(ISERROR(rate!L$17),0,rate!L$17)),0))","v":0},0,{"$f":"IF(ISBLANK(G440),IF((J440=0),0,IF(ISERROR(rate!$D$17),0,rate!$D$17)),IF(ISERROR(rate!$D$17),0,rate!$D$17))","v":0},0]
[418,null,null,null,null,null,null,"",{"$f":"IF(ISBLANK(G441),0,IF(H441=CURRENCY,(IF(ISERROR(rate!L$17),0,rate!L$17)),0))","v":0},0,{"$f":"IF(ISBLANK(G441),IF((J441=0),0,IF(ISERROR(rate!$D$17),0,rate!$D$17)),IF(ISERROR(rate!$D$17),0,rate!$D$17))","v":0},0]
[419,null,null,null,null,null,null,"",{"$f":"IF(ISBLANK(G442),0,IF(H442=CURRENCY,(IF(ISERROR(rate!L$17),0,rate!L$17)),0))","v":0},0,{"$f":"IF(ISBLANK(G442),IF((J442=0),0,IF(ISERROR(rate!$D$17),0,rate!$D$17)),IF(ISERROR(rate!$D$17),0,rate!$D$17))","v":0},0]
[420,null,null,null,null,null,null,"",{"$f":"IF(ISBLANK(G443),0,IF(H443=CURRENCY,(IF(ISERROR(rate!L$17),0,rate!L$17)),0))","v":0},0,{"$f":"IF(ISBLANK(G443),IF((J443=0),0,IF(ISERROR(rate!$D$17),0,rate!$D$17)),IF(ISERROR(rate!$D$17),0,rate!$D$17))","v":0},0]
[421,null,null,null,null,null,null,"",{"$f":"IF(ISBLANK(G444),0,IF(H444=CURRENCY,(IF(ISERROR(rate!L$17),0,rate!L$17)),0))","v":0},0,{"$f":"IF(ISBLANK(G444),IF((J444=0),0,IF(ISERROR(rate!$D$17),0,rate!$D$17)),IF(ISERROR(rate!$D$17),0,rate!$D$17))","v":0},0]
[422,null,null,null,null,null,null,"",{"$f":"IF(ISBLANK(G445),0,IF(H445=CURRENCY,(IF(ISERROR(rate!L$17),0,rate!L$17)),0))","v":0},0,{"$f":"IF(ISBLANK(G445),IF((J445=0),0,IF(ISERROR(rate!$D$17),0,rate!$D$17)),IF(ISERROR(rate!$D$17),0,rate!$D$17))","v":0},0]
[423,null,null,null,null,null,null,"",{"$f":"IF(ISBLANK(G446),0,IF(H446=CURRENCY,(IF(ISERROR(rate!L$17),0,rate!L$17)),0))","v":0},0,{"$f":"IF(ISBLANK(G446),IF((J446=0),0,IF(ISERROR(rate!$D$17),0,rate!$D$17)),IF(ISERROR(rate!$D$17),0,rate!$D$17))","v":0},0]
[424,null,null,null,null,null,null,"",{"$f":"IF(ISBLANK(G447),0,IF(H447=CURRENCY,(IF(ISERROR(rate!L$17),0,rate!L$17)),0))","v":0},0,{"$f":"IF(ISBLANK(G447),IF((J447=0),0,IF(ISERROR(rate!$D$17),0,rate!$D$17)),IF(ISERROR(rate!$D$17),0,rate!$D$17))","v":0},0]
[425,null,null,null,null,null,null,"",{"$f":"IF(ISBLANK(G448),0,IF(H448=CURRENCY,(IF(ISERROR(rate!L$17),0,rate!L$17)),0))","v":0},0,{"$f":"IF(ISBLANK(G448),IF((J448=0),0,IF(ISERROR(rate!$D$17),0,rate!$D$17)),IF(ISERROR(rate!$D$17),0,rate!$D$17))","v":0},0]
[426,null,null,null,null,null,null,"",{"$f":"IF(ISBLANK(G449),0,IF(H449=CURRENCY,(IF(ISERROR(rate!L$17),0,rate!L$17)),0))","v":0},0,{"$f":"IF(ISBLANK(G449),IF((J449=0),0,IF(ISERROR(rate!$D$17),0,rate!$D$17)),IF(ISERROR(rate!$D$17),0,rate!$D$17))","v":0},0]
[427,null,null,null,null,null,null,"",{"$f":"IF(ISBLANK(G450),0,IF(H450=CURRENCY,(IF(ISERROR(rate!L$17),0,rate!L$17)),0))","v":0},0,{"$f":"IF(ISBLANK(G450),IF((J450=0),0,IF(ISERROR(rate!$D$17),0,rate!$D$17)),IF(ISERROR(rate!$D$17),0,rate!$D$17))","v":0},0]
[428,null,null,null,null,null,null,"",{"$f":"IF(ISBLANK(G451),0,IF(H451=CURRENCY,(IF(ISERROR(rate!L$17),0,rate!L$17)),0))","v":0},0,{"$f":"IF(ISBLANK(G451),IF((J451=0),0,IF(ISERROR(rate!$D$17),0,rate!$D$17)),IF(ISERROR(rate!$D$17),0,rate!$D$17))","v":0},0]
[429,null,null,null,null,null,null,"",{"$f":"IF(ISBLANK(G452),0,IF(H452=CURRENCY,(IF(ISERROR(rate!L$17),0,rate!L$17)),0))","v":0},0,{"$f":"IF(ISBLANK(G452),IF((J452=0),0,IF(ISERROR(rate!$D$17),0,rate!$D$17)),IF(ISERROR(rate!$D$17),0,rate!$D$17))","v":0},0]
[430,null,null,null,null,null,null,"",{"$f":"IF(ISBLANK(G453),0,IF(H453=CURRENCY,(IF(ISERROR(rate!L$17),0,rate!L$17)),0))","v":0},0,{"$f":"IF(ISBLANK(G453),IF((J453=0),0,IF(ISERROR(rate!$D$17),0,rate!$D$17)),IF(ISERROR(rate!$D$17),0,rate!$D$17))","v":0},0]
[431,null,null,null,null,null,null,"",{"$f":"IF(ISBLANK(G454),0,IF(H454=CURRENCY,(IF(ISERROR(rate!L$17),0,rate!L$17)),0))","v":0},0,{"$f":"IF(ISBLANK(G454),IF((J454=0),0,IF(ISERROR(rate!$D$17),0,rate!$D$17)),IF(ISERROR(rate!$D$17),0,rate!$D$17))","v":0},0]
[432,null,null,null,null,null,null,"",{"$f":"IF(ISBLANK(G455),0,IF(H455=CURRENCY,(IF(ISERROR(rate!L$17),0,rate!L$17)),0))","v":0},0,{"$f":"IF(ISBLANK(G455),IF((J455=0),0,IF(ISERROR(rate!$D$17),0,rate!$D$17)),IF(ISERROR(rate!$D$17),0,rate!$D$17))","v":0},0]
[433,null,null,null,null,null,null,"",{"$f":"IF(ISBLANK(G456),0,IF(H456=CURRENCY,(IF(ISERROR(rate!L$17),0,rate!L$17)),0))","v":0},0,{"$f":"IF(ISBLANK(G456),IF((J456=0),0,IF(ISERROR(rate!$D$17),0,rate!$D$17)),IF(ISERROR(rate!$D$17),0,rate!$D$17))","v":0},0]
[434,null,null,null,null,null,null,"",{"$f":"IF(ISBLANK(G457),0,IF(H457=CURRENCY,(IF(ISERROR(rate!L$17),0,rate!L$17)),0))","v":0},0,{"$f":"IF(ISBLANK(G457),IF((J457=0),0,IF(ISERROR(rate!$D$17),0,rate!$D$17)),IF(ISERROR(rate!$D$17),0,rate!$D$17))","v":0},0]
[435,null,null,null,null,null,null,"",{"$f":"IF(ISBLANK(G458),0,IF(H458=CURRENCY,(IF(ISERROR(rate!L$17),0,rate!L$17)),0))","v":0},0,{"$f":"IF(ISBLANK(G458),IF((J458=0),0,IF(ISERROR(rate!$D$17),0,rate!$D$17)),IF(ISERROR(rate!$D$17),0,rate!$D$17))","v":0},0]
[436,null,null,null,null,null,null,"",{"$f":"IF(ISBLANK(G459),0,IF(H459=CURRENCY,(IF(ISERROR(rate!L$17),0,rate!L$17)),0))","v":0},0,{"$f":"IF(ISBLANK(G459),IF((J459=0),0,IF(ISERROR(rate!$D$17),0,rate!$D$17)),IF(ISERROR(rate!$D$17),0,rate!$D$17))","v":0},0]
[437,null,null,null,null,null,null,"",{"$f":"IF(ISBLANK(G460),0,IF(H460=CURRENCY,(IF(ISERROR(rate!L$17),0,rate!L$17)),0))","v":0},0,{"$f":"IF(ISBLANK(G460),IF((J460=0),0,IF(ISERROR(rate!$D$17),0,rate!$D$17)),IF(ISERROR(rate!$D$17),0,rate!$D$17))","v":0},0]
[438,null,null,null,null,null,null,"",{"$f":"IF(ISBLANK(G461),0,IF(H461=CURRENCY,(IF(ISERROR(rate!L$17),0,rate!L$17)),0))","v":0},0,{"$f":"IF(ISBLANK(G461),IF((J461=0),0,IF(ISERROR(rate!$D$17),0,rate!$D$17)),IF(ISERROR(rate!$D$17),0,rate!$D$17))","v":0},0]
[439,null,null,null,null,null,null,"",{"$f":"IF(ISBLANK(G462),0,IF(H462=CURRENCY,(IF(ISERROR(rate!L$17),0,rate!L$17)),0))","v":0},0,{"$f":"IF(ISBLANK(G462),IF((J462=0),0,IF(ISERROR(rate!$D$17),0,rate!$D$17)),IF(ISERROR(rate!$D$17),0,rate!$D$17))","v":0},0]
[440,null,null,null,null,null,null,"",{"$f":"IF(ISBLANK(G463),0,IF(H463=CURRENCY,(IF(ISERROR(rate!L$17),0,rate!L$17)),0))","v":0},0,{"$f":"IF(ISBLANK(G463),IF((J463=0),0,IF(ISERROR(rate!$D$17),0,rate!$D$17)),IF(ISERROR(rate!$D$17),0,rate!$D$17))","v":0},0]
[441,null,null,null,null,null,null,"",{"$f":"IF(ISBLANK(G464),0,IF(H464=CURRENCY,(IF(ISERROR(rate!L$17),0,rate!L$17)),0))","v":0},0,{"$f":"IF(ISBLANK(G464),IF((J464=0),0,IF(ISERROR(rate!$D$17),0,rate!$D$17)),IF(ISERROR(rate!$D$17),0,rate!$D$17))","v":0},0]
[442,null,null,null,null,null,null,"",{"$f":"IF(ISBLANK(G465),0,IF(H465=CURRENCY,(IF(ISERROR(rate!L$17),0,rate!L$17)),0))","v":0},0,{"$f":"IF(ISBLANK(G465),IF((J465=0),0,IF(ISERROR(rate!$D$17),0,rate!$D$17)),IF(ISERROR(rate!$D$17),0,rate!$D$17))","v":0},0]
[443,null,null,null,null,null,null,"",{"$f":"IF(ISBLANK(G466),0,IF(H466=CURRENCY,(IF(ISERROR(rate!L$17),0,rate!L$17)),0))","v":0},0,{"$f":"IF(ISBLANK(G466),IF((J466=0),0,IF(ISERROR(rate!$D$17),0,rate!$D$17)),IF(ISERROR(rate!$D$17),0,rate!$D$17))","v":0},0]
[444,null,null,null,null,null,null,"",{"$f":"IF(ISBLANK(G467),0,IF(H467=CURRENCY,(IF(ISERROR(rate!L$17),0,rate!L$17)),0))","v":0},0,{"$f":"IF(ISBLANK(G467),IF((J467=0),0,IF(ISERROR(rate!$D$17),0,rate!$D$17)),IF(ISERROR(rate!$D$17),0,rate!$D$17))","v":0},0]
[445,null,null,null,null,null,null,"",{"$f":"IF(ISBLANK(G468),0,IF(H468=CURRENCY,(IF(ISERROR(rate!L$17),0,rate!L$17)),0))","v":0},0,{"$f":"IF(ISBLANK(G468),IF((J468=0),0,IF(ISERROR(rate!$D$17),0,rate!$D$17)),IF(ISERROR(rate!$D$17),0,rate!$D$17))","v":0},0]
[446,null,null,null,null,null,null,"",{"$f":"IF(ISBLANK(G469),0,IF(H469=CURRENCY,(IF(ISERROR(rate!L$17),0,rate!L$17)),0))","v":0},0,{"$f":"IF(ISBLANK(G469),IF((J469=0),0,IF(ISERROR(rate!$D$17),0,rate!$D$17)),IF(ISERROR(rate!$D$17),0,rate!$D$17))","v":0},0]
[447,null,null,null,null,null,null,"",{"$f":"IF(ISBLANK(G470),0,IF(H470=CURRENCY,(IF(ISERROR(rate!L$17),0,rate!L$17)),0))","v":0},0,{"$f":"IF(ISBLANK(G470),IF((J470=0),0,IF(ISERROR(rate!$D$17),0,rate!$D$17)),IF(ISERROR(rate!$D$17),0,rate!$D$17))","v":0},0]
[448,null,null,null,null,null,null,"",{"$f":"IF(ISBLANK(G471),0,IF(H471=CURRENCY,(IF(ISERROR(rate!L$17),0,rate!L$17)),0))","v":0},0,{"$f":"IF(ISBLANK(G471),IF((J471=0),0,IF(ISERROR(rate!$D$17),0,rate!$D$17)),IF(ISERROR(rate!$D$17),0,rate!$D$17))","v":0},0]
[449,null,null,null,null,null,null,{"$f":"IF(ISBLANK(G472),\"\",+CURRENCY)","v":""},{"$f":"IF(ISBLANK(G472),0,IF(H472=CURRENCY,(IF(ISERROR(rate!L$17),0,rate!L$17)),0))","v":0},{"$f":"IF(ISERROR(+G472/I472),0,+G472/I472)","v":0},{"$f":"IF(ISBLANK(G472),IF((J472=0),0,IF(ISERROR(rate!$D$17),0,rate!$D$17)),IF(ISERROR(rate!$D$17),0,rate!$D$17))","v":0},{"$f":"IF(ISERROR(+K472*J472),0,+K472*J472)","v":0}]
[450,null,null,null,null,null,null,"",{"$f":"IF(ISBLANK(G473),0,IF(H473=CURRENCY,(IF(ISERROR(rate!L$17),0,rate!L$17)),0))","v":0},0,{"$f":"IF(ISBLANK(G473),IF((J473=0),0,IF(ISERROR(rate!$D$17),0,rate!$D$17)),IF(ISERROR(rate!$D$17),0,rate!$D$17))","v":0},0]
[451,null,null,null,null,null,null,"",{"$f":"IF(ISBLANK(G474),0,IF(H474=CURRENCY,(IF(ISERROR(rate!L$17),0,rate!L$17)),0))","v":0},0,{"$f":"IF(ISBLANK(G474),IF((J474=0),0,IF(ISERROR(rate!$D$17),0,rate!$D$17)),IF(ISERROR(rate!$D$17),0,rate!$D$17))","v":0},0]
[452,null,null,null,null,null,null,"",{"$f":"IF(ISBLANK(G475),0,IF(H475=CURRENCY,(IF(ISERROR(rate!L$17),0,rate!L$17)),0))","v":0},0,{"$f":"IF(ISBLANK(G475),IF((J475=0),0,IF(ISERROR(rate!$D$17),0,rate!$D$17)),IF(ISERROR(rate!$D$17),0,rate!$D$17))","v":0},0]
[453,null,null,null,null,null,null,"",{"$f":"IF(ISBLANK(G476),0,IF(H476=CURRENCY,(IF(ISERROR(rate!L$17),0,rate!L$17)),0))","v":0},0,{"$f":"IF(ISBLANK(G476),IF((J476=0),0,IF(ISERROR(rate!$D$17),0,rate!$D$17)),IF(ISERROR(rate!$D$17),0,rate!$D$17))","v":0},0]
[454,null,null,null,null,null,null,"",{"$f":"IF(ISBLANK(G477),0,IF(H477=CURRENCY,(IF(ISERROR(rate!L$17),0,rate!L$17)),0))","v":0},0,{"$f":"IF(ISBLANK(G477),IF((J477=0),0,IF(ISERROR(rate!$D$17),0,rate!$D$17)),IF(ISERROR(rate!$D$17),0,rate!$D$17))","v":0},0]
[455,null,null,null,null,null,null,"",{"$f":"IF(ISBLANK(G478),0,IF(H478=CURRENCY,(IF(ISERROR(rate!L$17),0,rate!L$17)),0))","v":0},0,{"$f":"IF(ISBLANK(G478),IF((J478=0),0,IF(ISERROR(rate!$D$17),0,rate!$D$17)),IF(ISERROR(rate!$D$17),0,rate!$D$17))","v":0},0]
[456,null,null,null,null,null,null,"",{"$f":"IF(ISBLANK(G479),0,IF(H479=CURRENCY,(IF(ISERROR(rate!L$17),0,rate!L$17)),0))","v":0},0,{"$f":"IF(ISBLANK(G479),IF((J479=0),0,IF(ISERROR(rate!$D$17),0,rate!$D$17)),IF(ISERROR(rate!$D$17),0,rate!$D$17))","v":0},0]
[457,null,null,null,null,null,null,"",{"$f":"IF(ISBLANK(G480),0,IF(H480=CURRENCY,(IF(ISERROR(rate!L$17),0,rate!L$17)),0))","v":0},0,{"$f":"IF(ISBLANK(G480),IF((J480=0),0,IF(ISERROR(rate!$D$17),0,rate!$D$17)),IF(ISERROR(rate!$D$17),0,rate!$D$17))","v":0},0]
[458,null,null,null,null,null,null,"",{"$f":"IF(ISBLANK(G481),0,IF(H481=CURRENCY,(IF(ISERROR(rate!L$17),0,rate!L$17)),0))","v":0},0,{"$f":"IF(ISBLANK(G481),IF((J481=0),0,IF(ISERROR(rate!$D$17),0,rate!$D$17)),IF(ISERROR(rate!$D$17),0,rate!$D$17))","v":0},0]
[459,null,null,null,null,null,null,"",{"$f":"IF(ISBLANK(G482),0,IF(H482=CURRENCY,(IF(ISERROR(rate!L$17),0,rate!L$17)),0))","v":0},0,{"$f":"IF(ISBLANK(G482),IF((J482=0),0,IF(ISERROR(rate!$D$17),0,rate!$D$17)),IF(ISERROR(rate!$D$17),0,rate!$D$17))","v":0},0]
[460,null,null,null,null,null,null,"",{"$f":"IF(ISBLANK(G483),0,IF(H483=CURRENCY,(IF(ISERROR(rate!L$17),0,rate!L$17)),0))","v":0},0,{"$f":"IF(ISBLANK(G483),IF((J483=0),0,IF(ISERROR(rate!$D$17),0,rate!$D$17)),IF(ISERROR(rate!$D$17),0,rate!$D$17))","v":0},0]
[461,null,null,null,null,null,null,"",{"$f":"IF(ISBLANK(G484),0,IF(H484=CURRENCY,(IF(ISERROR(rate!L$17),0,rate!L$17)),0))","v":0},0,{"$f":"IF(ISBLANK(G484),IF((J484=0),0,IF(ISERROR(rate!$D$17),0,rate!$D$17)),IF(ISERROR(rate!$D$17),0,rate!$D$17))","v":0},0]
[462,null,null,null,null,null,null,"",{"$f":"IF(ISBLANK(G485),0,IF(H485=CURRENCY,(IF(ISERROR(rate!L$17),0,rate!L$17)),0))","v":0},0,{"$f":"IF(ISBLANK(G485),IF((J485=0),0,IF(ISERROR(rate!$D$17),0,rate!$D$17)),IF(ISERROR(rate!$D$17),0,rate!$D$17))","v":0},0]
[463,null,null,null,null,null,null,"",{"$f":"IF(ISBLANK(G486),0,IF(H486=CURRENCY,(IF(ISERROR(rate!L$17),0,rate!L$17)),0))","v":0},0,{"$f":"IF(ISBLANK(G486),IF((J486=0),0,IF(ISERROR(rate!$D$17),0,rate!$D$17)),IF(ISERROR(rate!$D$17),0,rate!$D$17))","v":0},0]
[464,null,null,null,null,null,null,"",{"$f":"IF(ISBLANK(G487),0,IF(H487=CURRENCY,(IF(ISERROR(rate!L$17),0,rate!L$17)),0))","v":0},0,{"$f":"IF(ISBLANK(G487),IF((J487=0),0,IF(ISERROR(rate!$D$17),0,rate!$D$17)),IF(ISERROR(rate!$D$17),0,rate!$D$17))","v":0},0]
[465,null,null,null,null,null,null,"",{"$f":"IF(ISBLANK(G488),0,IF(H488=CURRENCY,(IF(ISERROR(rate!L$17),0,rate!L$17)),0))","v":0},0,{"$f":"IF(ISBLANK(G488),IF((J488=0),0,IF(ISERROR(rate!$D$17),0,rate!$D$17)),IF(ISERROR(rate!$D$17),0,rate!$D$17))","v":0},0]
[466,null,null,null,null,null,null,"",{"$f":"IF(ISBLANK(G489),0,IF(H489=CURRENCY,(IF(ISERROR(rate!L$17),0,rate!L$17)),0))","v":0},0,{"$f":"IF(ISBLANK(G489),IF((J489=0),0,IF(ISERROR(rate!$D$17),0,rate!$D$17)),IF(ISERROR(rate!$D$17),0,rate!$D$17))","v":0},0]
[467,null,null,null,null,null,null,"",{"$f":"IF(ISBLANK(G490),0,IF(H490=CURRENCY,(IF(ISERROR(rate!L$17),0,rate!L$17)),0))","v":0},0,{"$f":"IF(ISBLANK(G490),IF((J490=0),0,IF(ISERROR(rate!$D$17),0,rate!$D$17)),IF(ISERROR(rate!$D$17),0,rate!$D$17))","v":0},0]
[468,null,null,null,null,null,null,"",{"$f":"IF(ISBLANK(G491),0,IF(H491=CURRENCY,(IF(ISERROR(rate!L$17),0,rate!L$17)),0))","v":0},0,{"$f":"IF(ISBLANK(G491),IF((J491=0),0,IF(ISERROR(rate!$D$17),0,rate!$D$17)),IF(ISERROR(rate!$D$17),0,rate!$D$17))","v":0},0]
[469,null,null,null,null,null,null,"",{"$f":"IF(ISBLANK(G492),0,IF(H492=CURRENCY,(IF(ISERROR(rate!L$17),0,rate!L$17)),0))","v":0},0,{"$f":"IF(ISBLANK(G492),IF((J492=0),0,IF(ISERROR(rate!$D$17),0,rate!$D$17)),IF(ISERROR(rate!$D$17),0,rate!$D$17))","v":0},0]
[470,null,null,null,null,null,null,"",{"$f":"IF(ISBLANK(G493),0,IF(H493=CURRENCY,(IF(ISERROR(rate!L$17),0,rate!L$17)),0))","v":0},0,{"$f":"IF(ISBLANK(G493),IF((J493=0),0,IF(ISERROR(rate!$D$17),0,rate!$D$17)),IF(ISERROR(rate!$D$17),0,rate!$D$17))","v":0},0]
[471,null,null,null,null,null,null,"",{"$f":"IF(ISBLANK(G494),0,IF(H494=CURRENCY,(IF(ISERROR(rate!L$17),0,rate!L$17)),0))","v":0},0,{"$f":"IF(ISBLANK(G494),IF((J494=0),0,IF(ISERROR(rate!$D$17),0,rate!$D$17)),IF(ISERROR(rate!$D$17),0,rate!$D$17))","v":0},0]
[472,null,null,null,null,null,null,"",{"$f":"IF(ISBLANK(G495),0,IF(H495=CURRENCY,(IF(ISERROR(rate!L$17),0,rate!L$17)),0))","v":0},0,{"$f":"IF(ISBLANK(G495),IF((J495=0),0,IF(ISERROR(rate!$D$17),0,rate!$D$17)),IF(ISERROR(rate!$D$17),0,rate!$D$17))","v":0},0]
[473,null,null,null,null,null,null,"",{"$f":"IF(ISBLANK(G496),0,IF(H496=CURRENCY,(IF(ISERROR(rate!L$17),0,rate!L$17)),0))","v":0},0,{"$f":"IF(ISBLANK(G496),IF((J496=0),0,IF(ISERROR(rate!$D$17),0,rate!$D$17)),IF(ISERROR(rate!$D$17),0,rate!$D$17))","v":0},0]
[474,null,null,null,null,null,null,"",{"$f":"IF(ISBLANK(G497),0,IF(H497=CURRENCY,(IF(ISERROR(rate!L$17),0,rate!L$17)),0))","v":0},0,{"$f":"IF(ISBLANK(G497),IF((J497=0),0,IF(ISERROR(rate!$D$17),0,rate!$D$17)),IF(ISERROR(rate!$D$17),0,rate!$D$17))","v":0},0]
[475,null,null,null,null,null,null,"",{"$f":"IF(ISBLANK(G498),0,IF(H498=CURRENCY,(IF(ISERROR(rate!L$17),0,rate!L$17)),0))","v":0},0,{"$f":"IF(ISBLANK(G498),IF((J498=0),0,IF(ISERROR(rate!$D$17),0,rate!$D$17)),IF(ISERROR(rate!$D$17),0,rate!$D$17))","v":0},0]
[476,null,null,null,null,null,null,"",{"$f":"IF(ISBLANK(G499),0,IF(H499=CURRENCY,(IF(ISERROR(rate!L$17),0,rate!L$17)),0))","v":0},0,{"$f":"IF(ISBLANK(G499),IF((J499=0),0,IF(ISERROR(rate!$D$17),0,rate!$D$17)),IF(ISERROR(rate!$D$17),0,rate!$D$17))","v":0},0]
[477,null,null,null,null,null,null,"",{"$f":"IF(ISBLANK(G500),0,IF(H500=CURRENCY,(IF(ISERROR(rate!L$17),0,rate!L$17)),0))","v":0},0,{"$f":"IF(ISBLANK(G500),IF((J500=0),0,IF(ISERROR(rate!$D$17),0,rate!$D$17)),IF(ISERROR(rate!$D$17),0,rate!$D$17))","v":0},0]
[478,null,null,null,null,null,null,"",{"$f":"IF(ISBLANK(G501),0,IF(H501=CURRENCY,(IF(ISERROR(rate!L$17),0,rate!L$17)),0))","v":0},0,{"$f":"IF(ISBLANK(G501),IF((J501=0),0,IF(ISERROR(rate!$D$17),0,rate!$D$17)),IF(ISERROR(rate!$D$17),0,rate!$D$17))","v":0},0]
[479,null,null,null,null,null,null,"",{"$f":"IF(ISBLANK(G502),0,IF(H502=CURRENCY,(IF(ISERROR(rate!L$17),0,rate!L$17)),0))","v":0},0,{"$f":"IF(ISBLANK(G502),IF((J502=0),0,IF(ISERROR(rate!$D$17),0,rate!$D$17)),IF(ISERROR(rate!$D$17),0,rate!$D$17))","v":0},0]
[480,null,null,null,null,null,null,"",{"$f":"IF(ISBLANK(G503),0,IF(H503=CURRENCY,(IF(ISERROR(rate!L$17),0,rate!L$17)),0))","v":0},0,{"$f":"IF(ISBLANK(G503),IF((J503=0),0,IF(ISERROR(rate!$D$17),0,rate!$D$17)),IF(ISERROR(rate!$D$17),0,rate!$D$17))","v":0},0]
[481,null,null,null,null,null,null,"",{"$f":"IF(ISBLANK(G504),0,IF(H504=CURRENCY,(IF(ISERROR(rate!L$17),0,rate!L$17)),0))","v":0},0,{"$f":"IF(ISBLANK(G504),IF((J504=0),0,IF(ISERROR(rate!$D$17),0,rate!$D$17)),IF(ISERROR(rate!$D$17),0,rate!$D$17))","v":0},0]
[482,null,null,null,null,null,null,"",{"$f":"IF(ISBLANK(G505),0,IF(H505=CURRENCY,(IF(ISERROR(rate!L$17),0,rate!L$17)),0))","v":0},0,{"$f":"IF(ISBLANK(G505),IF((J505=0),0,IF(ISERROR(rate!$D$17),0,rate!$D$17)),IF(ISERROR(rate!$D$17),0,rate!$D$17))","v":0},0]
[483,null,null,null,null,null,null,"",{"$f":"IF(ISBLANK(G506),0,IF(H506=CURRENCY,(IF(ISERROR(rate!L$17),0,rate!L$17)),0))","v":0},0,{"$f":"IF(ISBLANK(G506),IF((J506=0),0,IF(ISERROR(rate!$D$17),0,rate!$D$17)),IF(ISERROR(rate!$D$17),0,rate!$D$17))","v":0},0]
[484,null,null,null,null,null,null,"",{"$f":"IF(ISBLANK(G507),0,IF(H507=CURRENCY,(IF(ISERROR(rate!L$17),0,rate!L$17)),0))","v":0},0,{"$f":"IF(ISBLANK(G507),IF((J507=0),0,IF(ISERROR(rate!$D$17),0,rate!$D$17)),IF(ISERROR(rate!$D$17),0,rate!$D$17))","v":0},0]
[485,null,null,null,null,null,null,"",{"$f":"IF(ISBLANK(G508),0,IF(H508=CURRENCY,(IF(ISERROR(rate!L$17),0,rate!L$17)),0))","v":0},0,{"$f":"IF(ISBLANK(G508),IF((J508=0),0,IF(ISERROR(rate!$D$17),0,rate!$D$17)),IF(ISERROR(rate!$D$17),0,rate!$D$17))","v":0},0]
[486,null,null,null,null,null,null,"",{"$f":"IF(ISBLANK(G509),0,IF(H509=CURRENCY,(IF(ISERROR(rate!L$17),0,rate!L$17)),0))","v":0},0,{"$f":"IF(ISBLANK(G509),IF((J509=0),0,IF(ISERROR(rate!$D$17),0,rate!$D$17)),IF(ISERROR(rate!$D$17),0,rate!$D$17))","v":0},0]
[487,null,null,null,null,null,null,"",{"$f":"IF(ISBLANK(G510),0,IF(H510=CURRENCY,(IF(ISERROR(rate!L$17),0,rate!L$17)),0))","v":0},0,{"$f":"IF(ISBLANK(G510),IF((J510=0),0,IF(ISERROR(rate!$D$17),0,rate!$D$17)),IF(ISERROR(rate!$D$17),0,rate!$D$17))","v":0},0]
[488,null,null,null,null,null,null,"",{"$f":"IF(ISBLANK(G511),0,IF(H511=CURRENCY,(IF(ISERROR(rate!L$17),0,rate!L$17)),0))","v":0},0,{"$f":"IF(ISBLANK(G511),IF((J511=0),0,IF(ISERROR(rate!$D$17),0,rate!$D$17)),IF(ISERROR(rate!$D$17),0,rate!$D$17))","v":0},0]
[489,null,null,null,null,null,null,"",{"$f":"IF(ISBLANK(G512),0,IF(H512=CURRENCY,(IF(ISERROR(rate!L$17),0,rate!L$17)),0))","v":0},0,{"$f":"IF(ISBLANK(G512),IF((J512=0),0,IF(ISERROR(rate!$D$17),0,rate!$D$17)),IF(ISERROR(rate!$D$17),0,rate!$D$17))","v":0},0]
[490,null,null,null,null,null,null,"",{"$f":"IF(ISBLANK(G513),0,IF(H513=CURRENCY,(IF(ISERROR(rate!L$17),0,rate!L$17)),0))","v":0},0,{"$f":"IF(ISBLANK(G513),IF((J513=0),0,IF(ISERROR(rate!$D$17),0,rate!$D$17)),IF(ISERROR(rate!$D$17),0,rate!$D$17))","v":0},0]
[491,null,null,null,null,null,null,"",{"$f":"IF(ISBLANK(G514),0,IF(H514=CURRENCY,(IF(ISERROR(rate!L$17),0,rate!L$17)),0))","v":0},0,{"$f":"IF(ISBLANK(G514),IF((J514=0),0,IF(ISERROR(rate!$D$17),0,rate!$D$17)),IF(ISERROR(rate!$D$17),0,rate!$D$17))","v":0},0]
[492,null,null,null,null,null,null,"",{"$f":"IF(ISBLANK(G515),0,IF(H515=CURRENCY,(IF(ISERROR(rate!L$17),0,rate!L$17)),0))","v":0},0,{"$f":"IF(ISBLANK(G515),IF((J515=0),0,IF(ISERROR(rate!$D$17),0,rate!$D$17)),IF(ISERROR(rate!$D$17),0,rate!$D$17))","v":0},0]
[493,null,null,null,null,null,null,"",{"$f":"IF(ISBLANK(G516),0,IF(H516=CURRENCY,(IF(ISERROR(rate!L$17),0,rate!L$17)),0))","v":0},0,{"$f":"IF(ISBLANK(G516),IF((J516=0),0,IF(ISERROR(rate!$D$17),0,rate!$D$17)),IF(ISERROR(rate!$D$17),0,rate!$D$17))","v":0},0]
[494,null,null,null,null,null,null,"",{"$f":"IF(ISBLANK(G517),0,IF(H517=CURRENCY,(IF(ISERROR(rate!L$17),0,rate!L$17)),0))","v":0},0,{"$f":"IF(ISBLANK(G517),IF((J517=0),0,IF(ISERROR(rate!$D$17),0,rate!$D$17)),IF(ISERROR(rate!$D$17),0,rate!$D$17))","v":0},0]
[495,null,null,null,null,null,null,"",{"$f":"IF(ISBLANK(G518),0,IF(H518=CURRENCY,(IF(ISERROR(rate!L$17),0,rate!L$17)),0))","v":0},0,{"$f":"IF(ISBLANK(G518),IF((J518=0),0,IF(ISERROR(rate!$D$17),0,rate!$D$17)),IF(ISERROR(rate!$D$17),0,rate!$D$17))","v":0},0]
[496,null,null,null,null,null,null,"",{"$f":"IF(ISBLANK(G519),0,IF(H519=CURRENCY,(IF(ISERROR(rate!L$17),0,rate!L$17)),0))","v":0},0,{"$f":"IF(ISBLANK(G519),IF((J519=0),0,IF(ISERROR(rate!$D$17),0,rate!$D$17)),IF(ISERROR(rate!$D$17),0,rate!$D$17))","v":0},0]
[497,null,null,null,null,null,null,"",{"$f":"IF(ISBLANK(G520),0,IF(H520=CURRENCY,(IF(ISERROR(rate!L$17),0,rate!L$17)),0))","v":0},0,{"$f":"IF(ISBLANK(G520),IF((J520=0),0,IF(ISERROR(rate!$D$17),0,rate!$D$17)),IF(ISERROR(rate!$D$17),0,rate!$D$17))","v":0},0]
[498,null,null,null,null,null,null,"",{"$f":"IF(ISBLANK(G521),0,IF(H521=CURRENCY,(IF(ISERROR(rate!L$17),0,rate!L$17)),0))","v":0},0,{"$f":"IF(ISBLANK(G521),IF((J521=0),0,IF(ISERROR(rate!$D$17),0,rate!$D$17)),IF(ISERROR(rate!$D$17),0,rate!$D$17))","v":0},0]
[499,null,null,null,null,null,null,"",{"$f":"IF(ISBLANK(G522),0,IF(H522=CURRENCY,(IF(ISERROR(rate!L$17),0,rate!L$17)),0))","v":0},0,{"$f":"IF(ISBLANK(G522),IF((J522=0),0,IF(ISERROR(rate!$D$17),0,rate!$D$17)),IF(ISERROR(rate!$D$17),0,rate!$D$17))","v":0},0]
[500,null,null,null,null,null,null,"",{"$f":"IF(ISBLANK(G523),0,IF(H523=CURRENCY,(IF(ISERROR(rate!L$17),0,rate!L$17)),0))","v":0},0,{"$f":"IF(ISBLANK(G523),IF((J523=0),0,IF(ISERROR(rate!$D$17),0,rate!$D$17)),IF(ISERROR(rate!$D$17),0,rate!$D$17))","v":0},0]
[501,null,null,null,null,null,null,"",{"$f":"IF(ISBLANK(G524),0,IF(H524=CURRENCY,(IF(ISERROR(rate!L$17),0,rate!L$17)),0))","v":0},0,{"$f":"IF(ISBLANK(G524),IF((J524=0),0,IF(ISERROR(rate!$D$17),0,rate!$D$17)),IF(ISERROR(rate!$D$17),0,rate!$D$17))","v":0},0]
[502,null,null,null,null,null,null,"",{"$f":"IF(ISBLANK(G525),0,IF(H525=CURRENCY,(IF(ISERROR(rate!L$17),0,rate!L$17)),0))","v":0},0,{"$f":"IF(ISBLANK(G525),IF((J525=0),0,IF(ISERROR(rate!$D$17),0,rate!$D$17)),IF(ISERROR(rate!$D$17),0,rate!$D$17))","v":0},0]
[503,null,null,null,null,null,null,"",{"$f":"IF(ISBLANK(G526),0,IF(H526=CURRENCY,(IF(ISERROR(rate!L$17),0,rate!L$17)),0))","v":0},0,{"$f":"IF(ISBLANK(G526),IF((J526=0),0,IF(ISERROR(rate!$D$17),0,rate!$D$17)),IF(ISERROR(rate!$D$17),0,rate!$D$17))","v":0},0]
[504,null,null,null,null,null,null,"",{"$f":"IF(ISBLANK(G527),0,IF(H527=CURRENCY,(IF(ISERROR(rate!L$17),0,rate!L$17)),0))","v":0},0,{"$f":"IF(ISBLANK(G527),IF((J527=0),0,IF(ISERROR(rate!$D$17),0,rate!$D$17)),IF(ISERROR(rate!$D$17),0,rate!$D$17))","v":0},0]
[505,null,null,null,null,null,null,"",{"$f":"IF(ISBLANK(G528),0,IF(H528=CURRENCY,(IF(ISERROR(rate!L$17),0,rate!L$17)),0))","v":0},0,{"$f":"IF(ISBLANK(G528),IF((J528=0),0,IF(ISERROR(rate!$D$17),0,rate!$D$17)),IF(ISERROR(rate!$D$17),0,rate!$D$17))","v":0},0]
[506,null,null,null,null,null,null,"",{"$f":"IF(ISBLANK(G529),0,IF(H529=CURRENCY,(IF(ISERROR(rate!L$17),0,rate!L$17)),0))","v":0},0,{"$f":"IF(ISBLANK(G529),IF((J529=0),0,IF(ISERROR(rate!$D$17),0,rate!$D$17)),IF(ISERROR(rate!$D$17),0,rate!$D$17))","v":0},0]
[507,null,null,null,null,null,null,"",{"$f":"IF(ISBLANK(G530),0,IF(H530=CURRENCY,(IF(ISERROR(rate!L$17),0,rate!L$17)),0))","v":0},0,{"$f":"IF(ISBLANK(G530),IF((J530=0),0,IF(ISERROR(rate!$D$17),0,rate!$D$17)),IF(ISERROR(rate!$D$17),0,rate!$D$17))","v":0},0]
[508,null,null,null,null,null,null,"",{"$f":"IF(ISBLANK(G531),0,IF(H531=CURRENCY,(IF(ISERROR(rate!L$17),0,rate!L$17)),0))","v":0},0,{"$f":"IF(ISBLANK(G531),IF((J531=0),0,IF(ISERROR(rate!$D$17),0,rate!$D$17)),IF(ISERROR(rate!$D$17),0,rate!$D$17))","v":0},0]
[509,null,null,null,null,null,null,"",{"$f":"IF(ISBLANK(G532),0,IF(H532=CURRENCY,(IF(ISERROR(rate!L$17),0,rate!L$17)),0))","v":0},0,{"$f":"IF(ISBLANK(G532),IF((J532=0),0,IF(ISERROR(rate!$D$17),0,rate!$D$17)),IF(ISERROR(rate!$D$17),0,rate!$D$17))","v":0},0]
[510,null,null,null,null,null,null,"",{"$f":"IF(ISBLANK(G533),0,IF(H533=CURRENCY,(IF(ISERROR(rate!L$17),0,rate!L$17)),0))","v":0},0,{"$f":"IF(ISBLANK(G533),IF((J533=0),0,IF(ISERROR(rate!$D$17),0,rate!$D$17)),IF(ISERROR(rate!$D$17),0,rate!$D$17))","v":0},0]
[511,null,null,null,null,null,null,"",{"$f":"IF(ISBLANK(G534),0,IF(H534=CURRENCY,(IF(ISERROR(rate!L$17),0,rate!L$17)),0))","v":0},0,{"$f":"IF(ISBLANK(G534),IF((J534=0),0,IF(ISERROR(rate!$D$17),0,rate!$D$17)),IF(ISERROR(rate!$D$17),0,rate!$D$17))","v":0},0]
[512,null,null,null,null,null,null,"",{"$f":"IF(ISBLANK(G535),0,IF(H535=CURRENCY,(IF(ISERROR(rate!L$17),0,rate!L$17)),0))","v":0},0,{"$f":"IF(ISBLANK(G535),IF((J535=0),0,IF(ISERROR(rate!$D$17),0,rate!$D$17)),IF(ISERROR(rate!$D$17),0,rate!$D$17))","v":0},0]
[513,null,null,null,null,null,null,{"$f":"IF(ISBLANK(G536),\"\",+CURRENCY)","v":""},{"$f":"IF(ISBLANK(G536),0,IF(H536=CURRENCY,(IF(ISERROR(rate!L$17),0,rate!L$17)),0))","v":0},{"$f":"IF(ISERROR(+G536/I536),0,+G536/I536)","v":0},{"$f":"IF(ISBLANK(G536),IF((J536=0),0,IF(ISERROR(rate!$D$17),0,rate!$D$17)),IF(ISERROR(rate!$D$17),0,rate!$D$17))","v":0},{"$f":"IF(ISERROR(+K536*J536),0,+K536*J536)","v":0}]
[514,null,null,null,null,null,null,"",{"$f":"IF(ISBLANK(G537),0,IF(H537=CURRENCY,(IF(ISERROR(rate!L$17),0,rate!L$17)),0))","v":0},0,{"$f":"IF(ISBLANK(G537),IF((J537=0),0,IF(ISERROR(rate!$D$17),0,rate!$D$17)),IF(ISERROR(rate!$D$17),0,rate!$D$17))","v":0},0]
[515,null,null,null,null,null,null,"",{"$f":"IF(ISBLANK(G538),0,IF(H538=CURRENCY,(IF(ISERROR(rate!L$17),0,rate!L$17)),0))","v":0},0,{"$f":"IF(ISBLANK(G538),IF((J538=0),0,IF(ISERROR(rate!$D$17),0,rate!$D$17)),IF(ISERROR(rate!$D$17),0,rate!$D$17))","v":0},0]
[516,null,null,null,null,null,null,"",{"$f":"IF(ISBLANK(G539),0,IF(H539=CURRENCY,(IF(ISERROR(rate!L$17),0,rate!L$17)),0))","v":0},0,{"$f":"IF(ISBLANK(G539),IF((J539=0),0,IF(ISERROR(rate!$D$17),0,rate!$D$17)),IF(ISERROR(rate!$D$17),0,rate!$D$17))","v":0},0]
[517,null,null,null,null,null,null,"",{"$f":"IF(ISBLANK(G540),0,IF(H540=CURRENCY,(IF(ISERROR(rate!L$17),0,rate!L$17)),0))","v":0},0,{"$f":"IF(ISBLANK(G540),IF((J540=0),0,IF(ISERROR(rate!$D$17),0,rate!$D$17)),IF(ISERROR(rate!$D$17),0,rate!$D$17))","v":0},0]
[518,null,null,null,null,null,null,"",{"$f":"IF(ISBLANK(G541),0,IF(H541=CURRENCY,(IF(ISERROR(rate!L$17),0,rate!L$17)),0))","v":0},0,{"$f":"IF(ISBLANK(G541),IF((J541=0),0,IF(ISERROR(rate!$D$17),0,rate!$D$17)),IF(ISERROR(rate!$D$17),0,rate!$D$17))","v":0},0]
[519,null,null,null,null,null,null,"",{"$f":"IF(ISBLANK(G542),0,IF(H542=CURRENCY,(IF(ISERROR(rate!L$17),0,rate!L$17)),0))","v":0},0,{"$f":"IF(ISBLANK(G542),IF((J542=0),0,IF(ISERROR(rate!$D$17),0,rate!$D$17)),IF(ISERROR(rate!$D$17),0,rate!$D$17))","v":0},0]
[520,null,null,null,null,null,null,"",{"$f":"IF(ISBLANK(G543),0,IF(H543=CURRENCY,(IF(ISERROR(rate!L$17),0,rate!L$17)),0))","v":0},0,{"$f":"IF(ISBLANK(G543),IF((J543=0),0,IF(ISERROR(rate!$D$17),0,rate!$D$17)),IF(ISERROR(rate!$D$17),0,rate!$D$17))","v":0},0]
[521,null,null,null,null,null,null,"",{"$f":"IF(ISBLANK(G544),0,IF(H544=CURRENCY,(IF(ISERROR(rate!L$17),0,rate!L$17)),0))","v":0},0,{"$f":"IF(ISBLANK(G544),IF((J544=0),0,IF(ISERROR(rate!$D$17),0,rate!$D$17)),IF(ISERROR(rate!$D$17),0,rate!$D$17))","v":0},0]
[522,null,null,null,null,null,null,"",{"$f":"IF(ISBLANK(G545),0,IF(H545=CURRENCY,(IF(ISERROR(rate!L$17),0,rate!L$17)),0))","v":0},0,{"$f":"IF(ISBLANK(G545),IF((J545=0),0,IF(ISERROR(rate!$D$17),0,rate!$D$17)),IF(ISERROR(rate!$D$17),0,rate!$D$17))","v":0},0]
[523,null,null,null,null,null,null,"",{"$f":"IF(ISBLANK(G546),0,IF(H546=CURRENCY,(IF(ISERROR(rate!L$17),0,rate!L$17)),0))","v":0},0,{"$f":"IF(ISBLANK(G546),IF((J546=0),0,IF(ISERROR(rate!$D$17),0,rate!$D$17)),IF(ISERROR(rate!$D$17),0,rate!$D$17))","v":0},0]
[524,null,null,null,null,null,null,"",{"$f":"IF(ISBLANK(G547),0,IF(H547=CURRENCY,(IF(ISERROR(rate!L$17),0,rate!L$17)),0))","v":0},0,{"$f":"IF(ISBLANK(G547),IF((J547=0),0,IF(ISERROR(rate!$D$17),0,rate!$D$17)),IF(ISERROR(rate!$D$17),0,rate!$D$17))","v":0},0]
[525,null,null,null,null,null,null,"",{"$f":"IF(ISBLANK(G548),0,IF(H548=CURRENCY,(IF(ISERROR(rate!L$17),0,rate!L$17)),0))","v":0},0,{"$f":"IF(ISBLANK(G548),IF((J548=0),0,IF(ISERROR(rate!$D$17),0,rate!$D$17)),IF(ISERROR(rate!$D$17),0,rate!$D$17))","v":0},0]
[526,null,null,null,null,null,null,"",{"$f":"IF(ISBLANK(G549),0,IF(H549=CURRENCY,(IF(ISERROR(rate!L$17),0,rate!L$17)),0))","v":0},0,{"$f":"IF(ISBLANK(G549),IF((J549=0),0,IF(ISERROR(rate!$D$17),0,rate!$D$17)),IF(ISERROR(rate!$D$17),0,rate!$D$17))","v":0},0]
[527,null,null,null,null,null,null,"",{"$f":"IF(ISBLANK(G550),0,IF(H550=CURRENCY,(IF(ISERROR(rate!L$17),0,rate!L$17)),0))","v":0},0,{"$f":"IF(ISBLANK(G550),IF((J550=0),0,IF(ISERROR(rate!$D$17),0,rate!$D$17)),IF(ISERROR(rate!$D$17),0,rate!$D$17))","v":0},0]
[528,null,null,null,null,null,null,"",{"$f":"IF(ISBLANK(G551),0,IF(H551=CURRENCY,(IF(ISERROR(rate!L$17),0,rate!L$17)),0))","v":0},0,{"$f":"IF(ISBLANK(G551),IF((J551=0),0,IF(ISERROR(rate!$D$17),0,rate!$D$17)),IF(ISERROR(rate!$D$17),0,rate!$D$17))","v":0},0]
[529,null,null,null,null,null,null,"",{"$f":"IF(ISBLANK(G552),0,IF(H552=CURRENCY,(IF(ISERROR(rate!L$17),0,rate!L$17)),0))","v":0},0,{"$f":"IF(ISBLANK(G552),IF((J552=0),0,IF(ISERROR(rate!$D$17),0,rate!$D$17)),IF(ISERROR(rate!$D$17),0,rate!$D$17))","v":0},0]
[530,null,null,null,null,null,null,"",{"$f":"IF(ISBLANK(G553),0,IF(H553=CURRENCY,(IF(ISERROR(rate!L$17),0,rate!L$17)),0))","v":0},0,{"$f":"IF(ISBLANK(G553),IF((J553=0),0,IF(ISERROR(rate!$D$17),0,rate!$D$17)),IF(ISERROR(rate!$D$17),0,rate!$D$17))","v":0},0]
[531,null,null,null,null,null,null,"",{"$f":"IF(ISBLANK(G554),0,IF(H554=CURRENCY,(IF(ISERROR(rate!L$17),0,rate!L$17)),0))","v":0},0,{"$f":"IF(ISBLANK(G554),IF((J554=0),0,IF(ISERROR(rate!$D$17),0,rate!$D$17)),IF(ISERROR(rate!$D$17),0,rate!$D$17))","v":0},0]
[532,null,null,null,null,null,null,"",{"$f":"IF(ISBLANK(G555),0,IF(H555=CURRENCY,(IF(ISERROR(rate!L$17),0,rate!L$17)),0))","v":0},0,{"$f":"IF(ISBLANK(G555),IF((J555=0),0,IF(ISERROR(rate!$D$17),0,rate!$D$17)),IF(ISERROR(rate!$D$17),0,rate!$D$17))","v":0},0]
[533,null,null,null,null,null,null,"",{"$f":"IF(ISBLANK(G556),0,IF(H556=CURRENCY,(IF(ISERROR(rate!L$17),0,rate!L$17)),0))","v":0},0,{"$f":"IF(ISBLANK(G556),IF((J556=0),0,IF(ISERROR(rate!$D$17),0,rate!$D$17)),IF(ISERROR(rate!$D$17),0,rate!$D$17))","v":0},0]
[534,null,null,null,null,null,null,"",{"$f":"IF(ISBLANK(G557),0,IF(H557=CURRENCY,(IF(ISERROR(rate!L$17),0,rate!L$17)),0))","v":0},0,{"$f":"IF(ISBLANK(G557),IF((J557=0),0,IF(ISERROR(rate!$D$17),0,rate!$D$17)),IF(ISERROR(rate!$D$17),0,rate!$D$17))","v":0},0]
[535,null,null,null,null,null,null,"",{"$f":"IF(ISBLANK(G558),0,IF(H558=CURRENCY,(IF(ISERROR(rate!L$17),0,rate!L$17)),0))","v":0},0,{"$f":"IF(ISBLANK(G558),IF((J558=0),0,IF(ISERROR(rate!$D$17),0,rate!$D$17)),IF(ISERROR(rate!$D$17),0,rate!$D$17))","v":0},0]
[536,null,null,null,null,null,null,"",{"$f":"IF(ISBLANK(G559),0,IF(H559=CURRENCY,(IF(ISERROR(rate!L$17),0,rate!L$17)),0))","v":0},0,{"$f":"IF(ISBLANK(G559),IF((J559=0),0,IF(ISERROR(rate!$D$17),0,rate!$D$17)),IF(ISERROR(rate!$D$17),0,rate!$D$17))","v":0},0]
[537,null,null,null,null,null,null,"",{"$f":"IF(ISBLANK(G560),0,IF(H560=CURRENCY,(IF(ISERROR(rate!L$17),0,rate!L$17)),0))","v":0},0,{"$f":"IF(ISBLANK(G560),IF((J560=0),0,IF(ISERROR(rate!$D$17),0,rate!$D$17)),IF(ISERROR(rate!$D$17),0,rate!$D$17))","v":0},0]
[538,null,null,null,null,null,null,"",{"$f":"IF(ISBLANK(G561),0,IF(H561=CURRENCY,(IF(ISERROR(rate!L$17),0,rate!L$17)),0))","v":0},0,{"$f":"IF(ISBLANK(G561),IF((J561=0),0,IF(ISERROR(rate!$D$17),0,rate!$D$17)),IF(ISERROR(rate!$D$17),0,rate!$D$17))","v":0},0]
[539,null,null,null,null,null,null,"",{"$f":"IF(ISBLANK(G562),0,IF(H562=CURRENCY,(IF(ISERROR(rate!L$17),0,rate!L$17)),0))","v":0},0,{"$f":"IF(ISBLANK(G562),IF((J562=0),0,IF(ISERROR(rate!$D$17),0,rate!$D$17)),IF(ISERROR(rate!$D$17),0,rate!$D$17))","v":0},0]
[540,null,null,null,null,null,null,"",{"$f":"IF(ISBLANK(G563),0,IF(H563=CURRENCY,(IF(ISERROR(rate!L$17),0,rate!L$17)),0))","v":0},0,{"$f":"IF(ISBLANK(G563),IF((J563=0),0,IF(ISERROR(rate!$D$17),0,rate!$D$17)),IF(ISERROR(rate!$D$17),0,rate!$D$17))","v":0},0]
[541,null,null,null,null,null,null,"",{"$f":"IF(ISBLANK(G564),0,IF(H564=CURRENCY,(IF(ISERROR(rate!L$17),0,rate!L$17)),0))","v":0},0,{"$f":"IF(ISBLANK(G564),IF((J564=0),0,IF(ISERROR(rate!$D$17),0,rate!$D$17)),IF(ISERROR(rate!$D$17),0,rate!$D$17))","v":0},0]
[542,null,null,null,null,null,null,"",{"$f":"IF(ISBLANK(G565),0,IF(H565=CURRENCY,(IF(ISERROR(rate!L$17),0,rate!L$17)),0))","v":0},0,{"$f":"IF(ISBLANK(G565),IF((J565=0),0,IF(ISERROR(rate!$D$17),0,rate!$D$17)),IF(ISERROR(rate!$D$17),0,rate!$D$17))","v":0},0]
[543,null,null,null,null,null,null,"",{"$f":"IF(ISBLANK(G566),0,IF(H566=CURRENCY,(IF(ISERROR(rate!L$17),0,rate!L$17)),0))","v":0},0,{"$f":"IF(ISBLANK(G566),IF((J566=0),0,IF(ISERROR(rate!$D$17),0,rate!$D$17)),IF(ISERROR(rate!$D$17),0,rate!$D$17))","v":0},0]
[544,null,null,null,null,null,null,"",{"$f":"IF(ISBLANK(G567),0,IF(H567=CURRENCY,(IF(ISERROR(rate!L$17),0,rate!L$17)),0))","v":0},0,{"$f":"IF(ISBLANK(G567),IF((J567=0),0,IF(ISERROR(rate!$D$17),0,rate!$D$17)),IF(ISERROR(rate!$D$17),0,rate!$D$17))","v":0},0]
[545,null,null,null,null,null,null,"",{"$f":"IF(ISBLANK(G568),0,IF(H568=CURRENCY,(IF(ISERROR(rate!L$17),0,rate!L$17)),0))","v":0},0,{"$f":"IF(ISBLANK(G568),IF((J568=0),0,IF(ISERROR(rate!$D$17),0,rate!$D$17)),IF(ISERROR(rate!$D$17),0,rate!$D$17))","v":0},0]
[546,null,null,null,null,null,null,"",{"$f":"IF(ISBLANK(G569),0,IF(H569=CURRENCY,(IF(ISERROR(rate!L$17),0,rate!L$17)),0))","v":0},0,{"$f":"IF(ISBLANK(G569),IF((J569=0),0,IF(ISERROR(rate!$D$17),0,rate!$D$17)),IF(ISERROR(rate!$D$17),0,rate!$D$17))","v":0},0]
[547,null,null,null,null,null,null,"",{"$f":"IF(ISBLANK(G570),0,IF(H570=CURRENCY,(IF(ISERROR(rate!L$17),0,rate!L$17)),0))","v":0},0,{"$f":"IF(ISBLANK(G570),IF((J570=0),0,IF(ISERROR(rate!$D$17),0,rate!$D$17)),IF(ISERROR(rate!$D$17),0,rate!$D$17))","v":0},0]
[548,null,null,null,null,null,null,"",{"$f":"IF(ISBLANK(G571),0,IF(H571=CURRENCY,(IF(ISERROR(rate!L$17),0,rate!L$17)),0))","v":0},0,{"$f":"IF(ISBLANK(G571),IF((J571=0),0,IF(ISERROR(rate!$D$17),0,rate!$D$17)),IF(ISERROR(rate!$D$17),0,rate!$D$17))","v":0},0]
[549,null,null,null,null,null,null,"",{"$f":"IF(ISBLANK(G572),0,IF(H572=CURRENCY,(IF(ISERROR(rate!L$17),0,rate!L$17)),0))","v":0},0,{"$f":"IF(ISBLANK(G572),IF((J572=0),0,IF(ISERROR(rate!$D$17),0,rate!$D$17)),IF(ISERROR(rate!$D$17),0,rate!$D$17))","v":0},0]
[550,null,null,null,null,null,null,"",{"$f":"IF(ISBLANK(G573),0,IF(H573=CURRENCY,(IF(ISERROR(rate!L$17),0,rate!L$17)),0))","v":0},0,{"$f":"IF(ISBLANK(G573),IF((J573=0),0,IF(ISERROR(rate!$D$17),0,rate!$D$17)),IF(ISERROR(rate!$D$17),0,rate!$D$17))","v":0},0]
[551,null,null,null,null,null,null,"",{"$f":"IF(ISBLANK(G574),0,IF(H574=CURRENCY,(IF(ISERROR(rate!L$17),0,rate!L$17)),0))","v":0},0,{"$f":"IF(ISBLANK(G574),IF((J574=0),0,IF(ISERROR(rate!$D$17),0,rate!$D$17)),IF(ISERROR(rate!$D$17),0,rate!$D$17))","v":0},0]
[552,null,null,null,null,null,null,"",{"$f":"IF(ISBLANK(G575),0,IF(H575=CURRENCY,(IF(ISERROR(rate!L$17),0,rate!L$17)),0))","v":0},0,{"$f":"IF(ISBLANK(G575),IF((J575=0),0,IF(ISERROR(rate!$D$17),0,rate!$D$17)),IF(ISERROR(rate!$D$17),0,rate!$D$17))","v":0},0]
[553,null,null,null,null,null,null,"",{"$f":"IF(ISBLANK(G576),0,IF(H576=CURRENCY,(IF(ISERROR(rate!L$17),0,rate!L$17)),0))","v":0},0,{"$f":"IF(ISBLANK(G576),IF((J576=0),0,IF(ISERROR(rate!$D$17),0,rate!$D$17)),IF(ISERROR(rate!$D$17),0,rate!$D$17))","v":0},0]
[554,null,null,null,null,null,null,"",{"$f":"IF(ISBLANK(G577),0,IF(H577=CURRENCY,(IF(ISERROR(rate!L$17),0,rate!L$17)),0))","v":0},0,{"$f":"IF(ISBLANK(G577),IF((J577=0),0,IF(ISERROR(rate!$D$17),0,rate!$D$17)),IF(ISERROR(rate!$D$17),0,rate!$D$17))","v":0},0]
[555,null,null,null,null,null,null,"",{"$f":"IF(ISBLANK(G578),0,IF(H578=CURRENCY,(IF(ISERROR(rate!L$17),0,rate!L$17)),0))","v":0},0,{"$f":"IF(ISBLANK(G578),IF((J578=0),0,IF(ISERROR(rate!$D$17),0,rate!$D$17)),IF(ISERROR(rate!$D$17),0,rate!$D$17))","v":0},0]
[556,null,null,null,null,null,null,"",{"$f":"IF(ISBLANK(G579),0,IF(H579=CURRENCY,(IF(ISERROR(rate!L$17),0,rate!L$17)),0))","v":0},0,{"$f":"IF(ISBLANK(G579),IF((J579=0),0,IF(ISERROR(rate!$D$17),0,rate!$D$17)),IF(ISERROR(rate!$D$17),0,rate!$D$17))","v":0},0]
[557,null,null,null,null,null,null,"",{"$f":"IF(ISBLANK(G580),0,IF(H580=CURRENCY,(IF(ISERROR(rate!L$17),0,rate!L$17)),0))","v":0},0,{"$f":"IF(ISBLANK(G580),IF((J580=0),0,IF(ISERROR(rate!$D$17),0,rate!$D$17)),IF(ISERROR(rate!$D$17),0,rate!$D$17))","v":0},0]
[558,null,null,null,null,null,null,"",{"$f":"IF(ISBLANK(G581),0,IF(H581=CURRENCY,(IF(ISERROR(rate!L$17),0,rate!L$17)),0))","v":0},0,{"$f":"IF(ISBLANK(G581),IF((J581=0),0,IF(ISERROR(rate!$D$17),0,rate!$D$17)),IF(ISERROR(rate!$D$17),0,rate!$D$17))","v":0},0]
[559,null,null,null,null,null,null,"",{"$f":"IF(ISBLANK(G582),0,IF(H582=CURRENCY,(IF(ISERROR(rate!L$17),0,rate!L$17)),0))","v":0},0,{"$f":"IF(ISBLANK(G582),IF((J582=0),0,IF(ISERROR(rate!$D$17),0,rate!$D$17)),IF(ISERROR(rate!$D$17),0,rate!$D$17))","v":0},0]
[560,null,null,null,null,null,null,"",{"$f":"IF(ISBLANK(G583),0,IF(H583=CURRENCY,(IF(ISERROR(rate!L$17),0,rate!L$17)),0))","v":0},0,{"$f":"IF(ISBLANK(G583),IF((J583=0),0,IF(ISERROR(rate!$D$17),0,rate!$D$17)),IF(ISERROR(rate!$D$17),0,rate!$D$17))","v":0},0]
[561,null,null,null,null,null,null,"",{"$f":"IF(ISBLANK(G584),0,IF(H584=CURRENCY,(IF(ISERROR(rate!L$17),0,rate!L$17)),0))","v":0},0,{"$f":"IF(ISBLANK(G584),IF((J584=0),0,IF(ISERROR(rate!$D$17),0,rate!$D$17)),IF(ISERROR(rate!$D$17),0,rate!$D$17))","v":0},0]
[562,null,null,null,null,null,null,"",{"$f":"IF(ISBLANK(G585),0,IF(H585=CURRENCY,(IF(ISERROR(rate!L$17),0,rate!L$17)),0))","v":0},0,{"$f":"IF(ISBLANK(G585),IF((J585=0),0,IF(ISERROR(rate!$D$17),0,rate!$D$17)),IF(ISERROR(rate!$D$17),0,rate!$D$17))","v":0},0]
[563,null,null,null,null,null,null,"",{"$f":"IF(ISBLANK(G586),0,IF(H586=CURRENCY,(IF(ISERROR(rate!L$17),0,rate!L$17)),0))","v":0},0,{"$f":"IF(ISBLANK(G586),IF((J586=0),0,IF(ISERROR(rate!$D$17),0,rate!$D$17)),IF(ISERROR(rate!$D$17),0,rate!$D$17))","v":0},0]
[564,null,null,null,null,null,null,"",{"$f":"IF(ISBLANK(G587),0,IF(H587=CURRENCY,(IF(ISERROR(rate!L$17),0,rate!L$17)),0))","v":0},0,{"$f":"IF(ISBLANK(G587),IF((J587=0),0,IF(ISERROR(rate!$D$17),0,rate!$D$17)),IF(ISERROR(rate!$D$17),0,rate!$D$17))","v":0},0]
[565,null,null,null,null,null,null,"",{"$f":"IF(ISBLANK(G588),0,IF(H588=CURRENCY,(IF(ISERROR(rate!L$17),0,rate!L$17)),0))","v":0},0,{"$f":"IF(ISBLANK(G588),IF((J588=0),0,IF(ISERROR(rate!$D$17),0,rate!$D$17)),IF(ISERROR(rate!$D$17),0,rate!$D$17))","v":0},0]
[566,null,null,null,null,null,null,"",{"$f":"IF(ISBLANK(G589),0,IF(H589=CURRENCY,(IF(ISERROR(rate!L$17),0,rate!L$17)),0))","v":0},0,{"$f":"IF(ISBLANK(G589),IF((J589=0),0,IF(ISERROR(rate!$D$17),0,rate!$D$17)),IF(ISERROR(rate!$D$17),0,rate!$D$17))","v":0},0]
[567,null,null,null,null,null,null,"",{"$f":"IF(ISBLANK(G590),0,IF(H590=CURRENCY,(IF(ISERROR(rate!L$17),0,rate!L$17)),0))","v":0},0,{"$f":"IF(ISBLANK(G590),IF((J590=0),0,IF(ISERROR(rate!$D$17),0,rate!$D$17)),IF(ISERROR(rate!$D$17),0,rate!$D$17))","v":0},0]
[568,null,null,null,null,null,null,"",{"$f":"IF(ISBLANK(G591),0,IF(H591=CURRENCY,(IF(ISERROR(rate!L$17),0,rate!L$17)),0))","v":0},0,{"$f":"IF(ISBLANK(G591),IF((J591=0),0,IF(ISERROR(rate!$D$17),0,rate!$D$17)),IF(ISERROR(rate!$D$17),0,rate!$D$17))","v":0},0]
[569,null,null,null,null,null,null,"",{"$f":"IF(ISBLANK(G592),0,IF(H592=CURRENCY,(IF(ISERROR(rate!L$17),0,rate!L$17)),0))","v":0},0,{"$f":"IF(ISBLANK(G592),IF((J592=0),0,IF(ISERROR(rate!$D$17),0,rate!$D$17)),IF(ISERROR(rate!$D$17),0,rate!$D$17))","v":0},0]
[570,null,null,null,null,null,null,"",{"$f":"IF(ISBLANK(G593),0,IF(H593=CURRENCY,(IF(ISERROR(rate!L$17),0,rate!L$17)),0))","v":0},0,{"$f":"IF(ISBLANK(G593),IF((J593=0),0,IF(ISERROR(rate!$D$17),0,rate!$D$17)),IF(ISERROR(rate!$D$17),0,rate!$D$17))","v":0},0]
[571,null,null,null,null,null,null,"",{"$f":"IF(ISBLANK(G594),0,IF(H594=CURRENCY,(IF(ISERROR(rate!L$17),0,rate!L$17)),0))","v":0},0,{"$f":"IF(ISBLANK(G594),IF((J594=0),0,IF(ISERROR(rate!$D$17),0,rate!$D$17)),IF(ISERROR(rate!$D$17),0,rate!$D$17))","v":0},0]
[572,null,null,null,null,null,null,"",{"$f":"IF(ISBLANK(G595),0,IF(H595=CURRENCY,(IF(ISERROR(rate!L$17),0,rate!L$17)),0))","v":0},0,{"$f":"IF(ISBLANK(G595),IF((J595=0),0,IF(ISERROR(rate!$D$17),0,rate!$D$17)),IF(ISERROR(rate!$D$17),0,rate!$D$17))","v":0},0]
[573,null,null,null,null,null,null,"",{"$f":"IF(ISBLANK(G596),0,IF(H596=CURRENCY,(IF(ISERROR(rate!L$17),0,rate!L$17)),0))","v":0},0,{"$f":"IF(ISBLANK(G596),IF((J596=0),0,IF(ISERROR(rate!$D$17),0,rate!$D$17)),IF(ISERROR(rate!$D$17),0,rate!$D$17))","v":0},0]
[574,null,null,null,null,null,null,"",{"$f":"IF(ISBLANK(G597),0,IF(H597=CURRENCY,(IF(ISERROR(rate!L$17),0,rate!L$17)),0))","v":0},0,{"$f":"IF(ISBLANK(G597),IF((J597=0),0,IF(ISERROR(rate!$D$17),0,rate!$D$17)),IF(ISERROR(rate!$D$17),0,rate!$D$17))","v":0},0]
[575,null,null,null,null,null,null,"",{"$f":"IF(ISBLANK(G598),0,IF(H598=CURRENCY,(IF(ISERROR(rate!L$17),0,rate!L$17)),0))","v":0},0,{"$f":"IF(ISBLANK(G598),IF((J598=0),0,IF(ISERROR(rate!$D$17),0,rate!$D$17)),IF(ISERROR(rate!$D$17),0,rate!$D$17))","v":0},0]
[576,null,null,null,null,null,null,"",{"$f":"IF(ISBLANK(G599),0,IF(H599=CURRENCY,(IF(ISERROR(rate!L$17),0,rate!L$17)),0))","v":0},0,{"$f":"IF(ISBLANK(G599),IF((J599=0),0,IF(ISERROR(rate!$D$17),0,rate!$D$17)),IF(ISERROR(rate!$D$17),0,rate!$D$17))","v":0},0]
[577,null,null,null,null,null,null,{"$f":"IF(ISBLANK(G600),\"\",+CURRENCY)","v":""},{"$f":"IF(ISBLANK(G600),0,IF(H600=CURRENCY,(IF(ISERROR(rate!L$17),0,rate!L$17)),0))","v":0},{"$f":"IF(ISERROR(+G600/I600),0,+G600/I600)","v":0},{"$f":"IF(ISBLANK(G600),IF((J600=0),0,IF(ISERROR(rate!$D$17),0,rate!$D$17)),IF(ISERROR(rate!$D$17),0,rate!$D$17))","v":0},{"$f":"IF(ISERROR(+K600*J600),0,+K600*J600)","v":0}]
[578,null,null,null,null,null,null,"",{"$f":"IF(ISBLANK(G601),0,IF(H601=CURRENCY,(IF(ISERROR(rate!L$17),0,rate!L$17)),0))","v":0},0,{"$f":"IF(ISBLANK(G601),IF((J601=0),0,IF(ISERROR(rate!$D$17),0,rate!$D$17)),IF(ISERROR(rate!$D$17),0,rate!$D$17))","v":0},0]
[579,null,null,null,null,null,null,"",{"$f":"IF(ISBLANK(G602),0,IF(H602=CURRENCY,(IF(ISERROR(rate!L$17),0,rate!L$17)),0))","v":0},0,{"$f":"IF(ISBLANK(G602),IF((J602=0),0,IF(ISERROR(rate!$D$17),0,rate!$D$17)),IF(ISERROR(rate!$D$17),0,rate!$D$17))","v":0},0]
[580,null,null,null,null,null,null,"",{"$f":"IF(ISBLANK(G603),0,IF(H603=CURRENCY,(IF(ISERROR(rate!L$17),0,rate!L$17)),0))","v":0},0,{"$f":"IF(ISBLANK(G603),IF((J603=0),0,IF(ISERROR(rate!$D$17),0,rate!$D$17)),IF(ISERROR(rate!$D$17),0,rate!$D$17))","v":0},0]
[581,null,null,null,null,null,null,"",{"$f":"IF(ISBLANK(G604),0,IF(H604=CURRENCY,(IF(ISERROR(rate!L$17),0,rate!L$17)),0))","v":0},0,{"$f":"IF(ISBLANK(G604),IF((J604=0),0,IF(ISERROR(rate!$D$17),0,rate!$D$17)),IF(ISERROR(rate!$D$17),0,rate!$D$17))","v":0},0]
[582,null,null,null,null,null,null,"",{"$f":"IF(ISBLANK(G605),0,IF(H605=CURRENCY,(IF(ISERROR(rate!L$17),0,rate!L$17)),0))","v":0},0,{"$f":"IF(ISBLANK(G605),IF((J605=0),0,IF(ISERROR(rate!$D$17),0,rate!$D$17)),IF(ISERROR(rate!$D$17),0,rate!$D$17))","v":0},0]
[583,null,null,null,null,null,null,"",{"$f":"IF(ISBLANK(G606),0,IF(H606=CURRENCY,(IF(ISERROR(rate!L$17),0,rate!L$17)),0))","v":0},0,{"$f":"IF(ISBLANK(G606),IF((J606=0),0,IF(ISERROR(rate!$D$17),0,rate!$D$17)),IF(ISERROR(rate!$D$17),0,rate!$D$17))","v":0},0]
[584,null,null,null,null,null,null,"",{"$f":"IF(ISBLANK(G607),0,IF(H607=CURRENCY,(IF(ISERROR(rate!L$17),0,rate!L$17)),0))","v":0},0,{"$f":"IF(ISBLANK(G607),IF((J607=0),0,IF(ISERROR(rate!$D$17),0,rate!$D$17)),IF(ISERROR(rate!$D$17),0,rate!$D$17))","v":0},0]
[585,null,null,null,null,null,null,"",{"$f":"IF(ISBLANK(G608),0,IF(H608=CURRENCY,(IF(ISERROR(rate!L$17),0,rate!L$17)),0))","v":0},0,{"$f":"IF(ISBLANK(G608),IF((J608=0),0,IF(ISERROR(rate!$D$17),0,rate!$D$17)),IF(ISERROR(rate!$D$17),0,rate!$D$17))","v":0},0]
[586,null,null,null,null,null,null,"",{"$f":"IF(ISBLANK(G609),0,IF(H609=CURRENCY,(IF(ISERROR(rate!L$17),0,rate!L$17)),0))","v":0},0,{"$f":"IF(ISBLANK(G609),IF((J609=0),0,IF(ISERROR(rate!$D$17),0,rate!$D$17)),IF(ISERROR(rate!$D$17),0,rate!$D$17))","v":0},0]
[587,null,null,null,null,null,null,"",{"$f":"IF(ISBLANK(G610),0,IF(H610=CURRENCY,(IF(ISERROR(rate!L$17),0,rate!L$17)),0))","v":0},0,{"$f":"IF(ISBLANK(G610),IF((J610=0),0,IF(ISERROR(rate!$D$17),0,rate!$D$17)),IF(ISERROR(rate!$D$17),0,rate!$D$17))","v":0},0]
[588,null,null,null,null,null,null,"",{"$f":"IF(ISBLANK(G611),0,IF(H611=CURRENCY,(IF(ISERROR(rate!L$17),0,rate!L$17)),0))","v":0},0,{"$f":"IF(ISBLANK(G611),IF((J611=0),0,IF(ISERROR(rate!$D$17),0,rate!$D$17)),IF(ISERROR(rate!$D$17),0,rate!$D$17))","v":0},0]
[589,null,null,null,null,null,null,"",{"$f":"IF(ISBLANK(G612),0,IF(H612=CURRENCY,(IF(ISERROR(rate!L$17),0,rate!L$17)),0))","v":0},0,{"$f":"IF(ISBLANK(G612),IF((J612=0),0,IF(ISERROR(rate!$D$17),0,rate!$D$17)),IF(ISERROR(rate!$D$17),0,rate!$D$17))","v":0},0]
[590,null,null,null,null,null,null,"",{"$f":"IF(ISBLANK(G613),0,IF(H613=CURRENCY,(IF(ISERROR(rate!L$17),0,rate!L$17)),0))","v":0},0,{"$f":"IF(ISBLANK(G613),IF((J613=0),0,IF(ISERROR(rate!$D$17),0,rate!$D$17)),IF(ISERROR(rate!$D$17),0,rate!$D$17))","v":0},0]
[591,null,null,null,null,null,null,"",{"$f":"IF(ISBLANK(G614),0,IF(H614=CURRENCY,(IF(ISERROR(rate!L$17),0,rate!L$17)),0))","v":0},0,{"$f":"IF(ISBLANK(G614),IF((J614=0),0,IF(ISERROR(rate!$D$17),0,rate!$D$17)),IF(ISERROR(rate!$D$17),0,rate!$D$17))","v":0},0]
[592,null,null,null,null,null,null,"",{"$f":"IF(ISBLANK(G615),0,IF(H615=CURRENCY,(IF(ISERROR(rate!L$17),0,rate!L$17)),0))","v":0},0,{"$f":"IF(ISBLANK(G615),IF((J615=0),0,IF(ISERROR(rate!$D$17),0,rate!$D$17)),IF(ISERROR(rate!$D$17),0,rate!$D$17))","v":0},0]
[593,null,null,null,null,null,null,"",{"$f":"IF(ISBLANK(G616),0,IF(H616=CURRENCY,(IF(ISERROR(rate!L$17),0,rate!L$17)),0))","v":0},0,{"$f":"IF(ISBLANK(G616),IF((J616=0),0,IF(ISERROR(rate!$D$17),0,rate!$D$17)),IF(ISERROR(rate!$D$17),0,rate!$D$17))","v":0},0]
[594,null,null,null,null,null,null,"",{"$f":"IF(ISBLANK(G617),0,IF(H617=CURRENCY,(IF(ISERROR(rate!L$17),0,rate!L$17)),0))","v":0},0,{"$f":"IF(ISBLANK(G617),IF((J617=0),0,IF(ISERROR(rate!$D$17),0,rate!$D$17)),IF(ISERROR(rate!$D$17),0,rate!$D$17))","v":0},0]
[595,null,null,null,null,null,null,"",{"$f":"IF(ISBLANK(G618),0,IF(H618=CURRENCY,(IF(ISERROR(rate!L$17),0,rate!L$17)),0))","v":0},0,{"$f":"IF(ISBLANK(G618),IF((J618=0),0,IF(ISERROR(rate!$D$17),0,rate!$D$17)),IF(ISERROR(rate!$D$17),0,rate!$D$17))","v":0},0]
[596,null,null,null,null,null,null,"",{"$f":"IF(ISBLANK(G619),0,IF(H619=CURRENCY,(IF(ISERROR(rate!L$17),0,rate!L$17)),0))","v":0},0,{"$f":"IF(ISBLANK(G619),IF((J619=0),0,IF(ISERROR(rate!$D$17),0,rate!$D$17)),IF(ISERROR(rate!$D$17),0,rate!$D$17))","v":0},0]
[597,null,null,null,null,null,null,"",{"$f":"IF(ISBLANK(G620),0,IF(H620=CURRENCY,(IF(ISERROR(rate!L$17),0,rate!L$17)),0))","v":0},0,{"$f":"IF(ISBLANK(G620),IF((J620=0),0,IF(ISERROR(rate!$D$17),0,rate!$D$17)),IF(ISERROR(rate!$D$17),0,rate!$D$17))","v":0},0]
[598,null,null,null,null,null,null,"",{"$f":"IF(ISBLANK(G621),0,IF(H621=CURRENCY,(IF(ISERROR(rate!L$17),0,rate!L$17)),0))","v":0},0,{"$f":"IF(ISBLANK(G621),IF((J621=0),0,IF(ISERROR(rate!$D$17),0,rate!$D$17)),IF(ISERROR(rate!$D$17),0,rate!$D$17))","v":0},0]
[599,null,null,null,null,null,null,"",{"$f":"IF(ISBLANK(G622),0,IF(H622=CURRENCY,(IF(ISERROR(rate!L$17),0,rate!L$17)),0))","v":0},0,{"$f":"IF(ISBLANK(G622),IF((J622=0),0,IF(ISERROR(rate!$D$17),0,rate!$D$17)),IF(ISERROR(rate!$D$17),0,rate!$D$17))","v":0},0]
[600,null,null,null,null,null,null,"",{"$f":"IF(ISBLANK(G623),0,IF(H623=CURRENCY,(IF(ISERROR(rate!L$17),0,rate!L$17)),0))","v":0},0,{"$f":"IF(ISBLANK(G623),IF((J623=0),0,IF(ISERROR(rate!$D$17),0,rate!$D$17)),IF(ISERROR(rate!$D$17),0,rate!$D$17))","v":0},0]
[601,null,null,null,null,null,null,"",{"$f":"IF(ISBLANK(G624),0,IF(H624=CURRENCY,(IF(ISERROR(rate!L$17),0,rate!L$17)),0))","v":0},0,{"$f":"IF(ISBLANK(G624),IF((J624=0),0,IF(ISERROR(rate!$D$17),0,rate!$D$17)),IF(ISERROR(rate!$D$17),0,rate!$D$17))","v":0},0]
[602,null,null,null,null,null,null,"",{"$f":"IF(ISBLANK(G625),0,IF(H625=CURRENCY,(IF(ISERROR(rate!L$17),0,rate!L$17)),0))","v":0},0,{"$f":"IF(ISBLANK(G625),IF((J625=0),0,IF(ISERROR(rate!$D$17),0,rate!$D$17)),IF(ISERROR(rate!$D$17),0,rate!$D$17))","v":0},0]
[603,null,null,null,null,null,null,"",{"$f":"IF(ISBLANK(G626),0,IF(H626=CURRENCY,(IF(ISERROR(rate!L$17),0,rate!L$17)),0))","v":0},0,{"$f":"IF(ISBLANK(G626),IF((J626=0),0,IF(ISERROR(rate!$D$17),0,rate!$D$17)),IF(ISERROR(rate!$D$17),0,rate!$D$17))","v":0},0]
[604,null,null,null,null,null,null,"",{"$f":"IF(ISBLANK(G627),0,IF(H627=CURRENCY,(IF(ISERROR(rate!L$17),0,rate!L$17)),0))","v":0},0,{"$f":"IF(ISBLANK(G627),IF((J627=0),0,IF(ISERROR(rate!$D$17),0,rate!$D$17)),IF(ISERROR(rate!$D$17),0,rate!$D$17))","v":0},0]
[605,null,null,null,null,null,null,"",{"$f":"IF(ISBLANK(G628),0,IF(H628=CURRENCY,(IF(ISERROR(rate!L$17),0,rate!L$17)),0))","v":0},0,{"$f":"IF(ISBLANK(G628),IF((J628=0),0,IF(ISERROR(rate!$D$17),0,rate!$D$17)),IF(ISERROR(rate!$D$17),0,rate!$D$17))","v":0},0]
[606,null,null,null,null,null,null,"",{"$f":"IF(ISBLANK(G629),0,IF(H629=CURRENCY,(IF(ISERROR(rate!L$17),0,rate!L$17)),0))","v":0},0,{"$f":"IF(ISBLANK(G629),IF((J629=0),0,IF(ISERROR(rate!$D$17),0,rate!$D$17)),IF(ISERROR(rate!$D$17),0,rate!$D$17))","v":0},0]
[607,null,null,null,null,null,null,"",{"$f":"IF(ISBLANK(G630),0,IF(H630=CURRENCY,(IF(ISERROR(rate!L$17),0,rate!L$17)),0))","v":0},0,{"$f":"IF(ISBLANK(G630),IF((J630=0),0,IF(ISERROR(rate!$D$17),0,rate!$D$17)),IF(ISERROR(rate!$D$17),0,rate!$D$17))","v":0},0]
[608,null,null,null,null,null,null,"",{"$f":"IF(ISBLANK(G631),0,IF(H631=CURRENCY,(IF(ISERROR(rate!L$17),0,rate!L$17)),0))","v":0},0,{"$f":"IF(ISBLANK(G631),IF((J631=0),0,IF(ISERROR(rate!$D$17),0,rate!$D$17)),IF(ISERROR(rate!$D$17),0,rate!$D$17))","v":0},0]
[609,null,null,null,null,null,null,"",{"$f":"IF(ISBLANK(G632),0,IF(H632=CURRENCY,(IF(ISERROR(rate!L$17),0,rate!L$17)),0))","v":0},0,{"$f":"IF(ISBLANK(G632),IF((J632=0),0,IF(ISERROR(rate!$D$17),0,rate!$D$17)),IF(ISERROR(rate!$D$17),0,rate!$D$17))","v":0},0]
[610,null,null,null,null,null,null,"",{"$f":"IF(ISBLANK(G633),0,IF(H633=CURRENCY,(IF(ISERROR(rate!L$17),0,rate!L$17)),0))","v":0},0,{"$f":"IF(ISBLANK(G633),IF((J633=0),0,IF(ISERROR(rate!$D$17),0,rate!$D$17)),IF(ISERROR(rate!$D$17),0,rate!$D$17))","v":0},0]
[611,null,null,null,null,null,null,"",{"$f":"IF(ISBLANK(G634),0,IF(H634=CURRENCY,(IF(ISERROR(rate!L$17),0,rate!L$17)),0))","v":0},0,{"$f":"IF(ISBLANK(G634),IF((J634=0),0,IF(ISERROR(rate!$D$17),0,rate!$D$17)),IF(ISERROR(rate!$D$17),0,rate!$D$17))","v":0},0]
[612,null,null,null,null,null,null,"",{"$f":"IF(ISBLANK(G635),0,IF(H635=CURRENCY,(IF(ISERROR(rate!L$17),0,rate!L$17)),0))","v":0},0,{"$f":"IF(ISBLANK(G635),IF((J635=0),0,IF(ISERROR(rate!$D$17),0,rate!$D$17)),IF(ISERROR(rate!$D$17),0,rate!$D$17))","v":0},0]
[613,null,null,null,null,null,null,"",{"$f":"IF(ISBLANK(G636),0,IF(H636=CURRENCY,(IF(ISERROR(rate!L$17),0,rate!L$17)),0))","v":0},0,{"$f":"IF(ISBLANK(G636),IF((J636=0),0,IF(ISERROR(rate!$D$17),0,rate!$D$17)),IF(ISERROR(rate!$D$17),0,rate!$D$17))","v":0},0]
[614,null,null,null,null,null,null,"",{"$f":"IF(ISBLANK(G637),0,IF(H637=CURRENCY,(IF(ISERROR(rate!L$17),0,rate!L$17)),0))","v":0},0,{"$f":"IF(ISBLANK(G637),IF((J637=0),0,IF(ISERROR(rate!$D$17),0,rate!$D$17)),IF(ISERROR(rate!$D$17),0,rate!$D$17))","v":0},0]
[615,null,null,null,null,null,null,"",{"$f":"IF(ISBLANK(G638),0,IF(H638=CURRENCY,(IF(ISERROR(rate!L$17),0,rate!L$17)),0))","v":0},0,{"$f":"IF(ISBLANK(G638),IF((J638=0),0,IF(ISERROR(rate!$D$17),0,rate!$D$17)),IF(ISERROR(rate!$D$17),0,rate!$D$17))","v":0},0]
[616,null,null,null,null,null,null,"",{"$f":"IF(ISBLANK(G639),0,IF(H639=CURRENCY,(IF(ISERROR(rate!L$17),0,rate!L$17)),0))","v":0},0,{"$f":"IF(ISBLANK(G639),IF((J639=0),0,IF(ISERROR(rate!$D$17),0,rate!$D$17)),IF(ISERROR(rate!$D$17),0,rate!$D$17))","v":0},0]
[617,null,null,null,null,null,null,"",{"$f":"IF(ISBLANK(G640),0,IF(H640=CURRENCY,(IF(ISERROR(rate!L$17),0,rate!L$17)),0))","v":0},0,{"$f":"IF(ISBLANK(G640),IF((J640=0),0,IF(ISERROR(rate!$D$17),0,rate!$D$17)),IF(ISERROR(rate!$D$17),0,rate!$D$17))","v":0},0]
[618,null,null,null,null,null,null,"",{"$f":"IF(ISBLANK(G641),0,IF(H641=CURRENCY,(IF(ISERROR(rate!L$17),0,rate!L$17)),0))","v":0},0,{"$f":"IF(ISBLANK(G641),IF((J641=0),0,IF(ISERROR(rate!$D$17),0,rate!$D$17)),IF(ISERROR(rate!$D$17),0,rate!$D$17))","v":0},0]
[619,null,null,null,null,null,null,"",{"$f":"IF(ISBLANK(G642),0,IF(H642=CURRENCY,(IF(ISERROR(rate!L$17),0,rate!L$17)),0))","v":0},0,{"$f":"IF(ISBLANK(G642),IF((J642=0),0,IF(ISERROR(rate!$D$17),0,rate!$D$17)),IF(ISERROR(rate!$D$17),0,rate!$D$17))","v":0},0]
[620,null,null,null,null,null,null,"",{"$f":"IF(ISBLANK(G643),0,IF(H643=CURRENCY,(IF(ISERROR(rate!L$17),0,rate!L$17)),0))","v":0},0,{"$f":"IF(ISBLANK(G643),IF((J643=0),0,IF(ISERROR(rate!$D$17),0,rate!$D$17)),IF(ISERROR(rate!$D$17),0,rate!$D$17))","v":0},0]
[621,null,null,null,null,null,null,"",{"$f":"IF(ISBLANK(G644),0,IF(H644=CURRENCY,(IF(ISERROR(rate!L$17),0,rate!L$17)),0))","v":0},0,{"$f":"IF(ISBLANK(G644),IF((J644=0),0,IF(ISERROR(rate!$D$17),0,rate!$D$17)),IF(ISERROR(rate!$D$17),0,rate!$D$17))","v":0},0]
[622,null,null,null,null,null,null,"",{"$f":"IF(ISBLANK(G645),0,IF(H645=CURRENCY,(IF(ISERROR(rate!L$17),0,rate!L$17)),0))","v":0},0,{"$f":"IF(ISBLANK(G645),IF((J645=0),0,IF(ISERROR(rate!$D$17),0,rate!$D$17)),IF(ISERROR(rate!$D$17),0,rate!$D$17))","v":0},0]
[623,null,null,null,null,null,null,"",{"$f":"IF(ISBLANK(G646),0,IF(H646=CURRENCY,(IF(ISERROR(rate!L$17),0,rate!L$17)),0))","v":0},0,{"$f":"IF(ISBLANK(G646),IF((J646=0),0,IF(ISERROR(rate!$D$17),0,rate!$D$17)),IF(ISERROR(rate!$D$17),0,rate!$D$17))","v":0},0]
[624,null,null,null,null,null,null,"",{"$f":"IF(ISBLANK(G647),0,IF(H647=CURRENCY,(IF(ISERROR(rate!L$17),0,rate!L$17)),0))","v":0},0,{"$f":"IF(ISBLANK(G647),IF((J647=0),0,IF(ISERROR(rate!$D$17),0,rate!$D$17)),IF(ISERROR(rate!$D$17),0,rate!$D$17))","v":0},0]
[625,null,null,null,null,null,null,"",{"$f":"IF(ISBLANK(G648),0,IF(H648=CURRENCY,(IF(ISERROR(rate!L$17),0,rate!L$17)),0))","v":0},0,{"$f":"IF(ISBLANK(G648),IF((J648=0),0,IF(ISERROR(rate!$D$17),0,rate!$D$17)),IF(ISERROR(rate!$D$17),0,rate!$D$17))","v":0},0]
[626,null,null,null,null,null,null,"",{"$f":"IF(ISBLANK(G649),0,IF(H649=CURRENCY,(IF(ISERROR(rate!L$17),0,rate!L$17)),0))","v":0},0,{"$f":"IF(ISBLANK(G649),IF((J649=0),0,IF(ISERROR(rate!$D$17),0,rate!$D$17)),IF(ISERROR(rate!$D$17),0,rate!$D$17))","v":0},0]
[627,null,null,null,null,null,null,"",{"$f":"IF(ISBLANK(G650),0,IF(H650=CURRENCY,(IF(ISERROR(rate!L$17),0,rate!L$17)),0))","v":0},0,{"$f":"IF(ISBLANK(G650),IF((J650=0),0,IF(ISERROR(rate!$D$17),0,rate!$D$17)),IF(ISERROR(rate!$D$17),0,rate!$D$17))","v":0},0]
[628,null,null,null,null,null,null,"",{"$f":"IF(ISBLANK(G651),0,IF(H651=CURRENCY,(IF(ISERROR(rate!L$17),0,rate!L$17)),0))","v":0},0,{"$f":"IF(ISBLANK(G651),IF((J651=0),0,IF(ISERROR(rate!$D$17),0,rate!$D$17)),IF(ISERROR(rate!$D$17),0,rate!$D$17))","v":0},0]
[629,null,null,null,null,null,null,"",{"$f":"IF(ISBLANK(G652),0,IF(H652=CURRENCY,(IF(ISERROR(rate!L$17),0,rate!L$17)),0))","v":0},0,{"$f":"IF(ISBLANK(G652),IF((J652=0),0,IF(ISERROR(rate!$D$17),0,rate!$D$17)),IF(ISERROR(rate!$D$17),0,rate!$D$17))","v":0},0]
[630,null,null,null,null,null,null,"",{"$f":"IF(ISBLANK(G653),0,IF(H653=CURRENCY,(IF(ISERROR(rate!L$17),0,rate!L$17)),0))","v":0},0,{"$f":"IF(ISBLANK(G653),IF((J653=0),0,IF(ISERROR(rate!$D$17),0,rate!$D$17)),IF(ISERROR(rate!$D$17),0,rate!$D$17))","v":0},0]
[631,null,null,null,null,null,null,"",{"$f":"IF(ISBLANK(G654),0,IF(H654=CURRENCY,(IF(ISERROR(rate!L$17),0,rate!L$17)),0))","v":0},0,{"$f":"IF(ISBLANK(G654),IF((J654=0),0,IF(ISERROR(rate!$D$17),0,rate!$D$17)),IF(ISERROR(rate!$D$17),0,rate!$D$17))","v":0},0]
[632,null,null,null,null,null,null,"",{"$f":"IF(ISBLANK(G655),0,IF(H655=CURRENCY,(IF(ISERROR(rate!L$17),0,rate!L$17)),0))","v":0},0,{"$f":"IF(ISBLANK(G655),IF((J655=0),0,IF(ISERROR(rate!$D$17),0,rate!$D$17)),IF(ISERROR(rate!$D$17),0,rate!$D$17))","v":0},0]
[633,null,null,null,null,null,null,"",{"$f":"IF(ISBLANK(G656),0,IF(H656=CURRENCY,(IF(ISERROR(rate!L$17),0,rate!L$17)),0))","v":0},0,{"$f":"IF(ISBLANK(G656),IF((J656=0),0,IF(ISERROR(rate!$D$17),0,rate!$D$17)),IF(ISERROR(rate!$D$17),0,rate!$D$17))","v":0},0]
[634,null,null,null,null,null,null,"",{"$f":"IF(ISBLANK(G657),0,IF(H657=CURRENCY,(IF(ISERROR(rate!L$17),0,rate!L$17)),0))","v":0},0,{"$f":"IF(ISBLANK(G657),IF((J657=0),0,IF(ISERROR(rate!$D$17),0,rate!$D$17)),IF(ISERROR(rate!$D$17),0,rate!$D$17))","v":0},0]
[635,null,null,null,null,null,null,"",{"$f":"IF(ISBLANK(G658),0,IF(H658=CURRENCY,(IF(ISERROR(rate!L$17),0,rate!L$17)),0))","v":0},0,{"$f":"IF(ISBLANK(G658),IF((J658=0),0,IF(ISERROR(rate!$D$17),0,rate!$D$17)),IF(ISERROR(rate!$D$17),0,rate!$D$17))","v":0},0]
[636,null,null,null,null,null,null,"",{"$f":"IF(ISBLANK(G659),0,IF(H659=CURRENCY,(IF(ISERROR(rate!L$17),0,rate!L$17)),0))","v":0},0,{"$f":"IF(ISBLANK(G659),IF((J659=0),0,IF(ISERROR(rate!$D$17),0,rate!$D$17)),IF(ISERROR(rate!$D$17),0,rate!$D$17))","v":0},0]
[637,null,null,null,null,null,null,"",{"$f":"IF(ISBLANK(G660),0,IF(H660=CURRENCY,(IF(ISERROR(rate!L$17),0,rate!L$17)),0))","v":0},0,{"$f":"IF(ISBLANK(G660),IF((J660=0),0,IF(ISERROR(rate!$D$17),0,rate!$D$17)),IF(ISERROR(rate!$D$17),0,rate!$D$17))","v":0},0]
[638,null,null,null,null,null,null,"",{"$f":"IF(ISBLANK(G661),0,IF(H661=CURRENCY,(IF(ISERROR(rate!L$17),0,rate!L$17)),0))","v":0},0,{"$f":"IF(ISBLANK(G661),IF((J661=0),0,IF(ISERROR(rate!$D$17),0,rate!$D$17)),IF(ISERROR(rate!$D$17),0,rate!$D$17))","v":0},0]
[639,null,null,null,null,null,null,"",{"$f":"IF(ISBLANK(G662),0,IF(H662=CURRENCY,(IF(ISERROR(rate!L$17),0,rate!L$17)),0))","v":0},0,{"$f":"IF(ISBLANK(G662),IF((J662=0),0,IF(ISERROR(rate!$D$17),0,rate!$D$17)),IF(ISERROR(rate!$D$17),0,rate!$D$17))","v":0},0]
[640,null,null,null,null,null,null,"",{"$f":"IF(ISBLANK(G663),0,IF(H663=CURRENCY,(IF(ISERROR(rate!L$17),0,rate!L$17)),0))","v":0},0,{"$f":"IF(ISBLANK(G663),IF((J663=0),0,IF(ISERROR(rate!$D$17),0,rate!$D$17)),IF(ISERROR(rate!$D$17),0,rate!$D$17))","v":0},0]
[641,null,null,null,null,null,null,{"$f":"IF(ISBLANK(G664),\"\",+CURRENCY)","v":""},{"$f":"IF(ISBLANK(G664),0,IF(H664=CURRENCY,(IF(ISERROR(rate!L$17),0,rate!L$17)),0))","v":0},{"$f":"IF(ISERROR(+G664/I664),0,+G664/I664)","v":0},{"$f":"IF(ISBLANK(G664),IF((J664=0),0,IF(ISERROR(rate!$D$17),0,rate!$D$17)),IF(ISERROR(rate!$D$17),0,rate!$D$17))","v":0},{"$f":"IF(ISERROR(+K664*J664),0,+K664*J664)","v":0}]
[642,null,null,null,null,null,null,"",{"$f":"IF(ISBLANK(G665),0,IF(H665=CURRENCY,(IF(ISERROR(rate!L$17),0,rate!L$17)),0))","v":0},0,{"$f":"IF(ISBLANK(G665),IF((J665=0),0,IF(ISERROR(rate!$D$17),0,rate!$D$17)),IF(ISERROR(rate!$D$17),0,rate!$D$17))","v":0},0]
[643,null,null,null,null,null,null,"",{"$f":"IF(ISBLANK(G666),0,IF(H666=CURRENCY,(IF(ISERROR(rate!L$17),0,rate!L$17)),0))","v":0},0,{"$f":"IF(ISBLANK(G666),IF((J666=0),0,IF(ISERROR(rate!$D$17),0,rate!$D$17)),IF(ISERROR(rate!$D$17),0,rate!$D$17))","v":0},0]
[644,null,null,null,null,null,null,"",{"$f":"IF(ISBLANK(G667),0,IF(H667=CURRENCY,(IF(ISERROR(rate!L$17),0,rate!L$17)),0))","v":0},0,{"$f":"IF(ISBLANK(G667),IF((J667=0),0,IF(ISERROR(rate!$D$17),0,rate!$D$17)),IF(ISERROR(rate!$D$17),0,rate!$D$17))","v":0},0]
[645,null,null,null,null,null,null,"",{"$f":"IF(ISBLANK(G668),0,IF(H668=CURRENCY,(IF(ISERROR(rate!L$17),0,rate!L$17)),0))","v":0},0,{"$f":"IF(ISBLANK(G668),IF((J668=0),0,IF(ISERROR(rate!$D$17),0,rate!$D$17)),IF(ISERROR(rate!$D$17),0,rate!$D$17))","v":0},0]
[646,null,null,null,null,null,null,"",{"$f":"IF(ISBLANK(G669),0,IF(H669=CURRENCY,(IF(ISERROR(rate!L$17),0,rate!L$17)),0))","v":0},0,{"$f":"IF(ISBLANK(G669),IF((J669=0),0,IF(ISERROR(rate!$D$17),0,rate!$D$17)),IF(ISERROR(rate!$D$17),0,rate!$D$17))","v":0},0]
[647,null,null,null,null,null,null,"",{"$f":"IF(ISBLANK(G670),0,IF(H670=CURRENCY,(IF(ISERROR(rate!L$17),0,rate!L$17)),0))","v":0},0,{"$f":"IF(ISBLANK(G670),IF((J670=0),0,IF(ISERROR(rate!$D$17),0,rate!$D$17)),IF(ISERROR(rate!$D$17),0,rate!$D$17))","v":0},0]
[648,null,null,null,null,null,null,"",{"$f":"IF(ISBLANK(G671),0,IF(H671=CURRENCY,(IF(ISERROR(rate!L$17),0,rate!L$17)),0))","v":0},0,{"$f":"IF(ISBLANK(G671),IF((J671=0),0,IF(ISERROR(rate!$D$17),0,rate!$D$17)),IF(ISERROR(rate!$D$17),0,rate!$D$17))","v":0},0]
[649,null,null,null,null,null,null,"",{"$f":"IF(ISBLANK(G672),0,IF(H672=CURRENCY,(IF(ISERROR(rate!L$17),0,rate!L$17)),0))","v":0},0,{"$f":"IF(ISBLANK(G672),IF((J672=0),0,IF(ISERROR(rate!$D$17),0,rate!$D$17)),IF(ISERROR(rate!$D$17),0,rate!$D$17))","v":0},0]
[650,null,null,null,null,null,null,"",{"$f":"IF(ISBLANK(G673),0,IF(H673=CURRENCY,(IF(ISERROR(rate!L$17),0,rate!L$17)),0))","v":0},0,{"$f":"IF(ISBLANK(G673),IF((J673=0),0,IF(ISERROR(rate!$D$17),0,rate!$D$17)),IF(ISERROR(rate!$D$17),0,rate!$D$17))","v":0},0]
[651,null,null,null,null,null,null,"",{"$f":"IF(ISBLANK(G674),0,IF(H674=CURRENCY,(IF(ISERROR(rate!L$17),0,rate!L$17)),0))","v":0},0,{"$f":"IF(ISBLANK(G674),IF((J674=0),0,IF(ISERROR(rate!$D$17),0,rate!$D$17)),IF(ISERROR(rate!$D$17),0,rate!$D$17))","v":0},0]
[652,null,null,null,null,null,null,"",{"$f":"IF(ISBLANK(G675),0,IF(H675=CURRENCY,(IF(ISERROR(rate!L$17),0,rate!L$17)),0))","v":0},0,{"$f":"IF(ISBLANK(G675),IF((J675=0),0,IF(ISERROR(rate!$D$17),0,rate!$D$17)),IF(ISERROR(rate!$D$17),0,rate!$D$17))","v":0},0]
[653,null,null,null,null,null,null,"",{"$f":"IF(ISBLANK(G676),0,IF(H676=CURRENCY,(IF(ISERROR(rate!L$17),0,rate!L$17)),0))","v":0},0,{"$f":"IF(ISBLANK(G676),IF((J676=0),0,IF(ISERROR(rate!$D$17),0,rate!$D$17)),IF(ISERROR(rate!$D$17),0,rate!$D$17))","v":0},0]
[654,null,null,null,null,null,null,"",{"$f":"IF(ISBLANK(G677),0,IF(H677=CURRENCY,(IF(ISERROR(rate!L$17),0,rate!L$17)),0))","v":0},0,{"$f":"IF(ISBLANK(G677),IF((J677=0),0,IF(ISERROR(rate!$D$17),0,rate!$D$17)),IF(ISERROR(rate!$D$17),0,rate!$D$17))","v":0},0]
[655,null,null,null,null,null,null,"",{"$f":"IF(ISBLANK(G678),0,IF(H678=CURRENCY,(IF(ISERROR(rate!L$17),0,rate!L$17)),0))","v":0},0,{"$f":"IF(ISBLANK(G678),IF((J678=0),0,IF(ISERROR(rate!$D$17),0,rate!$D$17)),IF(ISERROR(rate!$D$17),0,rate!$D$17))","v":0},0]
[656,null,null,null,null,null,null,"",{"$f":"IF(ISBLANK(G679),0,IF(H679=CURRENCY,(IF(ISERROR(rate!L$17),0,rate!L$17)),0))","v":0},0,{"$f":"IF(ISBLANK(G679),IF((J679=0),0,IF(ISERROR(rate!$D$17),0,rate!$D$17)),IF(ISERROR(rate!$D$17),0,rate!$D$17))","v":0},0]
[657,null,null,null,null,null,null,"",{"$f":"IF(ISBLANK(G680),0,IF(H680=CURRENCY,(IF(ISERROR(rate!L$17),0,rate!L$17)),0))","v":0},0,{"$f":"IF(ISBLANK(G680),IF((J680=0),0,IF(ISERROR(rate!$D$17),0,rate!$D$17)),IF(ISERROR(rate!$D$17),0,rate!$D$17))","v":0},0]
[658,null,null,null,null,null,null,"",{"$f":"IF(ISBLANK(G681),0,IF(H681=CURRENCY,(IF(ISERROR(rate!L$17),0,rate!L$17)),0))","v":0},0,{"$f":"IF(ISBLANK(G681),IF((J681=0),0,IF(ISERROR(rate!$D$17),0,rate!$D$17)),IF(ISERROR(rate!$D$17),0,rate!$D$17))","v":0},0]
[659,null,null,null,null,null,null,"",{"$f":"IF(ISBLANK(G682),0,IF(H682=CURRENCY,(IF(ISERROR(rate!L$17),0,rate!L$17)),0))","v":0},0,{"$f":"IF(ISBLANK(G682),IF((J682=0),0,IF(ISERROR(rate!$D$17),0,rate!$D$17)),IF(ISERROR(rate!$D$17),0,rate!$D$17))","v":0},0]
[660,null,null,null,null,null,null,"",{"$f":"IF(ISBLANK(G683),0,IF(H683=CURRENCY,(IF(ISERROR(rate!L$17),0,rate!L$17)),0))","v":0},0,{"$f":"IF(ISBLANK(G683),IF((J683=0),0,IF(ISERROR(rate!$D$17),0,rate!$D$17)),IF(ISERROR(rate!$D$17),0,rate!$D$17))","v":0},0]
[661,null,null,null,null,null,null,"",{"$f":"IF(ISBLANK(G684),0,IF(H684=CURRENCY,(IF(ISERROR(rate!L$17),0,rate!L$17)),0))","v":0},0,{"$f":"IF(ISBLANK(G684),IF((J684=0),0,IF(ISERROR(rate!$D$17),0,rate!$D$17)),IF(ISERROR(rate!$D$17),0,rate!$D$17))","v":0},0]
[662,null,null,null,null,null,null,"",{"$f":"IF(ISBLANK(G685),0,IF(H685=CURRENCY,(IF(ISERROR(rate!L$17),0,rate!L$17)),0))","v":0},0,{"$f":"IF(ISBLANK(G685),IF((J685=0),0,IF(ISERROR(rate!$D$17),0,rate!$D$17)),IF(ISERROR(rate!$D$17),0,rate!$D$17))","v":0},0]
[663,null,null,null,null,null,null,"",{"$f":"IF(ISBLANK(G686),0,IF(H686=CURRENCY,(IF(ISERROR(rate!L$17),0,rate!L$17)),0))","v":0},0,{"$f":"IF(ISBLANK(G686),IF((J686=0),0,IF(ISERROR(rate!$D$17),0,rate!$D$17)),IF(ISERROR(rate!$D$17),0,rate!$D$17))","v":0},0]
[664,null,null,null,null,null,null,"",{"$f":"IF(ISBLANK(G687),0,IF(H687=CURRENCY,(IF(ISERROR(rate!L$17),0,rate!L$17)),0))","v":0},0,{"$f":"IF(ISBLANK(G687),IF((J687=0),0,IF(ISERROR(rate!$D$17),0,rate!$D$17)),IF(ISERROR(rate!$D$17),0,rate!$D$17))","v":0},0]
[665,null,null,null,null,null,null,"",{"$f":"IF(ISBLANK(G688),0,IF(H688=CURRENCY,(IF(ISERROR(rate!L$17),0,rate!L$17)),0))","v":0},0,{"$f":"IF(ISBLANK(G688),IF((J688=0),0,IF(ISERROR(rate!$D$17),0,rate!$D$17)),IF(ISERROR(rate!$D$17),0,rate!$D$17))","v":0},0]
[666,null,null,null,null,null,null,"",{"$f":"IF(ISBLANK(G689),0,IF(H689=CURRENCY,(IF(ISERROR(rate!L$17),0,rate!L$17)),0))","v":0},0,{"$f":"IF(ISBLANK(G689),IF((J689=0),0,IF(ISERROR(rate!$D$17),0,rate!$D$17)),IF(ISERROR(rate!$D$17),0,rate!$D$17))","v":0},0]
[667,null,null,null,null,null,null,"",{"$f":"IF(ISBLANK(G690),0,IF(H690=CURRENCY,(IF(ISERROR(rate!L$17),0,rate!L$17)),0))","v":0},0,{"$f":"IF(ISBLANK(G690),IF((J690=0),0,IF(ISERROR(rate!$D$17),0,rate!$D$17)),IF(ISERROR(rate!$D$17),0,rate!$D$17))","v":0},0]
[668,null,null,null,null,null,null,"",{"$f":"IF(ISBLANK(G691),0,IF(H691=CURRENCY,(IF(ISERROR(rate!L$17),0,rate!L$17)),0))","v":0},0,{"$f":"IF(ISBLANK(G691),IF((J691=0),0,IF(ISERROR(rate!$D$17),0,rate!$D$17)),IF(ISERROR(rate!$D$17),0,rate!$D$17))","v":0},0]
[669,null,null,null,null,null,null,"",{"$f":"IF(ISBLANK(G692),0,IF(H692=CURRENCY,(IF(ISERROR(rate!L$17),0,rate!L$17)),0))","v":0},0,{"$f":"IF(ISBLANK(G692),IF((J692=0),0,IF(ISERROR(rate!$D$17),0,rate!$D$17)),IF(ISERROR(rate!$D$17),0,rate!$D$17))","v":0},0]
[670,null,null,null,null,null,null,"",{"$f":"IF(ISBLANK(G693),0,IF(H693=CURRENCY,(IF(ISERROR(rate!L$17),0,rate!L$17)),0))","v":0},0,{"$f":"IF(ISBLANK(G693),IF((J693=0),0,IF(ISERROR(rate!$D$17),0,rate!$D$17)),IF(ISERROR(rate!$D$17),0,rate!$D$17))","v":0},0]
[671,null,null,null,null,null,null,"",{"$f":"IF(ISBLANK(G694),0,IF(H694=CURRENCY,(IF(ISERROR(rate!L$17),0,rate!L$17)),0))","v":0},0,{"$f":"IF(ISBLANK(G694),IF((J694=0),0,IF(ISERROR(rate!$D$17),0,rate!$D$17)),IF(ISERROR(rate!$D$17),0,rate!$D$17))","v":0},0]
[672,null,null,null,null,null,null,"",{"$f":"IF(ISBLANK(G695),0,IF(H695=CURRENCY,(IF(ISERROR(rate!L$17),0,rate!L$17)),0))","v":0},0,{"$f":"IF(ISBLANK(G695),IF((J695=0),0,IF(ISERROR(rate!$D$17),0,rate!$D$17)),IF(ISERROR(rate!$D$17),0,rate!$D$17))","v":0},0]
[673,null,null,null,null,null,null,"",{"$f":"IF(ISBLANK(G696),0,IF(H696=CURRENCY,(IF(ISERROR(rate!L$17),0,rate!L$17)),0))","v":0},0,{"$f":"IF(ISBLANK(G696),IF((J696=0),0,IF(ISERROR(rate!$D$17),0,rate!$D$17)),IF(ISERROR(rate!$D$17),0,rate!$D$17))","v":0},0]
[674,null,null,null,null,null,null,"",{"$f":"IF(ISBLANK(G697),0,IF(H697=CURRENCY,(IF(ISERROR(rate!L$17),0,rate!L$17)),0))","v":0},0,{"$f":"IF(ISBLANK(G697),IF((J697=0),0,IF(ISERROR(rate!$D$17),0,rate!$D$17)),IF(ISERROR(rate!$D$17),0,rate!$D$17))","v":0},0]
[675,null,null,null,null,null,null,"",{"$f":"IF(ISBLANK(G698),0,IF(H698=CURRENCY,(IF(ISERROR(rate!L$17),0,rate!L$17)),0))","v":0},0,{"$f":"IF(ISBLANK(G698),IF((J698=0),0,IF(ISERROR(rate!$D$17),0,rate!$D$17)),IF(ISERROR(rate!$D$17),0,rate!$D$17))","v":0},0]
[676,null,null,null,null,null,null,"",{"$f":"IF(ISBLANK(G699),0,IF(H699=CURRENCY,(IF(ISERROR(rate!L$17),0,rate!L$17)),0))","v":0},0,{"$f":"IF(ISBLANK(G699),IF((J699=0),0,IF(ISERROR(rate!$D$17),0,rate!$D$17)),IF(ISERROR(rate!$D$17),0,rate!$D$17))","v":0},0]
[677,null,null,null,null,null,null,"",{"$f":"IF(ISBLANK(G700),0,IF(H700=CURRENCY,(IF(ISERROR(rate!L$17),0,rate!L$17)),0))","v":0},0,{"$f":"IF(ISBLANK(G700),IF((J700=0),0,IF(ISERROR(rate!$D$17),0,rate!$D$17)),IF(ISERROR(rate!$D$17),0,rate!$D$17))","v":0},0]
[678,null,null,null,null,null,null,"",{"$f":"IF(ISBLANK(G701),0,IF(H701=CURRENCY,(IF(ISERROR(rate!L$17),0,rate!L$17)),0))","v":0},0,{"$f":"IF(ISBLANK(G701),IF((J701=0),0,IF(ISERROR(rate!$D$17),0,rate!$D$17)),IF(ISERROR(rate!$D$17),0,rate!$D$17))","v":0},0]
[679,null,null,null,null,null,null,"",{"$f":"IF(ISBLANK(G702),0,IF(H702=CURRENCY,(IF(ISERROR(rate!L$17),0,rate!L$17)),0))","v":0},0,{"$f":"IF(ISBLANK(G702),IF((J702=0),0,IF(ISERROR(rate!$D$17),0,rate!$D$17)),IF(ISERROR(rate!$D$17),0,rate!$D$17))","v":0},0]
[680,null,null,null,null,null,null,"",{"$f":"IF(ISBLANK(G703),0,IF(H703=CURRENCY,(IF(ISERROR(rate!L$17),0,rate!L$17)),0))","v":0},0,{"$f":"IF(ISBLANK(G703),IF((J703=0),0,IF(ISERROR(rate!$D$17),0,rate!$D$17)),IF(ISERROR(rate!$D$17),0,rate!$D$17))","v":0},0]
[681,null,null,null,null,null,null,"",{"$f":"IF(ISBLANK(G704),0,IF(H704=CURRENCY,(IF(ISERROR(rate!L$17),0,rate!L$17)),0))","v":0},0,{"$f":"IF(ISBLANK(G704),IF((J704=0),0,IF(ISERROR(rate!$D$17),0,rate!$D$17)),IF(ISERROR(rate!$D$17),0,rate!$D$17))","v":0},0]
[682,null,null,null,null,null,null,"",{"$f":"IF(ISBLANK(G705),0,IF(H705=CURRENCY,(IF(ISERROR(rate!L$17),0,rate!L$17)),0))","v":0},0,{"$f":"IF(ISBLANK(G705),IF((J705=0),0,IF(ISERROR(rate!$D$17),0,rate!$D$17)),IF(ISERROR(rate!$D$17),0,rate!$D$17))","v":0},0]
[683,null,null,null,null,null,null,"",{"$f":"IF(ISBLANK(G706),0,IF(H706=CURRENCY,(IF(ISERROR(rate!L$17),0,rate!L$17)),0))","v":0},0,{"$f":"IF(ISBLANK(G706),IF((J706=0),0,IF(ISERROR(rate!$D$17),0,rate!$D$17)),IF(ISERROR(rate!$D$17),0,rate!$D$17))","v":0},0]
[684,null,null,null,null,null,null,"",{"$f":"IF(ISBLANK(G707),0,IF(H707=CURRENCY,(IF(ISERROR(rate!L$17),0,rate!L$17)),0))","v":0},0,{"$f":"IF(ISBLANK(G707),IF((J707=0),0,IF(ISERROR(rate!$D$17),0,rate!$D$17)),IF(ISERROR(rate!$D$17),0,rate!$D$17))","v":0},0]
[685,null,null,null,null,null,null,"",{"$f":"IF(ISBLANK(G708),0,IF(H708=CURRENCY,(IF(ISERROR(rate!L$17),0,rate!L$17)),0))","v":0},0,{"$f":"IF(ISBLANK(G708),IF((J708=0),0,IF(ISERROR(rate!$D$17),0,rate!$D$17)),IF(ISERROR(rate!$D$17),0,rate!$D$17))","v":0},0]
[686,null,null,null,null,null,null,"",{"$f":"IF(ISBLANK(G709),0,IF(H709=CURRENCY,(IF(ISERROR(rate!L$17),0,rate!L$17)),0))","v":0},0,{"$f":"IF(ISBLANK(G709),IF((J709=0),0,IF(ISERROR(rate!$D$17),0,rate!$D$17)),IF(ISERROR(rate!$D$17),0,rate!$D$17))","v":0},0]
[687,null,null,null,null,null,null,"",{"$f":"IF(ISBLANK(G710),0,IF(H710=CURRENCY,(IF(ISERROR(rate!L$17),0,rate!L$17)),0))","v":0},0,{"$f":"IF(ISBLANK(G710),IF((J710=0),0,IF(ISERROR(rate!$D$17),0,rate!$D$17)),IF(ISERROR(rate!$D$17),0,rate!$D$17))","v":0},0]
[688,null,null,null,null,null,null,"",{"$f":"IF(ISBLANK(G711),0,IF(H711=CURRENCY,(IF(ISERROR(rate!L$17),0,rate!L$17)),0))","v":0},0,{"$f":"IF(ISBLANK(G711),IF((J711=0),0,IF(ISERROR(rate!$D$17),0,rate!$D$17)),IF(ISERROR(rate!$D$17),0,rate!$D$17))","v":0},0]
[689,null,null,null,null,null,null,"",{"$f":"IF(ISBLANK(G712),0,IF(H712=CURRENCY,(IF(ISERROR(rate!L$17),0,rate!L$17)),0))","v":0},0,{"$f":"IF(ISBLANK(G712),IF((J712=0),0,IF(ISERROR(rate!$D$17),0,rate!$D$17)),IF(ISERROR(rate!$D$17),0,rate!$D$17))","v":0},0]
[690,null,null,null,null,null,null,"",{"$f":"IF(ISBLANK(G713),0,IF(H713=CURRENCY,(IF(ISERROR(rate!L$17),0,rate!L$17)),0))","v":0},0,{"$f":"IF(ISBLANK(G713),IF((J713=0),0,IF(ISERROR(rate!$D$17),0,rate!$D$17)),IF(ISERROR(rate!$D$17),0,rate!$D$17))","v":0},0]
[691,null,null,null,null,null,null,"",{"$f":"IF(ISBLANK(G714),0,IF(H714=CURRENCY,(IF(ISERROR(rate!L$17),0,rate!L$17)),0))","v":0},0,{"$f":"IF(ISBLANK(G714),IF((J714=0),0,IF(ISERROR(rate!$D$17),0,rate!$D$17)),IF(ISERROR(rate!$D$17),0,rate!$D$17))","v":0},0]
[692,null,null,null,null,null,null,"",{"$f":"IF(ISBLANK(G715),0,IF(H715=CURRENCY,(IF(ISERROR(rate!L$17),0,rate!L$17)),0))","v":0},0,{"$f":"IF(ISBLANK(G715),IF((J715=0),0,IF(ISERROR(rate!$D$17),0,rate!$D$17)),IF(ISERROR(rate!$D$17),0,rate!$D$17))","v":0},0]
[693,null,null,null,null,null,null,"",{"$f":"IF(ISBLANK(G716),0,IF(H716=CURRENCY,(IF(ISERROR(rate!L$17),0,rate!L$17)),0))","v":0},0,{"$f":"IF(ISBLANK(G716),IF((J716=0),0,IF(ISERROR(rate!$D$17),0,rate!$D$17)),IF(ISERROR(rate!$D$17),0,rate!$D$17))","v":0},0]
[694,null,null,null,null,null,null,"",{"$f":"IF(ISBLANK(G717),0,IF(H717=CURRENCY,(IF(ISERROR(rate!L$17),0,rate!L$17)),0))","v":0},0,{"$f":"IF(ISBLANK(G717),IF((J717=0),0,IF(ISERROR(rate!$D$17),0,rate!$D$17)),IF(ISERROR(rate!$D$17),0,rate!$D$17))","v":0},0]
[695,null,null,null,null,null,null,"",{"$f":"IF(ISBLANK(G718),0,IF(H718=CURRENCY,(IF(ISERROR(rate!L$17),0,rate!L$17)),0))","v":0},0,{"$f":"IF(ISBLANK(G718),IF((J718=0),0,IF(ISERROR(rate!$D$17),0,rate!$D$17)),IF(ISERROR(rate!$D$17),0,rate!$D$17))","v":0},0]
[696,null,null,null,null,null,null,"",{"$f":"IF(ISBLANK(G719),0,IF(H719=CURRENCY,(IF(ISERROR(rate!L$17),0,rate!L$17)),0))","v":0},0,{"$f":"IF(ISBLANK(G719),IF((J719=0),0,IF(ISERROR(rate!$D$17),0,rate!$D$17)),IF(ISERROR(rate!$D$17),0,rate!$D$17))","v":0},0]
[697,null,null,null,null,null,null,"",{"$f":"IF(ISBLANK(G720),0,IF(H720=CURRENCY,(IF(ISERROR(rate!L$17),0,rate!L$17)),0))","v":0},0,{"$f":"IF(ISBLANK(G720),IF((J720=0),0,IF(ISERROR(rate!$D$17),0,rate!$D$17)),IF(ISERROR(rate!$D$17),0,rate!$D$17))","v":0},0]
[698,null,null,null,null,null,null,"",{"$f":"IF(ISBLANK(G721),0,IF(H721=CURRENCY,(IF(ISERROR(rate!L$17),0,rate!L$17)),0))","v":0},0,{"$f":"IF(ISBLANK(G721),IF((J721=0),0,IF(ISERROR(rate!$D$17),0,rate!$D$17)),IF(ISERROR(rate!$D$17),0,rate!$D$17))","v":0},0]
[699,null,null,null,null,null,null,"",{"$f":"IF(ISBLANK(G722),0,IF(H722=CURRENCY,(IF(ISERROR(rate!L$17),0,rate!L$17)),0))","v":0},0,{"$f":"IF(ISBLANK(G722),IF((J722=0),0,IF(ISERROR(rate!$D$17),0,rate!$D$17)),IF(ISERROR(rate!$D$17),0,rate!$D$17))","v":0},0]
[700,null,null,null,null,null,null,"",{"$f":"IF(ISBLANK(G723),0,IF(H723=CURRENCY,(IF(ISERROR(rate!L$17),0,rate!L$17)),0))","v":0},0,{"$f":"IF(ISBLANK(G723),IF((J723=0),0,IF(ISERROR(rate!$D$17),0,rate!$D$17)),IF(ISERROR(rate!$D$17),0,rate!$D$17))","v":0},0]
[701,null,null,null,null,null,null,"",{"$f":"IF(ISBLANK(G724),0,IF(H724=CURRENCY,(IF(ISERROR(rate!L$17),0,rate!L$17)),0))","v":0},0,{"$f":"IF(ISBLANK(G724),IF((J724=0),0,IF(ISERROR(rate!$D$17),0,rate!$D$17)),IF(ISERROR(rate!$D$17),0,rate!$D$17))","v":0},0]
[702,null,null,null,null,null,null,"",{"$f":"IF(ISBLANK(G725),0,IF(H725=CURRENCY,(IF(ISERROR(rate!L$17),0,rate!L$17)),0))","v":0},0,{"$f":"IF(ISBLANK(G725),IF((J725=0),0,IF(ISERROR(rate!$D$17),0,rate!$D$17)),IF(ISERROR(rate!$D$17),0,rate!$D$17))","v":0},0]
[703,null,null,null,null,null,null,"",{"$f":"IF(ISBLANK(G726),0,IF(H726=CURRENCY,(IF(ISERROR(rate!L$17),0,rate!L$17)),0))","v":0},0,{"$f":"IF(ISBLANK(G726),IF((J726=0),0,IF(ISERROR(rate!$D$17),0,rate!$D$17)),IF(ISERROR(rate!$D$17),0,rate!$D$17))","v":0},0]
[704,null,null,null,null,null,null,"",{"$f":"IF(ISBLANK(G727),0,IF(H727=CURRENCY,(IF(ISERROR(rate!L$17),0,rate!L$17)),0))","v":0},0,{"$f":"IF(ISBLANK(G727),IF((J727=0),0,IF(ISERROR(rate!$D$17),0,rate!$D$17)),IF(ISERROR(rate!$D$17),0,rate!$D$17))","v":0},0]
[705,null,null,null,null,null,null,{"$f":"IF(ISBLANK(G728),\"\",+CURRENCY)","v":""},{"$f":"IF(ISBLANK(G728),0,IF(H728=CURRENCY,(IF(ISERROR(rate!L$17),0,rate!L$17)),0))","v":0},{"$f":"IF(ISERROR(+G728/I728),0,+G728/I728)","v":0},{"$f":"IF(ISBLANK(G728),IF((J728=0),0,IF(ISERROR(rate!$D$17),0,rate!$D$17)),IF(ISERROR(rate!$D$17),0,rate!$D$17))","v":0},{"$f":"IF(ISERROR(+K728*J728),0,+K728*J728)","v":0}]
[706,null,null,null,null,null,null,"",{"$f":"IF(ISBLANK(G729),0,IF(H729=CURRENCY,(IF(ISERROR(rate!L$17),0,rate!L$17)),0))","v":0},0,{"$f":"IF(ISBLANK(G729),IF((J729=0),0,IF(ISERROR(rate!$D$17),0,rate!$D$17)),IF(ISERROR(rate!$D$17),0,rate!$D$17))","v":0},0]
[707,null,null,null,null,null,null,"",{"$f":"IF(ISBLANK(G730),0,IF(H730=CURRENCY,(IF(ISERROR(rate!L$17),0,rate!L$17)),0))","v":0},0,{"$f":"IF(ISBLANK(G730),IF((J730=0),0,IF(ISERROR(rate!$D$17),0,rate!$D$17)),IF(ISERROR(rate!$D$17),0,rate!$D$17))","v":0},0]
[708,null,null,null,null,null,null,"",{"$f":"IF(ISBLANK(G731),0,IF(H731=CURRENCY,(IF(ISERROR(rate!L$17),0,rate!L$17)),0))","v":0},0,{"$f":"IF(ISBLANK(G731),IF((J731=0),0,IF(ISERROR(rate!$D$17),0,rate!$D$17)),IF(ISERROR(rate!$D$17),0,rate!$D$17))","v":0},0]
[709,null,null,null,null,null,null,"",{"$f":"IF(ISBLANK(G732),0,IF(H732=CURRENCY,(IF(ISERROR(rate!L$17),0,rate!L$17)),0))","v":0},0,{"$f":"IF(ISBLANK(G732),IF((J732=0),0,IF(ISERROR(rate!$D$17),0,rate!$D$17)),IF(ISERROR(rate!$D$17),0,rate!$D$17))","v":0},0]
[710,null,null,null,null,null,null,"",{"$f":"IF(ISBLANK(G733),0,IF(H733=CURRENCY,(IF(ISERROR(rate!L$17),0,rate!L$17)),0))","v":0},0,{"$f":"IF(ISBLANK(G733),IF((J733=0),0,IF(ISERROR(rate!$D$17),0,rate!$D$17)),IF(ISERROR(rate!$D$17),0,rate!$D$17))","v":0},0]
[711,null,null,null,null,null,null,"",{"$f":"IF(ISBLANK(G734),0,IF(H734=CURRENCY,(IF(ISERROR(rate!L$17),0,rate!L$17)),0))","v":0},0,{"$f":"IF(ISBLANK(G734),IF((J734=0),0,IF(ISERROR(rate!$D$17),0,rate!$D$17)),IF(ISERROR(rate!$D$17),0,rate!$D$17))","v":0},0]
[712,null,null,null,null,null,null,"",{"$f":"IF(ISBLANK(G735),0,IF(H735=CURRENCY,(IF(ISERROR(rate!L$17),0,rate!L$17)),0))","v":0},0,{"$f":"IF(ISBLANK(G735),IF((J735=0),0,IF(ISERROR(rate!$D$17),0,rate!$D$17)),IF(ISERROR(rate!$D$17),0,rate!$D$17))","v":0},0]
[713,null,null,null,null,null,null,"",{"$f":"IF(ISBLANK(G736),0,IF(H736=CURRENCY,(IF(ISERROR(rate!L$17),0,rate!L$17)),0))","v":0},0,{"$f":"IF(ISBLANK(G736),IF((J736=0),0,IF(ISERROR(rate!$D$17),0,rate!$D$17)),IF(ISERROR(rate!$D$17),0,rate!$D$17))","v":0},0]
[714,null,null,null,null,null,null,"",{"$f":"IF(ISBLANK(G737),0,IF(H737=CURRENCY,(IF(ISERROR(rate!L$17),0,rate!L$17)),0))","v":0},0,{"$f":"IF(ISBLANK(G737),IF((J737=0),0,IF(ISERROR(rate!$D$17),0,rate!$D$17)),IF(ISERROR(rate!$D$17),0,rate!$D$17))","v":0},0]
[715,null,null,null,null,null,null,"",{"$f":"IF(ISBLANK(G738),0,IF(H738=CURRENCY,(IF(ISERROR(rate!L$17),0,rate!L$17)),0))","v":0},0,{"$f":"IF(ISBLANK(G738),IF((J738=0),0,IF(ISERROR(rate!$D$17),0,rate!$D$17)),IF(ISERROR(rate!$D$17),0,rate!$D$17))","v":0},0]
[716,null,null,null,null,null,null,"",{"$f":"IF(ISBLANK(G739),0,IF(H739=CURRENCY,(IF(ISERROR(rate!L$17),0,rate!L$17)),0))","v":0},0,{"$f":"IF(ISBLANK(G739),IF((J739=0),0,IF(ISERROR(rate!$D$17),0,rate!$D$17)),IF(ISERROR(rate!$D$17),0,rate!$D$17))","v":0},0]
[717,null,null,null,null,null,null,"",{"$f":"IF(ISBLANK(G740),0,IF(H740=CURRENCY,(IF(ISERROR(rate!L$17),0,rate!L$17)),0))","v":0},0,{"$f":"IF(ISBLANK(G740),IF((J740=0),0,IF(ISERROR(rate!$D$17),0,rate!$D$17)),IF(ISERROR(rate!$D$17),0,rate!$D$17))","v":0},0]
[718,null,null,null,null,null,null,"",{"$f":"IF(ISBLANK(G741),0,IF(H741=CURRENCY,(IF(ISERROR(rate!L$17),0,rate!L$17)),0))","v":0},0,{"$f":"IF(ISBLANK(G741),IF((J741=0),0,IF(ISERROR(rate!$D$17),0,rate!$D$17)),IF(ISERROR(rate!$D$17),0,rate!$D$17))","v":0},0]
[719,null,null,null,null,null,null,"",{"$f":"IF(ISBLANK(G742),0,IF(H742=CURRENCY,(IF(ISERROR(rate!L$17),0,rate!L$17)),0))","v":0},0,{"$f":"IF(ISBLANK(G742),IF((J742=0),0,IF(ISERROR(rate!$D$17),0,rate!$D$17)),IF(ISERROR(rate!$D$17),0,rate!$D$17))","v":0},0]
[720,null,null,null,null,null,null,"",{"$f":"IF(ISBLANK(G743),0,IF(H743=CURRENCY,(IF(ISERROR(rate!L$17),0,rate!L$17)),0))","v":0},0,{"$f":"IF(ISBLANK(G743),IF((J743=0),0,IF(ISERROR(rate!$D$17),0,rate!$D$17)),IF(ISERROR(rate!$D$17),0,rate!$D$17))","v":0},0]
[721,null,null,null,null,null,null,"",{"$f":"IF(ISBLANK(G744),0,IF(H744=CURRENCY,(IF(ISERROR(rate!L$17),0,rate!L$17)),0))","v":0},0,{"$f":"IF(ISBLANK(G744),IF((J744=0),0,IF(ISERROR(rate!$D$17),0,rate!$D$17)),IF(ISERROR(rate!$D$17),0,rate!$D$17))","v":0},0]
[722,null,null,null,null,null,null,"",{"$f":"IF(ISBLANK(G745),0,IF(H745=CURRENCY,(IF(ISERROR(rate!L$17),0,rate!L$17)),0))","v":0},0,{"$f":"IF(ISBLANK(G745),IF((J745=0),0,IF(ISERROR(rate!$D$17),0,rate!$D$17)),IF(ISERROR(rate!$D$17),0,rate!$D$17))","v":0},0]
[723,null,null,null,null,null,null,"",{"$f":"IF(ISBLANK(G746),0,IF(H746=CURRENCY,(IF(ISERROR(rate!L$17),0,rate!L$17)),0))","v":0},0,{"$f":"IF(ISBLANK(G746),IF((J746=0),0,IF(ISERROR(rate!$D$17),0,rate!$D$17)),IF(ISERROR(rate!$D$17),0,rate!$D$17))","v":0},0]
[724,null,null,null,null,null,null,"",{"$f":"IF(ISBLANK(G747),0,IF(H747=CURRENCY,(IF(ISERROR(rate!L$17),0,rate!L$17)),0))","v":0},0,{"$f":"IF(ISBLANK(G747),IF((J747=0),0,IF(ISERROR(rate!$D$17),0,rate!$D$17)),IF(ISERROR(rate!$D$17),0,rate!$D$17))","v":0},0]
[725,null,null,null,null,null,null,"",{"$f":"IF(ISBLANK(G748),0,IF(H748=CURRENCY,(IF(ISERROR(rate!L$17),0,rate!L$17)),0))","v":0},0,{"$f":"IF(ISBLANK(G748),IF((J748=0),0,IF(ISERROR(rate!$D$17),0,rate!$D$17)),IF(ISERROR(rate!$D$17),0,rate!$D$17))","v":0},0]
[726,null,null,null,null,null,null,"",{"$f":"IF(ISBLANK(G749),0,IF(H749=CURRENCY,(IF(ISERROR(rate!L$17),0,rate!L$17)),0))","v":0},0,{"$f":"IF(ISBLANK(G749),IF((J749=0),0,IF(ISERROR(rate!$D$17),0,rate!$D$17)),IF(ISERROR(rate!$D$17),0,rate!$D$17))","v":0},0]
[727,null,null,null,null,null,null,"",{"$f":"IF(ISBLANK(G750),0,IF(H750=CURRENCY,(IF(ISERROR(rate!L$17),0,rate!L$17)),0))","v":0},0,{"$f":"IF(ISBLANK(G750),IF((J750=0),0,IF(ISERROR(rate!$D$17),0,rate!$D$17)),IF(ISERROR(rate!$D$17),0,rate!$D$17))","v":0},0]
[728,null,null,null,null,null,null,"",{"$f":"IF(ISBLANK(G751),0,IF(H751=CURRENCY,(IF(ISERROR(rate!L$17),0,rate!L$17)),0))","v":0},0,{"$f":"IF(ISBLANK(G751),IF((J751=0),0,IF(ISERROR(rate!$D$17),0,rate!$D$17)),IF(ISERROR(rate!$D$17),0,rate!$D$17))","v":0},0]
[729,null,null,null,null,null,null,"",{"$f":"IF(ISBLANK(G752),0,IF(H752=CURRENCY,(IF(ISERROR(rate!L$17),0,rate!L$17)),0))","v":0},0,{"$f":"IF(ISBLANK(G752),IF((J752=0),0,IF(ISERROR(rate!$D$17),0,rate!$D$17)),IF(ISERROR(rate!$D$17),0,rate!$D$17))","v":0},0]
[730,null,null,null,null,null,null,"",{"$f":"IF(ISBLANK(G753),0,IF(H753=CURRENCY,(IF(ISERROR(rate!L$17),0,rate!L$17)),0))","v":0},0,{"$f":"IF(ISBLANK(G753),IF((J753=0),0,IF(ISERROR(rate!$D$17),0,rate!$D$17)),IF(ISERROR(rate!$D$17),0,rate!$D$17))","v":0},0]
[731,null,null,null,null,null,null,"",{"$f":"IF(ISBLANK(G754),0,IF(H754=CURRENCY,(IF(ISERROR(rate!L$17),0,rate!L$17)),0))","v":0},0,{"$f":"IF(ISBLANK(G754),IF((J754=0),0,IF(ISERROR(rate!$D$17),0,rate!$D$17)),IF(ISERROR(rate!$D$17),0,rate!$D$17))","v":0},0]
[732,null,null,null,null,null,null,"",{"$f":"IF(ISBLANK(G755),0,IF(H755=CURRENCY,(IF(ISERROR(rate!L$17),0,rate!L$17)),0))","v":0},0,{"$f":"IF(ISBLANK(G755),IF((J755=0),0,IF(ISERROR(rate!$D$17),0,rate!$D$17)),IF(ISERROR(rate!$D$17),0,rate!$D$17))","v":0},0]
[733,null,null,null,null,null,null,"",{"$f":"IF(ISBLANK(G756),0,IF(H756=CURRENCY,(IF(ISERROR(rate!L$17),0,rate!L$17)),0))","v":0},0,{"$f":"IF(ISBLANK(G756),IF((J756=0),0,IF(ISERROR(rate!$D$17),0,rate!$D$17)),IF(ISERROR(rate!$D$17),0,rate!$D$17))","v":0},0]
[734,null,null,null,null,null,null,"",{"$f":"IF(ISBLANK(G757),0,IF(H757=CURRENCY,(IF(ISERROR(rate!L$17),0,rate!L$17)),0))","v":0},0,{"$f":"IF(ISBLANK(G757),IF((J757=0),0,IF(ISERROR(rate!$D$17),0,rate!$D$17)),IF(ISERROR(rate!$D$17),0,rate!$D$17))","v":0},0]
[735,null,null,null,null,null,null,"",{"$f":"IF(ISBLANK(G758),0,IF(H758=CURRENCY,(IF(ISERROR(rate!L$17),0,rate!L$17)),0))","v":0},0,{"$f":"IF(ISBLANK(G758),IF((J758=0),0,IF(ISERROR(rate!$D$17),0,rate!$D$17)),IF(ISERROR(rate!$D$17),0,rate!$D$17))","v":0},0]
[736,null,null,null,null,null,null,"",{"$f":"IF(ISBLANK(G759),0,IF(H759=CURRENCY,(IF(ISERROR(rate!L$17),0,rate!L$17)),0))","v":0},0,{"$f":"IF(ISBLANK(G759),IF((J759=0),0,IF(ISERROR(rate!$D$17),0,rate!$D$17)),IF(ISERROR(rate!$D$17),0,rate!$D$17))","v":0},0]
[737,null,null,null,null,null,null,"",{"$f":"IF(ISBLANK(G760),0,IF(H760=CURRENCY,(IF(ISERROR(rate!L$17),0,rate!L$17)),0))","v":0},0,{"$f":"IF(ISBLANK(G760),IF((J760=0),0,IF(ISERROR(rate!$D$17),0,rate!$D$17)),IF(ISERROR(rate!$D$17),0,rate!$D$17))","v":0},0]
[738,null,null,null,null,null,null,"",{"$f":"IF(ISBLANK(G761),0,IF(H761=CURRENCY,(IF(ISERROR(rate!L$17),0,rate!L$17)),0))","v":0},0,{"$f":"IF(ISBLANK(G761),IF((J761=0),0,IF(ISERROR(rate!$D$17),0,rate!$D$17)),IF(ISERROR(rate!$D$17),0,rate!$D$17))","v":0},0]
[739,null,null,null,null,null,null,"",{"$f":"IF(ISBLANK(G762),0,IF(H762=CURRENCY,(IF(ISERROR(rate!L$17),0,rate!L$17)),0))","v":0},0,{"$f":"IF(ISBLANK(G762),IF((J762=0),0,IF(ISERROR(rate!$D$17),0,rate!$D$17)),IF(ISERROR(rate!$D$17),0,rate!$D$17))","v":0},0]
[740,null,null,null,null,null,null,"",{"$f":"IF(ISBLANK(G763),0,IF(H763=CURRENCY,(IF(ISERROR(rate!L$17),0,rate!L$17)),0))","v":0},0,{"$f":"IF(ISBLANK(G763),IF((J763=0),0,IF(ISERROR(rate!$D$17),0,rate!$D$17)),IF(ISERROR(rate!$D$17),0,rate!$D$17))","v":0},0]
[741,null,null,null,null,null,null,"",{"$f":"IF(ISBLANK(G764),0,IF(H764=CURRENCY,(IF(ISERROR(rate!L$17),0,rate!L$17)),0))","v":0},0,{"$f":"IF(ISBLANK(G764),IF((J764=0),0,IF(ISERROR(rate!$D$17),0,rate!$D$17)),IF(ISERROR(rate!$D$17),0,rate!$D$17))","v":0},0]
[742,null,null,null,null,null,null,"",{"$f":"IF(ISBLANK(G765),0,IF(H765=CURRENCY,(IF(ISERROR(rate!L$17),0,rate!L$17)),0))","v":0},0,{"$f":"IF(ISBLANK(G765),IF((J765=0),0,IF(ISERROR(rate!$D$17),0,rate!$D$17)),IF(ISERROR(rate!$D$17),0,rate!$D$17))","v":0},0]
[743,null,null,null,null,null,null,"",{"$f":"IF(ISBLANK(G766),0,IF(H766=CURRENCY,(IF(ISERROR(rate!L$17),0,rate!L$17)),0))","v":0},0,{"$f":"IF(ISBLANK(G766),IF((J766=0),0,IF(ISERROR(rate!$D$17),0,rate!$D$17)),IF(ISERROR(rate!$D$17),0,rate!$D$17))","v":0},0]
[744,null,null,null,null,null,null,"",{"$f":"IF(ISBLANK(G767),0,IF(H767=CURRENCY,(IF(ISERROR(rate!L$17),0,rate!L$17)),0))","v":0},0,{"$f":"IF(ISBLANK(G767),IF((J767=0),0,IF(ISERROR(rate!$D$17),0,rate!$D$17)),IF(ISERROR(rate!$D$17),0,rate!$D$17))","v":0},0]
[745,null,null,null,null,null,null,"",{"$f":"IF(ISBLANK(G768),0,IF(H768=CURRENCY,(IF(ISERROR(rate!L$17),0,rate!L$17)),0))","v":0},0,{"$f":"IF(ISBLANK(G768),IF((J768=0),0,IF(ISERROR(rate!$D$17),0,rate!$D$17)),IF(ISERROR(rate!$D$17),0,rate!$D$17))","v":0},0]
[746,null,null,null,null,null,null,"",{"$f":"IF(ISBLANK(G769),0,IF(H769=CURRENCY,(IF(ISERROR(rate!L$17),0,rate!L$17)),0))","v":0},0,{"$f":"IF(ISBLANK(G769),IF((J769=0),0,IF(ISERROR(rate!$D$17),0,rate!$D$17)),IF(ISERROR(rate!$D$17),0,rate!$D$17))","v":0},0]
[747,null,null,null,null,null,null,"",{"$f":"IF(ISBLANK(G770),0,IF(H770=CURRENCY,(IF(ISERROR(rate!L$17),0,rate!L$17)),0))","v":0},0,{"$f":"IF(ISBLANK(G770),IF((J770=0),0,IF(ISERROR(rate!$D$17),0,rate!$D$17)),IF(ISERROR(rate!$D$17),0,rate!$D$17))","v":0},0]
[748,null,null,null,null,null,null,"",{"$f":"IF(ISBLANK(G771),0,IF(H771=CURRENCY,(IF(ISERROR(rate!L$17),0,rate!L$17)),0))","v":0},0,{"$f":"IF(ISBLANK(G771),IF((J771=0),0,IF(ISERROR(rate!$D$17),0,rate!$D$17)),IF(ISERROR(rate!$D$17),0,rate!$D$17))","v":0},0]
[749,null,null,null,null,null,null,"",{"$f":"IF(ISBLANK(G772),0,IF(H772=CURRENCY,(IF(ISERROR(rate!L$17),0,rate!L$17)),0))","v":0},0,{"$f":"IF(ISBLANK(G772),IF((J772=0),0,IF(ISERROR(rate!$D$17),0,rate!$D$17)),IF(ISERROR(rate!$D$17),0,rate!$D$17))","v":0},0]
[750,null,null,null,null,null,null,{"$f":"IF(ISBLANK(G773),\"\",+CURRENCY)","v":""},{"$f":"IF(ISBLANK(G773),0,IF(H773=CURRENCY,(IF(ISERROR(rate!L$17),0,rate!L$17)),0))","v":0},{"$f":"IF(ISERROR(+G773/I773),0,+G773/I773)","v":0},{"$f":"IF(ISBLANK(G773),IF((J773=0),0,IF(ISERROR(rate!$D$17),0,rate!$D$17)),IF(ISERROR(rate!$D$17),0,rate!$D$17))","v":0},0]
[null,null,null,null,null,null,null,null,null,null,"TOTAL",{"$f":"SUM(L24:L773)","v":0}]
[null,null,null,null,null,"all local currencies",{"$f":"SUBTOTAL(9,G24:G773)","v":0},null,null,null,"SUBTOTAL",{"$f":"SUBTOTAL(9,L24:L773)","v":0}]

{"sheet":"Model 2B","index":5,"n_rows":418,"n_cols":6,"rows_kept":418,"cut":false,"hidden":false,"merged":[[11,0,11,2],[6,0,6,1],[3,2,3,5],[4,2,4,5],[5,3,5,4],[1,1,1,4],[3,0,3,1],[4,0,4,1],[5,0,5,1]]}
["Model 2B","OWN INITIATIVES - TEAM"]
[null,"Transactions on the specific local bankaccounts (current and forward accounts) and/or cashbook"]
[]
["FLEMISH UNIVERSITY:",null,{"$f":"+'Model 1A'!F8","v":0}]
["PARTNER INSTITUTION :",null,{"$f":"+'Model 1A'!F9","v":0}]
["PROJECT YEAR : ",null,{"$f":"+apYear","v":0},"VLIR-UOS PROJECTCODE :",null,{"$f":"+'Model 1A'!J10","v":0}]
["PERIOD :",null,"from :",{"$f":"+begindatum","v":"00:00:00"},"to :",{"$f":"+einddatum","v":"00:00:00"}]
[]
[null,null,null,"CURRENCY","?"]
[null,null,{"$f":"IF(D10=\"error\",\"adapt formulas to added lines\",IF(E10=\"error\",\"adapt formulas to added lines\",\"\"))","v":""},{"$f":"IF((D12-D418)<>0,\"error\",\"\")","v":""},{"$f":"IF((E12-E418)<>0,\"error\",\"\")","v":""}]
["Nr.","Date","Description","Revenues","Expenses","Balance"]
["TOTALS",null,null,{"$f":"SUM(D13:D417)","v":0},{"$f":"SUM(E13:E417)","v":0}]
[null,null,null,null,null,{"$f":"D13-E13","v":0}]
[null,null,null,null,null,{"$f":"F13+D14-E14","v":0}]
[null,null,null,null,null,{"$f":"F14+D15-E15","v":0}]
[null,null,null,null,null,0]
[null,null,null,null,null,0]
[null,null,null,null,null,0]
[null,null,null,null,null,0]
[null,null,null,null,null,0]
[null,null,null,null,null,0]
[null,null,null,null,null,0]
[null,null,null,null,null,0]
[null,null,null,null,null,0]
[null,null,null,null,null,0]
[null,null,null,null,null,0]
[null,null,null,null,null,0]
[null,null,null,null,null,0]
[null,null,null,null,null,0]
[null,null,null,null,null,0]
[null,null,null,null,null,0]
[null,null,null,null,null,0]
[null,null,null,null,null,0]
[null,null,null,null,null,0]
[null,null,null,null,null,0]
[null,null,null,null,null,0]
[null,null,null,null,null,0]
[null,null,null,null,null,0]
[null,null,null,null,null,0]
[null,null,null,null,null,0]
[null,null,null,null,null,0]
[null,null,null,null,null,0]
[null,null,null,null,null,0]
[null,null,null,null,null,0]
[null,null,null,null,null,0]
[null,null,null,null,null,0]
[null,null,null,null,null,0]
[null,null,null,null,null,0]
[null,null,null,null,null,0]
[null,null,null,null,null,0]
[null,null,null,null,null,0]
[null,null,null,null,null,0]
[null,null,null,null,null,0]
[null,null,null,null,null,0]
[null,null,null,null,null,0]
[null,null,null,null,null,0]
[null,null,null,null,null,0]
[null,null,null,null,null,0]
[null,null,null,null,null,0]
[null,null,null,null,null,0]
[null,null,null,null,null,0]
[null,null,null,null,null,0]
[null,null,null,null,null,0]
[null,null,null,null,null,0]
[null,null,null,null,null,0]
[null,null,null,null,null,0]
[null,null,null,null,null,0]
[null,null,null,null,null,0]
[null,null,null,null,null,0]
[null,null,null,null,null,0]
[null,null,null,null,null,0]
[null,null,null,null,null,0]
[null,null,null,null,null,0]
[null,null,null,null,null,0]
[null,null,null,null,null,0]
[null,null,null,null,null,0]
[null,null,null,null,null,0]
[null,null,null,null,null,0]
[null,null,null,null,null,{"$f":"F78+D79-E79","v":0}]
[null,null,null,null,null,0]
[null,null,null,null,null,0]
[null,null,null,null,null,0]
[null,null,null,null,null,0]
[null,null,null,null,null,0]
[null,null,null,null,null,0]
[null,null,null,null,null,0]
[null,null,null,null,null,0]
[null,null,null,null,null,0]
[null,null,null,null,null,0]
[null,null,null,null,null,0]
[null,null,null,null,null,0]
[null,null,null,null,null,0]
[null,null,null,null,null,0]
[null,null,null,null,null,0]
[null,null,null,null,null,0]
[null,null,null,null,null,0]
[null,null,null,null,null,0]
[null,null,null,null,null,0]
[null,null,null,null,null,0]
[null,null,null,null,null,0]
[null,null,null,null,null,0]
[null,null,null,null,null,0]
[null,null,null,null,null,0]
[null,null,null,null,null,0]
[null,null,null,null,null,0]
[null,null,null,null,null,0]
[null,null,null,null,null,0]
[null,null,null,null,null,0]
[null,null,null,null,null,0]
[null,null,null,null,null,0]
[null,null,null,null,null,0]
[null,null,null,null,null,0]
[null,null,null,null,null,0]
[null,null,null,null,null,0]
[null,null,null,null,null,0]
[null,null,null,null,null,0]
[null,null,null,null,null,0]
[null,null,null,null,null,0]
[null,null,null,null,null,0]
[null,null,null,null,null,0]
[null,null,null,null,null,0]
[null,null,null,null,null,0]
[null,null,null,null,null,0]
[null,null,null,null,null,0]
[null,null,null,null,null,0]
[null,null,null,null,null,0]
[null,null,null,null,null,0]
[null,null,null,null,null,0]
[null,null,null,null,null,0]
[null,null,null,null,null,0]
[null,null,null,null,null,0]
[null,null,null,null,null,0]
[null,null,null,null,null,0]
[null,null,null,null,null,0]
[null,null,null,null,null,0]
[null,null,null,null,null,0]
[null,null,null,null,null,0]
[null,null,null,null,null,0]
[null,null,null,null,null,0]
[null,null,null,null,null,0]
[null,null,null,null,null,0]
[null,null,null,null,null,0]
[null,null,null,null,null,{"$f":"F142+D143-E143","v":0}]
[null,null,null,null,null,0]
[null,null,null,null,null,0]
[null,null,null,null,null,0]
[null,null,null,null,null,0]
[null,null,null,null,null,0]
[null,null,null,null,null,0]
[null,null,null,null,null,0]
[null,null,null,null,null,0]
[null,null,null,null,null,0]
[null,null,null,null,null,0]
[null,null,null,null,null,0]
[null,null,null,null,null,0]
[null,null,null,null,null,0]
[null,null,null,null,null,0]
[null,null,null,null,null,0]
[null,null,null,null,null,0]
[null,null,null,null,null,0]
[null,null,null,null,null,0]
[null,null,null,null,null,0]
[null,null,null,null,null,0]
[null,null,null,null,null,0]
[null,null,null,null,null,0]
[null,null,null,null,null,0]
[null,null,null,null,null,0]
[null,null,null,null,null,0]
[null,null,null,null,null,0]
[null,null,null,null,null,0]
[null,null,null,null,null,0]
[null,null,null,null,null,0]
[null,null,null,null,null,0]
[null,null,null,null,null,0]
[null,null,null,null,null,0]
[null,null,null,null,null,0]
[null,null,null,null,null,0]
[null,null,null,null,null,0]
[null,null,null,null,null,0]
[null,null,null,null,null,0]
[null,null,null,null,null,0]
[null,null,null,null,null,0]
[null,null,null,null,null,0]
[null,null,null,null,null,0]
[null,null,null,null,null,0]
[null,null,null,null,null,0]
[null,null,null,null,null,0]
[null,null,null,null,null,0]
[null,null,null,null,null,0]
[null,null,null,null,null,0]
[null,null,null,null,null,0]
[null,null,null,null,null,0]
[null,null,null,null,null,0]
[null,null,null,null,null,0]
[null,null,null,null,null,0]
[null,null,null,null,null,0]
[null,null,null,null,null,0]
[null,null,null,null,null,0]
[null,null,null,null,null,0]
[null,null,null,null,null,0]
[null,null,null,null,null,0]
[null,null,null,null,null,0]
[null,null,null,null,null,0]
[null,null,null,null,null,0]
[null,null,null,null,null,0]
[null,null,null,null,null,0]
[null,null,null,null,null,{"$f":"F206+D207-E207","v":0}]
[null,null,null,null,null,0]
[null,null,null,null,null,0]
[null,null,null,null,null,0]
[null,null,null,null,null,0]
[null,null,null,null,null,0]
[null,null,null,null,null,0]
[null,null,null,null,null,0]
[null,null,null,null,null,0]
[null,null,null,null,null,0]
[null,null,null,null,null,0]
[null,null,null,null,null,0]
[null,null,null,null,null,0]
[null,null,null,null,null,0]
[null,null,null,null,null,0]
[null,null,null,null,null,0]
[null,null,null,null,null,0]
[null,null,null,null,null,0]
[null,null,null,null,null,0]
[null,null,null,null,null,0]
[null,null,null,null,null,0]
[null,null,null,null,null,0]
[null,null,null,null,null,0]
[null,null,null,null,null,0]
[null,null,null,null,null,0]
[null,null,null,null,null,0]
[null,null,null,null,null,0]
[null,null,null,null,null,0]
[null,null,null,null,null,0]
[null,null,null,null,null,0]
[null,null,null,null,null,0]
[null,null,null,null,null,0]
[null,null,null,null,null,0]
[null,null,null,null,null,0]
[null,null,null,null,null,0]
[null,null,null,null,null,0]
[null,null,null,null,null,0]
[null,null,null,null,null,0]
[null,null,null,null,null,0]
[null,null,null,null,null,0]
[null,null,null,null,null,0]
[null,null,null,null,null,0]
[null,null,null,null,null,0]
[null,null,null,null,null,0]
[null,null,null,null,null,0]
[null,null,null,null,null,0]
[null,null,null,null,null,0]
[null,null,null,null,null,0]
[null,null,null,null,null,0]
[null,null,null,null,null,0]
[null,null,null,null,null,0]
[null,null,null,null,null,0]
[null,null,null,null,null,0]
[null,null,null,null,null,0]
[null,null,null,null,null,0]
[null,null,null,null,null,0]
[null,null,null,null,null,0]
[null,null,null,null,null,0]
[null,null,null,null,null,0]
[null,null,null,null,null,0]
[null,null,null,null,null,0]
[null,null,null,null,null,0]
[null,null,null,null,null,0]
[null,null,null,null,null,0]
[null,null,null,null,null,{"$f":"F270+D271-E271","v":0}]
[null,null,null,null,null,0]
[null,null,null,null,null,0]
[null,null,null,null,null,0]
[null,null,null,null,null,0]
[null,null,null,null,null,0]
[null,null,null,null,null,0]
[null,null,null,null,null,0]
[null,null,null,null,null,0]
[null,null,null,null,null,0]
[null,null,null,null,null,0]
[null,null,null,null,null,0]
[null,null,null,null,null,0]
[null,null,null,null,null,0]
[null,null,null,null,null,0]
[null,null,null,null,null,0]
[null,null,null,null,null,0]
[null,null,null,null,null,0]
[null,null,null,null,null,0]
[null,null,null,null,null,0]
[null,null,null,null,null,0]
[null,null,null,null,null,0]
[null,null,null,null,null,0]
[null,null,null,null,null,0]
[null,null,null,null,null,0]
[null,null,null,null,null,0]
[null,null,null,null,null,0]
[null,null,null,null,null,0]
[null,null,null,null,null,0]
[null,null,null,null,null,0]
[null,null,null,null,null,0]
[null,null,null,null,null,0]
[null,null,null,null,null,0]
[null,null,null,null,null,0]
[null,null,null,null,null,0]
[null,null,null,null,null,0]
[null,null,null,null,null,0]
[null,null,null,null,null,0]
[null,null,null,null,null,0]
[null,null,null,null,null,0]
[null,null,null,null,null,0]
[null,null,null,null,null,0]
[null,null,null,null,null,0]
[null,null,null,null,null,0]
[null,null,null,null,null,0]
[null,null,null,null,null,0]
[null,null,null,null,null,0]
[null,null,null,null,null,0]
[null,null,null,null,null,0]
[null,null,null,null,null,0]
[null,null,null,null,null,0]
[null,null,null,null,null,0]
[null,null,null,null,null,0]
[null,null,null,null,null,0]
[null,null,null,null,null,0]
[null,null,null,null,null,0]
[null,null,null,null,null,0]
[null,null,null,null,null,0]
[null,null,null,null,null,0]
[null,null,null,null,null,0]
[null,null,null,null,null,0]
[null,null,null,null,null,0]
[null,null,null,null,null,0]
[null,null,null,null,null,0]
[null,null,null,null,null,{"$f":"F334+D335-E335","v":0}]
[null,null,null,null,null,0]
[null,null,null,null,null,0]
[null,null,null,null,null,0]
[null,null,null,null,null,0]
[null,null,null,null,null,0]
[null,null,null,null,null,0]
[null,null,null,null,null,0]
[null,null,null,null,null,0]
[null,null,null,null,null,0]
[null,null,null,null,null,0]
[null,null,null,null,null,0]
[null,null,null,null,null,0]
[null,null,null,null,null,0]
[null,null,null,null,null,0]
[null,null,null,null,null,0]
[null,null,null,null,null,0]
[null,null,null,null,null,0]
[null,null,null,null,null,0]
[null,null,null,null,null,0]
[null,null,null,null,null,0]
[null,null,null,null,null,0]
[null,null,null,null,null,0]
[null,null,null,null,null,0]
[null,null,null,null,null,0]
[null,null,null,null,null,0]
[null,null,null,null,null,0]
[null,null,null,null,null,0]
[null,null,null,null,null,0]
[null,null,null,null,null,0]
[null,null,null,null,null,0]
[null,null,null,null,null,0]
[null,null,null,null,null,0]
[null,null,null,null,null,0]
[null,null,null,null,null,0]
[null,null,null,null,null,0]
[null,null,null,null,null,0]
[null,null,null,null,null,0]
[null,null,null,null,null,0]
[null,null,null,null,null,0]
[null,null,null,null,null,0]
[null,null,null,null,null,0]
[null,null,null,null,null,0]
[null,null,null,null,null,0]
[null,null,null,null,null,0]
[null,null,null,null,null,0]
[null,null,null,null,null,0]
[null,null,null,null,null,0]
[null,null,null,null,null,0]
[null,null,null,null,null,0]
[null,null,null,null,null,0]
[null,null,null,null,null,0]
[null,null,null,null,null,0]
[null,null,null,null,null,0]
[null,null,null,null,null,0]
[null,null,null,null,null,0]
[null,null,null,null,null,0]
[null,null,null,null,null,0]
[null,null,null,null,null,0]
[null,null,null,null,null,0]
[null,null,null,null,null,0]
[null,null,null,null,null,0]
[null,null,null,null,null,0]
[null,null,null,null,null,0]
[null,null,null,null,null,{"$f":"F398+D399-E399","v":0}]
[null,null,null,null,null,0]
[null,null,null,null,null,0]
[null,null,null,null,null,0]
[null,null,null,null,null,0]
[null,null,null,null,null,0]
[null,null,null,null,null,0]
[null,null,null,null,null,0]
[null,null,null,null,null,0]
[null,null,null,null,null,0]
[null,null,null,null,null,0]
[null,null,null,null,null,0]
[null,null,null,null,null,0]
[null,null,null,null,null,0]
[null,null,null,null,null,0]
[null,null,null,null,null,0]
[null,null,null,null,null,0]
[null,null,null,null,null,0]
[null,null,null,null,null,0]
[null,null,"totals",{"$f":"SUM(D13:D417)","v":0},{"$f":"SUM(E13:E417)","v":0}]

{"sheet":"Model 2B (USD)","index":6,"n_rows":418,"n_cols":6,"rows_kept":418,"cut":false,"hidden":false,"merged":[[11,0,11,2],[1,1,1,4],[3,0,3,1],[4,0,4,1],[5,0,5,1],[6,0,6,1],[3,2,3,5],[4,2,4,5],[5,3,5,4]]}
["Model 2B","OWN INITIATIVES - TEAM"]
[null,"Transactions on the specific local bankaccounts (current and forward accounts) and/or cashbook"]
[]
["FLEMISH UNIVERSITY:",null,{"$f":"+'Model 1A'!F8","v":0}]
["PARTNER INSTITUTION :",null,{"$f":"+'Model 1A'!F9","v":0}]
["PROJECT YEAR : ",null,{"$f":"+apYear","v":0},"VLIR-UOS PROJECTCODE :",null,{"$f":"+'Model 1A'!J10","v":0}]
["PERIOD :",null,"from :",{"$f":"+begindatum","v":"00:00:00"},"to :",{"$f":"+einddatum","v":"00:00:00"}]
[null,null,{"$f":"IF(D8=\"error\",\"adapt formulas to added lines\",IF(E8=\"error\",\"adapt formulas to added lines\",\"\"))","v":""},{"$f":"IF((D12-D418)<>0,\"error\",\"\")","v":""},{"$f":"IF((E12-E418)<>0,\"error\",\"\")","v":""}]
[null,null,null,"CURRENCY","USD"]
[]
["Nr.","Date","Description","Revenues","Expenses","Balance"]
["TOTALS",null,null,{"$f":"SUM(D13:D417)","v":0},{"$f":"SUM(E13:E417)","v":0}]
[null,null,null,null,null,{"$f":"D13-E13","v":0}]
[null,null,null,null,null,{"$f":"F13+D14-E14","v":0}]
[null,null,null,null,null,0]
[null,null,null,null,null,0]
[null,null,null,null,null,0]
[null,null,null,null,null,0]
[null,null,null,null,null,0]
[null,null,null,null,null,0]
[null,null,null,null,null,0]
[null,null,null,null,null,0]
[null,null,null,null,null,0]
[null,null,null,null,null,0]
[null,null,null,null,null,0]
[null,null,null,null,null,0]
[null,null,null,null,null,0]
[null,null,null,null,null,0]
[null,null,null,null,null,0]
[null,null,null,null,null,0]
[null,null,null,null,null,0]
[null,null,null,null,null,0]
[null,null,null,null,null,0]
[null,null,null,null,null,0]
[null,null,null,null,null,0]
[null,null,null,null,null,0]
[null,null,null,null,null,0]
[null,null,null,null,null,0]
[null,null,null,null,null,0]
[null,null,null,null,null,0]
[null,null,null,null,null,0]
[null,null,null,null,null,0]
[null,null,null,null,null,0]
[null,null,null,null,null,0]
[null,null,null,null,null,0]
[null,null,null,null,null,0]
[null,null,null,null,null,0]
[null,null,null,null,null,0]
[null,null,null,null,null,0]
[null,null,null,null,null,0]
[null,null,null,null,null,0]
[null,null,null,null,null,0]
[null,null,null,null,null,0]
[null,null,null,null,null,0]
[null,null,null,null,null,0]
[null,null,null,null,null,0]
[null,null,null,null,null,0]
[null,null,null,null,null,0]
[null,null,null,null,null,0]
[null,null,null,null,null,0]
[null,null,null,null,null,0]
[null,null,null,null,null,0]
[null,null,null,null,null,0]
[null,null,null,null,null,0]
[null,null,null,null,null,0]
[null,null,null,null,null,0]
[null,null,null,null,null,0]
[null,null,null,null,null,0]
[null,null,null,null,null,0]
[null,null,null,null,null,0]
[null,null,null,null,null,0]
[null,null,null,null,null,0]
[null,null,null,null,null,0]
[null,null,null,null,null,0]
[null,null,null,null,null,0]
[null,null,null,null,null,0]
[null,null,null,null,null,0]
[null,null,null,null,null,{"$f":"F77+D78-E78","v":0}]
[null,null,null,null,null,0]
[null,null,null,null,null,0]
[null,null,null,null,null,0]
[null,null,null,null,null,0]
[null,null,null,null,null,0]
[null,null,null,null,null,0]
[null,null,null,null,null,0]
[null,null,null,null,null,0]
[null,null,null,null,null,0]
[null,null,null,null,null,0]
[null,null,null,null,null,0]
[null,null,null,null,null,0]
[null,null,null,null,null,0]
[null,null,null,null,null,0]
[null,null,null,null,null,0]
[null,null,null,null,null,0]
[null,null,null,null,null,0]
[null,null,null,null,null,0]
[null,null,null,null,null,0]
[null,null,null,null,null,0]
[null,null,null,null,null,0]
[null,null,null,null,null,0]
[null,null,null,null,null,0]
[null,null,null,null,null,0]
[null,null,null,null,null,0]
[null,null,null,null,null,0]
[null,null,null,null,null,0]
[null,null,null,null,null,0]
[null,null,null,null,null,0]
[null,null,null,null,null,0]
[null,null,null,null,null,0]
[null,null,null,null,null,0]
[null,null,null,null,null,0]
[null,null,null,null,null,0]
[null,null,null,null,null,0]
[null,null,null,null,null,0]
[null,null,null,null,null,0]
[null,null,null,null,null,0]
[null,null,null,null,null,0]
[null,null,null,null,null,0]
[null,null,null,null,null,0]
[null,null,null,null,null,0]
[null,null,null,null,null,0]
[null,null,null,null,null,0]
[null,null,null,null,null,0]
[null,null,null,null,null,0]
[null,null,null,null,null,0]
[null,null,null,null,null,0]
[null,null,null,null,null,0]
[null,null,null,null,null,0]
[null,null,null,null,null,0]
[null,null,null,null,null,0]
[null,null,null,null,null,0]
[null,null,null,null,null,0]
[null,null,null,null,null,0]
[null,null,null,null,null,0]
[null,null,null,null,null,0]
[null,null,null,null,null,0]
[null,null,null,null,null,0]
[null,null,null,null,null,0]
[null,null,null,null,null,0]
[null,null,null,null,null,0]
[null,null,null,null,null,0]
[null,null,null,null,null,{"$f":"F141+D142-E142","v":0}]
[null,null,null,null,null,0]
[null,null,null,null,null,0]
[null,null,null,null,null,0]
[null,null,null,null,null,0]
[null,null,null,null,null,0]
[null,null,null,null,null,0]
[null,null,null,null,null,0]
[null,null,null,null,null,0]
[null,null,null,null,null,0]
[null,null,null,null,null,0]
[null,null,null,null,null,0]
[null,null,null,null,null,0]
[null,null,null,null,null,0]
[null,null,null,null,null,0]
[null,null,null,null,null,0]
[null,null,null,null,null,0]
[null,null,null,null,null,0]
[null,null,null,null,null,0]
[null,null,null,null,null,0]
[null,null,null,null,null,0]
[null,null,null,null,null,0]
[null,null,null,null,null,0]
[null,null,null,null,null,0]
[null,null,null,null,null,0]
[null,null,null,null,null,0]
[null,null,null,null,null,0]
[null,null,null,null,null,0]
[null,null,null,null,null,0]
[null,null,null,null,null,0]
[null,null,null,null,null,0]
[null,null,null,null,null,0]
[null,null,null,null,null,0]
[null,null,null,null,null,0]
[null,null,null,null,null,0]
[null,null,null,null,null,0]
[null,null,null,null,null,0]
[null,null,null,null,null,0]
[null,null,null,null,null,0]
[null,null,null,null,null,0]
[null,null,null,null,null,0]
[null,null,null,null,null,0]
[null,null,null,null,null,0]
[null,null,null,null,null,0]
[null,null,null,null,null,0]
[null,null,null,null,null,0]
[null,null,null,null,null,0]
[null,null,null,null,null,0]
[null,null,null,null,null,0]
[null,null,null,null,null,0]
[null,null,null,null,null,0]
[null,null,null,null,null,0]
[null,null,null,null,null,0]
[null,null,null,null,null,0]
[null,null,null,null,null,0]
[null,null,null,null,null,0]
[null,null,null,null,null,0]
[null,null,null,null,null,0]
[null,null,null,null,null,0]
[null,null,null,null,null,0]
[null,null,null,null,null,0]
[null,null,null,null,null,0]
[null,null,null,null,null,0]
[null,null,null,null,null,0]
[null,null,null,null,null,{"$f":"F205+D206-E206","v":0}]
[null,null,null,null,null,0]
[null,null,null,null,null,0]
[null,null,null,null,null,0]
[null,null,null,null,null,0]
[null,null,null,null,null,0]
[null,null,null,null,null,0]
[null,null,null,null,null,0]
[null,null,null,null,null,0]
[null,null,null,null,null,0]
[null,null,null,null,null,0]
[null,null,null,null,null,0]
[null,null,null,null,null,0]
[null,null,null,null,null,0]
[null,null,null,null,null,0]
[null,null,null,null,null,0]
[null,null,null,null,null,0]
[null,null,null,null,null,0]
[null,null,null,null,null,0]
[null,null,null,null,null,0]
[null,null,null,null,null,0]
[null,null,null,null,null,0]
[null,null,null,null,null,0]
[null,null,null,null,null,0]
[null,null,null,null,null,0]
[null,null,null,null,null,0]
[null,null,null,null,null,0]
[null,null,null,null,null,0]
[null,null,null,null,null,0]
[null,null,null,null,null,0]
[null,null,null,null,null,0]
[null,null,null,null,null,0]
[null,null,null,null,null,0]
[null,null,null,null,null,0]
[null,null,null,null,null,0]
[null,null,null,null,null,0]
[null,null,null,null,null,0]
[null,null,null,null,null,0]
[null,null,null,null,null,0]
[null,null,null,null,null,0]
[null,null,null,null,null,0]
[null,null,null,null,null,0]
[null,null,null,null,null,0]
[null,null,null,null,null,0]
[null,null,null,null,null,0]
[null,null,null,null,null,0]
[null,null,null,null,null,0]
[null,null,null,null,null,0]
[null,null,null,null,null,0]
[null,null,null,null,null,0]
[null,null,null,null,null,0]
[null,null,null,null,null,0]
[null,null,null,null,null,0]
[null,null,null,null,null,0]
[null,null,null,null,null,0]
[null,null,null,null,null,0]
[null,null,null,null,null,0]
[null,null,null,null,null,0]
[null,null,null,null,null,0]
[null,null,null,null,null,0]
[null,null,null,null,null,0]
[null,null,null,null,null,0]
[null,null,null,null,null,0]
[null,null,null,null,null,0]
[null,null,null,null,null,{"$f":"F269+D270-E270","v":0}]
[null,null,null,null,null,0]
[null,null,null,null,null,0]
[null,null,null,null,null,0]
[null,null,null,null,null,0]
[null,null,null,null,null,0]
[null,null,null,null,null,0]
[null,null,null,null,null,0]
[null,null,null,null,null,0]
[null,null,null,null,null,0]
[null,null,null,null,null,0]
[null,null,null,null,null,0]
[null,null,null,null,null,0]
[null,null,null,null,null,0]
[null,null,null,null,null,0]
[null,null,null,null,null,0]
[null,null,null,null,null,0]
[null,null,null,null,null,0]
[null,null,null,null,null,0]
[null,null,null,null,null,0]
[null,null,null,null,null,0]
[null,null,null,null,null,0]
[null,null,null,null,null,0]
[null,null,null,null,null,0]
[null,null,null,null,null,0]
[null,null,null,null,null,0]
[null,null,null,null,null,0]
[null,null,null,null,null,0]
[null,null,null,null,null,0]
[null,null,null,null,null,0]
[null,null,null,null,null,0]
[null,null,null,null,null,0]
[null,null,null,null,null,0]
[null,null,null,null,null,0]
[null,null,null,null,null,0]
[null,null,null,null,null,0]
[null,null,null,null,null,0]
[null,null,null,null,null,0]
[null,null,null,null,null,0]
[null,null,null,null,null,0]
[null,null,null,null,null,0]
[null,null,null,null,null,0]
[null,null,null,null,null,0]
[null,null,null,null,null,0]
[null,null,null,null,null,0]
[null,null,null,null,null,0]
[null,null,null,null,null,0]
[null,null,null,null,null,0]
[null,null,null,null,null,0]
[null,null,null,null,null,0]
[null,null,null,null,null,0]
[null,null,null,null,null,0]
[null,null,null,null,null,0]
[null,null,null,null,null,0]
[null,null,null,null,null,0]
[null,null,null,null,null,0]
[null,null,null,null,null,0]
[null,null,null,null,null,0]
[null,null,null,null,null,0]
[null,null,null,null,null,0]
[null,null,null,null,null,0]
[null,null,null,null,null,0]
[null,null,null,null,null,0]
[null,null,null,null,null,0]
[null,null,null,null,null,{"$f":"F333+D334-E334","v":0}]
[null,null,null,null,null,0]
[null,null,null,null,null,0]
[null,null,null,null,null,0]
[null,null,null,null,null,0]
[null,null,null,null,null,0]
[null,null,null,null,null,0]
[null,null,null,null,null,0]
[null,null,null,null,null,0]
[null,null,null,null,null,0]
[null,null,null,null,null,0]
[null,null,null,null,null,0]
[null,null,null,null,null,0]
[null,null,null,null,null,0]
[null,null,null,null,null,0]
[null,null,null,null,null,0]
[null,null,null,null,null,0]
[null,null,null,null,null,0]
[null,null,null,null,null,0]
[null,null,null,null,null,0]
[null,null,null,null,null,0]
[null,null,null,null,null,0]
[null,null,null,null,null,0]
[null,null,null,null,null,0]
[null,null,null,null,null,0]
[null,null,null,null,null,0]
[null,null,null,null,null,0]
[null,null,null,null,null,0]
[null,null,null,null,null,0]
[null,null,null,null,null,0]
[null,null,null,null,null,0]
[null,null,null,null,null,0]
[null,null,null,null,null,0]
[null,null,null,null,null,0]
[null,null,null,null,null,0]
[null,null,null,null,null,0]
[null,null,null,null,null,0]
[null,null,null,null,null,0]
[null,null,null,null,null,0]
[null,null,null,null,null,0]
[null,null,null,null,null,0]
[null,null,null,null,null,0]
[null,null,null,null,null,0]
[null,null,null,null,null,0]
[null,null,null,null,null,0]
[null,null,null,null,null,0]
[null,null,null,null,null,0]
[null,null,null,null,null,0]
[null,null,null,null,null,0]
[null,null,null,null,null,0]
[null,null,null,null,null,0]
[null,null,null,null,null,0]
[null,null,null,null,null,0]
[null,null,null,null,null,0]
[null,null,null,null,null,0]
[null,null,null,null,null,0]
[null,null,null,null,null,0]
[null,null,null,null,null,0]
[null,null,null,null,null,0]
[null,null,null,null,null,0]
[null,null,null,null,null,0]
[null,null,null,null,null,0]
[null,null,null,null,null,0]
[null,null,null,null,null,0]
[null,null,null,null,null,{"$f":"F397+D398-E398","v":0}]
[null,null,null,null,null,0]
[null,null,null,null,null,0]
[null,null,null,null,null,0]
[null,null,null,null,null,0]
[null,null,null,null,null,0]
[null,null,null,null,null,0]
[null,null,null,null,null,0]
[null,null,null,null,null,0]
[null,null,null,null,null,0]
[null,null,null,null,null,0]
[null,null,null,null,null,0]
[null,null,null,null,null,0]
[null,null,null,null,null,0]
[null,null,null,null,null,0]
[null,null,null,null,null,0]
[null,null,null,null,null,0]
[null,null,null,null,null,0]
[null,null,null,null,null,0]
[null,null,null,null,null,0]
[null,null,"totals",{"$f":"SUM(D13:D417)","v":0},{"$f":"SUM(E13:E417)","v":0}]

{"sheet":"hidden","index":7,"n_rows":12,"n_cols":1,"rows_kept":12,"cut":false,"hidden":false,"merged":[]}
[]
["categories (belgian account)"]
["A. INVESTMENT COSTS"]
["B. OPERATIONAL COSTS"]
["C. PERSONNEL COSTS"]
["D. SCHOLARSHIPS COSTS"]
[]
["categories (local account)"]
["A. INVESTMENT COSTS"]
["B. OPERATIONAL COSTS"]
["C. PERSONNEL COSTS"]
["D. SCHOLARSHIPS COSTS"]